Workbook

Sheet Macros
C2: Capital Gain Tax Rate | G2: Ordinary Income Rate
C6: This macro updates Table 1 at "Sensitivity Results" tab. | G6: This macro updates Table 1 at "Sensitivity Results(OI)" tab. | K6: This is the main macro, running all the macros.
C11: This macro updates Table 2 at "Sensitivity Results" tab. | G11: This macro updates Table 2 at "Sensitivity Results(OI)" tab.
C16: This macro updates Table 3 at "Sensitivity Results" tab. | G16: This macro updates Table 3 at "Sensitivity Results(OI)" tab.
C21: This macro updates Table 4 at "Sensitivity Results" tab. | G21: This macro updates Table 4 at "Sensitivity Results(OI)" tab.
C26: This macro updates the "Base Case =f(T)" tab. | G26: This macro updates the "Base Case =f(T)(OI)" tab.

Sheet Base Case Assumptions
A2: Base-Case Assumptions and Sensitivity Scenarios:
F4: Scenario #1 | G4: Scenario #2 | H4: Scenario #3 | I4: Scenario #4 | J4: Scenario #5
H5: (Base Case)
A6: Tax Rates:
B7: Ordinary Income | F7: 0.4 | G7: 0.4 | H7: 0.4 | I7: 0.4 | J7: 0.4
B8: Capital Gains | F8: 0.15 | G8: 0.2 | H8: 0.238 | I8: 0.3 | J8: 0.4
C9: Differential | F9: =F7-F8 -> 0.25 | G9: =G7-G8 -> 0.2 | H9: =H7-H8 -> 0.162 | I9: =I7-I8 -> 0.1 | J9: =J7-J8 -> 0
A11: Leverage Ratio | F11: 0.25 | G11: 0.5 | H11: 0.6 | I11: 0.7 | J11: 0.8
A13: Real Estate Return:
B14: Initial Cap Rate | F14: 0.065 | G14: 0.07 | H14: 0.08 | I14: 0.085 | J14: 0.09
B15: NOI Growth Rate | F15: 0.01 | G15: 0.02 | H15: 0.03 | I15: 0.04 | J15: 0.05
B16: Cap Ex (as a percentage of NOI) | F16: 0.2 | G16: 0.2 | H16: 0.2 | I16: 0.2 | J16: 0.2
B17: Ending Cap Rate | F17: 0.065 | G17: 0.07 | H17: 0.08 | I17: 0.085 | J17: 0.09
C18: ≈ Unlevered RE Return † | F18: =F14*(1-F16)+F15+(F14/F17)^(1/F27)-1-A.2!$M9/F27 -> 0.062 | G18: =G14*(1-G16)+G15+(G14/G17)^(1/G27)-1-A.2!$M9/G27 -> 0.076 | H18: =H14*(1-H16)+H15+(H14/H17)^(1/H27)-1-A.2!$M9/H27 -> 0.094 | I18: =I14*(1-I16)+I15+(I14/I17)^(1/I27)-1-A.2!$M9/I27 -> 0.108 | J18: =J14*(1-J16)+J15+(J14/J17)^(1/J27)-1-A.2!$M9/J27 -> 0.122
A20: Mortgage Interest Rate †† | F20: 0.06 | G20: 0.0625 | H20: 0.065 | I20: 0.07 | J20: 0.0775
C21: ≈ Levered RE Return ††† | F21: =(F18-F20*F11)/(1-F11) -> 0.06266666667 | G21: =(G18-G20*G11)/(1-G11) -> 0.0895 | H21: =(H18-H20*H11)/(1-H11) -> 0.1375 | I21: =(I18-I20*I11)/(1-I11) -> 0.1966666667 | J21: =(J18-J20*J11)/(1-J11) -> 0.3
A23: Preferred Return | F23: 0.06 | G23: 0.065 | H23: 0.07 | I23: 0.075 | J23: 0.08
A25: Passive-Loss Utilization Rate | F25: 0 | G25: 0.25 | H25: 0.5 | I25: 0.75 | J25: 1
A27: Holding Period (Years) | F27: 5 | G27: 8 | H27: 10 | I27: 12 | J27: 15
A30: GP's "Pure" Carry Tax Rate †††† | F30: 0.238 | G30: 0.25 | H30: 0.3 | I30: 0.35 | J30: 0.4
A33: Notes:
A34: † | B34: Before GP loads/fees and other costs.
A36: †† | B36: Marginal cost of mortgage debt: | G36: =G11/(G11-F11)*(G20-F11/G11*F20) -> 0.065 | H36: =H11/(H11-G11)*(H20-G11/H11*G20) -> 0.0775 | I36: =I11/(I11-H11)*(I20-H11/I11*H20) -> 0.1 | J36: =J11/(J11-I11)*(J20-I11/J11*I20) -> 0.13
A38: ††† | B38: Based upon the initial leverage ratio.
A40: †††† | B40: Assuming that GP's "pure" carry is taxed seperately and at a rate above the current capital-gains rate.
A44: ="[ Sheet Name: " &RIGHT(CELL("filename",A2),LEN(CELL("filename",A2))-FIND("]",CELL("filename",A2),1)) &" ]" -> [ Sheet Name: Base Case Assumptions ]

Sheet Paper's Exhibits

Sheet Exhibit 3
A2: Exhibit 3: Base-Case Assumptions and Sensitivity Scenarios:
F4: Scenario #1 | G4: Scenario #2 | H4: Scenario #3 | I4: Scenario #4 | J4: Scenario #5
H5: (Base Case)
A6: Tax Rates:
B7: Ordinary Income | F7: ='Base Case Assumptions'!F7 -> 0.4 | G7: ='Base Case Assumptions'!G7 -> 0.4 | H7: ='Base Case Assumptions'!H7 -> 0.4 | I7: ='Base Case Assumptions'!I7 -> 0.4 | J7: ='Base Case Assumptions'!J7 -> 0.4
B8: Capital Gains | F8: ='Base Case Assumptions'!F8 -> 0.15 | G8: ='Base Case Assumptions'!G8 -> 0.2 | H8: ='Base Case Assumptions'!H8 -> 0.238 | I8: ='Base Case Assumptions'!I8 -> 0.3 | J8: ='Base Case Assumptions'!J8 -> 0.4
C9: Differential | F9: =F7-F8 -> 0.25 | G9: =G7-G8 -> 0.2 | H9: =H7-H8 -> 0.162 | I9: =I7-I8 -> 0.1 | J9: =J7-J8 -> 0
A11: Leverage Ratio | F11: ='Base Case Assumptions'!F11 -> 0.25 | G11: ='Base Case Assumptions'!G11 -> 0.5 | H11: ='Base Case Assumptions'!H11 -> 0.6 | I11: ='Base Case Assumptions'!I11 -> 0.7 | J11: ='Base Case Assumptions'!J11 -> 0.8
A13: Real Estate Return:
B14: Initial Cap Rate | F14: ='Base Case Assumptions'!F14 -> 0.065 | G14: ='Base Case Assumptions'!G14 -> 0.07 | H14: ='Base Case Assumptions'!H14 -> 0.08 | I14: ='Base Case Assumptions'!I14 -> 0.085 | J14: ='Base Case Assumptions'!J14 -> 0.09
B15: NOI Growth Rate | F15: ='Base Case Assumptions'!F15 -> 0.01 | G15: ='Base Case Assumptions'!G15 -> 0.02 | H15: ='Base Case Assumptions'!H15 -> 0.03 | I15: ='Base Case Assumptions'!I15 -> 0.04 | J15: ='Base Case Assumptions'!J15 -> 0.05
B16: Cap Ex (as a percentage of NOI) | F16: ='Base Case Assumptions'!F16 -> 0.2 | G16: ='Base Case Assumptions'!G16 -> 0.2 | H16: ='Base Case Assumptions'!H16 -> 0.2 | I16: ='Base Case Assumptions'!I16 -> 0.2 | J16: ='Base Case Assumptions'!J16 -> 0.2
B17: Ending Cap Rate | F17: ='Base Case Assumptions'!F17 -> 0.065 | G17: ='Base Case Assumptions'!G17 -> 0.07 | H17: ='Base Case Assumptions'!H17 -> 0.08 | I17: ='Base Case Assumptions'!I17 -> 0.085 | J17: ='Base Case Assumptions'!J17 -> 0.09
C18: ≈ Unlevered RE Return † | F18: =F14*(1-F16)+F15+(F14/F17)^(1/F27)-1-A.2!$M9/F27 -> 0.062 | G18: =G14*(1-G16)+G15+(G14/G17)^(1/G27)-1-A.2!$M9/G27 -> 0.076 | H18: =H14*(1-H16)+H15+(H14/H17)^(1/H27)-1-A.2!$M9/H27 -> 0.094 | I18: =I14*(1-I16)+I15+(I14/I17)^(1/I27)-1-A.2!$M9/I27 -> 0.108 | J18: =J14*(1-J16)+J15+(J14/J17)^(1/J27)-1-A.2!$M9/J27 -> 0.122
A20: Mortgage Interest Rate †† | F20: ='Base Case Assumptions'!F20 -> 0.06 | G20: ='Base Case Assumptions'!G20 -> 0.0625 | H20: ='Base Case Assumptions'!H20 -> 0.065 | I20: ='Base Case Assumptions'!I20 -> 0.07 | J20: ='Base Case Assumptions'!J20 -> 0.0775
C21: ≈ Levered RE Return ††† | F21: ='Base Case Assumptions'!F21 -> 0.06266666667 | G21: ='Base Case Assumptions'!G21 -> 0.0895 | H21: ='Base Case Assumptions'!H21 -> 0.1375 | I21: ='Base Case Assumptions'!I21 -> 0.1966666667 | J21: ='Base Case Assumptions'!J21 -> 0.3
A23: Preferred Return | F23: ='Base Case Assumptions'!F23 -> 0.06 | G23: ='Base Case Assumptions'!G23 -> 0.065 | H23: ='Base Case Assumptions'!H23 -> 0.07 | I23: ='Base Case Assumptions'!I23 -> 0.075 | J23: ='Base Case Assumptions'!J23 -> 0.08
A25: Passive-Loss Utilization Rate | F25: ='Base Case Assumptions'!F25 -> 0 | G25: ='Base Case Assumptions'!G25 -> 0.25 | H25: ='Base Case Assumptions'!H25 -> 0.5 | I25: ='Base Case Assumptions'!I25 -> 0.75 | J25: ='Base Case Assumptions'!J25 -> 1
A27: Holding Period (Years) | F27: ='Base Case Assumptions'!F27 -> 5 | G27: ='Base Case Assumptions'!G27 -> 8 | H27: ='Base Case Assumptions'!H27 -> 10 | I27: ='Base Case Assumptions'!I27 -> 12 | J27: ='Base Case Assumptions'!J27 -> 15
A29: † | B29: Before GP loads/fees and other costs.
A31: †† | B31: Marginal cost of mortgage debt: | G31: ='Base Case Assumptions'!G36 -> 0.065 | H31: ='Base Case Assumptions'!H36 -> 0.0775 | I31: ='Base Case Assumptions'!I36 -> 0.1 | J31: ='Base Case Assumptions'!J36 -> 0.13
A33: ††† | B33: Based upon the initial leverage ratio.

Sheet Exhibits 6 & 7
A1: Exhibit 6: The Effective Tax Rate of the Limited Partner's After-Tax Return, Given Various Sensititivies | P1: Exhibit 6 Supplement: The Effective Tax Rate in Comparison to the Statutory Capital-Gains Rate | AJ1: Exhibit 7: The Effective Tax Rate of the General Partner's After-Tax Return, Given Various Sensititivies | AY1: Exhibit 7 Supplement: The Effective Tax Rate in Comparison to the Statutory Capital-Gains Rate
J3: Differences in LP's | M3: Summary Statitics of | Y3: Differences in LP's | AB3: Summary Statitics of | AS3: Differences in GP's | AV3: Differences in GP's | BH3: Differences in GP's | BK3: Summary Statitics of
J4: Effective Tax Rates | M4: Effective Tax Rates | Y4: Effective Tax Rates | AB4: Effective Tax Rates | AS4: After-Tax Returns | AV4: After-Tax Returns | BH4: Effective Tax Rates | BK4: Effective Tax Rates
A5: Panel A: The Effective Tax Rate for LPs' After-Tax Returns | J5: Given an Increase in | M5: Acorss the | P5: =A5 -> Panel A: The Effective Tax Rate for LPs' After-Tax Returns | Y5: Given an Increase in | AB5: Acorss the | AJ5: Panel A: The Effective Tax Rate for GPs' After-Tax Returns | AS5: Given an Increase in | AV5: Acorss the | AY5: =AJ5 -> Panel A: The Effective Tax Rate for GPs' After-Tax Returns | BH5: Given an Increase in | BK5: Acorss the
C6: ='Sensitivity Results'!S4 -> Capital-Gains Tax Rate | J6: the Capital-Gains Rate | M6: Sensitivity Matrix | R6: =C6 -> Capital-Gains Tax Rate | Y6: the Capital-Gains Rate | AB6: Sensitivity Matrix | AL6: ='Sensitivity Results'!AR4 -> Capital-Gains Tax Rate | AS6: the Capital-Gains Rate | AV6: Sensitivity Matrix | BA6: =AL6 -> Capital-Gains Tax Rate | BH6: the Capital-Gains Rate | BK6: Sensitivity Matrix
C7: ='Sensitivity Results'!S5 -> 0.15 | D7: ='Sensitivity Results'!T5 -> 0.2 | E7: ='Sensitivity Results'!U5 -> 0.238 | F7: ='Sensitivity Results'!V5 -> 0.3 | G7: ='Sensitivity Results'!W5 -> 0.4 | R7: =C7 -> 0.15 | S7: =D7 -> 0.2 | T7: =E7 -> 0.238 | U7: =F7 -> 0.3 | V7: =G7 -> 0.4 | AL7: ='Sensitivity Results'!AR5 -> 0.15 | AM7: ='Sensitivity Results'!AS5 -> 0.2 | AN7: ='Sensitivity Results'!AT5 -> 0.238 | AO7: ='Sensitivity Results'!AU5 -> 0.3 | AP7: ='Sensitivity Results'!AV5 -> 0.4 | BA7: =AL7 -> 0.15 | BB7: =AM7 -> 0.2 | BC7: =AN7 -> 0.238 | BD7: =AO7 -> 0.3 | BE7: =AP7 -> 0.4
A8: ='Sensitivity Results'!Q6 -> Leverage Ratio | B8: ='Sensitivity Results'!R6 -> 0.25 | C8: =1-'Sensitivity Results'!K6/'Sensitivity Results'!C6 -> 0.2327965616 | D8: =1-'Sensitivity Results'!L6/'Sensitivity Results'!D6 -> 0.2440385346 | E8: =1-'Sensitivity Results'!M6/'Sensitivity Results'!E6 -> 0.2526523404 | F8: =1-'Sensitivity Results'!N6/'Sensitivity Results'!F6 -> 0.2706730012 | G8: =1-'Sensitivity Results'!O6/'Sensitivity Results'!G6 -> 0.3270556753 | J8: =G8-C8 -> 0.09425911376 | P8: =A8 -> Leverage Ratio | Q8: =B8 -> 0.25 | R8: =C$7-C8 -> -0.08279656156 | S8: =D$7-D8 -> -0.0440385346 | T8: -0.01465234044 | U8: 0.02932699885 | V8: 0.07294432468 | Y8: =V8-R8 -> 0.1557408862 | AJ8: ='Sensitivity Results'!AP6 -> Leverage Ratio | AK8: ='Sensitivity Results'!AQ6 -> 0.25 | AL8: =1-'Sensitivity Results'!AJ6/'Sensitivity Results'!AB6 -> 0.1390937487 | AM8: =1-'Sensitivity Results'!AK6/'Sensitivity Results'!AC6 -> 0.1612406318 | AN8: =1-'Sensitivity Results'!AL6/'Sensitivity Results'!AD6 -> 0.1785196153 | AO8: =1-'Sensitivity Results'!AM6/'Sensitivity Results'!AE6 -> 0.208999413 | AP8: =1-'Sensitivity Results'!AN6/'Sensitivity Results'!AF6 -> 0.2711430011 | AS8: =AP8-AL8 -> 0.1320492524 | AY8: =AJ8 -> Leverage Ratio | AZ8: =AK8 -> 0.25 | BA8: =AL$7-AL8 -> 0.0109062513 | BB8: 0.03875936824 | BC8: 0.05948038475 | BD8: 0.09100058702 | BE8: 0.1288569989 | BH8: =BE8-BA8 -> 0.1179507476 | BO8: =R8-BA8 -> -0.09370281286 | BP8: =S8-BB8 -> -0.08279790285 | BQ8: -0.07413272519 | BR8: -0.06167358817 | BS8: -0.05591267425
B9: ='Sensitivity Results'!R7 -> 0.5 | C9: =1-'Sensitivity Results'!K7/'Sensitivity Results'!C7 -> 0.19257755 | D9: =1-'Sensitivity Results'!L7/'Sensitivity Results'!D7 -> 0.2052253878 | E9: =1-'Sensitivity Results'!M7/'Sensitivity Results'!E7 -> 0.2149375441 | F9: =1-'Sensitivity Results'!N7/'Sensitivity Results'!F7 -> 0.2354757353 | G9: =1-'Sensitivity Results'!O7/'Sensitivity Results'!G7 -> 0.3012087409 | J9: =G9-C9 -> 0.1086311909 | K9: =AVERAGE(J8:J12) -> 0.1226435323 | L9: =`x | M9: =AVERAGE(C8:G12) -> 0.2019026654 | N9: =`x | Q9: =B9 -> 0.5 | R9: =C$7-C9 -> -0.04257755003 | S9: -0.005225387778 | T9: 0.02306245588 | U9: 0.06452426475 | V9: 0.09879125911 | Y9: =V9-R9 -> 0.1413688091 | Z9: =AVERAGE(Y8:Y12) -> 0.1273564677 | AA9: =`x | AB9: =AVERAGE(R8:V12) -> 0.05569733461 | AC9: =`x | AK9: ='Sensitivity Results'!AQ7 -> 0.5 | AL9: =1-'Sensitivity Results'!AJ7/'Sensitivity Results'!AB7 -> 0.1057738445 | AM9: =1-'Sensitivity Results'!AK7/'Sensitivity Results'!AC7 -> 0.1275164498 | AN9: =1-'Sensitivity Results'!AL7/'Sensitivity Results'!AD7 -> 0.1445590248 | AO9: =1-'Sensitivity Results'!AM7/'Sensitivity Results'!AE7 -> 0.1747244104 | AP9: =1-'Sensitivity Results'!AN7/'Sensitivity Results'!AF7 -> 0.2364433518 | AS9: =AP9-AL9 -> 0.1306695073 | AT9: =AVERAGE(AS8:AS12) -> 0.1262323069 | AU9: =`x | AV9: =AVERAGE(AL8:AP12) -> 0.1368166433 | AW9: =`x | AZ9: =AK9 -> 0.5 | BA9: 0.04422615552 | BB9: 0.07248355025 | BC9: 0.09344097519 | BD9: 0.1252755896 | BE9: 0.1635566482 | BH9: =BE9-BA9 -> 0.1193304927 | BI9: =AVERAGE(BH8:BH12) -> 0.1237676931 | BJ9: =`x | BK9: =AVERAGE(BA8:BE12) -> 0.1207833567 | BL9: =`x | BO9: =R9-BA9 -> -0.08680370555 | BP9: -0.07770893803 | BQ9: -0.0703785193 | BR9: -0.06075132487 | BS9: -0.06476538911
B10: ='Sensitivity Results'!R8 -> 0.6 | C10: =1-'Sensitivity Results'!K8/'Sensitivity Results'!C8 -> 0.1664047188 | D10: =1-'Sensitivity Results'!L8/'Sensitivity Results'!D8 -> 0.1801035846 | E10: =1-'Sensitivity Results'!M8/'Sensitivity Results'!E8 -> 0.1906382859 | F10: =1-'Sensitivity Results'!N8/'Sensitivity Results'!F8 -> 0.212983142 | G10: =1-'Sensitivity Results'!O8/'Sensitivity Results'!G8 -> 0.2850594415 | J10: =G10-C10 -> 0.1186547227 | K10: =STDEV(J8:J12) -> 0.02360234609 | L10: = s | M10: =STDEV(C8:G12) -> 0.06486429785 | N10: = s | Q10: =B10 -> 0.6 | R10: =C$7-C10 -> -0.01640471876 | S10: 0.01989641535 | T10: 0.0473617141 | U10: 0.087016858 | V10: 0.1149405585 | Y10: =V10-R10 -> 0.1313452773 | Z10: =STDEV(Y8:Y12) -> 0.02360234609 | AA10: = s | AB10: =STDEV(R8:V12) -> 0.06639369381 | AC10: = s | AK10: ='Sensitivity Results'!AQ8 -> 0.6 | AL10: =1-'Sensitivity Results'!AJ8/'Sensitivity Results'!AB8 -> 0.08984833574 | AM10: =1-'Sensitivity Results'!AK8/'Sensitivity Results'!AC8 -> 0.111439692 | AN10: =1-'Sensitivity Results'!AL8/'Sensitivity Results'!AD8 -> 0.1283962196 | AO10: =1-'Sensitivity Results'!AM8/'Sensitivity Results'!AE8 -> 0.1584756932 | AP10: =1-'Sensitivity Results'!AN8/'Sensitivity Results'!AF8 -> 0.2202837519 | AS10: =AP10-AL10 -> 0.1304354161 | AT10: =STDEV(AS8:AS12) -> 0.01272749062 | AU10: = s | AV10: =STDEV(AL8:AP12) -> 0.0611143444 | AW10: = s | AZ10: =AK10 -> 0.6 | BA10: 0.06015166426 | BB10: 0.08856030801 | BC10: 0.1096037804 | BD10: 0.1415243068 | BE10: 0.1797162481 | BH10: =BE10-BA10 -> 0.1195645839 | BI10: =STDEV(BH8:BH12) -> 0.01272749062 | BJ10: = s | BK10: =STDEV(BA8:BE12) -> 0.0605117872 | BL10: = s | BO10: =R10-BA10 -> -0.07655638302 | BP10: -0.06866389266 | BQ10: -0.06224206632 | BR10: -0.05450744884 | BS10: -0.06477568962
B11: ='Sensitivity Results'!R9 -> 0.7 | C11: =1-'Sensitivity Results'!K9/'Sensitivity Results'!C9 -> 0.1289370962 | D11: =1-'Sensitivity Results'!L9/'Sensitivity Results'!D9 -> 0.1447366557 | E11: =1-'Sensitivity Results'!M9/'Sensitivity Results'!E9 -> 0.1569139112 | F11: =1-'Sensitivity Results'!N9/'Sensitivity Results'!F9 -> 0.1827628505 | G11: =1-'Sensitivity Results'!O9/'Sensitivity Results'!G9 -> 0.2665715564 | J11: =G11-C11 -> 0.1376344602 | K11: =K10/K9 -> 0.1924467247 | L11: = s /`x | M11: =M10/M9 -> 0.3212651885 | N11: = s /`x | Q11: =B11 -> 0.7 | R11: =C$7-C11 -> 0.02106290384 | S11: 0.05526334429 | T11: 0.08108608882 | U11: 0.1172371495 | V11: 0.1334284436 | Y11: =V11-R11 -> 0.1123655398 | Z11: =Z10/Z9 -> 0.1853250684 | AA11: = s /`x | AB11: =AB10/AB9 -> 1.192044364 | AC11: = s /`x | AK11: ='Sensitivity Results'!AQ9 -> 0.7 | AL11: =1-'Sensitivity Results'!AJ9/'Sensitivity Results'!AB9 -> 0.07055162046 | AM11: =1-'Sensitivity Results'!AK9/'Sensitivity Results'!AC9 -> 0.09267620809 | AN11: =1-'Sensitivity Results'!AL9/'Sensitivity Results'!AD9 -> 0.1100904632 | AO11: =1-'Sensitivity Results'!AM9/'Sensitivity Results'!AE9 -> 0.1410520003 | AP11: =1-'Sensitivity Results'!AN9/'Sensitivity Results'!AF9 -> 0.2049217932 | AS11: =AP11-AL11 -> 0.1343701727 | AT11: =AT10/AT9 -> 0.1008259369 | AU11: = s /`x | AV11: =AV10/AV9 -> 0.4466879389 | AW11: = s /`x | AZ11: =AK11 -> 0.7 | BA11: 0.07944837954 | BB11: 0.1073237919 | BC11: 0.1279095368 | BD11: 0.1589479997 | BE11: 0.1950782068 | BH11: =BE11-BA11 -> 0.1156298273 | BI11: =BI10/BI9 -> 0.1028337065 | BJ11: = s /`x | BK11: =BK10/BK9 -> 0.5009944155 | BL11: = s /`x | BO11: =R11-BA11 -> -0.0583854757 | BP11: -0.05206044762 | BQ11: -0.04682344797 | BR11: -0.04171085021 | BS11: -0.06164976323
B12: ='Sensitivity Results'!R10 -> 0.8 | C12: =1-'Sensitivity Results'!K10/'Sensitivity Results'!C10 -> 0.07991841608 | D12: =1-'Sensitivity Results'!L10/'Sensitivity Results'!D10 -> 0.09627375734 | E12: =1-'Sensitivity Results'!M10/'Sensitivity Results'!E10 -> 0.1088906217 | F12: =1-'Sensitivity Results'!N10/'Sensitivity Results'!F10 -> 0.1367749358 | G12: =1-'Sensitivity Results'!O10/'Sensitivity Results'!G10 -> 0.2339565898 | J12: =G12-C12 -> 0.1540381738 | Q12: =B12 -> 0.8 | R12: =C$7-C12 -> 0.07008158392 | S12: 0.1037262427 | T12: 0.1291093783 | U12: 0.1632250642 | V12: 0.1660434102 | Y12: =V12-R12 -> 0.09596182623 | AK12: ='Sensitivity Results'!AQ10 -> 0.8 | AL12: =1-'Sensitivity Results'!AJ10/'Sensitivity Results'!AB10 -> 0.02804664194 | AM12: =1-'Sensitivity Results'!AK10/'Sensitivity Results'!AC10 -> 0.04496622366 | AN12: =1-'Sensitivity Results'!AL10/'Sensitivity Results'!AD10 -> 0.05818830362 | AO12: =1-'Sensitivity Results'!AM10/'Sensitivity Results'!AE10 -> 0.08178181624 | AP12: =1-'Sensitivity Results'!AN10/'Sensitivity Results'!AF10 -> 0.1316838281 | AS12: =AP12-AL12 -> 0.1036371862 | AZ12: =AK12 -> 0.8 | BA12: 0.1219533581 | BB12: 0.1550337763 | BC12: 0.1798116964 | BD12: 0.2182181838 | BE12: 0.2683161719 | BH12: =BE12-BA12 -> 0.1463628138 | BO12: =R12-BA12 -> -0.05187177414 | BP12: -0.05130753368 | BQ12: -0.05070231808 | BR12: -0.05499311954 | BS12: -0.1022727617
A14: Panel B: The Effective Tax Rate for LPs' After-Tax Returns | P14: =A14 -> Panel B: The Effective Tax Rate for LPs' After-Tax Returns | AJ14: Panel B: The Effective Tax Rate for GPs' After-Tax Returns | AY14: =AJ14 -> Panel B: The Effective Tax Rate for GPs' After-Tax Returns
C15: =C6 -> Capital-Gains Tax Rate | R15: =C15 -> Capital-Gains Tax Rate | AL15: =AL6 -> Capital-Gains Tax Rate | BA15: =AL15 -> Capital-Gains Tax Rate
C16: ='Sensitivity Results'!S14 -> 0.15 | D16: ='Sensitivity Results'!T14 -> 0.2 | E16: ='Sensitivity Results'!U14 -> 0.238 | F16: ='Sensitivity Results'!V14 -> 0.3 | G16: ='Sensitivity Results'!W14 -> 0.4 | R16: =C16 -> 0.15 | S16: =D16 -> 0.2 | T16: =E16 -> 0.238 | U16: =F16 -> 0.3 | V16: =G16 -> 0.4 | AL16: ='Sensitivity Results'!AR14 -> 0.15 | AM16: ='Sensitivity Results'!AS14 -> 0.2 | AN16: ='Sensitivity Results'!AT14 -> 0.238 | AO16: ='Sensitivity Results'!AU14 -> 0.3 | AP16: ='Sensitivity Results'!AV14 -> 0.4 | BA16: =AL16 -> 0.15 | BB16: =AM16 -> 0.2 | BC16: =AN16 -> 0.238 | BD16: =AO16 -> 0.3 | BE16: =AP16 -> 0.4
A17: ='Sensitivity Results(OI)'!A15 -> Unlevered RE Return | B17: ='Sensitivity Results'!R15 -> 0.062 | C17: =1-'Sensitivity Results'!K15/'Sensitivity Results'!C15 -> 0.1703896486 | D17: =1-'Sensitivity Results'!L15/'Sensitivity Results'!D15 -> 0.173771124 | E17: =1-'Sensitivity Results'!M15/'Sensitivity Results'!E15 -> 0.1763445006 | F17: =1-'Sensitivity Results'!N15/'Sensitivity Results'!F15 -> 0.1941675356 | G17: =1-'Sensitivity Results'!O15/'Sensitivity Results'!G15 -> 0.3182524139 | J17: =G17-C17 -> 0.1478627653 | P17: =A17 -> Unlevered RE Return | Q17: =B17 -> 0.062 | R17: =C$7-C17 -> -0.02038964856 | S17: 0.02622887599 | T17: 0.06165549945 | U17: 0.1058324644 | V17: 0.08174758614 | Y17: =V17-R17 -> 0.1021372347 | AJ17: =A17 -> Unlevered RE Return | AK17: ='Sensitivity Results'!AQ15 -> 0.062 | AL17: =1-'Sensitivity Results'!AJ15/'Sensitivity Results'!AB15 -> 0.1703896486 | AM17: =1-'Sensitivity Results'!AK15/'Sensitivity Results'!AC15 -> 0.173771124 | AN17: =1-'Sensitivity Results'!AL15/'Sensitivity Results'!AD15 -> 0.1763445006 | AO17: =1-'Sensitivity Results'!AM15/'Sensitivity Results'!AE15 -> 0.1941675356 | AP17: =1-'Sensitivity Results'!AN15/'Sensitivity Results'!AF15 -> 0.3182524139 | AS17: =AP17-AL17 -> 0.1478627653 | AY17: =AJ17 -> Unlevered RE Return | AZ17: =AK17 -> 0.062 | BA17: =AL$7-AL17 -> -0.02038964856 | BB17: 0.02622887599 | BC17: 0.06165549945 | BD17: 0.1058324644 | BE17: 0.08174758614 | BH17: =BE17-BA17 -> 0.1021372347 | BO17: =R17-BA17 -> 4.374278717e-14 | BP17: 3.907985047e-14 | BQ17: 4.329869796e-14 | BR17: 4.241051954e-14 | BS17: 3.58602037e-14
B18: ='Sensitivity Results'!R16 -> 0.076 | C18: =1-'Sensitivity Results'!K16/'Sensitivity Results'!C16 -> 0.1458973066 | D18: =1-'Sensitivity Results'!L16/'Sensitivity Results'!D16 -> 0.1613498207 | E18: =1-'Sensitivity Results'!M16/'Sensitivity Results'!E16 -> 0.1732062271 | F18: =1-'Sensitivity Results'!N16/'Sensitivity Results'!F16 -> 0.2003862944 | G18: =1-'Sensitivity Results'!O16/'Sensitivity Results'!G16 -> 0.2993688188 | J18: =G18-C18 -> 0.1534715121 | K18: =AVERAGE(J17:J21) -> 0.1250494982 | L18: =`x | M18: =AVERAGE(C17:G21) -> 0.2061959359 | N18: =`x | Q18: =B18 -> 0.076 | R18: 0.004102693366 | S18: 0.03865017925 | T18: 0.06479377294 | U18: 0.09961370561 | V18: 0.1006311812 | Y18: =V18-R18 -> 0.09652848786 | Z18: =AVERAGE(Y17:Y21) -> 0.1249505018 | AA18: =`x | AB18: =AVERAGE(R17:V21) -> 0.0514040641 | AC18: =`x | AK18: ='Sensitivity Results'!AQ16 -> 0.076 | AL18: =1-'Sensitivity Results'!AJ16/'Sensitivity Results'!AB16 -> 0.1082109657 | AM18: =1-'Sensitivity Results'!AK16/'Sensitivity Results'!AC16 -> 0.1317922791 | AN18: =1-'Sensitivity Results'!AL16/'Sensitivity Results'!AD16 -> 0.150085992 | AO18: =1-'Sensitivity Results'!AM16/'Sensitivity Results'!AE16 -> 0.1846527155 | AP18: =1-'Sensitivity Results'!AN16/'Sensitivity Results'!AF16 -> 0.2719275955 | AS18: =AP18-AL18 -> 0.1637166298 | AT18: =AVERAGE(AS17:AS21) -> 0.1275460887 | AU18: =`x | AV18: =AVERAGE(AL17:AP21) -> 0.1591416176 | AW18: =`x | AZ18: =AK18 -> 0.076 | BA18: 0.04178903433 | BB18: 0.06820772092 | BC18: 0.08791400799 | BD18: 0.1153472845 | BE18: 0.1280724045 | BH18: =BE18-BA18 -> 0.08628337018 | BI18: =AVERAGE(BH17:BH21) -> 0.1224539113 | BJ18: =`x | BK18: =AVERAGE(BA17:BE21) -> 0.09845838244 | BL18: =`x | BO18: -0.03768634096 | BP18: -0.02955754167 | BQ18: -0.02312023505 | BR18: -0.01573357884 | BS18: -0.02744122328
B19: ='Sensitivity Results'!R17 -> 0.094 | C19: =1-'Sensitivity Results'!K17/'Sensitivity Results'!C17 -> 0.1664047188 | D19: =1-'Sensitivity Results'!L17/'Sensitivity Results'!D17 -> 0.1801035846 | E19: =1-'Sensitivity Results'!M17/'Sensitivity Results'!E17 -> 0.1906382859 | F19: =1-'Sensitivity Results'!N17/'Sensitivity Results'!F17 -> 0.212983142 | G19: =1-'Sensitivity Results'!O17/'Sensitivity Results'!G17 -> 0.2850594415 | J19: =G19-C19 -> 0.1186547227 | K19: =STDEV(J17:J21) -> 0.02454054512 | L19: = s | M19: =STDEV(C17:G21) -> 0.04710547277 | N19: = s | Q19: =B19 -> 0.094 | R19: -0.01640471876 | S19: 0.01989641535 | T19: 0.0473617141 | U19: 0.087016858 | V19: 0.1149405585 | Y19: =V19-R19 -> 0.1313452773 | Z19: =STDEV(Y17:Y21) -> 0.02454054512 | AA19: = s | AB19: =STDEV(R17:V21) -> 0.04777759663 | AC19: = s | AK19: ='Sensitivity Results'!AQ17 -> 0.094 | AL19: =1-'Sensitivity Results'!AJ17/'Sensitivity Results'!AB17 -> 0.08984833574 | AM19: =1-'Sensitivity Results'!AK17/'Sensitivity Results'!AC17 -> 0.111439692 | AN19: =1-'Sensitivity Results'!AL17/'Sensitivity Results'!AD17 -> 0.1283962196 | AO19: =1-'Sensitivity Results'!AM17/'Sensitivity Results'!AE17 -> 0.1584756932 | AP19: =1-'Sensitivity Results'!AN17/'Sensitivity Results'!AF17 -> 0.2202837519 | AS19: =AP19-AL19 -> 0.1304354161 | AT19: =STDEV(AS17:AS21) -> 0.03022984697 | AU19: = s | AV19: =STDEV(AL17:AP21) -> 0.05454369248 | AW19: = s | AZ19: =AK19 -> 0.094 | BA19: 0.06015166426 | BB19: 0.08856030801 | BC19: 0.1096037804 | BD19: 0.1415243068 | BE19: 0.1797162481 | BH19: =BE19-BA19 -> 0.1195645839 | BI19: =STDEV(BH17:BH21) -> 0.03022984697 | BJ19: = s | BK19: =STDEV(BA17:BE21) -> 0.0534183322 | BL19: = s | BO19: -0.07655638302 | BP19: -0.06866389266 | BQ19: -0.06224206632 | BR19: -0.05450744884 | BS19: -0.06477568962
B20: ='Sensitivity Results'!R18 -> 0.108 | C20: =1-'Sensitivity Results'!K18/'Sensitivity Results'!C18 -> 0.1716633943 | D20: =1-'Sensitivity Results'!L18/'Sensitivity Results'!D18 -> 0.1855283012 | E20: =1-'Sensitivity Results'!M18/'Sensitivity Results'!E18 -> 0.1962177734 | F20: =1-'Sensitivity Results'!N18/'Sensitivity Results'!F18 -> 0.2175158045 | G20: =1-'Sensitivity Results'!O18/'Sensitivity Results'!G18 -> 0.2784440715 | J20: =G20-C20 -> 0.1067806771 | K20: =K19/K18 -> 0.1962466501 | L20: = s /`x | M20: =M19/M18 -> 0.2284500544 | N20: = s /`x | Q20: =B20 -> 0.108 | R20: -0.02166339435 | S20: 0.01447169877 | T20: 0.04178222657 | U20: 0.08248419551 | V20: 0.1215559285 | Y20: =V20-R20 -> 0.1432193229 | Z20: =Z19/Z18 -> 0.1964021334 | AA20: = s /`x | AB20: =AB19/AB18 -> 0.9294517363 | AC20: = s /`x | AK20: ='Sensitivity Results'!AQ18 -> 0.108 | AL20: =1-'Sensitivity Results'!AJ18/'Sensitivity Results'!AB18 -> 0.09603344622 | AM20: =1-'Sensitivity Results'!AK18/'Sensitivity Results'!AC18 -> 0.1136866839 | AN20: =1-'Sensitivity Results'!AL18/'Sensitivity Results'!AD18 -> 0.1275501239 | AO20: =1-'Sensitivity Results'!AM18/'Sensitivity Results'!AE18 -> 0.152166199 | AP20: =1-'Sensitivity Results'!AN18/'Sensitivity Results'!AF18 -> 0.2029235358 | AS20: =AP20-AL20 -> 0.1068900895 | AT20: =AT19/AT18 -> 0.2370111642 | AU20: = s /`x | AV20: =AV19/AV18 -> 0.3427368234 | AW20: = s /`x | AZ20: =AK20 -> 0.108 | BA20: 0.05396655378 | BB20: 0.08631331609 | BC20: 0.1104498761 | BD20: 0.147833801 | BE20: 0.1970764642 | BH20: =BE20-BA20 -> 0.1431099105 | BI20: =BI19/BI18 -> 0.2468671408 | BJ20: = s /`x | BK20: =BK19/BK18 -> 0.5425473269 | BL20: = s /`x | BO20: -0.07562994812 | BP20: -0.07184161732 | BQ20: -0.06866764956 | BR20: -0.06534960548 | BS20: -0.07552053572
B21: ='Sensitivity Results'!R19 -> 0.122 | C21: =1-'Sensitivity Results'!K19/'Sensitivity Results'!C19 -> 0.1750462721 | D21: =1-'Sensitivity Results'!L19/'Sensitivity Results'!D19 -> 0.1889078113 | E21: =1-'Sensitivity Results'!M19/'Sensitivity Results'!E19 -> 0.1996188267 | F21: =1-'Sensitivity Results'!N19/'Sensitivity Results'!F19 -> 0.2201091934 | G21: =1-'Sensitivity Results'!O19/'Sensitivity Results'!G19 -> 0.2735240859 | J21: =G21-C21 -> 0.09847781381 | Q21: =B21 -> 0.122 | R21: -0.0250462721 | S21: 0.01109218866 | T21: 0.03838117333 | U21: 0.07989080656 | V21: 0.1264759141 | Y21: =V21-R21 -> 0.1515221862 | AK21: ='Sensitivity Results'!AQ19 -> 0.122 | AL21: =1-'Sensitivity Results'!AJ19/'Sensitivity Results'!AB19 -> 0.1043829317 | AM21: =1-'Sensitivity Results'!AK19/'Sensitivity Results'!AC19 -> 0.1190404221 | AN21: =1-'Sensitivity Results'!AL19/'Sensitivity Results'!AD19 -> 0.1305412023 | AO21: =1-'Sensitivity Results'!AM19/'Sensitivity Results'!AE19 -> 0.1509689572 | AP21: =1-'Sensitivity Results'!AN19/'Sensitivity Results'!AF19 -> 0.1932084743 | AS21: =AP21-AL21 -> 0.08882554268 | AZ21: =AK21 -> 0.122 | BA21: 0.04561706834 | BB21: 0.08095957794 | BC21: 0.1074587977 | BD21: 0.1490310428 | BE21: 0.2067915257 | BH21: =BE21-BA21 -> 0.1611744573 | BO21: -0.07066334044 | BP21: -0.06986738928 | BQ21: -0.0690776244 | BR21: -0.06914023629 | BS21: -0.08031561157
A23: Panel C: The Effective Tax Rate for LPs' After-Tax Returns | P23: =A23 -> Panel C: The Effective Tax Rate for LPs' After-Tax Returns | AJ23: Panel C: The Effective Tax Rate for GPs' After-Tax Returns | AY23: =AJ23 -> Panel C: The Effective Tax Rate for GPs' After-Tax Returns
C24: =C6 -> Capital-Gains Tax Rate | R24: =C24 -> Capital-Gains Tax Rate | AL24: =AL6 -> Capital-Gains Tax Rate | BA24: =AL24 -> Capital-Gains Tax Rate
C25: ='Sensitivity Results'!S23 -> 0.15 | D25: ='Sensitivity Results'!T23 -> 0.2 | E25: ='Sensitivity Results'!U23 -> 0.238 | F25: ='Sensitivity Results'!V23 -> 0.3 | G25: ='Sensitivity Results'!W23 -> 0.4 | R25: =C25 -> 0.15 | S25: =D25 -> 0.2 | T25: =E25 -> 0.238 | U25: =F25 -> 0.3 | V25: =G25 -> 0.4 | AL25: ='Sensitivity Results'!AR23 -> 0.15 | AM25: ='Sensitivity Results'!AS23 -> 0.2 | AN25: ='Sensitivity Results'!AT23 -> 0.238 | AO25: ='Sensitivity Results'!AU23 -> 0.3 | AP25: ='Sensitivity Results'!AV23 -> 0.4 | BA25: =AL25 -> 0.15 | BB25: =AM25 -> 0.2 | BC25: =AN25 -> 0.238 | BD25: =AO25 -> 0.3 | BE25: =AP25 -> 0.4
A26: ='Sensitivity Results'!Q24 -> Preferred Return | B26: ='Sensitivity Results'!R24 -> 0.06 | C26: =1-'Sensitivity Results'!K24/'Sensitivity Results'!C24 -> 0.1670986726 | D26: =1-'Sensitivity Results'!L24/'Sensitivity Results'!D24 -> 0.1807692163 | E26: =1-'Sensitivity Results'!M24/'Sensitivity Results'!E24 -> 0.1912804393 | F26: =1-'Sensitivity Results'!N24/'Sensitivity Results'!F24 -> 0.2136367402 | G26: =1-'Sensitivity Results'!O24/'Sensitivity Results'!G24 -> 0.2860849032 | J26: =G26-C26 -> 0.1189862305 | P26: =A26 -> Preferred Return | Q26: =B26 -> 0.06 | R26: =C$7-C26 -> -0.01709867262 | S26: 0.01923078371 | T26: 0.04671956067 | U26: 0.0863632598 | V26: 0.1139150968 | Y26: =V26-R26 -> 0.1310137695 | AJ26: ='Sensitivity Results'!AP24 -> Preferred Return | AK26: ='Sensitivity Results'!AQ24 -> 0.06 | AL26: =1-'Sensitivity Results'!AJ24/'Sensitivity Results'!AB24 -> 0.09124208363 | AM26: =1-'Sensitivity Results'!AK24/'Sensitivity Results'!AC24 -> 0.1115413416 | AN26: =1-'Sensitivity Results'!AL24/'Sensitivity Results'!AD24 -> 0.1274743276 | AO26: =1-'Sensitivity Results'!AM24/'Sensitivity Results'!AE24 -> 0.1558643153 | AP26: =1-'Sensitivity Results'!AN24/'Sensitivity Results'!AF24 -> 0.2151851232 | AS26: =AP26-AL26 -> 0.1239430396 | AY26: =AJ26 -> Preferred Return | AZ26: =AK26 -> 0.06 | BA26: =AL$7-AL26 -> 0.05875791637 | BB26: 0.08845865838 | BC26: 0.1105256724 | BD26: 0.1441356847 | BE26: 0.1848148768 | BH26: =BE26-BA26 -> 0.1260569604 | BO26: =R26-BA26 -> -0.075856589 | BP26: -0.06922787467 | BQ26: -0.06380611173 | BR26: -0.05777242494 | BS26: -0.07089977997
B27: ='Sensitivity Results'!R25 -> 0.065 | C27: =1-'Sensitivity Results'!K25/'Sensitivity Results'!C25 -> 0.1668432633 | D27: =1-'Sensitivity Results'!L25/'Sensitivity Results'!D25 -> 0.1805037622 | E27: =1-'Sensitivity Results'!M25/'Sensitivity Results'!E25 -> 0.1910078917 | F27: =1-'Sensitivity Results'!N25/'Sensitivity Results'!F25 -> 0.2133315835 | G27: =1-'Sensitivity Results'!O25/'Sensitivity Results'!G25 -> 0.2855802901 | J27: =G27-C27 -> 0.1187370267 | K27: =AVERAGE(J26:J30) -> 0.1188288506 | L27: =`x | M27: =AVERAGE(C26:G30) -> 0.2069294138 | N27: =`x | Q27: =B27 -> 0.065 | R27: -0.01684326334 | S27: 0.01949623776 | T27: 0.04699210832 | U27: 0.08666841648 | V27: 0.1144197099 | Y27: =V27-R27 -> 0.1312629733 | Z27: =AVERAGE(Y26:Y30) -> 0.1311711494 | AA27: =`x | AB27: =AVERAGE(R26:V30) -> 0.05067058621 | AC27: =`x | AK27: ='Sensitivity Results'!AQ25 -> 0.065 | AL27: =1-'Sensitivity Results'!AJ25/'Sensitivity Results'!AB25 -> 0.09030547178 | AM27: =1-'Sensitivity Results'!AK25/'Sensitivity Results'!AC25 -> 0.1113056446 | AN27: =1-'Sensitivity Results'!AL25/'Sensitivity Results'!AD25 -> 0.1277950296 | AO27: =1-'Sensitivity Results'!AM25/'Sensitivity Results'!AE25 -> 0.1570957029 | AP27: =1-'Sensitivity Results'!AN25/'Sensitivity Results'!AF25 -> 0.2176886221 | AS27: =AP27-AL27 -> 0.1273831503 | AT27: =AVERAGE(AS26:AS30) -> 0.129985022 | AU27: =`x | AV27: =AVERAGE(AL26:AP30) -> 0.1421563981 | AW27: =`x | AZ27: =AK27 -> 0.065 | BA27: 0.05969452822 | BB27: 0.08869435539 | BC27: 0.1102049704 | BD27: 0.1429042971 | BE27: 0.1823113779 | BH27: =BE27-BA27 -> 0.1226168497 | BI27: =AVERAGE(BH26:BH30) -> 0.120014978 | BJ27: =`x | BK27: =AVERAGE(BA26:BE30) -> 0.1154436019 | BL27: =`x | BO27: -0.07653779156 | BP27: -0.06919811762 | BQ27: -0.0632128621 | BR27: -0.05623588067 | BS27: -0.06789166797
B28: ='Sensitivity Results'!R26 -> 0.07 | C28: =1-'Sensitivity Results'!K26/'Sensitivity Results'!C26 -> 0.1664047188 | D28: =1-'Sensitivity Results'!L26/'Sensitivity Results'!D26 -> 0.1801035846 | E28: =1-'Sensitivity Results'!M26/'Sensitivity Results'!E26 -> 0.1906382859 | F28: =1-'Sensitivity Results'!N26/'Sensitivity Results'!F26 -> 0.212983142 | G28: =1-'Sensitivity Results'!O26/'Sensitivity Results'!G26 -> 0.2850594415 | J28: =G28-C28 -> 0.1186547227 | K28: =STDEV(J26:J30) -> 0.000163228396 | L28: = s | M28: =STDEV(C26:G30) -> 0.04280272835 | N28: = s | Q28: =B28 -> 0.07 | R28: -0.01640471876 | S28: 0.01989641535 | T28: 0.0473617141 | U28: 0.087016858 | V28: 0.1149405585 | Y28: =V28-R28 -> 0.1313452773 | Z28: =STDEV(Y26:Y30) -> 0.000163228396 | AA28: = s | AB28: =STDEV(R26:V30) -> 0.04761376256 | AC28: = s | AK28: ='Sensitivity Results'!AQ26 -> 0.07 | AL28: =1-'Sensitivity Results'!AJ26/'Sensitivity Results'!AB26 -> 0.08984833574 | AM28: =1-'Sensitivity Results'!AK26/'Sensitivity Results'!AC26 -> 0.111439692 | AN28: =1-'Sensitivity Results'!AL26/'Sensitivity Results'!AD26 -> 0.1283962196 | AO28: =1-'Sensitivity Results'!AM26/'Sensitivity Results'!AE26 -> 0.1584756932 | AP28: =1-'Sensitivity Results'!AN26/'Sensitivity Results'!AF26 -> 0.2202837519 | AS28: =AP28-AL28 -> 0.1304354161 | AT28: =STDEV(AS26:AS30) -> 0.004449269023 | AU28: = s | AV28: =STDEV(AL26:AP30) -> 0.04607993675 | AW28: = s | AZ28: =AK28 -> 0.07 | BA28: 0.06015166426 | BB28: 0.08856030801 | BC28: 0.1096037804 | BD28: 0.1415243068 | BE28: 0.1797162481 | BH28: =BE28-BA28 -> 0.1195645839 | BI28: =STDEV(BH26:BH30) -> 0.004449269023 | BJ28: = s | BK28: =STDEV(BA26:BE30) -> 0.04261091838 | BL28: = s | BO28: -0.07655638302 | BP28: -0.06866389266 | BQ28: -0.06224206632 | BR28: -0.05450744884 | BS28: -0.06477568962
B29: ='Sensitivity Results'!R27 -> 0.075 | C29: =1-'Sensitivity Results'!K27/'Sensitivity Results'!C27 -> 0.1657671415 | D29: =1-'Sensitivity Results'!L27/'Sensitivity Results'!D27 -> 0.1795527668 | E29: =1-'Sensitivity Results'!M27/'Sensitivity Results'!E27 -> 0.190155723 | F29: =1-'Sensitivity Results'!N27/'Sensitivity Results'!F27 -> 0.2125763032 | G29: =1-'Sensitivity Results'!O27/'Sensitivity Results'!G27 -> 0.2845139704 | J29: =G29-C29 -> 0.1187468289 | K29: =K28/K27 -> 0.001373642808 | L29: = s /`x | M29: =M28/M27 -> 0.2068469995 | N29: = s /`x | Q29: =B29 -> 0.075 | R29: -0.01576714147 | S29: 0.0204472332 | T29: 0.04784427702 | U29: 0.0874236968 | V29: 0.1154860296 | Y29: =V29-R29 -> 0.1312531711 | Z29: =Z28/Z27 -> 0.001244392511 | AA29: = s /`x | AB29: =AB28/AB27 -> 0.9396726211 | AC29: = s /`x | AK29: ='Sensitivity Results'!AQ27 -> 0.075 | AL29: =1-'Sensitivity Results'!AJ27/'Sensitivity Results'!AB27 -> 0.09008777779 | AM29: =1-'Sensitivity Results'!AK27/'Sensitivity Results'!AC27 -> 0.1121468844 | AN29: =1-'Sensitivity Results'!AL27/'Sensitivity Results'!AD27 -> 0.1294694537 | AO29: =1-'Sensitivity Results'!AM27/'Sensitivity Results'!AE27 -> 0.1601776318 | AP29: =1-'Sensitivity Results'!AN27/'Sensitivity Results'!AF27 -> 0.2231352569 | AS29: =AP29-AL29 -> 0.1330474791 | AT29: =AT28/AT27 -> 0.03422909004 | AU29: = s /`x | AV29: =AV28/AV27 -> 0.3241495801 | AW29: = s /`x | AZ29: =AK29 -> 0.075 | BA29: 0.05991222221 | BB29: 0.08785311559 | BC29: 0.1085305463 | BD29: 0.1398223682 | BE29: 0.1768647431 | BH29: =BE29-BA29 -> 0.1169525209 | BI29: =BI28/BI27 -> 0.03707261459 | BJ29: = s /`x | BK29: =BK28/BK27 -> 0.3691059329 | BL29: = s /`x | BO29: -0.07567936367 | BP29: -0.06740588239 | BQ29: -0.06068626932 | BR29: -0.05239867142 | BS29: -0.06137871348
B30: ='Sensitivity Results'!R28 -> 0.08 | C30: =1-'Sensitivity Results'!K28/'Sensitivity Results'!C28 -> 0.1649187492 | D30: =1-'Sensitivity Results'!L28/'Sensitivity Results'!D28 -> 0.1788392566 | E30: =1-'Sensitivity Results'!M28/'Sensitivity Results'!E28 -> 0.1895479821 | F30: =1-'Sensitivity Results'!N28/'Sensitivity Results'!F28 -> 0.2120993234 | G30: =1-'Sensitivity Results'!O28/'Sensitivity Results'!G28 -> 0.2839381933 | J30: =G30-C30 -> 0.1190194441 | Q30: =B30 -> 0.08 | R30: -0.01491874918 | S30: 0.02116074336 | T30: 0.04845201793 | U30: 0.08790067657 | V30: 0.1160618067 | Y30: =V30-R30 -> 0.1309805559 | AK30: ='Sensitivity Results'!AQ28 -> 0.08 | AL30: =1-'Sensitivity Results'!AJ28/'Sensitivity Results'!AB28 -> 0.09128280547 | AM30: =1-'Sensitivity Results'!AK28/'Sensitivity Results'!AC28 -> 0.1136609841 | AN30: =1-'Sensitivity Results'!AL28/'Sensitivity Results'!AD28 -> 0.1312274233 | AO30: =1-'Sensitivity Results'!AM28/'Sensitivity Results'!AE28 -> 0.1623815499 | AP30: =1-'Sensitivity Results'!AN28/'Sensitivity Results'!AF28 -> 0.2263988306 | AS30: =AP30-AL30 -> 0.1351160251 | AZ30: =AK30 -> 0.08 | BA30: 0.05871719453 | BB30: 0.08633901591 | BC30: 0.1067725767 | BD30: 0.1376184501 | BE30: 0.1736011694 | BH30: =BE30-BA30 -> 0.1148839749 | BO30: -0.07363594372 | BP30: -0.06517827255 | BQ30: -0.05832055872 | BR30: -0.04971777358 | BS30: -0.05753936273
A32: Panel D: The Effective Tax Rate for LPs' After-Tax Returns | P32: =A32 -> Panel D: The Effective Tax Rate for LPs' After-Tax Returns | AJ32: Panel D: The Effective Tax Rate for GPs' After-Tax Returns | AY32: =AJ32 -> Panel D: The Effective Tax Rate for GPs' After-Tax Returns
C33: =C15 -> Capital-Gains Tax Rate | R33: =C33 -> Capital-Gains Tax Rate | AL33: =AL15 -> Capital-Gains Tax Rate | BA33: =AL33 -> Capital-Gains Tax Rate
C34: ='Sensitivity Results'!S32 -> 0.15 | D34: ='Sensitivity Results'!T32 -> 0.2 | E34: ='Sensitivity Results'!U32 -> 0.238 | F34: ='Sensitivity Results'!V32 -> 0.3 | G34: ='Sensitivity Results'!W32 -> 0.4 | R34: =C34 -> 0.15 | S34: =D34 -> 0.2 | T34: =E34 -> 0.238 | U34: =F34 -> 0.3 | V34: =G34 -> 0.4 | AL34: ='Sensitivity Results'!AR32 -> 0.15 | AM34: ='Sensitivity Results'!AS32 -> 0.2 | AN34: ='Sensitivity Results'!AT32 -> 0.238 | AO34: ='Sensitivity Results'!AU32 -> 0.3 | AP34: ='Sensitivity Results'!AV32 -> 0.4 | BA34: =AL34 -> 0.15 | BB34: =AM34 -> 0.2 | BC34: =AN34 -> 0.238 | BD34: =AO34 -> 0.3 | BE34: =AP34 -> 0.4
A35: ='Sensitivity Results'!Q33 -> Passive-Loss Utilization Rate | B35: ='Sensitivity Results'!R33 -> 0 | C35: =1-'Sensitivity Results'!K33/'Sensitivity Results'!C33 -> 0.1752069952 | D35: =1-'Sensitivity Results'!L33/'Sensitivity Results'!D33 -> 0.188812918 | E35: =1-'Sensitivity Results'!M33/'Sensitivity Results'!E33 -> 0.1992752977 | F35: =1-'Sensitivity Results'!N33/'Sensitivity Results'!F33 -> 0.2214642777 | G35: =1-'Sensitivity Results'!O33/'Sensitivity Results'!G33 -> 0.2930139439 | J35: =G35-C35 -> 0.1178069488 | P35: =A35 -> Passive-Loss Utilization Rate | Q35: =B35 -> 0 | R35: =C$7-C35 -> -0.02520699519 | S35: 0.01118708199 | T35: 0.03872470227 | U35: 0.07853572231 | V35: 0.1069860561 | Y35: =V35-R35 -> 0.1321930512 | AJ35: ='Sensitivity Results'!AP33 -> Passive-Loss Utilization Rate | AK35: ='Sensitivity Results'!AQ33 -> 0 | AL35: =1-'Sensitivity Results'!AJ33/'Sensitivity Results'!AB33 -> 0.09650574673 | AM35: =1-'Sensitivity Results'!AK33/'Sensitivity Results'!AC33 -> 0.1180363422 | AN35: =1-'Sensitivity Results'!AL33/'Sensitivity Results'!AD33 -> 0.1349434591 | AO35: =1-'Sensitivity Results'!AM33/'Sensitivity Results'!AE33 -> 0.1649314601 | AP35: =1-'Sensitivity Results'!AN33/'Sensitivity Results'!AF33 -> 0.2265351431 | AS35: =AP35-AL35 -> 0.1300293964 | AY35: =AJ35 -> Passive-Loss Utilization Rate | AZ35: =AK35 -> 0 | BA35: =AL$7-AL35 -> 0.05349425327 | BB35: 0.08196365777 | BC35: 0.1030565409 | BD35: 0.1350685399 | BE35: 0.1734648569 | BH35: =BE35-BA35 -> 0.1199706036 | BO35: =R35-BA35 -> -0.07870124846 | BP35: -0.07077657577 | BQ35: -0.06433183865 | BR35: -0.05653281758 | BS35: -0.06647880086
B36: ='Sensitivity Results'!R34 -> 0.25 | C36: =1-'Sensitivity Results'!K34/'Sensitivity Results'!C34 -> 0.1705701881 | D36: =1-'Sensitivity Results'!L34/'Sensitivity Results'!D34 -> 0.1842240184 | E36: =1-'Sensitivity Results'!M34/'Sensitivity Results'!E34 -> 0.1947236986 | F36: =1-'Sensitivity Results'!N34/'Sensitivity Results'!F34 -> 0.2169931383 | G36: =1-'Sensitivity Results'!O34/'Sensitivity Results'!G34 -> 0.2888152747 | J36: =G36-C36 -> 0.1182450865 | K36: =AVERAGE(J35:J39) -> 0.1186043982 | L36: =`x | M36: =AVERAGE(C35:G39) -> 0.207699019 | N36: =`x | Q36: =B36 -> 0.25 | R36: -0.02057018813 | S36: 0.0157759816 | T36: 0.04327630143 | U36: 0.08300686168 | V36: 0.1111847253 | Y36: =V36-R36 -> 0.1317549135 | Z36: =AVERAGE(Y35:Y39) -> 0.1313956018 | AA36: =`x | AB36: =AVERAGE(R35:V39) -> 0.04990098104 | AC36: =`x | AK36: ='Sensitivity Results'!AQ34 -> 0.25 | AL36: =1-'Sensitivity Results'!AJ34/'Sensitivity Results'!AB34 -> 0.09304722046 | AM36: =1-'Sensitivity Results'!AK34/'Sensitivity Results'!AC34 -> 0.1146075287 | AN36: =1-'Sensitivity Results'!AL34/'Sensitivity Results'!AD34 -> 0.1315388669 | AO36: =1-'Sensitivity Results'!AM34/'Sensitivity Results'!AE34 -> 0.1615718399 | AP36: =1-'Sensitivity Results'!AN34/'Sensitivity Results'!AF34 -> 0.2232765699 | AS36: =AP36-AL36 -> 0.1302293494 | AT36: =AVERAGE(AS35:AS39) -> 0.1304314132 | AU36: =`x | AV36: =AVERAGE(AL35:AP39) -> 0.1421089041 | AW36: =`x | AZ36: =AK36 -> 0.25 | BA36: 0.05695277954 | BB36: 0.08539247127 | BC36: 0.1064611331 | BD36: 0.1384281601 | BE36: 0.1767234301 | BH36: =BE36-BA36 -> 0.1197706506 | BI36: =AVERAGE(BH35:BH39) -> 0.1195685868 | BJ36: =`x | BK36: =AVERAGE(BA35:BE39) -> 0.1154910959 | BL36: =`x | BO36: -0.07752296768 | BP36: -0.06961648967 | BQ36: -0.06318483168 | BR36: -0.05542129845 | BS36: -0.06553870478
B37: ='Sensitivity Results'!R35 -> 0.5 | C37: =1-'Sensitivity Results'!K35/'Sensitivity Results'!C35 -> 0.1664047188 | D37: =1-'Sensitivity Results'!L35/'Sensitivity Results'!D35 -> 0.1801035846 | E37: =1-'Sensitivity Results'!M35/'Sensitivity Results'!E35 -> 0.1906382859 | F37: =1-'Sensitivity Results'!N35/'Sensitivity Results'!F35 -> 0.212983142 | G37: =1-'Sensitivity Results'!O35/'Sensitivity Results'!G35 -> 0.2850594415 | J37: =G37-C37 -> 0.1186547227 | K37: =STDEV(J35:J39) -> 0.0005957807507 | L37: = s | M37: =STDEV(C35:G39) -> 0.04304361598 | N37: = s | Q37: =B37 -> 0.5 | R37: -0.01640471876 | S37: 0.01989641535 | T37: 0.0473617141 | U37: 0.087016858 | V37: 0.1149405585 | Y37: =V37-R37 -> 0.1313452773 | Z37: =STDEV(Y35:Y39) -> 0.0005957807507 | AA37: = s | AB37: =STDEV(R35:V39) -> 0.04797717984 | AC37: = s | AK37: ='Sensitivity Results'!AQ35 -> 0.5 | AL37: =1-'Sensitivity Results'!AJ35/'Sensitivity Results'!AB35 -> 0.08984833574 | AM37: =1-'Sensitivity Results'!AK35/'Sensitivity Results'!AC35 -> 0.111439692 | AN37: =1-'Sensitivity Results'!AL35/'Sensitivity Results'!AD35 -> 0.1283962196 | AO37: =1-'Sensitivity Results'!AM35/'Sensitivity Results'!AE35 -> 0.1584756932 | AP37: =1-'Sensitivity Results'!AN35/'Sensitivity Results'!AF35 -> 0.2202837519 | AS37: =AP37-AL37 -> 0.1304354161 | AT37: =STDEV(AS35:AS39) -> 0.0003159693634 | AU37: = s | AV37: =STDEV(AL35:AP39) -> 0.04636607689 | AW37: = s | AZ37: =AK37 -> 0.5 | BA37: 0.06015166426 | BB37: 0.08856030801 | BC37: 0.1096037804 | BD37: 0.1415243068 | BE37: 0.1797162481 | BH37: =BE37-BA37 -> 0.1195645839 | BI37: =STDEV(BH35:BH39) -> 0.0003159693634 | BJ37: = s | BK37: =STDEV(BA35:BE39) -> 0.04258888245 | BL37: = s | BO37: -0.07655638302 | BP37: -0.06866389266 | BQ37: -0.06224206632 | BR37: -0.05450744884 | BS37: -0.06477568962
B38: ='Sensitivity Results'!R36 -> 0.75 | C38: =1-'Sensitivity Results'!K36/'Sensitivity Results'!C36 -> 0.1629088584 | D38: =1-'Sensitivity Results'!L36/'Sensitivity Results'!D36 -> 0.1766477019 | E38: =1-'Sensitivity Results'!M36/'Sensitivity Results'!E36 -> 0.1872134436 | F38: =1-'Sensitivity Results'!N36/'Sensitivity Results'!F36 -> 0.2096250057 | G38: =1-'Sensitivity Results'!O36/'Sensitivity Results'!G36 -> 0.28192478 | J38: =G38-C38 -> 0.1190159217 | K38: =K37/K36 -> 0.00502326018 | L38: = s /`x | M38: =M37/M36 -> 0.2072403432 | N38: = s /`x | Q38: =B38 -> 0.75 | R38: -0.01290885835 | S38: 0.02335229813 | T38: 0.05078655642 | U38: 0.09037499427 | V38: 0.11807522 | Y38: =V38-R38 -> 0.1309840783 | Z38: =Z37/Z36 -> 0.004534251851 | AA38: = s /`x | AB38: =AB37/AB36 -> 0.9614476275 | AC38: = s /`x | AK38: ='Sensitivity Results'!AQ36 -> 0.75 | AL38: =1-'Sensitivity Results'!AJ36/'Sensitivity Results'!AB36 -> 0.08705812488 | AM38: =1-'Sensitivity Results'!AK36/'Sensitivity Results'!AC36 -> 0.1086807562 | AN38: =1-'Sensitivity Results'!AL36/'Sensitivity Results'!AD36 -> 0.1256625182 | AO38: =1-'Sensitivity Results'!AM36/'Sensitivity Results'!AE36 -> 0.1557882651 | AP38: =1-'Sensitivity Results'!AN36/'Sensitivity Results'!AF36 -> 0.2176978254 | AS38: =AP38-AL38 -> 0.1306397005 | AT38: =AT37/AT36 -> 0.002422494365 | AU38: = s /`x | AV38: =AV37/AV36 -> 0.3262714408 | AW38: = s /`x | AZ38: =AK38 -> 0.75 | BA38: 0.06294187512 | BB38: 0.09131924381 | BC38: 0.1123374818 | BD38: 0.1442117349 | BE38: 0.1823021746 | BH38: =BE38-BA38 -> 0.1193602995 | BI38: =BI37/BI36 -> 0.002642578388 | BJ38: = s /`x | BK38: =BK37/BK36 -> 0.3687633416 | BL38: = s /`x | BO38: -0.07585073347 | BP38: -0.06796694568 | BQ38: -0.06155092534 | BR38: -0.05383674061 | BS38: -0.06422695465
B39: ='Sensitivity Results'!R37 -> 1 | C39: =1-'Sensitivity Results'!K37/'Sensitivity Results'!C37 -> 0.1603222977 | D39: =1-'Sensitivity Results'!L37/'Sensitivity Results'!D37 -> 0.1740927573 | E39: =1-'Sensitivity Results'!M37/'Sensitivity Results'!E37 -> 0.1846830027 | F39: =1-'Sensitivity Results'!N37/'Sensitivity Results'!F37 -> 0.2071470942 | G39: =1-'Sensitivity Results'!O37/'Sensitivity Results'!G37 -> 0.279621609 | J39: =G39-C39 -> 0.1192993113 | Q39: =B39 -> 1 | R39: -0.01032229772 | S39: 0.02590724274 | T39: 0.0533169973 | U39: 0.09285290581 | V39: 0.120378391 | Y39: =V39-R39 -> 0.1307006887 | AK39: ='Sensitivity Results'!AQ37 -> 1 | AL39: =1-'Sensitivity Results'!AJ37/'Sensitivity Results'!AB37 -> 0.08488869937 | AM39: =1-'Sensitivity Results'!AK37/'Sensitivity Results'!AC37 -> 0.1065399236 | AN39: =1-'Sensitivity Results'!AL37/'Sensitivity Results'!AD37 -> 0.1235446162 | AO39: =1-'Sensitivity Results'!AM37/'Sensitivity Results'!AE37 -> 0.1537121013 | AP39: =1-'Sensitivity Results'!AN37/'Sensitivity Results'!AF37 -> 0.2157119028 | AS39: =AP39-AL39 -> 0.1308232035 | AZ39: =AK39 -> 1 | BA39: 0.06511130063 | BB39: 0.09346007637 | BC39: 0.1144553838 | BD39: 0.1462878987 | BE39: 0.1842880972 | BH39: =BE39-BA39 -> 0.1191767965 | BO39: -0.07543359835 | BP39: -0.06755283363 | BQ39: -0.06113838645 | BR39: -0.05343499292 | BS39: -0.06390970615
I42: `x = | J42: =AVERAGE(J8:J39) -> 0.1212815698 | L42: `x = | M42: =(M9+M18+M27+M36)/4 -> 0.2056817585 | X42: `x = | Y42: =AVERAGE(Y8:Y39) -> 0.1287184302 | AA42: `x = | AB42: =(AB9+AB18+AB27+AB36)/4 -> 0.05191824149 | AR42: `x = | AS42: =AVERAGE(AS8:AS39) -> 0.1285487077 | AU42: `x = | AV42: =(AV9+AV18+AV27+AV36)/4 -> 0.1450558908 | BG42: `x = | BH42: =AVERAGE(BH8:BH39) -> 0.1214512923 | BJ42: `x = | BK42: =(BK9+BK18+BK27+BK36)/4 -> 0.1125441092
I43: s = | J43: =STDEV(J8:J39) -> 0.01586943322 | X43: s = | Y43: =STDEV(Y8:Y39) -> 0.01586943322 | AR43: s = | AS43: =STDEV(AS8:AS39) -> 0.01529156401 | BG43: s = | BH43: =STDEV(BH8:BH39) -> 0.01529156401
B44: =A5 -> Panel A: The Effective Tax Rate for LPs' After-Tax Returns | AK44: =AJ5 -> Panel A: The Effective Tax Rate for GPs' After-Tax Returns
B45: =AVERAGE(C45:G45) -> 0.05511401281 | C45: =C7-AVERAGE(C8:C12) -> -0.01012686852 | D45: =D7-AVERAGE(D8:D12) -> 0.02592441598 | E45: =E7-AVERAGE(E8:E12) -> 0.05319345933 | F45: =F7-AVERAGE(F8:F12) -> 0.09226606706 | G45: =G7-AVERAGE(G$35:G$39) -> 0.1143129902 | I45: tCG – `x | AK45: =AVERAGE(AL45:AP45) -> 0.119222178 | AL45: =AL7-AVERAGE(AL8:AL12) -> 0.06333716174 | AM45: =AM7-AVERAGE(AM8:AM12) -> 0.09243215895 | AN45: =AN7-AVERAGE(AN8:AN12) -> 0.1140492747 | AO45: =AO7-AVERAGE(AO8:AO12) -> 0.1469933334 | AP45: =AP7-AVERAGE(AP$35:AP$39) -> 0.1792989614 | AR45: tCG – `x
B46: =AVERAGE(C46:G46) -> 0.8227521784 | C46: =AVERAGE(C8:C12)/C7 -> 1.067512457 | D46: =AVERAGE(D8:D12)/D7 -> 0.8703779201 | E46: =AVERAGE(E8:E12)/E7 -> 0.77649807 | F46: =AVERAGE(F8:F12)/F7 -> 0.6924464431 | G46: =AVERAGE(G8:G12)/G7 -> 0.706926002 | I46: `x/tCG | AK46: =AVERAGE(AL46:AP46) -> 0.5357305824 | AL46: =AVERAGE(AL8:AL12)/AL7 -> 0.5777522551 | AM46: =AVERAGE(AM8:AM12)/AM7 -> 0.5378392052 | AN46: =AVERAGE(AN8:AN12)/AN7 -> 0.5208013668 | AO46: =AVERAGE(AO8:AO12)/AO7 -> 0.5100222221 | AP46: =AVERAGE(AP8:AP12)/AP7 -> 0.532237863 | AR46: `x/tCG
B49: =A14 -> Panel B: The Effective Tax Rate for LPs' After-Tax Returns | AK49: =AJ14 -> Panel B: The Effective Tax Rate for GPs' After-Tax Returns
B50: =AVERAGE(C50:G50) -> 0.0524526154 | C50: =C16-AVERAGE(C17:C21) -> -0.01588026808 | D50: =D16-AVERAGE(D17:D21) -> 0.0220678716 | E50: =E16-AVERAGE(E17:E21) -> 0.05079487728 | F50: =F16-AVERAGE(F17:F21) -> 0.090967606 | G50: =G16-AVERAGE(G$35:G$39) -> 0.1143129902 | I50: tCG – `x | AK50: =AVERAGE(AL50:AP50) -> 0.1025820056 | AL50: =AL16-AVERAGE(AL17:AL21) -> 0.03622693443 | AM50: =AM16-AVERAGE(AM17:AM21) -> 0.07005395979 | AN50: =AN16-AVERAGE(AN17:AN21) -> 0.09541639234 | AO50: =AO16-AVERAGE(AO17:AO21) -> 0.1319137799 | AP50: =AP16-AVERAGE(AP$35:AP$39) -> 0.1792989614 | AR50: tCG – `x
B51: =AVERAGE(C51:G51) -> 0.8412408608 | C51: =AVERAGE(C17:C21)/C16 -> 1.105868454 | D51: =AVERAGE(D17:D21)/D16 -> 0.889660642 | E51: =AVERAGE(E17:E21)/E16 -> 0.7865761459 | F51: =AVERAGE(F17:F21)/F16 -> 0.6967746467 | G51: =AVERAGE(G17:G21)/G16 -> 0.7273244157 | I51: `x/tCG | AK51: =AVERAGE(AL51:AP51) -> 0.6341786759 | AL51: =AVERAGE(AL17:AL21)/AL16 -> 0.7584871038 | AM51: =AVERAGE(AM17:AM21)/AM16 -> 0.649730201 | AN51: =AVERAGE(AN17:AN21)/AN16 -> 0.5990907885 | AO51: =AVERAGE(AO17:AO21)/AO16 -> 0.5602874003 | AP51: =AVERAGE(AP17:AP21)/AP16 -> 0.6032978857 | AR51: `x/tCG
B54: =A23 -> Panel C: The Effective Tax Rate for LPs' After-Tax Returns | AK54: =AJ23 -> Panel C: The Effective Tax Rate for GPs' After-Tax Returns
B55: =AVERAGE(C55:G55) -> 0.05054025618 | C55: =C25-AVERAGE(C26:C30) -> -0.01620650907 | D55: =D25-AVERAGE(D26:D30) -> 0.02004628268 | E55: =E25-AVERAGE(E26:E30) -> 0.04747393561 | F55: =F25-AVERAGE(F26:F30) -> 0.08707458153 | G55: =G25-AVERAGE(G$35:G$39) -> 0.1143129902 | I55: tCG – `x | AK55: =AVERAGE(AL55:AP55) -> 0.1154110576 | AL55: =AL25-AVERAGE(AL26:AL30) -> 0.05944670512 | AM55: =AM25-AVERAGE(AM26:AM30) -> 0.08798109066 | AN55: =AN25-AVERAGE(AN26:AN30) -> 0.1091275092 | AO55: =AO25-AVERAGE(AO26:AO30) -> 0.1412010214 | AP55: =AP25-AVERAGE(AP$35:AP$39) -> 0.1792989614 | AR55: tCG – `x
B56: =AVERAGE(C56:G56) -> 0.8461362914 | C56: =AVERAGE(C26:C30)/C25 -> 1.108043394 | D56: =AVERAGE(D26:D30)/D25 -> 0.8997685866 | E56: =AVERAGE(E26:E30)/E25 -> 0.8005296823 | F56: =AVERAGE(F26:F30)/F25 -> 0.7097513949 | G56: =AVERAGE(G26:G30)/G25 -> 0.7125883992 | I56: `x/tCG | AK56: =AVERAGE(AL56:AP56) -> 0.5571879908 | AL56: =AVERAGE(AL26:AL30)/AL25 -> 0.6036886325 | AM56: =AVERAGE(AM26:AM30)/AM25 -> 0.5600945467 | AN56: =AVERAGE(AN26:AN30)/AN25 -> 0.5414810536 | AO56: =AVERAGE(AO26:AO30)/AO25 -> 0.5293299286 | AP56: =AVERAGE(AP26:AP30)/AP25 -> 0.5513457923 | AR56: `x/tCG
B59: =A32 -> Panel D: The Effective Tax Rate for LPs' After-Tax Returns | AK59: =AJ32 -> Panel D: The Effective Tax Rate for GPs' After-Tax Returns
B60: =AVERAGE(C60:G60) -> 0.04990098104 | C60: =C34-AVERAGE(C35:C39) -> -0.01708261163 | D60: =D34-AVERAGE(D35:D39) -> 0.01922380396 | E60: =E34-AVERAGE(E35:E39) -> 0.0466932543 | F60: =F34-AVERAGE(F35:F39) -> 0.08635746841 | G60: =G34-AVERAGE(G$35:G$39) -> 0.1143129902 | I60: tCG – `x | AK60: =AVERAGE(AL60:AP60) -> 0.1154910959 | AL60: =AL34-AVERAGE(AL35:AL39) -> 0.05973037456 | AM60: =AM34-AVERAGE(AM35:AM39) -> 0.08813915145 | AN60: =AN34-AVERAGE(AN35:AN39) -> 0.109182864 | AO60: =AO34-AVERAGE(AO35:AO39) -> 0.1411041281 | AP60: =AP34-AVERAGE(AP$35:AP$39) -> 0.1792989614 | AR60: tCG – `x
B61: =AVERAGE(C61:G61) -> 0.849586842 | C61: =AVERAGE(C35:C39)/C34 -> 1.113884078 | D61: =AVERAGE(D35:D39)/D34 -> 0.9038809802 | E61: =AVERAGE(E35:E39)/E34 -> 0.8038098559 | F61: =AVERAGE(F35:F39)/F34 -> 0.712141772 | G61: =AVERAGE(G35:G39)/G34 -> 0.7142175246 | I61: `x/tCG | AK61: =AVERAGE(AL61:AP61) -> 0.5567511438 | AL61: =AVERAGE(AL35:AL39)/AL34 -> 0.6017975029 | AM61: =AVERAGE(AM35:AM39)/AM34 -> 0.5593042428 | AN61: =AVERAGE(AN35:AN39)/AN34 -> 0.5412484706 | AO61: =AVERAGE(AO35:AO39)/AO34 -> 0.5296529064 | AP61: =AVERAGE(AP35:AP39)/AP34 -> 0.5517525965 | AR61: `x/tCG
B63: =AVERAGE(B46,B51,B56,B61) -> 0.8399290432 | AK63: =AVERAGE(AK46,AK51,AK56,AK61) -> 0.5709620982
AM66: =E37-AN37 -> 0.06224206632 | AN66: =F37-AO37 -> 0.05450744884 | AO66: 0.06477568962 | AP66: =AP37-AN37 -> 0.09188753227
AP67: =AP66/AN37 -> 0.7156560572

Sheet Exhibits 8 & 9
B1: Exhibit 8: The Effective Tax Rate of the Limited Partner's After-Tax Return, Given Various Sensititivies | O1: Exhibit 9: The Effective Tax Rate of the General Partner's After-Tax Return, Given Various Sensititivies
B3: Panel A: Arc Elasticity Estimates for LPs' After-Tax Returns | O3: Panel A: Arc Elasticity Estimates for GPs' After-Tax Returns
D4: ='Sensitivity Results'!C4 -> Capital-Gains Tax Rate | J4: eReturns, Rates (1) | Q4: =D4 -> Capital-Gains Tax Rate | W4: eReturns, Rates (1)
D5: ='Sensitivity Results'!S5 -> 0.15 | E5: ='Sensitivity Results'!T5 -> 0.2 | F5: ='Sensitivity Results'!U5 -> 0.238 | G5: ='Sensitivity Results'!V5 -> 0.3 | H5: ='Sensitivity Results'!W5 -> 0.4 | Q5: ='Sensitivity Results'!AR5 -> 0.15 | R5: ='Sensitivity Results'!AS5 -> 0.2 | S5: ='Sensitivity Results'!AT5 -> 0.238 | T5: ='Sensitivity Results'!AU5 -> 0.3 | U5: ='Sensitivity Results'!AV5 -> 0.4 | AN5: Standard Deviation of Elasticities
B6: ='Sensitivity Results'!Q6 -> Leverage Ratio | C6: ='Sensitivity Results'!R6 -> 0.25 | D6: ='Sensitivity Results'!K6 -> 0.06921210452 | E6: ='Sensitivity Results'!L6 -> 0.06819792682 | F6: ='Sensitivity Results'!M6 -> 0.06742084528 | G6: ='Sensitivity Results'!N6 -> 0.06579513847 | H6: ='Sensitivity Results'!O6 -> 0.06070866031 | J6: =((H6-D6)/((H6+D6)/2))/((H$5-D$5)/((H$5+D$5)/2)) -> -0.1439922038 | O6: ='Sensitivity Results'!AP6:AP10 -> Leverage Ratio | P6: ='Sensitivity Results'!AQ6 -> 0.25 | Q6: ='Sensitivity Results'!AJ6 -> 0.1359963357 | R6: ='Sensitivity Results'!AK6 -> 0.132497819 | S6: ='Sensitivity Results'!AL6 -> 0.1297682785 | T6: ='Sensitivity Results'!AM6 -> 0.1249534212 | U6: ='Sensitivity Results'!AN6 -> 0.1151366725 | W6: =((U6-Q6)/((U6+Q6)/2))/((U$5-Q$5)/((U$5+Q$5)/2)) -> -0.1827368667 | AO6: Limited Partners | AQ6: General Partner
C7: ='Sensitivity Results'!R7 -> 0.5 | D7: ='Sensitivity Results'!K7 -> 0.08308921558 | E7: ='Sensitivity Results'!L7 -> 0.08178766777 | F7: ='Sensitivity Results'!M7 -> 0.08078822138 | G7: ='Sensitivity Results'!N7 -> 0.078674703 | H7: ='Sensitivity Results'!O7 -> 0.0719103334 | J7: =((H7-D7)/((H7+D7)/2))/((H$5-D$5)/((H$5+D$5)/2)) -> -0.1586684668 | P7: ='Sensitivity Results'!AQ7 -> 0.5 | Q7: ='Sensitivity Results'!AJ7 -> 0.1757566407 | R7: ='Sensitivity Results'!AK7 -> 0.171483217 | S7: ='Sensitivity Results'!AL7 -> 0.1681335657 | T7: ='Sensitivity Results'!AM7 -> 0.1622046776 | U7: ='Sensitivity Results'!AN7 -> 0.150074062 | W7: =((U7-Q7)/((U7+Q7)/2))/((U$5-Q$5)/((U$5+Q$5)/2)) -> -0.1734080698 | AE7: Summary Statistics for Average Elasticities | AO7: Capital | AP7: Key | AQ7: Capital | AR7: Key
C8: ='Sensitivity Results'!R8 -> 0.6 | D8: ='Sensitivity Results'!K8 -> 0.09128470101 | E8: ='Sensitivity Results'!L8 -> 0.08978457631 | F8: ='Sensitivity Results'!M8 -> 0.08863095047 | G8: ='Sensitivity Results'!N8 -> 0.08618402742 | H8: ='Sensitivity Results'!O8 -> 0.07829115231 | J8: =((H8-D8)/((H8+D8)/2))/((H$5-D$5)/((H$5+D$5)/2)) -> -0.1685723916 | P8: ='Sensitivity Results'!AQ8 -> 0.6 | Q8: ='Sensitivity Results'!AJ8 -> 0.1950156526 | R8: ='Sensitivity Results'!AK8 -> 0.1903893331 | S8: ='Sensitivity Results'!AL8 -> 0.1867561053 | T8: ='Sensitivity Results'!AM8 -> 0.1803110606 | U8: ='Sensitivity Results'!AN8 -> 0.1670676207 | W8: =((U8-Q8)/((U8+Q8)/2))/((U$5-Q$5)/((U$5+Q$5)/2)) -> -0.1698108552 | Z8: Differences in Elasticities | AF8: Limited Partners | AJ8: General Partners | AO8: Gains Rate | AP8: Assumptions | AQ8: Gains Rate | AR8: Assumptions
C9: ='Sensitivity Results'!R9 -> 0.7 | D9: ='Sensitivity Results'!K9 -> 0.1002407517 | E9: ='Sensitivity Results'!L9 -> 0.09842255958 | F9: ='Sensitivity Results'!M9 -> 0.09702121733 | G9: ='Sensitivity Results'!N9 -> 0.09404655603 | H9: ='Sensitivity Results'!O9 -> 0.08440196247 | J9: =((H9-D9)/((H9+D9)/2))/((H$5-D$5)/((H$5+D$5)/2)) -> -0.188717635 | P9: ='Sensitivity Results'!AQ9 -> 0.7 | Q9: ='Sensitivity Results'!AJ9 -> 0.2126840826 | R9: ='Sensitivity Results'!AK9 -> 0.2076213511 | S9: ='Sensitivity Results'!AL9 -> 0.2036364769 | T9: ='Sensitivity Results'!AM9 -> 0.1965516013 | U9: ='Sensitivity Results'!AN9 -> 0.1819363859 | W9: =((U9-Q9)/((U9+Q9)/2))/((U$5-Q$5)/((U$5+Q$5)/2)) -> -0.1714176994 | Z9: LPs v. GP | AF9: `eReturns, Rates | AH9: `eReturns, Key Assumptions | AJ9: `eReturns, Rates | AL9: `eReturns, Key Assumptions | AN9: Panel A | AO9: =STDEV(J6:J10) -> 0.02287622227 | AP9: =STDEV(D12:H12) -> 0.01937786373 | AQ9: =STDEV(W6:W10) -> 0.02311054185 | AR9: =STDEV(Q12:U12) -> 0.01824891545
C10: ='Sensitivity Results'!R10 -> 0.8 | D10: ='Sensitivity Results'!K10 -> 0.1128657661 | E10: ='Sensitivity Results'!L10 -> 0.1108594678 | F10: ='Sensitivity Results'!M10 -> 0.1093117658 | G10: ='Sensitivity Results'!N10 -> 0.1058912165 | H10: ='Sensitivity Results'!O10 -> 0.09397001077 | J10: =((H10-D10)/((H10+D10)/2))/((H$5-D$5)/((H$5+D$5)/2)) -> -0.200983903 | P10: ='Sensitivity Results'!AQ10 -> 0.8 | Q10: ='Sensitivity Results'!AJ10 -> 0.2415668616 | R10: ='Sensitivity Results'!AK10 -> 0.2373617109 | S10: ='Sensitivity Results'!AL10 -> 0.2340755282 | T10: ='Sensitivity Results'!AM10 -> 0.2282116555 | U10: ='Sensitivity Results'!AN10 -> 0.215809134 | W10: =((U10-Q10)/((U10+Q10)/2))/((U$5-Q$5)/((U$5+Q$5)/2)) -> -0.1238958782 | Z10: Capital-Gains Rate | AA10: Key Assumptions | AE10: `x = | AF10: =AVERAGE(E16,E36,E55,E75) -> -0.1744659536 | AH10: =AVERAGE(J16,J36,J55,J75) -> 0.5262152226 | AJ10: =AVERAGE(R16,R36,R55,R75) -> -0.1745679004 | AL10: =AVERAGE(W16,W36,W55,W75) -> 0.6084283092 | AN10: Panel B | AO10: =STDEV(J26:J30) -> 0.03597929934 | AP10: =STDEV(D32:H32) -> 0.04442356985 | AQ10: =STDEV(W26:W30) -> 0.04696255666 | AR10: =STDEV(Q32:U32) -> 0.03241262477
AE11: s = | AF11: =STDEV(E75,E55,E36,E16) -> 0.009254857525 | AH11: =STDEV(J75,J55,J36,J16) -> 0.7090605722 | AJ11: =STDEV(R75,R55,R36,R16) -> 0.008386036642 | AL11: =STDEV(W75,W55,W36,W16) -> 1.186041358 | AN11: Panel C | AO11: =STDEV(J46:J50) -> 0.0002686313913 | AP11: =STDEV(D52:H52) -> 0.001439997679 | AQ11: =STDEV(W46:W50) -> 0.006226768698 | AR11: =STDEV(Q52:U52) -> 0.01946421062
B12: eReturns, LTV (2) | D12: =((D10-D6)/((D10+D6)/2))/(($C10-$C6)/(($C10+$C6)/2)) -> 0.4577097052 | E12: =((E10-E6)/((E10+E6)/2))/(($C10-$C6)/(($C10+$C6)/2)) -> 0.4548528153 | F12: =((F10-F6)/((F10+F6)/2))/(($C10-$C6)/(($C10+$C6)/2)) -> 0.4525117074 | G12: =((G10-G6)/((G10+G6)/2))/(($C10-$C6)/(($C10+$C6)/2)) -> 0.4458540578 | H12: =((H10-H6)/((H10+H6)/2))/(($C10-$C6)/(($C10+$C6)/2)) -> 0.4105216404 | O12: eReturns, LTV (2) | Q12: =((Q10-Q6)/((Q10+Q6)/2))/(($P10-$P6)/(($P10+$P6)/2)) -> 0.5338013148 | R12: =((R10-R6)/((R10+R6)/2))/(($P10-$P6)/(($P10+$P6)/2)) -> 0.5412722579 | S12: =((S10-S6)/((S10+S6)/2))/(($P10-$P6)/(($P10+$P6)/2)) -> 0.5473008429 | T12: =((T10-T6)/((T10+T6)/2))/(($P10-$P6)/(($P10+$P6)/2)) -> 0.5581790768 | U12: =((U10-U6)/((U10+U6)/2))/(($P10-$P6)/(($P10+$P6)/2)) -> 0.5807382273 | AN12: Panel D | AO12: =STDEV(J65:J69) -> 0.0003876896432 | AP12: =STDEV(D71:H71) -> 0.0001739769739 | AQ12: =STDEV(W65:W69) -> 0.0004926212844 | AR12: =STDEV(Q71:U71) -> 0.0002177976927
A16: \ | B16: `eReturns, Rates (1) | D16: = | E16: =AVERAGE(J6:J10) -> -0.1721869201 | F16: =IF(E16=ABS(J16),"=",IF(ABS(E16)>ABS(J16),">","<")) -> < | G16: `eReturns, LTV (2) | I16: = | J16: =AVERAGE(D12:H13) -> 0.4442899852 | K16: =J16/E16 -> -2.580277207 | N16: \ | O16: `eReturns, Rates (1) | Q16: = | R16: =AVERAGE(W6:W9) -> -0.1743433728 | S16: =IF(R16=ABS(W16),"=",IF(ABS(R16)>ABS(W16),">","<")) -> < | T16: `eReturns, LTV (2) | V16: = | W16: =AVERAGE(Q12:U13) -> 0.5522583439 | X16: =W16/R16 -> -3.167647471 | Z16: =ABS(R16)-ABS(E16) -> 0.002156452724 | AA16: =ABS(W16)-ABS(J16) -> 0.1079683587 | AF16: =1/AF10 -> -5.731777343
AF17: =1/6 -> 0.1666666667
B19: [represents the average values, over the range examined above] | O19: [represents the average values, over the range examined above]
B20: [inequalities are based on the absolute values] | O20: [inequalities are based on the absolute values]
B23: Panel B: Arc Elasticity Estimates for LPs' After-Tax Returns | O23: Panel B: Arc Elasticity Estimates for GPs' After-Tax Returns
D24: =D4 -> Capital-Gains Tax Rate | J24: eReturns, Rates (3) | Q24: =Q4 -> Capital-Gains Tax Rate | W24: eReturns, Rates (3)
D25: ='Sensitivity Results'!S14 -> 0.15 | E25: ='Sensitivity Results'!T14 -> 0.2 | F25: ='Sensitivity Results'!U14 -> 0.238 | G25: ='Sensitivity Results'!V14 -> 0.3 | H25: ='Sensitivity Results'!W14 -> 0.4 | Q25: ='Sensitivity Results'!AR14 -> 0.15 | R25: ='Sensitivity Results'!AS14 -> 0.2 | S25: ='Sensitivity Results'!AT14 -> 0.238 | T25: ='Sensitivity Results'!AU14 -> 0.3 | U25: ='Sensitivity Results'!AV14 -> 0.4
B26: ='Sensitivity Results'!Q15 -> Unlevered RE Return | C26: ='Sensitivity Results'!R15 -> 0.062 | D26: ='Sensitivity Results'!K15 -> 0.04198139684 | E26: ='Sensitivity Results'!L15 -> 0.0418102815 | F26: ='Sensitivity Results'!M15 -> 0.04168005899 | G26: ='Sensitivity Results'!N15 -> 0.04077814653 | H26: ='Sensitivity Results'!O15 -> 0.03449898607 | J26: =((H26-D26)/((H26+D26)/2))/((H$25-D$25)/((H$25+D$25)/2)) -> -0.2152356338 | O26: =B26 -> Unlevered RE Return | P26: ='Sensitivity Results'!AQ15 -> 0.062 | Q26: ='Sensitivity Results'!AJ15 -> 0.04198139684 | R26: ='Sensitivity Results'!AK15 -> 0.0418102815 | S26: ='Sensitivity Results'!AL15 -> 0.04168005899 | T26: ='Sensitivity Results'!AM15 -> 0.04077814653 | U26: ='Sensitivity Results'!AN15 -> 0.03449898607 | W26: =((U26-Q26)/((U26+Q26)/2))/((U$25-Q$25)/((U$25+Q$25)/2)) -> -0.2152356338
C27: ='Sensitivity Results'!R16 -> 0.076 | D27: ='Sensitivity Results'!K16 -> 0.06732026809 | E27: ='Sensitivity Results'!L16 -> 0.06610230285 | F27: ='Sensitivity Results'!M16 -> 0.06516778238 | G27: ='Sensitivity Results'!N16 -> 0.06302545285 | H27: ='Sensitivity Results'!O16 -> 0.05522366259 | J27: =((H27-D27)/((H27+D27)/2))/((H$25-D$25)/((H$25+D$25)/2)) -> -0.21716728 | P27: ='Sensitivity Results'!AQ16 -> 0.076 | Q27: ='Sensitivity Results'!AJ16 -> 0.1025978435 | R27: ='Sensitivity Results'!AK16 -> 0.09988487906 | S27: ='Sensitivity Results'!AL16 -> 0.09778023836 | T27: ='Sensitivity Results'!AM16 -> 0.09380343313 | U27: ='Sensitivity Results'!AN16 -> 0.08376270138 | W27: =((U27-Q27)/((U27+Q27)/2))/((U$25-Q$25)/((U$25+Q$25)/2)) -> -0.2223502437
C28: ='Sensitivity Results'!R17 -> 0.094 | D28: ='Sensitivity Results'!K17 -> 0.09128470101 | E28: ='Sensitivity Results'!L17 -> 0.08978457631 | F28: ='Sensitivity Results'!M17 -> 0.08863095047 | G28: ='Sensitivity Results'!N17 -> 0.08618402742 | H28: ='Sensitivity Results'!O17 -> 0.07829115231 | J28: =((H28-D28)/((H28+D28)/2))/((H$25-D$25)/((H$25+D$25)/2)) -> -0.1685723916 | P28: ='Sensitivity Results'!AQ17 -> 0.094 | Q28: ='Sensitivity Results'!AJ17 -> 0.1950156526 | R28: ='Sensitivity Results'!AK17 -> 0.1903893331 | S28: ='Sensitivity Results'!AL17 -> 0.1867561053 | T28: ='Sensitivity Results'!AM17 -> 0.1803110606 | U28: ='Sensitivity Results'!AN17 -> 0.1670676207 | W28: =((U28-Q28)/((U28+Q28)/2))/((U$25-Q$25)/((U$25+Q$25)/2)) -> -0.1698108552
C29: ='Sensitivity Results'!R18 -> 0.108 | D29: ='Sensitivity Results'!K18 -> 0.1098267524 | E29: ='Sensitivity Results'!L18 -> 0.1079884445 | F29: ='Sensitivity Results'!M18 -> 0.1065711584 | G29: ='Sensitivity Results'!N18 -> 0.1037473141 | H29: ='Sensitivity Results'!O18 -> 0.09566901157 | J29: =((H29-D29)/((H29+D29)/2))/((H$25-D$25)/((H$25+D$25)/2)) -> -0.1515701796 | P29: ='Sensitivity Results'!AQ18 -> 0.108 | Q29: ='Sensitivity Results'!AJ18 -> 0.2432212344 | R29: ='Sensitivity Results'!AK18 -> 0.2384714544 | S29: ='Sensitivity Results'!AL18 -> 0.2347413573 | T29: ='Sensitivity Results'!AM18 -> 0.2281181563 | U29: ='Sensitivity Results'!AN18 -> 0.2144613877 | W29: =((U29-Q29)/((U29+Q29)/2))/((U$25-Q$25)/((U$25+Q$25)/2)) -> -0.1382435332
C30: ='Sensitivity Results'!R19 -> 0.122 | D30: ='Sensitivity Results'!K19 -> 0.1278893399 | E30: ='Sensitivity Results'!L19 -> 0.1257404399 | F30: ='Sensitivity Results'!M19 -> 0.1240799532 | G30: ='Sensitivity Results'!N19 -> 0.120903412 | H30: ='Sensitivity Results'!O19 -> 0.1126227108 | J30: =((H30-D30)/((H30+D30)/2))/((H$25-D$25)/((H$25+D$25)/2)) -> -0.139646159 | P30: ='Sensitivity Results'!AQ19 -> 0.122 | Q30: ='Sensitivity Results'!AJ19 -> 0.2862469638 | R30: ='Sensitivity Results'!AK19 -> 0.2815623031 | S30: ='Sensitivity Results'!AL19 -> 0.2778865542 | T30: ='Sensitivity Results'!AM19 -> 0.271357667 | U30: ='Sensitivity Results'!AN19 -> 0.2578575519 | W30: =((U30-Q30)/((U30+Q30)/2))/((U$25-Q$25)/((U$25+Q$25)/2)) -> -0.1147880683
B32: eReturns, RE Return (4) | D32: =((D30-D26)/((D30+D26)/2))/(($C30-$C26)/(($C30+$C26)/2)) -> 1.550891169 | E32: =((E30-E26)/((E30+E26)/2))/(($C30-$C26)/(($C30+$C26)/2)) -> 1.536166582 | F32: =((F30-F26)/((F30+F26)/2))/(($C30-$C26)/(($C30+$C26)/2)) -> 1.524450955 | G32: =((G30-G26)/((G30+G26)/2))/(($C30-$C26)/(($C30+$C26)/2)) -> 1.519761951 | H32: =((H30-H26)/((H30+H26)/2))/(($C30-$C26)/(($C30+$C26)/2)) -> 1.62844385 | O32: eReturns, RE Return (4) | Q32: =((Q30-Q26)/((Q30+Q26)/2))/(($C30-$C26)/(($C30+$C26)/2)) -> 2.282194843 | R32: =((R30-R26)/((R30+R26)/2))/(($C30-$C26)/(($C30+$C26)/2)) -> 2.273660687 | S32: =((S30-S26)/((S30+S26)/2))/(($C30-$C26)/(($C30+$C26)/2)) -> 2.266715469 | T32: =((T30-T26)/((T30+T26)/2))/(($C30-$C26)/(($C30+$C26)/2)) -> 2.265393777 | U32: =((U30-U26)/((U30+U26)/2))/(($C30-$C26)/(($C30+$C26)/2)) -> 2.342914146
A36: \ | B36: `eReturns, Rates (3) | D36: = | E36: =AVERAGE(J26:J29) -> -0.1881363713 | F36: =IF(E36=ABS(J36),"=",IF(ABS(E36)>ABS(J36),">","<")) -> < | G36: `eReturns, RE Return (4) | I36: = | J36: =AVERAGE(D32:H33) -> 1.551942901 | K36: =J36/E36 -> -8.249031759 | N36: \ | O36: `eReturns, Rates (3) | Q36: = | R36: =AVERAGE(W26:W29) -> -0.1864100665 | S36: =IF(R36=ABS(W36),"=",IF(ABS(R36)>ABS(W36),">","<")) -> < | T36: `eReturns, RE Return (4) | V36: = | W36: =AVERAGE(Q32:U33) -> 2.286175784 | X36: =W36/R36 -> -12.26422922 | Z36: =ABS(R36)-ABS(E36) -> -0.001726304762 | AA36: =ABS(W36)-ABS(J36) -> 0.7342328829
B39: [represents the average values, over the range examined above] | O39: [represents the average values, over the range examined above]
B40: [inequalities are based on the absolute values] | O40: [inequalities are based on the absolute values]
B43: Panel C: Arc Elasticity Estimates for LPs' After-Tax Returns | O43: Panel C: Arc Elasticity Estimates for GPs' After-Tax Returns
D44: =D4 -> Capital-Gains Tax Rate | J44: eReturns, Rates (5) | Q44: =Q4 -> Capital-Gains Tax Rate | W44: eReturns, Rates (5)
D45: ='Sensitivity Results'!S23 -> 0.15 | E45: ='Sensitivity Results'!T23 -> 0.2 | F45: ='Sensitivity Results'!U23 -> 0.238 | G45: ='Sensitivity Results'!V23 -> 0.3 | H45: ='Sensitivity Results'!W23 -> 0.4 | Q45: ='Sensitivity Results'!AR23 -> 0.15 | R45: ='Sensitivity Results'!AS23 -> 0.2 | S45: ='Sensitivity Results'!AT23 -> 0.238 | T45: ='Sensitivity Results'!AU23 -> 0.3 | U45: ='Sensitivity Results'!AV23 -> 0.4
B46: ='Base Case Assumptions'!A23 -> Preferred Return | C46: ='Sensitivity Results'!R24 -> 0.06 | D46: ='Sensitivity Results'!K24 -> 0.09005716811 | E46: ='Sensitivity Results'!L24 -> 0.0885790453 | F46: ='Sensitivity Results'!M24 -> 0.08744252294 | G46: ='Sensitivity Results'!N24 -> 0.08502525564 | H46: ='Sensitivity Results'!O24 -> 0.07719182306 | J46: =((H46-D46)/((H46+D46)/2))/((H$25-D$25)/((H$25+D$25)/2)) -> -0.1692312695 | O46: ='Base Case Assumptions'!A23 -> Preferred Return | P46: ='Sensitivity Results'!AQ24 -> 0.06 | Q46: ='Sensitivity Results'!AJ24 -> 0.2049259891 | R46: ='Sensitivity Results'!AK24 -> 0.2003484823 | S46: ='Sensitivity Results'!AL24 -> 0.1967555751 | T46: ='Sensitivity Results'!AM24 -> 0.1903535991 | U46: ='Sensitivity Results'!AN24 -> 0.1769766865 | W46: =((U46-Q46)/((U46+Q46)/2))/((U$25-Q$25)/((U$25+Q$25)/2)) -> -0.1610055902
C47: ='Sensitivity Results'!R25 -> 0.065 | D47: ='Sensitivity Results'!K25 -> 0.09065367858 | E47: ='Sensitivity Results'!L25 -> 0.08916731422 | F47: ='Sensitivity Results'!M25 -> 0.08802438645 | G47: ='Sensitivity Results'!N25 -> 0.08559540197 | H47: ='Sensitivity Results'!O25 -> 0.07773420283 | J47: =((H47-D47)/((H47+D47)/2))/((H$25-D$25)/((H$25+D$25)/2)) -> -0.1687938966 | P47: ='Sensitivity Results'!AQ25 -> 0.065 | Q47: ='Sensitivity Results'!AJ25 -> 0.2001169079 | R47: ='Sensitivity Results'!AK25 -> 0.1954972367 | S47: ='Sensitivity Results'!AL25 -> 0.19186986 | T47: ='Sensitivity Results'!AM25 -> 0.1854242236 | U47: ='Sensitivity Results'!AN25 -> 0.1720948397 | W47: =((U47-Q47)/((U47+Q47)/2))/((U$25-Q$25)/((U$25+Q$25)/2)) -> -0.1656276315
C48: ='Sensitivity Results'!R26 -> 0.07 | D48: ='Sensitivity Results'!K26 -> 0.09128470101 | E48: ='Sensitivity Results'!L26 -> 0.08978457631 | F48: ='Sensitivity Results'!M26 -> 0.08863095047 | G48: ='Sensitivity Results'!N26 -> 0.08618402742 | H48: ='Sensitivity Results'!O26 -> 0.07829115231 | J48: =((H48-D48)/((H48+D48)/2))/((H$25-D$25)/((H$25+D$25)/2)) -> -0.1685723916 | P48: ='Sensitivity Results'!AQ26 -> 0.07 | Q48: ='Sensitivity Results'!AJ26 -> 0.1950156526 | R48: ='Sensitivity Results'!AK26 -> 0.1903893331 | S48: ='Sensitivity Results'!AL26 -> 0.1867561053 | T48: ='Sensitivity Results'!AM26 -> 0.1803110606 | U48: ='Sensitivity Results'!AN26 -> 0.1670676207 | W48: =((U48-Q48)/((U48+Q48)/2))/((U$25-Q$25)/((U$25+Q$25)/2)) -> -0.1698108552
C49: ='Sensitivity Results'!R27 -> 0.075 | D49: ='Sensitivity Results'!K27 -> 0.09195651246 | E49: ='Sensitivity Results'!L27 -> 0.0904369391 | F49: ='Sensitivity Results'!M27 -> 0.08926818764 | G49: ='Sensitivity Results'!N27 -> 0.0867967933 | H49: ='Sensitivity Results'!O27 -> 0.07886718837 | J49: =((H49-D49)/((H49+D49)/2))/((H$25-D$25)/((H$25+D$25)/2)) -> -0.1685744593 | P49: ='Sensitivity Results'!AQ27 -> 0.075 | Q49: ='Sensitivity Results'!AJ27 -> 0.1894420264 | R49: ='Sensitivity Results'!AK27 -> 0.1848493616 | S49: ='Sensitivity Results'!AL27 -> 0.181242835 | T49: ='Sensitivity Results'!AM27 -> 0.1748494496 | U49: ='Sensitivity Results'!AN27 -> 0.1617417896 | W49: =((U49-Q49)/((U49+Q49)/2))/((U$25-Q$25)/((U$25+Q$25)/2)) -> -0.1735288423
C50: ='Sensitivity Results'!R28 -> 0.08 | D50: ='Sensitivity Results'!K28 -> 0.09267390528 | E50: ='Sensitivity Results'!L28 -> 0.09112906424 | F50: ='Sensitivity Results'!M28 -> 0.08994065364 | G50: ='Sensitivity Results'!N28 -> 0.08743799792 | H50: ='Sensitivity Results'!O28 -> 0.07946561365 | J50: =((H50-D50)/((H50+D50)/2))/((H$25-D$25)/((H$25+D$25)/2)) -> -0.1688063366 | P50: ='Sensitivity Results'!AQ28 -> 0.08 | Q50: ='Sensitivity Results'!AJ28 -> 0.1832264968 | R50: ='Sensitivity Results'!AK28 -> 0.1787143391 | S50: ='Sensitivity Results'!AL28 -> 0.1751723822 | T50: ='Sensitivity Results'!AM28 -> 0.1688907123 | U50: ='Sensitivity Results'!AN28 -> 0.1559827777 | W50: =((U50-Q50)/((U50+Q50)/2))/((U$25-Q$25)/((U$25+Q$25)/2)) -> -0.1766938182
B52: EReturns, Pref (6) | D52: =((D50-D46)/((D50+D46)/2))/(($C50-$C46)/(($C50+$C46)/2)) -> 0.1002410802 | E52: =((E50-E46)/((E50+E46)/2))/(($C50-$C46)/(($C50+$C46)/2)) -> 0.0993284755 | F52: =((F50-F46)/((F50+F46)/2))/(($C50-$C46)/(($C50+$C46)/2)) -> 0.09858271362 | G52: =((G50-G46)/((G50+G46)/2))/(($C50-$C46)/(($C50+$C46)/2)) -> 0.09792924348 | H52: =((H50-H46)/((H50+H46)/2))/(($C50-$C46)/(($C50+$C46)/2)) -> 0.1016008846 | O52: EReturns, Pref (6) | Q52: =((Q50-Q46)/((Q50+Q46)/2))/(($P50-$P46)/(($P50+$P46)/2)) -> -0.3913318908 | R52: =((R50-R46)/((R50+R46)/2))/(($P50-$P46)/(($P50+$P46)/2)) -> -0.3995089837 | S52: =((S50-S46)/((S50+S46)/2))/(($P50-$P46)/(($P50+$P46)/2)) -> -0.4062140181 | T52: =((T50-T46)/((T50+T46)/2))/(($P50-$P46)/(($P50+$P46)/2)) -> -0.4182117938 | U52: =((U50-U46)/((U50+U46)/2))/(($P50-$P46)/(($P50+$P46)/2)) -> -0.441367125
A55: \ | B55: `eReturns, Rates (5) | D55: = | E55: =AVERAGE(J46:J49) -> -0.1687930043 | F55: =IF(E55=ABS(J55),"=",IF(ABS(E55)>ABS(J55),">","<")) -> > | G55: `eReturns, Pref (6) | I55: = | J55: =AVERAGE(D52:H52) -> 0.09953647949 | K55: =E55/J55 -> -1.695790379 | N55: \ | O55: `eReturns, Rates (5) | Q55: = | R55: =AVERAGE(W46:W49) -> -0.1674932298 | S55: =IF(R55=ABS(W55),"=",IF(ABS(R55)>ABS(W55),">","<")) -> < | T55: `eReturns, Pref (6) | V55: = | W55: =AVERAGE(Q52:U52) -> -0.4113267623 | X55: =R55/W55 -> 0.4072023635 | Z55: =ABS(R55)-ABS(E55) -> -0.001299774467 | AA55: =ABS(W55)-ABS(J55) -> 0.3117902828
B58: [represents the average values, over the range examined above] | O58: [represents the average values, over the range examined above]
B59: [inequalities are based on the absolute values] | O59: [inequalities are based on the absolute values]
B62: Panel D: Arc Elasticity Estimates for LPs' After-Tax Returns | O62: Panel D: Arc Elasticity Estimates for GPs' After-Tax Returns
D63: =D24 -> Capital-Gains Tax Rate | J63: eReturns, Rates (7) | Q63: =Q24 -> Capital-Gains Tax Rate | W63: eReturns, Rates (7)
D64: ='Sensitivity Results'!S32 -> 0.15 | E64: ='Sensitivity Results'!T32 -> 0.2 | F64: ='Sensitivity Results'!U32 -> 0.238 | G64: ='Sensitivity Results'!V32 -> 0.3 | H64: ='Sensitivity Results'!W32 -> 0.4 | Q64: ='Sensitivity Results'!AR32 -> 0.15 | R64: ='Sensitivity Results'!AS32 -> 0.2 | S64: ='Sensitivity Results'!AT32 -> 0.238 | T64: ='Sensitivity Results'!AU32 -> 0.3 | U64: ='Sensitivity Results'!AV32 -> 0.4
B65: ='Base Case Assumptions'!A25 -> Passive-Loss Utilization Rate | C65: ='Sensitivity Results'!R33 -> 0 | D65: ='Sensitivity Results'!K33 -> 0.0903207882 | E65: ='Sensitivity Results'!L33 -> 0.08883084143 | F65: ='Sensitivity Results'!M33 -> 0.08768513532 | G65: ='Sensitivity Results'!N33 -> 0.08525528184 | H65: ='Sensitivity Results'!O33 -> 0.07742007686 | J65: =((H65-D65)/((H65+D65)/2))/((H$25-D$25)/((H$25+D$25)/2)) -> -0.1691988707 | O65: ='Base Case Assumptions'!A25 -> Passive-Loss Utilization Rate | P65: ='Sensitivity Results'!AQ33 -> 0 | Q65: ='Sensitivity Results'!AJ33 -> 0.1935891878 | R65: ='Sensitivity Results'!AK33 -> 0.1889758873 | S65: ='Sensitivity Results'!AL33 -> 0.1853532466 | T65: ='Sensitivity Results'!AM33 -> 0.1789278015 | U65: ='Sensitivity Results'!AN33 -> 0.1657281526 | W65: =((U65-Q65)/((U65+Q65)/2))/((U$25-Q$25)/((U$25+Q$25)/2)) -> -0.1705853591
C66: ='Sensitivity Results'!R34 -> 0.25 | D66: ='Sensitivity Results'!K34 -> 0.09082855205 | E66: ='Sensitivity Results'!L34 -> 0.08933335906 | F66: ='Sensitivity Results'!M34 -> 0.08818356829 | G66: ='Sensitivity Results'!N34 -> 0.08574490387 | H66: ='Sensitivity Results'!O34 -> 0.07787986146 | J66: =((H66-D66)/((H66+D66)/2))/((H$25-D$25)/((H$25+D$25)/2)) -> -0.1688541709 | P66: ='Sensitivity Results'!AQ34 -> 0.25 | Q66: ='Sensitivity Results'!AJ34 -> 0.1943302365 | R66: ='Sensitivity Results'!AK34 -> 0.1897105696 | S66: ='Sensitivity Results'!AL34 -> 0.1860827391 | T66: ='Sensitivity Results'!AM34 -> 0.1796476579 | U66: ='Sensitivity Results'!AN34 -> 0.1664263579 | W66: =((U66-Q66)/((U66+Q66)/2))/((U$25-Q$25)/((U$25+Q$25)/2)) -> -0.170166073
C67: ='Sensitivity Results'!R35 -> 0.5 | D67: ='Sensitivity Results'!K35 -> 0.09128470101 | E67: ='Sensitivity Results'!L35 -> 0.08978457631 | F67: ='Sensitivity Results'!M35 -> 0.08863095047 | G67: ='Sensitivity Results'!N35 -> 0.08618402742 | H67: ='Sensitivity Results'!O35 -> 0.07829115231 | J67: =((H67-D67)/((H67+D67)/2))/((H$25-D$25)/((H$25+D$25)/2)) -> -0.1685723916 | P67: ='Sensitivity Results'!AQ35 -> 0.5 | Q67: ='Sensitivity Results'!AJ35 -> 0.1950156526 | R67: ='Sensitivity Results'!AK35 -> 0.1903893331 | S67: ='Sensitivity Results'!AL35 -> 0.1867561053 | T67: ='Sensitivity Results'!AM35 -> 0.1803110606 | U67: ='Sensitivity Results'!AN35 -> 0.1670676207 | W67: =((U67-Q67)/((U67+Q67)/2))/((U$25-Q$25)/((U$25+Q$25)/2)) -> -0.1698108552
C68: ='Sensitivity Results'!R36 -> 0.75 | D68: ='Sensitivity Results'!K36 -> 0.09166752296 | E68: ='Sensitivity Results'!L36 -> 0.09016302042 | F68: ='Sensitivity Results'!M36 -> 0.08900599543 | G68: ='Sensitivity Results'!N36 -> 0.08655176758 | H68: ='Sensitivity Results'!O36 -> 0.07863442036 | J68: =((H68-D68)/((H68+D68)/2))/((H$25-D$25)/((H$25+D$25)/2)) -> -0.168364642 | P68: ='Sensitivity Results'!AQ36 -> 0.75 | Q68: ='Sensitivity Results'!AJ36 -> 0.1956135033 | R68: ='Sensitivity Results'!AK36 -> 0.1909804826 | S68: ='Sensitivity Results'!AL36 -> 0.1873418479 | T68: ='Sensitivity Results'!AM36 -> 0.1808868883 | U68: ='Sensitivity Results'!AN36 -> 0.1676216999 | W68: =((U68-Q68)/((U68+Q68)/2))/((U$25-Q$25)/((U$25+Q$25)/2)) -> -0.1695374428
C69: ='Sensitivity Results'!R37 -> 1 | D69: ='Sensitivity Results'!K37 -> 0.09195077003 | E69: ='Sensitivity Results'!L37 -> 0.0904428053 | F69: ='Sensitivity Results'!M37 -> 0.08928309697 | G69: ='Sensitivity Results'!N37 -> 0.08682311678 | H69: ='Sensitivity Results'!O37 -> 0.07888663422 | J69: =((H69-D69)/((H69+D69)/2))/((H$25-D$25)/((H$25+D$25)/2)) -> -0.1682365691 | P69: ='Sensitivity Results'!AQ37 -> 1 | Q69: ='Sensitivity Results'!AJ37 -> 0.1960783401 | R69: ='Sensitivity Results'!AK37 -> 0.1914391928 | S69: ='Sensitivity Results'!AL37 -> 0.1877956448 | T69: ='Sensitivity Results'!AM37 -> 0.1813317421 | U69: ='Sensitivity Results'!AN37 -> 0.168047218 | W69: =((U69-Q69)/((U69+Q69)/2))/((U$25-Q$25)/((U$25+Q$25)/2)) -> -0.1693604505
B71: eReturns, Utilization (8) | D71: =((D69-D65)/((D69+D65)/2))/(($P69-$P65)/(($P69+$P65)/2)) -> 0.008942601035 | E71: =((E69-E65)/((E69+E65)/2))/(($P69-$P65)/(($P69+$P65)/2)) -> 0.008991638739 | F71: =((F69-F65)/((F69+F65)/2))/(($P69-$P65)/(($P69+$P65)/2)) -> 0.009029652533 | G71: =((G69-G65)/((G69+G65)/2))/(($P69-$P65)/(($P69+$P65)/2)) -> 0.009111166547 | H71: =((H69-H65)/((H69+H65)/2))/(($P69-$P65)/(($P69+$P65)/2)) -> 0.009382561673 | O71: eReturns, Utilization (8) | Q71: =((Q69-Q65)/((Q69+Q65)/2))/(($P69-$P65)/(($P69+$P65)/2)) -> 0.006387887319 | R71: =((R69-R65)/((R69+R65)/2))/(($P69-$P65)/(($P69+$P65)/2)) -> 0.006475309744 | S71: =((S69-S65)/((S69+S65)/2))/(($P69-$P65)/(($P69+$P65)/2)) -> 0.006545371677 | T71: =((T69-T65)/((T69+T65)/2))/(($P69-$P65)/(($P69+$P65)/2)) -> 0.006672802139 | U71: =((U69-U65)/((U69+U65)/2))/(($P69-$P65)/(($P69+$P65)/2)) -> 0.006947982484
A75: \ | B75: `eReturns, Rates (7) | D75: = | E75: =AVERAGE(J65:J68) -> -0.1687475188 | F75: =IF(E75=ABS(J75),"=",IF(ABS(E75)>ABS(J75),">","<")) -> > | G75: `eReturns, Utilization (8) | I75: = | J75: =AVERAGE(D71:H72) -> 0.009091524105 | K75: =E75/J75 -> -18.56097139 | N75: \ | O75: `eReturns, Rates (7) | Q75: = | R75: =AVERAGE(W65:W68) -> -0.1700249325 | S75: =IF(R75=ABS(W75),"=",IF(ABS(R75)>ABS(W75),">","<")) -> > | T75: `eReturns, Utilization (8) | V75: = | W75: =AVERAGE(Q71:U72) -> 0.006605870673 | X75: =R75/W75 -> -25.73845916 | Z75: =ABS(R75)-ABS(E75) -> 0.001277413723 | AA75: =ABS(W75)-ABS(J75) -> -0.002485653433
B78: [represents the average values, over the range examined above] | O78: [represents the average values, over the range examined above]
B79: [inequalities are based on the absolute values] | O79: [inequalities are based on the absolute values]
F82: Notes:
F84: (1) | G84: For a given LTV ratio, how does the investor's after-tax returns vary with changing capital-gains tax rates?
F86: (2) | G86: For a given capital-gains tax rate, how does the investor's after-tax returns vary with changing LTV ratios?
F88: (3) | G88: For a given unlevered real estate return, how does the investor's after-tax returns vary with changing capital-gains tax rates?
F90: (4) | G90: For a given capital-gains tax rate, how does the investor's after-tax returns vary with changing unlevered real estate returns?
F92: (5) | G92: For a given preferred return, how does the investor's after-tax returns vary with changing capital-gains tax rates?
F94: (6) | G94: Given a fixed capital-gains tax rate, how does the investor's after-tax returns vary with changing preferred returns?
F96: (7) | G96: For a given passive-loss utilization rate, how does the investor's after-tax returns vary with changing capital-gains tax rates?
F98: (8) | G98: Given a fixed capital-gains tax rate, how does the investor's after-tax returns vary with changing passive-loss utilization rates?

Sheet Exhibit 10_Elasticties Summary
A1: Exhibit 10: Summary of Average (Modified) Arc Elasticities, Based on Investor's After-Tax Returns | V1: LPs v. GPs
W2: Capital- | X2: Other
A3: Based Upon After-Tax Returns | V3: Preserves | W3: Gains | X3: Key
A4: For Limited Partners | L4: For General Partners | V4: Sign? | W4: Rate | X4: Assumptions
A5: Panel A:
A6: `eReturns, Rates (1) | C6: = | D6: ='Elasticity_Post-Tax Returns'!E16 -> -0.1721869201 | E6: ='Elasticity_Post-Tax Returns'!F16 -> < | F6: `eReturns, LTV (2) | H6: = | I6: ='Elasticity_Post-Tax Returns'!J16 -> 0.4442899852 | L6: `eReturns, Rates (1) | N6: = | O6: ='Elasticity_Post-Tax Returns'!R16 -> -0.1743433728 | P6: ='Elasticity_Post-Tax Returns'!S16 -> < | Q6: `eReturns, LTV (2) | S6: = | T6: ='Elasticity_Post-Tax Returns'!W16 -> 0.5522583439 | V6: =IF(E6=P6,"Yes","No") -> Yes | W6: =ABS(D6)-ABS(O6) -> -0.002156452724 | X6: =ABS(I6)-ABS(T6) -> -0.1079683587
A10: Panel B:
A11: `eReturns, Rates (3) | C11: = | D11: ='Elasticity_Post-Tax Returns'!E37 -> -0.1881363713 | E11: ='Elasticity_Post-Tax Returns'!F37 -> < | F11: `eReturns, RE Return (4) | H11: = | I11: ='Elasticity_Post-Tax Returns'!J37 -> 1.551942901 | L11: `eReturns, Rates (3) | N11: = | O11: ='Elasticity_Post-Tax Returns'!R37 -> -0.1864100665 | P11: ='Elasticity_Post-Tax Returns'!S37 -> < | Q11: `eReturns, RE Return (4) | S11: = | T11: ='Elasticity_Post-Tax Returns'!W37 -> 2.286175784 | V11: =IF(E11=P11,"Yes","No") -> Yes | W11: =ABS(D11)-ABS(O11) -> 0.001726304762 | X11: =ABS(I11)-ABS(T11) -> -0.7342328829
A15: Panel C:
A16: `eReturns, Rates (5) | C16: = | D16: ='Elasticity_Post-Tax Returns'!E58 -> -0.1687930043 | E16: ='Elasticity_Post-Tax Returns'!F58 -> > | F16: `eReturns, Pref (6) | H16: = | I16: ='Elasticity_Post-Tax Returns'!J58 -> 0.09953647949 | L16: `eReturns, Rates (5) | N16: = | O16: ='Elasticity_Post-Tax Returns'!R58 -> -0.1674932298 | P16: ='Elasticity_Post-Tax Returns'!S58 -> < | Q16: `eReturns, Pref (6) | S16: = | T16: ='Elasticity_Post-Tax Returns'!W58 -> -0.4113267623 | V16: =IF(E16=P16,"Yes","No") -> No | W16: =ABS(D16)-ABS(O16) -> 0.001299774467 | X16: =ABS(I16)-ABS(T16) -> -0.3117902828
A20: Panel D:
A21: `eReturns, Rates (7) | C21: = | D21: ='Elasticity_Post-Tax Returns'!E79 -> -0.1687475188 | E21: ='Elasticity_Post-Tax Returns'!F79 -> > | F21: `eReturns, Utilization (8) | H21: = | I21: ='Elasticity_Post-Tax Returns'!J79 -> 0.009091524105 | L21: `eReturns, Rates (7) | N21: = | O21: ='Elasticity_Post-Tax Returns'!R79 -> -0.1700249325 | P21: ='Elasticity_Post-Tax Returns'!S79 -> > | Q21: `eReturns, Utilization (8) | S21: = | T21: ='Elasticity_Post-Tax Returns'!W79 -> 0.006605870673 | V21: =IF(E21=P21,"Yes","No") -> Yes | W21: =ABS(D21)-ABS(O21) -> -0.001277413723 | X21: =ABS(I21)-ABS(T21) -> 0.002485653433
W23: =AVERAGE(ABS(W6),ABS(W11),ABS(W16),ABS(W21)) -> 0.001614986419 | X23: =AVERAGE(ABS(X6),ABS(X11),ABS(X16),ABS(X21)) -> 0.2891192945
A24: Based Upon Before- Minus After-Tax Returns
A25: For Limited Partners | L25: For General Partners
A26: `EDReturns, Rates (1) | C26: = | D26: ='Elasticity_Pre- v. Post-Tax Rt`'!E16 -> 0.6555731604 | E26: ='Elasticity_Pre- v. Post-Tax Rt`'!F16 -> > | F26: `EDReturns, LTV (2) | H26: = | I26: ='Elasticity_Pre- v. Post-Tax Rt`'!J16 -> -0.4297454351 | L26: `EDReturns, Rates (1) | N26: = | O26: ='Elasticity_Pre- v. Post-Tax Rt`'!R16 -> 0.8866422766 | P26: ='Elasticity_Pre- v. Post-Tax Rt`'!S16 -> > | Q26: `EDReturns, LTV (2) | S26: = | T26: ='Elasticity_Pre- v. Post-Tax Rt`'!W16 -> -0.6116886707
V27: =IF(E26=P26,"Yes","No") -> Yes
A28: `EDReturns, Rates (3) | C28: = | D28: ='Elasticity_Pre- v. Post-Tax Rt`'!E37 -> 0.6310308261 | E28: ='Elasticity_Pre- v. Post-Tax Rt`'!F37 -> < | F28: `EDReturns, RE Return (4) | H28: = | I28: ='Elasticity_Pre- v. Post-Tax Rt`'!J37 -> 1.601168523 | L28: `EDReturns, Rates (3) | N28: = | O28: ='Elasticity_Pre- v. Post-Tax Rt`'!R37 -> 0.8312695147 | P28: ='Elasticity_Pre- v. Post-Tax Rt`'!S37 -> < | Q28: `EDReturns, RE Return (4) | S28: = | T28: ='Elasticity_Pre- v. Post-Tax Rt`'!W37 -> 1.907046581
V29: =IF(E28=P28,"Yes","No") -> Yes
A30: `EDReturns, Rates (5) | C30: = | D30: ='Elasticity_Pre- v. Post-Tax Rt`'!E58 -> 0.5783481488 | E30: ='Elasticity_Pre- v. Post-Tax Rt`'!F58 -> > | F30: `EDReturns, Pref (6) | H30: = | I30: ='Elasticity_Pre- v. Post-Tax Rt`'!J58 -> 0.05769533183 | L30: `EDReturns, Rates (5) | N30: = | O30: ='Elasticity_Pre- v. Post-Tax Rt`'!R58 -> 0.9148792681 | P30: ='Elasticity_Pre- v. Post-Tax Rt`'!S58 -> > | Q30: `EDReturns, Pref (6) | S30: = | T30: ='Elasticity_Pre- v. Post-Tax Rt`'!W58 -> -0.2933533616
V31: =IF(E30=P30,"Yes","No") -> Yes
A32: `EDReturns, Rates (7) | C32: = | D32: ='Elasticity_Pre- v. Post-Tax Rt`'!E79 -> 0.5716575859 | E32: ='Elasticity_Pre- v. Post-Tax Rt`'!F79 -> > | F32: `EDReturns, Utilization (8) | H32: = | I32: ='Elasticity_Pre- v. Post-Tax Rt`'!J79 -> -0.03594390397 | L32: `EDReturns, Rates (7) | N32: = | O32: ='Elasticity_Pre- v. Post-Tax Rt`'!R79 -> 0.9149048028 | P32: ='Elasticity_Pre- v. Post-Tax Rt`'!S79 -> > | Q32: `EDReturns, Utilization (8) | S32: = | T32: ='Elasticity_Pre- v. Post-Tax Rt`'!W79 -> -0.04380315815
V33: =IF(E32=P32,"Yes","No") -> Yes
A35: Inequalities are based on the absolute value of the estimated elasticity coefficients.
A37: Additional Notes:
A39: (1) | B39: For a given LTV ratio, how does the investor's after-tax returns vary with changing capital-gains tax rates?
A41: (2) | B41: For a given capital-gains tax rate, how does the investor's after-tax returns vary with changing LTV ratios?
A43: (3) | B43: For a given unlevered real estate return, how does the investor's after-tax returns vary with changing capital-gains tax rates?
A45: (4) | B45: For a given capital-gains tax rate, how does the investor's after-tax returns vary with changing unlevered real estate returns?
A47: (5) | B47: For a given preferred return, how does the investor's after-tax returns vary with changing capital-gains tax rates?
A49: (6) | B49: Given a fixed capital-gains tax rate, how does the investor's after-tax returns vary with changing preferred returns?
A51: (7) | B51: For a given passive-loss utilization rate, how does the investor's after-tax returns vary with changing capital-gains tax rates?
A53: (8) | B53: Given a fixed capital-gains tax rate, how does the investor's after-tax returns vary with changing passive-loss utilization rates?
D55: =AVERAGE(D6:D22) -> -0.1744659536 | I55: =AVERAGE(I6:I22) -> 0.5262152226 | O55: =AVERAGE(O6:O22) -> -0.1745679004 | T55: =AVERAGE(T6:T22) -> 0.6084283092
D56: =STDEV(D6:D22) -> 0.009254857525 | I56: =STDEV(I6:I22) -> 0.7090605722 | O56: =STDEV(O6:O22) -> 0.008386036642 | T56: =STDEV(T6:T22) -> 1.186041358
D57: =D56/D55 -> -0.05304678268 | I57: =I56/I55 -> 1.347472558 | O57: =O56/O55 -> -0.04803882399 | T57: =T56/T55 -> 1.949352685

Sheet Exhibit 11(OI)
A2: Exhibit 11: Base-Case Assumptions and Sensitivity Scenarios:
F4: Scenario #1 | G4: Scenario #2 | H4: Scenario #3 | I4: Scenario #4 | J4: Scenario #5
H5: (Base Case)
A6: Tax Rates:
B7: Ordinary Income | F7: ='Base Case Assumptions'!F7 -> 0.4 | G7: ='Base Case Assumptions'!G7 -> 0.4 | H7: ='Base Case Assumptions'!H7 -> 0.4 | I7: ='Base Case Assumptions'!I7 -> 0.4 | J7: ='Base Case Assumptions'!J7 -> 0.4
B8: Capital Gains | F8: ='Base Case Assumptions'!H8 -> 0.238 | G8: ='Base Case Assumptions'!H8 -> 0.238 | H8: ='Base Case Assumptions'!H8 -> 0.238 | I8: ='Base Case Assumptions'!H8 -> 0.238 | J8: ='Base Case Assumptions'!H8 -> 0.238
C9: Differential | F9: =F7-F8 -> 0.162 | G9: =G7-G8 -> 0.162 | H9: =H7-H8 -> 0.162 | I9: =I7-I8 -> 0.162 | J9: =J7-J8 -> 0.162
A11: Leverage Ratio | F11: ='Base Case Assumptions'!F11 -> 0.25 | G11: ='Base Case Assumptions'!G11 -> 0.5 | H11: ='Base Case Assumptions'!H11 -> 0.6 | I11: ='Base Case Assumptions'!I11 -> 0.7 | J11: ='Base Case Assumptions'!J11 -> 0.8
A13: Real Estate Return:
B14: Initial Cap Rate | F14: ='Base Case Assumptions'!F14 -> 0.065 | G14: ='Base Case Assumptions'!G14 -> 0.07 | H14: ='Base Case Assumptions'!H14 -> 0.08 | I14: ='Base Case Assumptions'!I14 -> 0.085 | J14: ='Base Case Assumptions'!J14 -> 0.09
B15: NOI Growth Rate | F15: ='Base Case Assumptions'!F15 -> 0.01 | G15: ='Base Case Assumptions'!G15 -> 0.02 | H15: ='Base Case Assumptions'!H15 -> 0.03 | I15: ='Base Case Assumptions'!I15 -> 0.04 | J15: ='Base Case Assumptions'!J15 -> 0.05
B16: Cap Ex (as a percentage of NOI) | F16: ='Base Case Assumptions'!F16 -> 0.2 | G16: ='Base Case Assumptions'!G16 -> 0.2 | H16: ='Base Case Assumptions'!H16 -> 0.2 | I16: ='Base Case Assumptions'!I16 -> 0.2 | J16: ='Base Case Assumptions'!J16 -> 0.2
B17: Ending Cap Rate | F17: ='Base Case Assumptions'!F17 -> 0.065 | G17: ='Base Case Assumptions'!G17 -> 0.07 | H17: ='Base Case Assumptions'!H17 -> 0.08 | I17: ='Base Case Assumptions'!I17 -> 0.085 | J17: ='Base Case Assumptions'!J17 -> 0.09
C18: ≈ Unlevered RE Return † | F18: =F14*(1-F16)+F15+(F14/F17)^(1/F27)-1-A.2!$M9/F27 -> 0.062 | G18: =G14*(1-G16)+G15+(G14/G17)^(1/G27)-1-A.2!$M9/G27 -> 0.076 | H18: =H14*(1-H16)+H15+(H14/H17)^(1/H27)-1-A.2!$M9/H27 -> 0.094 | I18: =I14*(1-I16)+I15+(I14/I17)^(1/I27)-1-A.2!$M9/I27 -> 0.108 | J18: =J14*(1-J16)+J15+(J14/J17)^(1/J27)-1-A.2!$M9/J27 -> 0.122
A20: Mortgage Interest Rate †† | F20: ='Base Case Assumptions'!F20 -> 0.06 | G20: ='Base Case Assumptions'!G20 -> 0.0625 | H20: ='Base Case Assumptions'!H20 -> 0.065 | I20: ='Base Case Assumptions'!I20 -> 0.07 | J20: ='Base Case Assumptions'!J20 -> 0.0775
C21: ≈ Levered RE Return ††† | F21: ='Base Case Assumptions'!F21 -> 0.06266666667 | G21: ='Base Case Assumptions'!G21 -> 0.0895 | H21: ='Base Case Assumptions'!H21 -> 0.1375 | I21: ='Base Case Assumptions'!I21 -> 0.1966666667 | J21: ='Base Case Assumptions'!J21 -> 0.3
A23: Preferred Return | F23: ='Base Case Assumptions'!F23 -> 0.06 | G23: ='Base Case Assumptions'!G23 -> 0.065 | H23: ='Base Case Assumptions'!H23 -> 0.07 | I23: ='Base Case Assumptions'!I23 -> 0.075 | J23: ='Base Case Assumptions'!J23 -> 0.08
A25: Passive-Loss Utilization Rate | F25: ='Base Case Assumptions'!F25 -> 0 | G25: ='Base Case Assumptions'!G25 -> 0.25 | H25: ='Base Case Assumptions'!H25 -> 0.5 | I25: ='Base Case Assumptions'!I25 -> 0.75 | J25: ='Base Case Assumptions'!J25 -> 1
A27: Holding Period (Years) | F27: ='Base Case Assumptions'!F27 -> 5 | G27: ='Base Case Assumptions'!G27 -> 8 | H27: ='Base Case Assumptions'!H27 -> 10 | I27: ='Base Case Assumptions'!I27 -> 12 | J27: ='Base Case Assumptions'!J27 -> 15
A30: GP's "Pure" Carry Tax Rate †††† | F30: 0.238 | G30: 0.25 | H30: 0.3 | I30: 0.35 | J30: 0.4
A33: Notes:
A34: † | B34: Before GP loads/fees and other costs.
A36: †† | B36: Marginal cost of mortgage debt: | G36: ='Base Case Assumptions'!G36 -> 0.065 | H36: ='Base Case Assumptions'!H36 -> 0.0775 | I36: ='Base Case Assumptions'!I36 -> 0.1 | J36: ='Base Case Assumptions'!J36 -> 0.13
A38: ††† | B38: Based upon the initial leverage ratio.
A40: †††† | B40: Assuming that GP's "pure" carry is taxed seperately and at a rate above the current capital-gains rate.

Sheet Exhibit 12(OI)
B1: Exhibit 12: The Effective Tax Rate of the General Partner's After-Tax Return, Given Various Sensititivies | Q1: Exhibit 12 Supplement #1: The Effective Tax Rate in Comparison to the Statutory Ordinary-Income Rate | AF1: Exhibit 12 Supplement #2: The Effective Tax Rate in Comparison to the Current Capital-Gains Environment | AU1: Exhibit 12 Supplement #3: The Effective Tax Rate in Comparison to the Current Capital-Gains Environment | Controlling for Rate
K3: Differences in GP's | N3: Differences in GP's | Z3: Differences in GP's | AC3: Summary Statitics of | AO3: Differences in GP's | AR3: Summary Statitics of | BD3: Differences in GP's | BG3: Summary Statitics of
K4: After-Tax Returns | N4: After-Tax Returns | Z4: Effective Tax Rates | AC4: Effective Tax Rates | AO4: Effective Tax Rates | AR4: Effective Tax Rates | BD4: Effective Tax Rates | BG4: Effective Tax Rates
B5: Panel A: The Effective Tax Rate for GPs' After-Tax Returns | K5: Given an Increase in | N5: Across the | Q5: =B5 -> Panel A: The Effective Tax Rate for GPs' After-Tax Returns | Z5: Given an Increase in | AC5: Acorss the | AF5: =Q5 -> Panel A: The Effective Tax Rate for GPs' After-Tax Returns | AO5: Given a Change to | AR5: Across the | AU5: =AF5 -> Panel A: The Effective Tax Rate for GPs' After-Tax Returns | BD5: Given a Change to | BG5: Acorss the
D6: Pure Carry Taxed at Ordinary-Income Rate | K6: the Capital-Gains Rate | N6: Sensitivity Matrix | S6: =D6 -> Pure Carry Taxed at Ordinary-Income Rate | Z6: the Capital-Gains Rate | AC6: Sensitivity Matrix | AH6: =S6 -> Pure Carry Taxed at Ordinary-Income Rate | AO6: Ordinary Income | AR6: Sensitivity Matrix | AW6: =AH6 -> Pure Carry Taxed at Ordinary-Income Rate | BD6: Ordinary Income | BG6: Sensitivity Matrix
D7: ='Sensitivity Results(OI)'!C5 -> 0.238 | E7: ='Sensitivity Results(OI)'!D5 -> 0.25 | F7: ='Sensitivity Results(OI)'!E5 -> 0.3 | G7: ='Sensitivity Results(OI)'!F5 -> 0.35 | H7: ='Sensitivity Results(OI)'!G5 -> 0.4 | S7: =D7 -> 0.238 | T7: =E7 -> 0.25 | U7: =F7 -> 0.3 | V7: =G7 -> 0.35 | W7: =H7 -> 0.4 | AH7: =S7 -> 0.238 | AI7: =T7 -> 0.25 | AJ7: =U7 -> 0.3 | AK7: =V7 -> 0.35 | AL7: =W7 -> 0.4 | AW7: =AH7 -> 0.238 | AX7: =AI7 -> 0.25 | AY7: =AJ7 -> 0.3 | AZ7: =AK7 -> 0.35 | BA7: =AL7 -> 0.4
B8: ='Sensitivity Results(OI)'!AP6 -> Leverage Ratio | C8: ='Sensitivity Results(OI)'!AQ6 -> 0.25 | D8: =1-'Sensitivity Results(OI)'!AJ6/'Sensitivity Results(OI)'!AB6 -> 0.1785196153 | E8: =1-'Sensitivity Results(OI)'!AK6/'Sensitivity Results(OI)'!AC6 -> 0.183217813 | F8: =1-'Sensitivity Results(OI)'!AL6/'Sensitivity Results(OI)'!AD6 -> 0.2031175931 | G8: =1-'Sensitivity Results(OI)'!AM6/'Sensitivity Results(OI)'!AE6 -> 0.223562762 | H8: =1-'Sensitivity Results(OI)'!AN6/'Sensitivity Results(OI)'!AF6 -> 0.2445862657 | K8: =H8-D8 -> 0.06606665043 | Q8: =B8 -> Leverage Ratio | R8: =C8 -> 0.25 | S8: =D$7-D8 -> 0.05948038475 | T8: 0.066782187 | U8: 0.09688240689 | V8: 0.126437238 | W8: 0.1554137343 | Z8: =W8-S8 -> 0.09593334957 | AF8: =Q8 -> Leverage Ratio | AG8: =R8 -> 0.25 | AH8: =D8-'Exhibits 6 & 7'!AL8 -> 0.03942586655 | AI8: =E8-'Exhibits 6 & 7'!AM8 -> 0.02197718124 | AJ8: =F8-'Exhibits 6 & 7'!AN8 -> 0.02459797786 | AK8: =G8-'Exhibits 6 & 7'!AO8 -> 0.01456334897 | AL8: =H8-'Exhibits 6 & 7'!AP8 -> -0.0265567354 | AO8: =AL8-AH8 -> -0.06598260194 | AU8: =AF8 -> Leverage Ratio | AV8: =AG8 -> 0.25 | AY8: =F8-'Exhibits 6 & 7'!AO8 -> -0.005881819876 | BA8: =H8-'Exhibits 6 & 7'!AP8 -> -0.0265567354 | BD8: =BA8-AY8 -> -0.02067491552
C9: ='Sensitivity Results(OI)'!AQ7 -> 0.5 | D9: =1-'Sensitivity Results(OI)'!AJ7/'Sensitivity Results(OI)'!AB7 -> 0.1445590248 | E9: =1-'Sensitivity Results(OI)'!AK7/'Sensitivity Results(OI)'!AC7 -> 0.1493994625 | F9: =1-'Sensitivity Results(OI)'!AL7/'Sensitivity Results(OI)'!AD7 -> 0.1699816981 | G9: =1-'Sensitivity Results(OI)'!AM7/'Sensitivity Results(OI)'!AE7 -> 0.1912676939 | H9: =1-'Sensitivity Results(OI)'!AN7/'Sensitivity Results(OI)'!AF7 -> 0.2133108479 | K9: =H9-D9 -> 0.06875182304 | L9: =AVERAGE(K8:K12) -> 0.06828969368 | M9: =`x | N9: =AVERAGE(D8:H12) -> 0.1528871587 | O9: =`x | R9: =C9 -> 0.5 | S9: 0.09344097519 | T9: 0.1006005375 | U9: 0.1300183019 | V9: 0.1587323061 | W9: 0.1866891521 | Z9: =W9-S9 -> 0.09324817696 | AA9: =AVERAGE(Z8:Z12) -> 0.09371030632 | AB9: =`x | AC9: =AVERAGE(S8:W12) -> 0.1547128413 | AD9: =`x | AG9: =R9 -> 0.5 | AH9: =D9-'Exhibits 6 & 7'!AL9 -> 0.03878518034 | AI9: =E9-'Exhibits 6 & 7'!AM9 -> 0.02188301279 | AJ9: =F9-'Exhibits 6 & 7'!AN9 -> 0.0254226733 | AK9: =G9-'Exhibits 6 & 7'!AO9 -> 0.01654328354 | AL9: =H9-'Exhibits 6 & 7'!AP9 -> -0.02313250393 | AO9: =AL9-AH9 -> -0.06191768427 | AP9: =AVERAGE(AO8:AO12) -> -0.05794261325 | AQ9: =`x | AR9: =AVERAGE(AH8:AL12) -> 0.01607051544 | AS9: =`x | AV9: =AG9 -> 0.5 | AY9: =F9-'Exhibits 6 & 7'!AO9 -> -0.004742712275 | BA9: =H9-'Exhibits 6 & 7'!AP9 -> -0.02313250393 | BD9: =BA9-AY9 -> -0.01838979166 | BE9: =AVERAGE(BD8:BD12) -> -0.01682283882 | BF9: =`x | BG9: =AVERAGE(AW8:BA12) -> -0.01224330681 | BH9: =`x
C10: ='Sensitivity Results(OI)'!AQ8 -> 0.6 | D10: =1-'Sensitivity Results(OI)'!AJ8/'Sensitivity Results(OI)'!AB8 -> 0.1283962196 | E10: =1-'Sensitivity Results(OI)'!AK8/'Sensitivity Results(OI)'!AC8 -> 0.1332455805 | F10: =1-'Sensitivity Results(OI)'!AL8/'Sensitivity Results(OI)'!AD8 -> 0.1538959605 | G10: =1-'Sensitivity Results(OI)'!AM8/'Sensitivity Results(OI)'!AE8 -> 0.1753057038 | H10: =1-'Sensitivity Results(OI)'!AN8/'Sensitivity Results(OI)'!AF8 -> 0.1975369193 | K10: =H10-D10 -> 0.06914069969 | L10: =STDEV(K8:K12) -> 0.001542798578 | M10: = s | N10: =STDEV(D8:H12) -> 0.0482573101 | O10: = s | R10: =C10 -> 0.6 | S10: 0.1096037804 | T10: 0.1167544195 | U10: 0.1461040395 | V10: 0.1746942962 | W10: 0.2024630807 | Z10: =W10-S10 -> 0.09285930031 | AA10: =STDEV(Z8:Z12) -> 0.001542798578 | AB10: = s | AC10: =STDEV(S8:W12) -> 0.05423278112 | AD10: = s | AG10: =R10 -> 0.6 | AH10: =D10-'Exhibits 6 & 7'!AL10 -> 0.03854788384 | AI10: =E10-'Exhibits 6 & 7'!AM10 -> 0.02180588854 | AJ10: =F10-'Exhibits 6 & 7'!AN10 -> 0.02549974093 | AK10: =G10-'Exhibits 6 & 7'!AO10 -> 0.01683001067 | AL10: =H10-'Exhibits 6 & 7'!AP10 -> -0.02274683258 | AO10: =AL10-AH10 -> -0.06129471643 | AP10: =STDEV(AO8:AO12) -> 0.01232031078 | AQ10: = s | AR10: =STDEV(AH8:AL12) -> 0.02035093105 | AS10: = s | AV10: =AG10 -> 0.6 | AY10: =F10-'Exhibits 6 & 7'!AO10 -> -0.004579732642 | BA10: =H10-'Exhibits 6 & 7'!AP10 -> -0.02274683258 | BD10: =BA10-AY10 -> -0.01816709994 | BE10: =STDEV(BD8:BD12) -> 0.005441229758 | BF10: = s | BG10: =STDEV(AW8:BA12) -> 0.01063258896 | BH10: = s
C11: ='Sensitivity Results(OI)'!AQ9 -> 0.7 | D11: =1-'Sensitivity Results(OI)'!AJ9/'Sensitivity Results(OI)'!AB9 -> 0.1100904632 | E11: =1-'Sensitivity Results(OI)'!AK9/'Sensitivity Results(OI)'!AC9 -> 0.1149865295 | F11: =1-'Sensitivity Results(OI)'!AL9/'Sensitivity Results(OI)'!AD9 -> 0.135859676 | G11: =1-'Sensitivity Results(OI)'!AM9/'Sensitivity Results(OI)'!AE9 -> 0.1575426591 | H11: =1-'Sensitivity Results(OI)'!AN9/'Sensitivity Results(OI)'!AF9 -> 0.1801053958 | K11: =H11-D11 -> 0.07001493255 | L11: =L10/L9 -> 0.02259196805 | M11: = s /`x | N11: =N10/N9 -> 0.3156400479 | O11: = s /`x | R11: =C11 -> 0.7 | S11: 0.1279095368 | T11: 0.1350134705 | U11: 0.164140324 | V11: 0.1924573409 | W11: 0.2198946042 | Z11: =W11-S11 -> 0.09198506745 | AA11: =AA10/AA9 -> 0.01646348879 | AB11: = s /`x | AC11: =AC10/AC9 -> 0.3505383307 | AD11: = s /`x | AG11: =R11 -> 0.7 | AH11: =D11-'Exhibits 6 & 7'!AL11 -> 0.03953884275 | AI11: =E11-'Exhibits 6 & 7'!AM11 -> 0.02231032146 | AJ11: =F11-'Exhibits 6 & 7'!AN11 -> 0.02576921281 | AK11: =G11-'Exhibits 6 & 7'!AO11 -> 0.01649065882 | AL11: =H11-'Exhibits 6 & 7'!AP11 -> -0.0248163974 | AO11: =AL11-AH11 -> -0.06435524015 | AP11: =AP10/AP9 -> -0.2126295327 | AQ11: = s /`x | AR11: =AR10/AR9 -> 1.266352105 | AS11: = s /`x | AV11: =AG11 -> 0.7 | AY11: =F11-'Exhibits 6 & 7'!AO11 -> -0.005192324292 | BA11: =H11-'Exhibits 6 & 7'!AP11 -> -0.0248163974 | BD11: =BA11-AY11 -> -0.01962407311 | BE11: =BE10/BE9 -> -0.3234430179 | BF11: = s /`x | BG11: =BG10/BG9 -> -0.8684409472 | BH11: = s /`x
C12: ='Sensitivity Results(OI)'!AQ10 -> 0.8 | D12: =1-'Sensitivity Results(OI)'!AJ10/'Sensitivity Results(OI)'!AB10 -> 0.05818830362 | E12: =1-'Sensitivity Results(OI)'!AK10/'Sensitivity Results(OI)'!AC10 -> 0.06290572301 | F12: =1-'Sensitivity Results(OI)'!AL10/'Sensitivity Results(OI)'!AD10 -> 0.08301896834 | G12: =1-'Sensitivity Results(OI)'!AM10/'Sensitivity Results(OI)'!AE10 -> 0.1039154231 | H12: =1-'Sensitivity Results(OI)'!AN10/'Sensitivity Results(OI)'!AF10 -> 0.1256626663 | K12: =H12-D12 -> 0.06747436271 | R12: =C12 -> 0.8 | S12: 0.1798116964 | T12: 0.187094277 | U12: 0.2169810317 | V12: 0.2460845769 | W12: 0.2743373337 | Z12: =W12-S12 -> 0.09452563729 | AG12: =R12 -> 0.8 | AH12: =D12-'Exhibits 6 & 7'!AL12 -> 0.03014166169 | AI12: =E12-'Exhibits 6 & 7'!AM12 -> 0.01793949935 | AJ12: =F12-'Exhibits 6 & 7'!AN12 -> 0.02483066472 | AK12: =G12-'Exhibits 6 & 7'!AO12 -> 0.02213360687 | AL12: =H12-'Exhibits 6 & 7'!AP12 -> -0.006021161769 | AO12: =AL12-AH12 -> -0.03616282346 | AV12: =AG12 -> 0.8 | AY12: =F12-'Exhibits 6 & 7'!AO12 -> 0.001237152103 | BA12: =H12-'Exhibits 6 & 7'!AP12 -> -0.006021161769 | BD12: =BA12-AY12 -> -0.007258313871
B14: Panel B: The Effective Tax Rate for GPs' After-Tax Returns | Q14: =B14 -> Panel B: The Effective Tax Rate for GPs' After-Tax Returns | AF14: =Q14 -> Panel B: The Effective Tax Rate for GPs' After-Tax Returns | AU14: =AF14 -> Panel B: The Effective Tax Rate for GPs' After-Tax Returns
D15: =D6 -> Pure Carry Taxed at Ordinary-Income Rate | S15: =D15 -> Pure Carry Taxed at Ordinary-Income Rate | AH15: =S15 -> Pure Carry Taxed at Ordinary-Income Rate | AW15: =AH15 -> Pure Carry Taxed at Ordinary-Income Rate
D16: =D7 -> 0.238 | E16: =E7 -> 0.25 | F16: =F7 -> 0.3 | G16: =G7 -> 0.35 | H16: =H7 -> 0.4 | S16: =D16 -> 0.238 | T16: =E16 -> 0.25 | U16: =F16 -> 0.3 | V16: =G16 -> 0.35 | W16: =H16 -> 0.4 | AH16: =S16 -> 0.238 | AI16: =T16 -> 0.25 | AJ16: =U16 -> 0.3 | AK16: =V16 -> 0.35 | AL16: =W16 -> 0.4 | AW16: =AH16 -> 0.238 | AX16: =AI16 -> 0.25 | AY16: =AJ16 -> 0.3 | AZ16: =AK16 -> 0.35 | BA16: =AL16 -> 0.4
B17: ='Sensitivity Results(OI)'!A15 -> Unlevered RE Return | C17: ='Sensitivity Results(OI)'!AQ15 -> 0.062 | D17: =1-'Sensitivity Results(OI)'!AJ15/'Sensitivity Results(OI)'!AB15 -> 0.1763445006 | E17: =1-'Sensitivity Results(OI)'!AK15/'Sensitivity Results(OI)'!AC15 -> 0.1763445006 | F17: =1-'Sensitivity Results(OI)'!AL15/'Sensitivity Results(OI)'!AD15 -> 0.1763445006 | G17: =1-'Sensitivity Results(OI)'!AM15/'Sensitivity Results(OI)'!AE15 -> 0.1763445006 | H17: =1-'Sensitivity Results(OI)'!AN15/'Sensitivity Results(OI)'!AF15 -> 0.1763445006 | K17: =H17-D17 -> 0 | Q17: =B17 -> Unlevered RE Return | R17: =C17 -> 0.062 | S17: =D$7-D17 -> 0.06165549945 | T17: 0.07365549945 | U17: 0.1236554994 | V17: 0.1736554994 | W17: 0.2236554994 | Z17: =W17-S17 -> 0.162 | AF17: =Q17 -> Unlevered RE Return | AG17: =R17 -> 0.062 | AH17: =D17-'Exhibits 6 & 7'!AL17 -> 0.005954851996 | AI17: =E17-'Exhibits 6 & 7'!AM17 -> 0.002573376539 | AJ17: =F17-'Exhibits 6 & 7'!AN17 -> 0 | AK17: =G17-'Exhibits 6 & 7'!AO17 -> -0.01782303509 | AL17: =H17-'Exhibits 6 & 7'!AP17 -> -0.1419079133 | AO17: =AL17-AH17 -> -0.1478627653 | AU17: =AF17 -> Unlevered RE Return | AV17: =AG17 -> 0.062 | AY17: =F17-'Exhibits 6 & 7'!AO17 -> -0.01782303509 | BA17: =H17-'Exhibits 6 & 7'!AP17 -> -0.1419079133 | BD17: =BA17-AY17 -> -0.1240848782
C18: ='Sensitivity Results(OI)'!AQ16 -> 0.076 | D18: =1-'Sensitivity Results(OI)'!AJ16/'Sensitivity Results(OI)'!AB16 -> 0.150085992 | E18: =1-'Sensitivity Results(OI)'!AK16/'Sensitivity Results(OI)'!AC16 -> 0.1539833342 | F18: =1-'Sensitivity Results(OI)'!AL16/'Sensitivity Results(OI)'!AD16 -> 0.1703850962 | G18: =1-'Sensitivity Results(OI)'!AM16/'Sensitivity Results(OI)'!AE16 -> 0.1870563656 | H18: =1-'Sensitivity Results(OI)'!AN16/'Sensitivity Results(OI)'!AF16 -> 0.2040067485 | K18: =H18-D18 -> 0.05392075648 | L18: =AVERAGE(K17:K21) -> 0.04702815234 | M18: =`x | N18: =AVERAGE(D17:H21) -> 0.1625260343 | O18: =`x | R18: =C18 -> 0.076 | S18: 0.08791400799 | T18: 0.09601666579 | U18: 0.1296149038 | V18: 0.1629436344 | W18: 0.1959932515 | Z18: =W18-S18 -> 0.1080792435 | AA18: =AVERAGE(Z17:Z21) -> 0.1149718477 | AB18: =`x | AC18: =AVERAGE(S17:W21) -> 0.1450739657 | AD18: =`x | AG18: =R18 -> 0.076 | AH18: =D18-'Exhibits 6 & 7'!AL18 -> 0.04187502634 | AI18: =E18-'Exhibits 6 & 7'!AM18 -> 0.02219105513 | AJ18: =F18-'Exhibits 6 & 7'!AN18 -> 0.02029910419 | AK18: =G18-'Exhibits 6 & 7'!AO18 -> 0.00240365001 | AL18: =H18-'Exhibits 6 & 7'!AP18 -> -0.06792084701 | AO18: =AL18-AH18 -> -0.1097958733 | AP18: =AVERAGE(AO17:AO21) -> -0.08051793636 | AQ18: =`x | AR18: =AVERAGE(AH17:AL21) -> 0.003384416688 | AS18: =`x | AV18: =AG18 -> 0.076 | AY18: =F18-'Exhibits 6 & 7'!AO18 -> -0.01426761935 | BA18: =H18-'Exhibits 6 & 7'!AP18 -> -0.06792084701 | BD18: =BA18-AY18 -> -0.05365322766 | BE18: =AVERAGE(BD17:BD21) -> -0.04360984158 | BF18: =`x | BG18: =AVERAGE(AW17:BA21) -> -0.02990247348 | BH18: =`x
C19: ='Sensitivity Results(OI)'!AQ17 -> 0.094 | D19: =1-'Sensitivity Results(OI)'!AJ17/'Sensitivity Results(OI)'!AB17 -> 0.1283962196 | E19: =1-'Sensitivity Results(OI)'!AK17/'Sensitivity Results(OI)'!AC17 -> 0.1332455805 | F19: =1-'Sensitivity Results(OI)'!AL17/'Sensitivity Results(OI)'!AD17 -> 0.1538959605 | G19: =1-'Sensitivity Results(OI)'!AM17/'Sensitivity Results(OI)'!AE17 -> 0.1753057038 | H19: =1-'Sensitivity Results(OI)'!AN17/'Sensitivity Results(OI)'!AF17 -> 0.1975369193 | K19: =H19-D19 -> 0.06914069969 | L19: =STDEV(K17:K21) -> 0.02715418558 | M19: = s | N19: =STDEV(D17:H21) -> 0.0227856198 | O19: = s | R19: =C19 -> 0.094 | S19: 0.1096037804 | T19: 0.1167544195 | U19: 0.1461040395 | V19: 0.1746942962 | W19: 0.2024630807 | Z19: =W19-S19 -> 0.09285930031 | AA19: =STDEV(Z17:Z21) -> 0.02715418558 | AB19: = s | AC19: =STDEV(S17:W21) -> 0.04630625117 | AD19: = s | AG19: =R19 -> 0.094 | AH19: =D19-'Exhibits 6 & 7'!AL19 -> 0.03854788384 | AI19: =E19-'Exhibits 6 & 7'!AM19 -> 0.02180588854 | AJ19: =F19-'Exhibits 6 & 7'!AN19 -> 0.02549974093 | AK19: =G19-'Exhibits 6 & 7'!AO19 -> 0.01683001067 | AL19: =H19-'Exhibits 6 & 7'!AP19 -> -0.02274683258 | AO19: =AL19-AH19 -> -0.06129471643 | AP19: =STDEV(AO17:AO21) -> 0.04690459497 | AQ19: = s | AR19: =STDEV(AH17:AL21) -> 0.03808543039 | AS19: = s | AV19: =AG19 -> 0.094 | AY19: =F19-'Exhibits 6 & 7'!AO19 -> -0.004579732642 | BA19: =H19-'Exhibits 6 & 7'!AP19 -> -0.02274683258 | BD19: =BA19-AY19 -> -0.01816709994 | BE19: =STDEV(BD17:BD21) -> 0.04833786579 | BF19: = s | BG19: =STDEV(AW17:BA21) -> 0.04374348002 | BH19: = s
C20: ='Sensitivity Results(OI)'!AQ18 -> 0.108 | D20: =1-'Sensitivity Results(OI)'!AJ18/'Sensitivity Results(OI)'!AB18 -> 0.1275501239 | E20: =1-'Sensitivity Results(OI)'!AK18/'Sensitivity Results(OI)'!AC18 -> 0.131773836 | F20: =1-'Sensitivity Results(OI)'!AL18/'Sensitivity Results(OI)'!AD18 -> 0.1497858877 | G20: =1-'Sensitivity Results(OI)'!AM18/'Sensitivity Results(OI)'!AE18 -> 0.1685064705 | H20: =1-'Sensitivity Results(OI)'!AN18/'Sensitivity Results(OI)'!AF18 -> 0.18799801 | K20: =H20-D20 -> 0.06044788616 | L20: =L19/L18 -> 0.5774027732 | M20: = s /`x | N20: =N19/N18 -> 0.1401967377 | O20: = s /`x | R20: =C20 -> 0.108 | S20: 0.1104498761 | T20: 0.118226164 | U20: 0.1502141123 | V20: 0.1814935295 | W20: 0.21200199 | Z20: =W20-S20 -> 0.1015521138 | AA20: =AA19/AA18 -> 0.2361811707 | AB20: = s /`x | AC20: =AC19/AC18 -> 0.3191906344 | AD20: = s /`x | AG20: =R20 -> 0.108 | AH20: =D20-'Exhibits 6 & 7'!AL20 -> 0.03151667764 | AI20: =E20-'Exhibits 6 & 7'!AM20 -> 0.01808715205 | AJ20: =F20-'Exhibits 6 & 7'!AN20 -> 0.02223576384 | AK20: =G20-'Exhibits 6 & 7'!AO20 -> 0.01634027147 | AL20: =H20-'Exhibits 6 & 7'!AP20 -> -0.01492552574 | AO20: =AL20-AH20 -> -0.04644220338 | AP20: =AP19/AP18 -> -0.5825359801 | AQ20: = s /`x | AR20: =AR19/AR18 -> 11.25317415 | AS20: = s /`x | AV20: =AG20 -> 0.108 | AY20: =F20-'Exhibits 6 & 7'!AO20 -> -0.002380311308 | BA20: =H20-'Exhibits 6 & 7'!AP20 -> -0.01492552574 | BD20: =BA20-AY20 -> -0.01254521443 | BE20: =BE19/BE18 -> -1.10841645 | BF20: = s /`x | BG20: =BG19/BG18 -> -1.462871627 | BH20: = s /`x
C21: ='Sensitivity Results(OI)'!AQ19 -> 0.122 | D21: =1-'Sensitivity Results(OI)'!AJ19/'Sensitivity Results(OI)'!AB19 -> 0.1305412023 | E21: =1-'Sensitivity Results(OI)'!AK19/'Sensitivity Results(OI)'!AC19 -> 0.1341483717 | F21: =1-'Sensitivity Results(OI)'!AL19/'Sensitivity Results(OI)'!AD19 -> 0.1495318921 | G21: =1-'Sensitivity Results(OI)'!AM19/'Sensitivity Results(OI)'!AE19 -> 0.1655220175 | H21: =1-'Sensitivity Results(OI)'!AN19/'Sensitivity Results(OI)'!AF19 -> 0.1821726216 | K21: =H21-D21 -> 0.05163141935 | R21: =C21 -> 0.122 | S21: 0.1074587977 | T21: 0.1158516283 | U21: 0.1504681079 | V21: 0.1844779825 | W21: 0.2178273784 | Z21: =W21-S21 -> 0.1103685806 | AG21: =R21 -> 0.122 | AH21: =D21-'Exhibits 6 & 7'!AL21 -> 0.02615827061 | AI21: =E21-'Exhibits 6 & 7'!AM21 -> 0.01510794965 | AJ21: =F21-'Exhibits 6 & 7'!AN21 -> 0.01899068981 | AK21: =G21-'Exhibits 6 & 7'!AO21 -> 0.01455306039 | AL21: =H21-'Exhibits 6 & 7'!AP21 -> -0.01103585272 | AO21: =AL21-AH21 -> -0.03719412333 | AV21: =AG21 -> 0.122 | AY21: =F21-'Exhibits 6 & 7'!AO21 -> -0.001437065062 | BA21: =H21-'Exhibits 6 & 7'!AP21 -> -0.01103585272 | BD21: =BA21-AY21 -> -0.009598787655
B23: Panel C: The Effective Tax Rate for GPs' After-Tax Returns | Q23: =B23 -> Panel C: The Effective Tax Rate for GPs' After-Tax Returns | AF23: =Q23 -> Panel C: The Effective Tax Rate for GPs' After-Tax Returns | AU23: =AF23 -> Panel C: The Effective Tax Rate for GPs' After-Tax Returns
D24: =D6 -> Pure Carry Taxed at Ordinary-Income Rate | S24: =D24 -> Pure Carry Taxed at Ordinary-Income Rate | AH24: =S24 -> Pure Carry Taxed at Ordinary-Income Rate | AW24: =AH24 -> Pure Carry Taxed at Ordinary-Income Rate
D25: =D16 -> 0.238 | E25: =E16 -> 0.25 | F25: =F16 -> 0.3 | G25: =G16 -> 0.35 | H25: =H16 -> 0.4 | S25: =D25 -> 0.238 | T25: =E25 -> 0.25 | U25: =F25 -> 0.3 | V25: =G25 -> 0.35 | W25: =H25 -> 0.4 | AH25: =S25 -> 0.238 | AI25: =T25 -> 0.25 | AJ25: =U25 -> 0.3 | AK25: =V25 -> 0.35 | AL25: =W25 -> 0.4 | AW25: =AH25 -> 0.238 | AX25: =AI25 -> 0.25 | AY25: =AJ25 -> 0.3 | AZ25: =AK25 -> 0.35 | BA25: =AL25 -> 0.4
B26: ='Sensitivity Results(OI)'!AP24 -> Preferred Return | C26: ='Sensitivity Results(OI)'!AQ24 -> 0.06 | D26: =1-'Sensitivity Results(OI)'!AJ24/'Sensitivity Results(OI)'!AB24 -> 0.1274743276 | E26: =1-'Sensitivity Results(OI)'!AK24/'Sensitivity Results(OI)'!AC24 -> 0.132256944 | F26: =1-'Sensitivity Results(OI)'!AL24/'Sensitivity Results(OI)'!AD24 -> 0.1526373875 | G26: =1-'Sensitivity Results(OI)'!AM24/'Sensitivity Results(OI)'!AE24 -> 0.173792636 | H26: =1-'Sensitivity Results(OI)'!AN24/'Sensitivity Results(OI)'!AF24 -> 0.1957883748 | K26: =H26-D26 -> 0.06831404722 | Q26: =B26 -> Preferred Return | R26: =C26 -> 0.06 | S26: =D$7-D26 -> 0.1105256724 | T26: 0.117743056 | U26: 0.1473626125 | V26: 0.176207364 | W26: 0.2042116252 | Z26: =W26-S26 -> 0.09368595278 | AF26: =Q26 -> Preferred Return | AG26: =R26 -> 0.06 | AH26: =D26-'Exhibits 6 & 7'!AL26 -> 0.03623224398 | AI26: =E26-'Exhibits 6 & 7'!AM26 -> 0.02071560239 | AJ26: =F26-'Exhibits 6 & 7'!AN26 -> 0.02516305988 | AK26: =G26-'Exhibits 6 & 7'!AO26 -> 0.01792832079 | AL26: =H26-'Exhibits 6 & 7'!AP26 -> -0.01939674837 | AO26: =AL26-AH26 -> -0.05562899234 | AU26: =AF26 -> Preferred Return | AV26: =AG26 -> 0.06 | AY26: =F26-'Exhibits 6 & 7'!AO26 -> -0.003226927775 | BA26: =H26-'Exhibits 6 & 7'!AP26 -> -0.01939674837 | BD26: =BA26-AY26 -> -0.01616982059
C27: ='Sensitivity Results(OI)'!AQ25 -> 0.065 | D27: =1-'Sensitivity Results(OI)'!AJ25/'Sensitivity Results(OI)'!AB25 -> 0.1277950296 | E27: =1-'Sensitivity Results(OI)'!AK25/'Sensitivity Results(OI)'!AC25 -> 0.1326281058 | F27: =1-'Sensitivity Results(OI)'!AL25/'Sensitivity Results(OI)'!AD25 -> 0.1532179756 | G27: =1-'Sensitivity Results(OI)'!AM25/'Sensitivity Results(OI)'!AE25 -> 0.1745806478 | H27: =1-'Sensitivity Results(OI)'!AN25/'Sensitivity Results(OI)'!AF25 -> 0.1967807187 | K27: =H27-D27 -> 0.06898568917 | L27: =AVERAGE(K26:K30) -> 0.06857687872 | M27: =`x | N27: =AVERAGE(D26:H30) -> 0.1579171623 | O27: =`x | R27: =C27 -> 0.065 | S27: 0.1102049704 | T27: 0.1173718942 | U27: 0.1467820244 | V27: 0.1754193522 | W27: 0.2032192813 | Z27: =W27-S27 -> 0.09301431083 | AA27: =AVERAGE(Z26:Z30) -> 0.09342312128 | AB27: =`x | AC27: =AVERAGE(S26:W30) -> 0.1496828377 | AD27: =`x | AG27: =R27 -> 0.065 | AH27: =D27-'Exhibits 6 & 7'!AL27 -> 0.03748955779 | AI27: =E27-'Exhibits 6 & 7'!AM27 -> 0.02132246121 | AJ27: =F27-'Exhibits 6 & 7'!AN27 -> 0.02542294601 | AK27: =G27-'Exhibits 6 & 7'!AO27 -> 0.01748494491 | AL27: =H27-'Exhibits 6 & 7'!AP27 -> -0.02090790334 | AO27: =AL27-AH27 -> -0.05839746113 | AP27: =AVERAGE(AO26:AO30) -> -0.06140814332 | AQ27: =`x | AR27: =AVERAGE(AH26:AL30) -> 0.01576076425 | AS27: =`x | AV27: =AG27 -> 0.065 | AY27: =F27-'Exhibits 6 & 7'!AO27 -> -0.003877727268 | BA27: =H27-'Exhibits 6 & 7'!AP27 -> -0.02090790334 | BD27: =BA27-AY27 -> -0.01703017607 | BE27: =AVERAGE(BD26:BD30) -> -0.01846231189 | BF27: =`x | BG27: =AVERAGE(AW26:BA30) -> -0.01385779151 | BH27: =`x
C28: ='Sensitivity Results(OI)'!AQ26 -> 0.07 | D28: =1-'Sensitivity Results(OI)'!AJ26/'Sensitivity Results(OI)'!AB26 -> 0.1283962196 | E28: =1-'Sensitivity Results(OI)'!AK26/'Sensitivity Results(OI)'!AC26 -> 0.1332455805 | F28: =1-'Sensitivity Results(OI)'!AL26/'Sensitivity Results(OI)'!AD26 -> 0.1538959605 | G28: =1-'Sensitivity Results(OI)'!AM26/'Sensitivity Results(OI)'!AE26 -> 0.1753057038 | H28: =1-'Sensitivity Results(OI)'!AN26/'Sensitivity Results(OI)'!AF26 -> 0.1975369193 | K28: =H28-D28 -> 0.06914069969 | L28: =STDEV(K26:K30) -> 0.0005790581507 | M28: = s | N28: =STDEV(D26:H30) -> 0.02630527866 | O28: = s | R28: =C28 -> 0.07 | S28: 0.1096037804 | T28: 0.1167544195 | U28: 0.1461040395 | V28: 0.1746942962 | W28: 0.2024630807 | Z28: =W28-S28 -> 0.09285930031 | AA28: =STDEV(Z26:Z30) -> 0.0005790581507 | AB28: = s | AC28: =STDEV(S26:W30) -> 0.03592936211 | AD28: = s | AG28: =R28 -> 0.07 | AH28: =D28-'Exhibits 6 & 7'!AL28 -> 0.03854788384 | AI28: =E28-'Exhibits 6 & 7'!AM28 -> 0.02180588854 | AJ28: =F28-'Exhibits 6 & 7'!AN28 -> 0.02549974093 | AK28: =G28-'Exhibits 6 & 7'!AO28 -> 0.01683001067 | AL28: =H28-'Exhibits 6 & 7'!AP28 -> -0.02274683258 | AO28: =AL28-AH28 -> -0.06129471643 | AP28: =STDEV(AO26:AO30) -> 0.004661665888 | AQ28: = s | AR28: =STDEV(AH26:AL30) -> 0.02119522976 | AS28: = s | AV28: =AG28 -> 0.07 | AY28: =F28-'Exhibits 6 & 7'!AO28 -> -0.004579732642 | BA28: =H28-'Exhibits 6 & 7'!AP28 -> -0.02274683258 | BD28: =BA28-AY28 -> -0.01816709994 | BE28: =STDEV(BD26:BD30) -> 0.00206171436 | BF28: = s | BG28: =STDEV(AW26:BA30) -> 0.009991306786 | BH28: = s
C29: ='Sensitivity Results(OI)'!AQ27 -> 0.075 | D29: =1-'Sensitivity Results(OI)'!AJ27/'Sensitivity Results(OI)'!AB27 -> 0.1294694537 | E29: =1-'Sensitivity Results(OI)'!AK27/'Sensitivity Results(OI)'!AC27 -> 0.1342983179 | F29: =1-'Sensitivity Results(OI)'!AL27/'Sensitivity Results(OI)'!AD27 -> 0.154848871 | G29: =1-'Sensitivity Results(OI)'!AM27/'Sensitivity Results(OI)'!AE27 -> 0.1761329599 | H29: =1-'Sensitivity Results(OI)'!AN27/'Sensitivity Results(OI)'!AF27 -> 0.1982087451 | K29: =H29-D29 -> 0.06873929149 | L29: =L28/L27 -> 0.008443926897 | M29: = s /`x | N29: =N28/N27 -> 0.1665764396 | O29: = s /`x | R29: =C29 -> 0.075 | S29: 0.1085305463 | T29: 0.1157016821 | U29: 0.145151129 | V29: 0.1738670401 | W29: 0.2017912549 | Z29: =W29-S29 -> 0.09326070851 | AA29: =AA28/AA27 -> 0.006198231688 | AB29: = s /`x | AC29: =AC28/AC27 -> 0.2400366179 | AD29: = s /`x | AG29: =R29 -> 0.075 | AH29: =D29-'Exhibits 6 & 7'!AL29 -> 0.03938167587 | AI29: =E29-'Exhibits 6 & 7'!AM29 -> 0.02215143345 | AJ29: =F29-'Exhibits 6 & 7'!AN29 -> 0.02537941737 | AK29: =G29-'Exhibits 6 & 7'!AO29 -> 0.01595532809 | AL29: =H29-'Exhibits 6 & 7'!AP29 -> -0.02492651175 | AO29: =AL29-AH29 -> -0.06430818762 | AP29: =AP28/AP27 -> -0.07591282907 | AQ29: = s /`x | AR29: =AR28/AR27 -> 1.344809771 | AS29: = s /`x | AV29: =AG29 -> 0.075 | AY29: =F29-'Exhibits 6 & 7'!AO29 -> -0.005328760748 | BA29: =H29-'Exhibits 6 & 7'!AP29 -> -0.02492651175 | BD29: =BA29-AY29 -> -0.019597751 | BE29: =BE28/BE27 -> -0.1116715162 | BF29: = s /`x | BG29: =BG28/BG27 -> -0.7209883899 | BH29: = s /`x
C30: ='Sensitivity Results(OI)'!AQ28 -> 0.08 | D30: =1-'Sensitivity Results(OI)'!AJ28/'Sensitivity Results(OI)'!AB28 -> 0.1312274233 | E30: =1-'Sensitivity Results(OI)'!AK28/'Sensitivity Results(OI)'!AC28 -> 0.1359937557 | F30: =1-'Sensitivity Results(OI)'!AL28/'Sensitivity Results(OI)'!AD28 -> 0.1562615205 | G30: =1-'Sensitivity Results(OI)'!AM28/'Sensitivity Results(OI)'!AE28 -> 0.177223391 | H30: =1-'Sensitivity Results(OI)'!AN28/'Sensitivity Results(OI)'!AF28 -> 0.1989320894 | K30: =H30-D30 -> 0.06770466602 | R30: =C30 -> 0.08 | S30: 0.1067725767 | T30: 0.1140062443 | U30: 0.1437384795 | V30: 0.172776609 | W30: 0.2010679106 | Z30: =W30-S30 -> 0.09429533398 | AG30: =R30 -> 0.08 | AH30: =D30-'Exhibits 6 & 7'!AL30 -> 0.03994461788 | AI30: =E30-'Exhibits 6 & 7'!AM30 -> 0.02233277161 | AJ30: =F30-'Exhibits 6 & 7'!AN30 -> 0.02503409712 | AK30: =G30-'Exhibits 6 & 7'!AO30 -> 0.01484184119 | AL30: =H30-'Exhibits 6 & 7'!AP30 -> -0.02746674121 | AO30: =AL30-AH30 -> -0.06741135909 | AV30: =AG30 -> 0.08 | AY30: =F30-'Exhibits 6 & 7'!AO30 -> -0.006120029385 | BA30: =H30-'Exhibits 6 & 7'!AP30 -> -0.02746674121 | BD30: =BA30-AY30 -> -0.02134671182
B32: Panel D: The Effective Tax Rate for GPs' After-Tax Returns | Q32: =B32 -> Panel D: The Effective Tax Rate for GPs' After-Tax Returns | AF32: =Q32 -> Panel D: The Effective Tax Rate for GPs' After-Tax Returns | AU32: =AF32 -> Panel D: The Effective Tax Rate for GPs' After-Tax Returns
D33: =D15 -> Pure Carry Taxed at Ordinary-Income Rate | S33: =D33 -> Pure Carry Taxed at Ordinary-Income Rate | AH33: =S33 -> Pure Carry Taxed at Ordinary-Income Rate | AW33: =AH33 -> Pure Carry Taxed at Ordinary-Income Rate
D34: =D25 -> 0.238 | E34: =E25 -> 0.25 | F34: =F25 -> 0.3 | G34: =G25 -> 0.35 | H34: =H25 -> 0.4 | S34: =D34 -> 0.238 | T34: =E34 -> 0.25 | U34: =F34 -> 0.3 | V34: =G34 -> 0.35 | W34: =H34 -> 0.4 | AH34: =S34 -> 0.238 | AI34: =T34 -> 0.25 | AJ34: =U34 -> 0.3 | AK34: =V34 -> 0.35 | AL34: =W34 -> 0.4 | AW34: =AH34 -> 0.238 | AX34: =AI34 -> 0.25 | AY34: =AJ34 -> 0.3 | AZ34: =AK34 -> 0.35 | BA34: =AL34 -> 0.4
B35: ='Sensitivity Results(OI)'!AP33 -> Passive-Loss Utilization Rate | C35: ='Sensitivity Results(OI)'!AQ33 -> 0 | D35: =1-'Sensitivity Results(OI)'!AJ33/'Sensitivity Results(OI)'!AB33 -> 0.1349434591 | E35: =1-'Sensitivity Results(OI)'!AK33/'Sensitivity Results(OI)'!AC33 -> 0.1397784079 | F35: =1-'Sensitivity Results(OI)'!AL33/'Sensitivity Results(OI)'!AD33 -> 0.1603659783 | G35: =1-'Sensitivity Results(OI)'!AM33/'Sensitivity Results(OI)'!AE33 -> 0.1817080721 | H35: =1-'Sensitivity Results(OI)'!AN33/'Sensitivity Results(OI)'!AF33 -> 0.2038662054 | K35: =H35-D35 -> 0.06892274634 | Q35: =B35 -> Passive-Loss Utilization Rate | R35: =C35 -> 0 | S35: =D$7-D35 -> 0.1030565409 | T35: 0.1102215921 | U35: 0.1396340217 | V35: 0.1682919279 | W35: 0.1961337946 | Z35: =W35-S35 -> 0.09307725366 | AF35: =Q35 -> Passive-Loss Utilization Rate | AG35: =R35 -> 0 | AH35: =D35-'Exhibits 6 & 7'!AL35 -> 0.03843771235 | AI35: =E35-'Exhibits 6 & 7'!AM35 -> 0.02174206567 | AJ35: =F35-'Exhibits 6 & 7'!AN35 -> 0.02542251928 | AK35: =G35-'Exhibits 6 & 7'!AO35 -> 0.01677661197 | AL35: =H35-'Exhibits 6 & 7'!AP35 -> -0.02266893766 | AO35: =AL35-AH35 -> -0.06110665001 | AU35: =AF35 -> Passive-Loss Utilization Rate | AV35: =AG35 -> 0 | AY35: =F35-'Exhibits 6 & 7'!AO35 -> -0.004565481764 | BA35: =H35-'Exhibits 6 & 7'!AP35 -> -0.02266893766 | BD35: =BA35-AY35 -> -0.0181034559
C36: ='Sensitivity Results(OI)'!AQ34 -> 0.25 | D36: =1-'Sensitivity Results(OI)'!AJ34/'Sensitivity Results(OI)'!AB34 -> 0.1315388669 | E36: =1-'Sensitivity Results(OI)'!AK34/'Sensitivity Results(OI)'!AC34 -> 0.1363808902 | F36: =1-'Sensitivity Results(OI)'!AL34/'Sensitivity Results(OI)'!AD34 -> 0.1569993409 | G36: =1-'Sensitivity Results(OI)'!AM34/'Sensitivity Results(OI)'!AE34 -> 0.1783747802 | H36: =1-'Sensitivity Results(OI)'!AN34/'Sensitivity Results(OI)'!AF34 -> 0.200569032 | K36: =H36-D36 -> 0.06903016513 | L36: =AVERAGE(K35:K39) -> 0.06913836274 | M36: =`x | N36: =AVERAGE(D35:H39) -> 0.1580961209 | O36: =`x | R36: =C36 -> 0.25 | S36: 0.1064611331 | T36: 0.1136191098 | U36: 0.1430006591 | V36: 0.1716252198 | W36: 0.199430968 | Z36: =W36-S36 -> 0.09296983487 | AA36: =AVERAGE(Z35:Z39) -> 0.09286163726 | AB36: =`x | AC36: =AVERAGE(S35:W39) -> 0.1495038791 | AD36: =`x | AG36: =R36 -> 0.25 | AH36: =D36-'Exhibits 6 & 7'!AL36 -> 0.03849164643 | AI36: =E36-'Exhibits 6 & 7'!AM36 -> 0.02177336145 | AJ36: =F36-'Exhibits 6 & 7'!AN36 -> 0.02546047398 | AK36: =G36-'Exhibits 6 & 7'!AO36 -> 0.01680294035 | AL36: =H36-'Exhibits 6 & 7'!AP36 -> -0.02270753786 | AO36: =AL36-AH36 -> -0.0611991843 | AP36: =AVERAGE(AO35:AO39) -> -0.06129305044 | AQ36: =`x | AR36: =AVERAGE(AH35:AL39) -> 0.0159872168 | AS36: =`x | AV36: =AG36 -> 0.25 | AY36: =F36-'Exhibits 6 & 7'!AO36 -> -0.004572499011 | BA36: =H36-'Exhibits 6 & 7'!AP36 -> -0.02270753786 | BD36: =BA36-AY36 -> -0.01813503885 | BE36: =AVERAGE(BD35:BD39) -> -0.01816594623 | BF36: =`x | BG36: =AVERAGE(AW35:BA39) -> -0.01366256675 | BH36: =`x
C37: ='Sensitivity Results(OI)'!AQ35 -> 0.5 | D37: =1-'Sensitivity Results(OI)'!AJ35/'Sensitivity Results(OI)'!AB35 -> 0.1283962196 | E37: =1-'Sensitivity Results(OI)'!AK35/'Sensitivity Results(OI)'!AC35 -> 0.1332455805 | F37: =1-'Sensitivity Results(OI)'!AL35/'Sensitivity Results(OI)'!AD35 -> 0.1538959605 | G37: =1-'Sensitivity Results(OI)'!AM35/'Sensitivity Results(OI)'!AE35 -> 0.1753057038 | H37: =1-'Sensitivity Results(OI)'!AN35/'Sensitivity Results(OI)'!AF35 -> 0.1975369193 | K37: =H37-D37 -> 0.06914069969 | L37: =STDEV(K35:K39) -> 0.0001693242788 | M37: = s | N37: =STDEV(D35:H39) -> 0.02680270769 | O37: = s | R37: =C37 -> 0.5 | S37: 0.1096037804 | T37: 0.1167544195 | U37: 0.1461040395 | V37: 0.1746942962 | W37: 0.2024630807 | Z37: =W37-S37 -> 0.09285930031 | AA37: =STDEV(Z35:Z39) -> 0.0001693242788 | AB37: = s | AC37: =STDEV(S35:W39) -> 0.03592553329 | AD37: = s | AG37: =R37 -> 0.5 | AH37: =D37-'Exhibits 6 & 7'!AL37 -> 0.03854788384 | AI37: =E37-'Exhibits 6 & 7'!AM37 -> 0.02180588854 | AJ37: =F37-'Exhibits 6 & 7'!AN37 -> 0.02549974093 | AK37: =G37-'Exhibits 6 & 7'!AO37 -> 0.01683001067 | AL37: =H37-'Exhibits 6 & 7'!AP37 -> -0.02274683258 | AO37: =AL37-AH37 -> -0.06129471643 | AP37: =STDEV(AO35:AO39) -> 0.0001466452817 | AQ37: = s | AR37: =STDEV(AH35:AL39) -> 0.02108636798 | AS37: = s | AV37: =AG37 -> 0.5 | AY37: =F37-'Exhibits 6 & 7'!AO37 -> -0.004579732642 | BA37: =H37-'Exhibits 6 & 7'!AP37 -> -0.02274683258 | BD37: =BA37-AY37 -> -0.01816709994 | BE37: =STDEV(BD35:BD39) -> 4.871846014e-05 | BF37: = s | BG37: =STDEV(AW35:BA39) -> 0.009574380207 | BH37: = s
C38: ='Sensitivity Results(OI)'!AQ36 -> 0.75 | D38: =1-'Sensitivity Results(OI)'!AJ36/'Sensitivity Results(OI)'!AB36 -> 0.1256625182 | E38: =1-'Sensitivity Results(OI)'!AK36/'Sensitivity Results(OI)'!AC36 -> 0.1305192073 | F38: =1-'Sensitivity Results(OI)'!AL36/'Sensitivity Results(OI)'!AD36 -> 0.1512013598 | G38: =1-'Sensitivity Results(OI)'!AM36/'Sensitivity Results(OI)'!AE36 -> 0.1726450375 | H38: =1-'Sensitivity Results(OI)'!AN36/'Sensitivity Results(OI)'!AF36 -> 0.1949125966 | K38: =H38-D38 -> 0.06925007839 | L38: =L37/L36 -> 0.002449064052 | M38: = s /`x | N38: =N37/N36 -> 0.1695342526 | O38: = s /`x | R38: =C38 -> 0.75 | S38: 0.1123374818 | T38: 0.1194807927 | U38: 0.1487986402 | V38: 0.1773549625 | W38: 0.2050874034 | Z38: =W38-S38 -> 0.09274992161 | AA38: =AA37/AA36 -> 0.001823403978 | AB38: = s /`x | AC38: =AC37/AC36 -> 0.2402983354 | AD38: = s /`x | AG38: =R38 -> 0.75 | AH38: =D38-'Exhibits 6 & 7'!AL38 -> 0.03860439335 | AI38: =E38-'Exhibits 6 & 7'!AM38 -> 0.02183845107 | AJ38: =F38-'Exhibits 6 & 7'!AN38 -> 0.02553884155 | AK38: =G38-'Exhibits 6 & 7'!AO38 -> 0.01685677236 | AL38: =H38-'Exhibits 6 & 7'!AP38 -> -0.02278522877 | AO38: =AL38-AH38 -> -0.06138962212 | AP38: =AP37/AP36 -> -0.002392527059 | AQ38: = s /`x | AR38: =AR37/AR36 -> 1.318951776 | AS38: = s /`x | AV38: =AG38 -> 0.75 | AY38: =F38-'Exhibits 6 & 7'!AO38 -> -0.00458690534 | BA38: =H38-'Exhibits 6 & 7'!AP38 -> -0.02278522877 | BD38: =BA38-AY38 -> -0.01819832343 | BE38: =BE37/BE36 -> -0.002681856455 | BF38: = s /`x | BG38: =BG37/BG36 -> -0.7007746334 | BH38: = s /`x
C39: ='Sensitivity Results(OI)'!AQ37 -> 1 | D39: =1-'Sensitivity Results(OI)'!AJ37/'Sensitivity Results(OI)'!AB37 -> 0.1235446162 | E39: =1-'Sensitivity Results(OI)'!AK37/'Sensitivity Results(OI)'!AC37 -> 0.1284079415 | F39: =1-'Sensitivity Results(OI)'!AL37/'Sensitivity Results(OI)'!AD37 -> 0.1491187518 | G39: =1-'Sensitivity Results(OI)'!AM37/'Sensitivity Results(OI)'!AE37 -> 0.1705928364 | H39: =1-'Sensitivity Results(OI)'!AN37/'Sensitivity Results(OI)'!AF37 -> 0.1928927404 | K39: =H39-D39 -> 0.06934812414 | R39: =C39 -> 1 | S39: 0.1144553838 | T39: 0.1215920585 | U39: 0.1508812482 | V39: 0.1794071636 | W39: 0.2071072596 | Z39: =W39-S39 -> 0.09265187586 | AG39: =R39 -> 1 | AH39: =D39-'Exhibits 6 & 7'!AL39 -> 0.03865591688 | AI39: =E39-'Exhibits 6 & 7'!AM39 -> 0.02186801792 | AJ39: =F39-'Exhibits 6 & 7'!AN39 -> 0.02557413559 | AK39: =G39-'Exhibits 6 & 7'!AO39 -> 0.0168807351 | AL39: =H39-'Exhibits 6 & 7'!AP39 -> -0.02281916245 | AO39: =AL39-AH39 -> -0.06147507933 | AV39: =AG39 -> 1 | AY39: =F39-'Exhibits 6 & 7'!AO39 -> -0.004593349438 | BA39: =H39-'Exhibits 6 & 7'!AP39 -> -0.02281916245 | BD39: =BA39-AY39 -> -0.01822581302
J42: `x = | K42: =AVERAGE(K8:K39) -> 0.06325827187 | M42: `x = | N42: =(N9+N18+N27+N36)/4 -> 0.1578566191 | Y42: `x = | Z42: =AVERAGE(Z8:Z39) -> 0.09874172813 | AB42: `x = | AC42: =(AC9+AC18+AC27+AC36)/4 -> 0.1497433809 | AF42: `x = | AG42: =AVERAGE(AH8:AL12,AH17:AL21,AH26:AL30,AH35:AL39) -> 0.01280072829 | AN42: `x = | AO42: =AVERAGE(AO8:AO39) -> -0.06529043584 | AQ42: `x = | AR42: =(AR9+AR18+AR27+AR36)/4 -> 0.01280072829 | AW42: `x = | AY42: =AVERAGE(AY8:AY12,AY17:AY21,AY26:AY30,AY35:AY39) -> -0.005283917322 | BA42: =AVERAGE(BA8:BA12,BA17:BA21,BA26:BA30,BA35:BA39) -> -0.02954915195 | BC42: `x = | BD42: =AVERAGE(BD8:BD39) -> -0.02426523463 | BF42: `x = | BG42: =(BG9+BG18+BG27+BG36)/4 -> -0.01741653464
J43: s = | K43: =STDEV(K8:K39) -> 0.01575862532 | Y43: s = | Z43: =STDEV(Z8:Z39) -> 0.01575862532 | AF43: s = | AG43: =STDEV(AH35:AL39,AH26:AL30,AH17:AL21,AH8:AL12) -> 0.02643108876 | AN43: s = | AO43: =STDEV(AO8:AO39) -> 0.02414749377 | AW43: s = | AY43: =STDEV(AY8:AY12,AY17:AY21,AY26:AY30,AY35:AY38) -> 0.004181472827 | BA43: =STDEV(BA8:BA12,BA17:BA21,BA26:BA30,BA35:BA38) -> 0.02963257396 | BC43: s = | BD43: =STDEV(BD8:BD39) -> 0.02511450481
C44: =B5 -> Panel A: The Effective Tax Rate for GPs' After-Tax Returns
C45: =AVERAGE(D45:H45) -> 0.1535698253 | D45: =D7-AVERAGE(D8:D12) -> 0.1140492747 | E45: =E7-AVERAGE(E8:E12) -> 0.1212489783 | F45: =F7-AVERAGE(F8:F12) -> 0.1508252208 | G45: =G7-AVERAGE(G8:G12) -> 0.1796811516 | H45: =H7-AVERAGE(H$35:H$39) -> 0.2020445013 | J45: tCG – `x
C46: =AVERAGE(D46:H46) -> 0.5000562093 | D46: =AVERAGE(D8:D12)/D7 -> 0.5208013668 | E46: =AVERAGE(E8:E12)/E7 -> 0.5150040869 | F46: =AVERAGE(F8:F12)/F7 -> 0.4972492641 | G46: =AVERAGE(G8:G12)/G7 -> 0.4866252811 | H46: =AVERAGE(H8:H12)/H7 -> 0.4806010475 | J46: `x/tCG
S47: =H28-'Exhibits 6 & 7'!AN37 -> 0.06914069969
S48: =H28-'Exhibits 6 & 7'!AP37 -> -0.02274683258
C49: =B14 -> Panel B: The Effective Tax Rate for GPs' After-Tax Returns | S49: =F37-'Exhibits 6 & 7'!AN37 -> 0.02549974093
C50: =AVERAGE(D50:H50) -> 0.143405218 | D50: =D16-AVERAGE(D17:D21) -> 0.09541639234 | E50: =E16-AVERAGE(E17:E21) -> 0.1041008754 | F50: =F16-AVERAGE(F17:F21) -> 0.1400113326 | G50: =G16-AVERAGE(G17:G21) -> 0.1754529884 | H50: =H16-AVERAGE(H$35:H$39) -> 0.2020445013 | J50: tCG – `x | S50: =H37/F37-1 -> 0.2835744266
C51: =AVERAGE(D51:H51) -> 0.5377435985 | D51: =AVERAGE(D17:D21)/D16 -> 0.5990907885 | E51: =AVERAGE(E17:E21)/E16 -> 0.5835964984 | F51: =AVERAGE(F17:F21)/F16 -> 0.533295558 | G51: =AVERAGE(G17:G21)/G16 -> 0.4987057474 | H51: =AVERAGE(H17:H21)/H16 -> 0.4740294 | J51: `x/tCG
C54: =B23 -> Panel C: The Effective Tax Rate for GPs' After-Tax Returns
C55: =AVERAGE(D55:H55) -> 0.1495816118 | D55: =D25-AVERAGE(D26:D30) -> 0.1091275092 | E55: =E25-AVERAGE(E26:E30) -> 0.1163154592 | F55: =F25-AVERAGE(F26:F30) -> 0.145827657 | G55: =G25-AVERAGE(G26:G30) -> 0.1745929323 | H55: =H25-AVERAGE(H$35:H$39) -> 0.2020445013 | J55: tCG – `x
C56: =AVERAGE(D56:H56) -> 0.5169827002 | D56: =AVERAGE(D26:D30)/D25 -> 0.5414810536 | E56: =AVERAGE(E26:E30)/E25 -> 0.5347381631 | F56: =AVERAGE(F26:F30)/F25 -> 0.5139078101 | G56: =AVERAGE(G26:G30)/G25 -> 0.5011630506 | H56: =AVERAGE(H26:H30)/H25 -> 0.4936234237 | J56: `x/tCG
C59: =B32 -> Panel D: The Effective Tax Rate for GPs' After-Tax Returns
C60: =AVERAGE(D60:H60) -> 0.1495038791 | D60: =D34-AVERAGE(D35:D39) -> 0.109182864 | E60: =E34-AVERAGE(E35:E39) -> 0.1163335945 | F60: =F34-AVERAGE(F35:F39) -> 0.1456837217 | G60: =G34-AVERAGE(G35:G39) -> 0.174274714 | H60: =H34-AVERAGE(H$35:H$39) -> 0.2020445013 | J60: tCG – `x
C61: =AVERAGE(D61:H61) -> 0.5174525359 | D61: =AVERAGE(D35:D39)/D34 -> 0.5412484706 | E61: =AVERAGE(E35:E39)/E34 -> 0.5346656219 | F61: =AVERAGE(F35:F39)/F34 -> 0.5143875942 | G61: =AVERAGE(G35:G39)/G34 -> 0.5020722457 | H61: =AVERAGE(H35:H39)/H34 -> 0.4948887469 | J61: `x/tCG
C63: =AVERAGE(C46,C51,C56,C61) -> 0.518058761
E66: =F37 -> 0.1538959605
E67: 0.123216659
E68: =E66-E67 -> 0.0306793015
E69: =E68/E67 -> 0.2489866366

Sheet Exhibit 13(OI)
A1: Exhibit 13: Summary of Average (Modified) Arc Elasticities, Based on General Partner's After-Tax Returns | V1: Differences in GP's Tax Differential | Z1: % Differences in GP's Tax Differential
W2: Capital- | X2: Other | AA2: Capital- | AB2: Other
A3: Based Upon General Partner's After-Tax Returns | V3: Preserves | W3: Gains | X3: Key | Z3: Preserves | AA3: Gains | AB3: Key | AD3: Differnce between Exhibits 10 and 13
A4: Assuming Wholesale Changes to Capital-Gains Rate | L4: Assuming Change to Only Pure Carry as Ordinary Income | V4: Sign? | W4: Rate | X4: Assumptions | Z4: Sign? | AA4: Rate | AB4: Assumptions | AD4: Assuming Change to Only Pure Carry as Ordinary Income
A5: Panel A:
A6: `eReturns, Rates (1) | C6: = | D6: ='Elasticity_Post-Tax Returns'!R16 -> -0.1743433728 | E6: ='Elasticity_Post-Tax Returns'!S16 -> < | F6: `eReturns, LTV (2) | H6: = | I6: ='Elasticity_Post-Tax Returns'!W16 -> 0.5522583439 | L6: `eReturns, Rates (1) | N6: = | O6: ='Elasticity_Post-Tax Returns(OI)'!R16 -> -0.1634523421 | P6: ='Elasticity_Post-Tax Returns(OI)'!S16 -> < | Q6: `eReturns, LTV (2) | S6: = | T6: ='Elasticity_Post-Tax Returns(OI)'!W16 -> 0.5508928765 | V6: =IF(E6=P6,"Yes","No") -> Yes | W6: =ABS(D6)-ABS(O6) -> 0.01089103068 | X6: =ABS(I6)-ABS(T6) -> 0.001365467466 | Z6: =V6 -> Yes | AA6: =W6/D6 -> -0.06246885388 | AB6: =X6/I6 -> 0.002472515773 | AD6: `eReturns, Rates (1) | AF6: = | AG6: =ABS(O6)-ABS('Exhibit 10_Elasticties Summary'!O6:O7) -> -0.01089103068 | AI6: `eReturns, LTV (2) | AK6: = | AL6: =ABS(T6)-ABS('Exhibit 10_Elasticties Summary'!T6:T7) -> -0.001365467466
A10: Panel B:
A11: `eReturns, Rates (3) | C11: = | D11: ='Elasticity_Post-Tax Returns'!R37 -> -0.1864100665 | E11: ='Elasticity_Post-Tax Returns'!S37 -> < | F11: `eReturns, RE Return (4) | H11: = | I11: ='Elasticity_Post-Tax Returns'!W37 -> 2.286175784 | L11: `eReturns, Rates (3) | N11: = | O11: ='Elasticity_Post-Tax Returns(OI)'!R37 -> -0.1082506175 | P11: ='Elasticity_Post-Tax Returns(OI)'!S37 -> < | Q11: `eReturns, RE Return (4) | S11: = | T11: ='Elasticity_Post-Tax Returns(OI)'!W37 -> 2.248526931 | V11: =IF(E11=P11,"Yes","No") -> Yes | W11: =ABS(D11)-ABS(O11) -> 0.07815944901 | X11: =ABS(I11)-ABS(T11) -> 0.03764885371 | Z11: =V11 -> Yes | AA11: =W11/D11 -> -0.4192877052 | AB11: =X11/I11 -> 0.01646804851 | AD11: `eReturns, Rates (3) | AF11: = | AG11: =ABS(O11)-ABS('Exhibit 10_Elasticties Summary'!O11:O12) -> -0.07815944901 | AI11: `eReturns, RE Return (4) | AK11: = | AL11: =ABS(T11)-ABS('Exhibit 10_Elasticties Summary'!T11:T12) -> -0.03764885371
A15: Panel C:
A16: `eReturns, Rates (5) | C16: = | D16: ='Elasticity_Post-Tax Returns'!R58 -> -0.1674932298 | E16: ='Elasticity_Post-Tax Returns'!S58 -> < | F16: `eReturns, Pref (6) | H16: = | I16: ='Elasticity_Post-Tax Returns'!W58 -> -0.4113267623 | L16: `eReturns, Rates (5) | N16: = | O16: ='Elasticity_Post-Tax Returns(OI)'!R58 -> -0.1617866088 | P16: ='Elasticity_Post-Tax Returns(OI)'!S58 -> < | Q16: `eReturns, Pref (6) | S16: = | T16: ='Elasticity_Post-Tax Returns(OI)'!W58 -> -0.4058210982 | V16: =IF(E16=P16,"Yes","No") -> Yes | W16: =ABS(D16)-ABS(O16) -> 0.005706621021 | X16: =ABS(I16)-ABS(T16) -> 0.005505664083 | Z16: =V16 -> Yes | AA16: =W16/D16 -> -0.03407075634 | AB16: =X16/I16 -> -0.01338513461 | AD16: `eReturns, Rates (5) | AF16: = | AG16: =ABS(O16)-ABS('Exhibit 10_Elasticties Summary'!O16:O17) -> -0.005706621021 | AI16: `eReturns, Pref (6) | AK16: = | AL16: =ABS(T16)-ABS('Exhibit 10_Elasticties Summary'!T16:T17) -> -0.005505664083
A20: Panel D:
A21: `eReturns, Rates (7) | C21: = | D21: ='Elasticity_Post-Tax Returns'!R79 -> -0.1700249325 | E21: ='Elasticity_Post-Tax Returns'!S79 -> > | F21: `eReturns, Utilization (8) | H21: = | I21: ='Elasticity_Post-Tax Returns'!W79 -> 0.006605870673 | L21: `eReturns, Rates (7) | N21: = | O21: ='Elasticity_Post-Tax Returns(OI)'!R79 -> -0.1628604118 | P21: ='Elasticity_Post-Tax Returns(OI)'!S79 -> > | Q21: `eReturns, Utilization (8) | S21: = | T21: ='Elasticity_Post-Tax Returns(OI)'!W79 -> 0.006670922422 | V21: =IF(E21=P21,"Yes","No") -> Yes | W21: =ABS(D21)-ABS(O21) -> 0.00716452076 | X21: =ABS(I21)-ABS(T21) -> -6.505174899e-05 | Z21: =V21 -> Yes | AA21: =W21/D21 -> -0.04213805971 | AB21: =X21/I21 -> -0.009847566236 | AD21: `eReturns, Rates (7) | AF21: = | AG21: =ABS(O21)-ABS('Exhibit 10_Elasticties Summary'!O21:O22) -> -0.00716452076 | AI21: `eReturns, Utilization (8) | AK21: = | AL21: =ABS(T21)-ABS('Exhibit 10_Elasticties Summary'!T21:T22) -> 6.505174899e-05
A24: Based Upon Before- Minus After-Tax Returns
A25: For Limited Partners | L25: For General Partners
A26: `EDReturns, Rates (1) | C26: = | D26: ='Elasticity_Pre- v. Post-Tax Rt`'!E16 -> 0.6555731604 | E26: ='Elasticity_Pre- v. Post-Tax Rt`'!F16 -> > | F26: `EDReturns, LTV (2) | H26: = | I26: ='Elasticity_Pre- v. Post-Tax Rt`'!J16 -> -0.4297454351 | L26: `EDReturns, Rates (1) | N26: = | O26: ='Elasticity_Pre- v. Post-Tax Rt`'!R16 -> 0.8866422766 | P26: ='Elasticity_Pre- v. Post-Tax Rt`'!S16 -> > | Q26: `EDReturns, LTV (2) | S26: = | T26: ='Elasticity_Pre- v. Post-Tax Rt`'!W16 -> -0.6116886707
V27: =IF(E26=P26,"Yes","No") -> Yes | Z27: =IF(I26=T26,"Yes","No") -> No
A28: `EDReturns, Rates (3) | C28: = | D28: ='Elasticity_Pre- v. Post-Tax Rt`'!E37 -> 0.6310308261 | E28: ='Elasticity_Pre- v. Post-Tax Rt`'!F37 -> < | F28: `EDReturns, RE Return (4) | H28: = | I28: ='Elasticity_Pre- v. Post-Tax Rt`'!J37 -> 1.601168523 | L28: `EDReturns, Rates (3) | N28: = | O28: ='Elasticity_Pre- v. Post-Tax Rt`'!R37 -> 0.8312695147 | P28: ='Elasticity_Pre- v. Post-Tax Rt`'!S37 -> < | Q28: `EDReturns, RE Return (4) | S28: = | T28: ='Elasticity_Pre- v. Post-Tax Rt`'!W37 -> 1.907046581
V29: =IF(E28=P28,"Yes","No") -> Yes | Z29: =IF(I28=T28,"Yes","No") -> No
A30: `EDReturns, Rates (5) | C30: = | D30: ='Elasticity_Pre- v. Post-Tax Rt`'!E58 -> 0.5783481488 | E30: ='Elasticity_Pre- v. Post-Tax Rt`'!F58 -> > | F30: `EDReturns, Pref (6) | H30: = | I30: ='Elasticity_Pre- v. Post-Tax Rt`'!J58 -> 0.05769533183 | L30: `EDReturns, Rates (5) | N30: = | O30: ='Elasticity_Pre- v. Post-Tax Rt`'!R58 -> 0.9148792681 | P30: ='Elasticity_Pre- v. Post-Tax Rt`'!S58 -> > | Q30: `EDReturns, Pref (6) | S30: = | T30: ='Elasticity_Pre- v. Post-Tax Rt`'!W58 -> -0.2933533616
V31: =IF(E30=P30,"Yes","No") -> Yes | Z31: =IF(I30=T30,"Yes","No") -> No
A32: `EDReturns, Rates (7) | C32: = | D32: ='Elasticity_Pre- v. Post-Tax Rt`'!E79 -> 0.5716575859 | E32: ='Elasticity_Pre- v. Post-Tax Rt`'!F79 -> > | F32: `EDReturns, Utilization (8) | H32: = | I32: ='Elasticity_Pre- v. Post-Tax Rt`'!J79 -> -0.03594390397 | L32: `EDReturns, Rates (7) | N32: = | O32: ='Elasticity_Pre- v. Post-Tax Rt`'!R79 -> 0.9149048028 | P32: ='Elasticity_Pre- v. Post-Tax Rt`'!S79 -> > | Q32: `EDReturns, Utilization (8) | S32: = | T32: ='Elasticity_Pre- v. Post-Tax Rt`'!W79 -> -0.04380315815
V33: =IF(E32=P32,"Yes","No") -> Yes | Z33: =IF(I32=T32,"Yes","No") -> No
A35: Inequalities are based on the absolute value of the estimated elasticity coefficients. | AG35: =AVERAGE(AG6:AG22) -> -0.02548040537 | AL35: =AVERAGE(AL6:AL22) -> -0.01111373338
AG36: =STDEV(AG6:AG22) -> 0.03518714571 | AL36: =STDEV(AL6:AL22) -> 0.0178471004
AG37: =AG36/AG35 -> -1.380949212 | AL37: =AL36/AL35 -> -1.605860046
A38: `x = | D38: =AVERAGE(D6:D22) -> -0.1745679004 | I38: =AVERAGE(I6:I22) -> 0.6084283092 | O38: =AVERAGE(O6:O22) -> -0.149087495 | T38: =AVERAGE(T6:T22) -> 0.6000674078 | W38: =AVERAGE(W6:W22) -> 0.02548040537 | X38: =AVERAGE(X6:X22) -> 0.01111373338 | AA38: =AVERAGE(AA6:AA22) -> -0.1394913438 | AB38: =AVERAGE(AB6:AB22) -> -0.001073034142
A39: s = | D39: =STDEV(D6:D22) -> 0.008386036642 | I39: =STDEV(I6:I22) -> 1.186041358 | O39: =STDEV(O6:O22) -> 0.02723331369 | T39: =STDEV(T6:T22) -> 1.166728761 | W39: =STDEV(W6:W22) -> 0.03518714571 | X39: =STDEV(X6:X22) -> 0.0178471004 | AA39: =STDEV(AA6:AA22) -> 0.1869131973 | AB39: =STDEV(AB6:AB22) -> 0.01352578693
A40: `x/s = | D40: =D39/D38 -> -0.04803882399 | I40: =I39/I38 -> 1.949352685 | O40: =O39/O38 -> -0.1826666528 | T40: =T39/T38 -> 1.944329497 | W40: =W39/W38 -> 1.380949212 | X40: =X39/X38 -> 1.605860046 | AA40: =AA39/AA38 -> -1.339962698 | AB40: =AB39/AB38 -> -12.60517854 | AG40: =AG6/O6 -> 0.06663123048 | AL40: =AL6/T6 -> -0.00247864426
AG42: =AG11/O11 -> 0.722023124 | AL42: =AL11/T11 -> -0.01674378599
AG44: =AG16/O16 -> 0.0352725177 | AL44: =AL16/T16 -> 0.01356672708
AG46: =AG21/O21 -> 0.04399178832 | AL46: =AL21/T21 -> 0.009751537326

Sheet Exhibit 16(OI)
B1: Exhibit 16: The Effective Tax Rate of the General Partner's After-Tax Return, Given Various Sensititivies | O1: Exhibit 16 Supplement: Comparisons of General Partner's Before- and After-Tax Return, Given Capital-Gain v. Ordinary-Income Treatment | X1: Differences in GP's | AA1: Summary Statitics of
X2: After-Tax Returns | AA2: After-Tax Returns
B3: Panel A: Arc Elasticity Estimates for GPs' After-Tax Returns | O3: Panel A: Sensitivity Matrix of GPs' Before- Minus After-Tax Returns | X3: Given an Increase in | AA3: Across the
D4: ='Exhibit 12(OI)'!D6 -> Pure Carry Taxed at Ordinary-Income Rate | J4: EReturns, Rates | Q4: =D4 -> Pure Carry Taxed at Ordinary-Income Rate | X4: the Capital-Gains Rate | AA4: Sensitivity Matrix
D5: ='Exhibit 12(OI)'!D7 -> 0.238 | E5: ='Exhibit 12(OI)'!E7 -> 0.25 | F5: ='Exhibit 12(OI)'!F7 -> 0.3 | G5: ='Exhibit 12(OI)'!G7 -> 0.35 | H5: ='Exhibit 12(OI)'!H7 -> 0.4 | Q5: =D5 -> 0.238 | R5: =E5 -> 0.25 | S5: =F5 -> 0.3 | T5: =G5 -> 0.35 | U5: =H5 -> 0.4
B6: ='Sensitivity Results(OI)'!AP6:AP10 -> Leverage Ratio | C6: ='Sensitivity Results(OI)'!AQ6 -> 0.25 | D6: ='Sensitivity Results(OI)'!AJ6 -> 0.1297682785 | E6: ='Sensitivity Results(OI)'!AK6 -> 0.1290261098 | F6: ='Sensitivity Results(OI)'!AL6 -> 0.1258825652 | G6: ='Sensitivity Results(OI)'!AM6 -> 0.1226528662 | H6: ='Sensitivity Results(OI)'!AN6 -> 0.1193318084 | J6: =((H6-D6)/((H6+D6)/2))/((H$5-D$5)/((H$5+D$5)/2)) -> -0.1650005604 | O6: =B6 -> Leverage Ratio | P6: =C6 -> 0.25 | Q6: =D6-'Sensitivity Results'!AJ6 -> -0.006228057207 | R6: =E6-'Sensitivity Results'!AK6 -> -0.00347170916 | S6: =F6-'Sensitivity Results'!AL6 -> -0.003885713281 | T6: =G6-'Sensitivity Results'!AM6 -> -0.002300554901 | U6: =H6-'Sensitivity Results'!AN6 -> 0.004195135878 | X6: =U6-Q6 -> 0.01042319309
C7: ='Sensitivity Results(OI)'!AQ7 -> 0.5 | D7: ='Sensitivity Results(OI)'!AJ7 -> 0.1681335657 | E7: ='Sensitivity Results(OI)'!AK7 -> 0.1671821967 | F7: ='Sensitivity Results(OI)'!AL7 -> 0.1631368391 | G7: ='Sensitivity Results(OI)'!AM7 -> 0.1589531602 | H7: ='Sensitivity Results(OI)'!AN7 -> 0.1546206648 | J7: =((H7-D7)/((H7+D7)/2))/((H$5-D$5)/((H$5+D$5)/2)) -> -0.1648854424 | P7: =C7 -> 0.5 | Q7: =D7-'Sensitivity Results'!AJ7 -> -0.007623074949 | R7: =E7-'Sensitivity Results'!AK7 -> -0.004301020265 | S7: =F7-'Sensitivity Results'!AL7 -> -0.004996726643 | T7: =G7-'Sensitivity Results'!AM7 -> -0.00325151744 | U7: =H7-'Sensitivity Results'!AN7 -> 0.004546602844 | X7: =U7-Q7 -> 0.01216967779 | Y7: =AVERAGE(X6:X10) -> 0.01188808716 | Z7: =`x | AA7: =AVERAGE(Q6:U10) -> -0.003388588616 | AB7: =`x
C8: ='Sensitivity Results(OI)'!AQ8 -> 0.6 | D8: ='Sensitivity Results(OI)'!AJ8 -> 0.1867561053 | E8: ='Sensitivity Results(OI)'!AK8 -> 0.1857170463 | F8: ='Sensitivity Results(OI)'!AL8 -> 0.1812923471 | G8: ='Sensitivity Results(OI)'!AM8 -> 0.1767049413 | H8: ='Sensitivity Results(OI)'!AN8 -> 0.1719415209 | J8: =((H8-D8)/((H8+D8)/2))/((H$5-D$5)/((H$5+D$5)/2)) -> -0.1626547067 | P8: =C8 -> 0.6 | Q8: =D8-'Sensitivity Results'!AJ8 -> -0.008259547305 | R8: =E8-'Sensitivity Results'!AK8 -> -0.004672286776 | S8: =F8-'Sensitivity Results'!AL8 -> -0.005463758201 | T8: =G8-'Sensitivity Results'!AM8 -> -0.003606119335 | U8: =H8-'Sensitivity Results'!AN8 -> 0.004873900225 | X8: =U8-Q8 -> 0.01313344753 | Y8: =STDEV(X6:X10) -> 0.002249618948 | Z8: = s | AA8: =STDEV(Q6:U10) -> 0.004218110242 | AB8: = s
C9: ='Sensitivity Results(OI)'!AQ9 -> 0.7 | D9: ='Sensitivity Results(OI)'!AJ9 -> 0.2036364769 | E9: ='Sensitivity Results(OI)'!AK9 -> 0.2025161184 | F9: ='Sensitivity Results(OI)'!AL9 -> 0.197739752 | G9: ='Sensitivity Results(OI)'!AM9 -> 0.1927780721 | H9: ='Sensitivity Results(OI)'!AN9 -> 0.1876150797 | J9: =((H9-D9)/((H9+D9)/2))/((H$5-D$5)/((H$5+D$5)/2)) -> -0.1612686589 | P9: =C9 -> 0.7 | Q9: =D9-'Sensitivity Results'!AJ9 -> -0.009047605746 | R9: =E9-'Sensitivity Results'!AK9 -> -0.005105232692 | S9: =F9-'Sensitivity Results'!AL9 -> -0.005896724882 | T9: =G9-'Sensitivity Results'!AM9 -> -0.003773529248 | U9: =H9-'Sensitivity Results'!AN9 -> 0.005678693763 | X9: =U9-Q9 -> 0.01472629951 | Y9: =Y8/Y7 -> 0.1892330463 | Z9: = s /`x | AA9: =AA8/AA7 -> -1.244798564 | AB9: = s /`x
C10: ='Sensitivity Results(OI)'!AQ10 -> 0.8 | D10: ='Sensitivity Results(OI)'!AJ10 -> 0.2340755282 | E10: ='Sensitivity Results(OI)'!AK10 -> 0.2329030726 | F10: ='Sensitivity Results(OI)'!AL10 -> 0.2279041768 | G10: ='Sensitivity Results(OI)'!AM10 -> 0.2227106241 | H10: ='Sensitivity Results(OI)'!AN10 -> 0.2173056185 | J10: =((H10-D10)/((H10+D10)/2))/((H$5-D$5)/((H$5+D$5)/2)) -> -0.1463163883 | P10: =C10 -> 0.8 | Q10: =D10-'Sensitivity Results'!AJ10 -> -0.00749133336 | R10: =E10-'Sensitivity Results'!AK10 -> -0.00445863839 | S10: =F10-'Sensitivity Results'!AL10 -> -0.006171351431 | T10: =G10-'Sensitivity Results'!AM10 -> -0.005501031404 | U10: =H10-'Sensitivity Results'!AN10 -> 0.001496484517 | X10: =U10-Q10 -> 0.008987817877
B12: EReturns, LTV | D12: =((D10-D6)/((D10+D6)/2))/(($C10-$C6)/(($C10+$C6)/2)) -> 0.5473008429 | E12: =((E10-E6)/((E10+E6)/2))/(($C10-$C6)/(($C10+$C6)/2)) -> 0.5479264312 | F12: =((F10-F6)/((F10+F6)/2))/(($C10-$C6)/(($C10+$C6)/2)) -> 0.5505252401 | G12: =((G10-G6)/((G10+G6)/2))/(($C10-$C6)/(($C10+$C6)/2)) -> 0.5530965524 | H12: =((H10-H6)/((H10+H6)/2))/(($C10-$C6)/(($C10+$C6)/2)) -> 0.5556153157
A16: \ | B16: `EReturns, Rates | D16: = | E16: =AVERAGE(J6:J9) -> -0.1634523421 | F16: =IF(E16=ABS(J16),"=",IF(ABS(E16)>ABS(J16),">","<")) -> < | G16: `EReturns, LTV | I16: = | J16: =AVERAGE(D12:H13) -> 0.5508928765 | K16: =J16/E16 -> -3.370357802
B19: [represents the average values, over the range examined above]
B20: [inequalities are based on the absolute values]
B23: Panel B: Arc Elasticity Estimates for GPs' After-Tax Returns | O23: Panel B: Sensitivity Matrix of GPs' Before- Minus After-Tax Returns
D24: =D4 -> Pure Carry Taxed at Ordinary-Income Rate | J24: EReturns, Rates | Q24: =Q4 -> Pure Carry Taxed at Ordinary-Income Rate
D25: =D5 -> 0.238 | E25: =E5 -> 0.25 | F25: =F5 -> 0.3 | G25: =G5 -> 0.35 | H25: =H5 -> 0.4 | Q25: =Q5 -> 0.238 | R25: =R5 -> 0.25 | S25: =S5 -> 0.3 | T25: =T5 -> 0.35 | U25: =U5 -> 0.4
B26: ='Sensitivity Results(OI)'!A15 -> Unlevered RE Return | C26: ='Sensitivity Results(OI)'!AQ15 -> 0.062 | D26: ='Sensitivity Results(OI)'!AJ15 -> 0.04168005899 | E26: ='Sensitivity Results(OI)'!AK15 -> 0.04168005899 | F26: ='Sensitivity Results(OI)'!AL15 -> 0.04168005899 | G26: ='Sensitivity Results(OI)'!AM15 -> 0.04168005899 | H26: ='Sensitivity Results(OI)'!AN15 -> 0.04168005899 | J26: =((H26-D26)/((H26+D26)/2))/((H$25-D$25)/((H$25+D$25)/2)) -> 0 | O26: =B26 -> Unlevered RE Return | P26: =C26 -> 0.062 | Q26: =D26-'Sensitivity Results'!AJ15 -> -0.0003013378562 | R26: =E26-'Sensitivity Results'!AK15 -> -0.0001302225093 | S26: =F26-'Sensitivity Results'!AL15 -> 0 | T26: =G26-'Sensitivity Results'!AM15 -> 0.0009019124554 | U26: =H26-'Sensitivity Results'!AN15 -> 0.007181072914 | X26: =U26-Q26 -> 0.00748241077
C27: ='Sensitivity Results(OI)'!AQ16 -> 0.076 | D27: ='Sensitivity Results(OI)'!AJ16 -> 0.09778023836 | E27: ='Sensitivity Results(OI)'!AK16 -> 0.09733186 | F27: ='Sensitivity Results(OI)'!AL16 -> 0.09544488298 | G27: ='Sensitivity Results(OI)'!AM16 -> 0.0935268999 | H27: ='Sensitivity Results(OI)'!AN16 -> 0.09157680557 | J27: =((H27-D27)/((H27+D27)/2))/((H$25-D$25)/((H$25+D$25)/2)) -> -0.1290197749 | P27: =C27 -> 0.076 | Q27: =D27-'Sensitivity Results'!AJ16 -> -0.004817605096 | R27: =E27-'Sensitivity Results'!AK16 -> -0.002553019058 | S27: =F27-'Sensitivity Results'!AL16 -> -0.002335355374 | T27: =G27-'Sensitivity Results'!AM16 -> -0.0002765332359 | U27: =H27-'Sensitivity Results'!AN16 -> 0.007814104189 | X27: =U27-Q27 -> 0.01263170929 | Y27: =AVERAGE(X26:X30) -> 0.01152617402 | Z27: =`x | AA27: =AVERAGE(Q26:U30) -> -0.00206949467 | AB27: =`x
C28: ='Sensitivity Results(OI)'!AQ17 -> 0.094 | D28: ='Sensitivity Results(OI)'!AJ17 -> 0.1867561053 | E28: ='Sensitivity Results(OI)'!AK17 -> 0.1857170463 | F28: ='Sensitivity Results(OI)'!AL17 -> 0.1812923471 | G28: ='Sensitivity Results(OI)'!AM17 -> 0.1767049413 | H28: ='Sensitivity Results(OI)'!AN17 -> 0.1719415209 | J28: =((H28-D28)/((H28+D28)/2))/((H$25-D$25)/((H$25+D$25)/2)) -> -0.1626547067 | P28: =C28 -> 0.094 | Q28: =D28-'Sensitivity Results'!AJ17 -> -0.008259547305 | R28: =E28-'Sensitivity Results'!AK17 -> -0.004672286776 | S28: =F28-'Sensitivity Results'!AL17 -> -0.005463758201 | T28: =G28-'Sensitivity Results'!AM17 -> -0.003606119335 | U28: =H28-'Sensitivity Results'!AN17 -> 0.004873900225 | X28: =U28-Q28 -> 0.01313344753 | Y28: =STDEV(X26:X30) -> 0.002303704413 | Z28: = s | AA28: =STDEV(Q26:U30) -> 0.004696484493 | AB28: = s
C29: ='Sensitivity Results(OI)'!AQ18 -> 0.108 | D29: ='Sensitivity Results(OI)'!AJ18 -> 0.2347413573 | E29: ='Sensitivity Results(OI)'!AK18 -> 0.2336049254 | F29: ='Sensitivity Results(OI)'!AL18 -> 0.2287586029 | G29: ='Sensitivity Results(OI)'!AM18 -> 0.223721643 | H29: ='Sensitivity Results(OI)'!AN18 -> 0.2184772495 | J29: =((H29-D29)/((H29+D29)/2))/((H$25-D$25)/((H$25+D$25)/2)) -> -0.1413279883 | P29: =C29 -> 0.108 | Q29: =D29-'Sensitivity Results'!AJ18 -> -0.008479877057 | R29: =E29-'Sensitivity Results'!AK18 -> -0.004866528999 | S29: =F29-'Sensitivity Results'!AL18 -> -0.005982754458 | T29: =G29-'Sensitivity Results'!AM18 -> -0.004396513322 | U29: =H29-'Sensitivity Results'!AN18 -> 0.004015861847 | X29: =U29-Q29 -> 0.0124957389 | Y29: =Y28/Y27 -> 0.1998672247 | Z29: = s /`x | AA29: =AA28/AA27 -> -2.269387093 | AB29: = s /`x
C30: ='Sensitivity Results(OI)'!AQ19 -> 0.122 | D30: ='Sensitivity Results(OI)'!AJ19 -> 0.2778865542 | E30: ='Sensitivity Results(OI)'!AK19 -> 0.2767336717 | F30: ='Sensitivity Results(OI)'!AL19 -> 0.2718169654 | G30: ='Sensitivity Results(OI)'!AM19 -> 0.266706383 | H30: ='Sensitivity Results(OI)'!AN19 -> 0.2613847059 | J30: =((H30-D30)/((H30+D30)/2))/((H$25-D$25)/((H$25+D$25)/2)) -> -0.1205121903 | P30: =C30 -> 0.122 | Q30: =D30-'Sensitivity Results'!AJ19 -> -0.008360409607 | R30: =E30-'Sensitivity Results'!AK19 -> -0.00482863142 | S30: =F30-'Sensitivity Results'!AL19 -> -0.00606958877 | T30: =G30-'Sensitivity Results'!AM19 -> -0.004651284011 | U30: =H30-'Sensitivity Results'!AN19 -> 0.003527154009 | X30: =U30-Q30 -> 0.01188756362
B32: EReturns, RE Return | D32: =((D30-D26)/((D30+D26)/2))/(($C30-$C26)/(($C30+$C26)/2)) -> 2.266715469 | E32: =((E30-E26)/((E30+E26)/2))/(($C30-$C26)/(($C30+$C26)/2)) -> 2.26381908 | F32: =((F30-F26)/((F30+F26)/2))/(($C30-$C26)/(($C30+$C26)/2)) -> 2.251227683 | G32: =((G30-G26)/((G30+G26)/2))/(($C30-$C26)/(($C30+$C26)/2)) -> 2.237714222 | H32: =((H30-H26)/((H30+H26)/2))/(($C30-$C26)/(($C30+$C26)/2)) -> 2.2231582
A36: \ | B36: `EReturns, Rates | D36: = | E36: =AVERAGE(J26:J29) -> -0.1082506175 | F36: =IF(E36=ABS(J36),"=",IF(ABS(E36)>ABS(J36),">","<")) -> < | G36: `EReturns, RE Return | I36: = | J36: =AVERAGE(D32:H33) -> 2.248526931 | K36: =J36/E36 -> -20.77149288
B39: [represents the average values, over the range examined above]
B40: [inequalities are based on the absolute values]
B43: Panel C: Arc Elasticity Estimates for GPs' After-Tax Returns | O43: Panel C: Sensitivity Matrix of GPs' Before- Minus After-Tax Returns
D44: =D4 -> Pure Carry Taxed at Ordinary-Income Rate | J44: EReturns, Rates | Q44: =Q4 -> Pure Carry Taxed at Ordinary-Income Rate
D45: =D25 -> 0.238 | E45: =E25 -> 0.25 | F45: =F25 -> 0.3 | G45: =G25 -> 0.35 | H45: =H25 -> 0.4 | Q45: =Q25 -> 0.238 | R45: =R25 -> 0.25 | S45: =S25 -> 0.3 | T45: =T25 -> 0.35 | U45: =U25 -> 0.4
B46: ='Base Case Assumptions'!A23 -> Preferred Return | C46: ='Sensitivity Results(OI)'!AQ24 -> 0.06 | D46: ='Sensitivity Results(OI)'!AJ24 -> 0.1967555751 | E46: ='Sensitivity Results(OI)'!AK24 -> 0.1956770894 | F46: ='Sensitivity Results(OI)'!AL24 -> 0.1910812752 | G46: ='Sensitivity Results(OI)'!AM24 -> 0.1863107415 | H46: ='Sensitivity Results(OI)'!AN24 -> 0.1813506763 | J46: =((H46-D46)/((H46+D46)/2))/((H$25-D$25)/((H$25+D$25)/2)) -> -0.1604540394 | O46: =B46 -> Preferred Return | P46: =C46 -> 0.06 | Q46: =D46-'Sensitivity Results'!AJ24 -> -0.008170414035 | R46: =E46-'Sensitivity Results'!AK24 -> -0.004671392935 | S46: =F46-'Sensitivity Results'!AL24 -> -0.005674299879 | T46: =G46-'Sensitivity Results'!AM24 -> -0.004042857624 | U46: =H46-'Sensitivity Results'!AN24 -> 0.004373989786 | X46: =U46-Q46 -> 0.01254440382
C47: ='Sensitivity Results(OI)'!AQ25 -> 0.065 | D47: ='Sensitivity Results(OI)'!AJ25 -> 0.19186986 | E47: ='Sensitivity Results(OI)'!AK25 -> 0.1908066676 | F47: ='Sensitivity Results(OI)'!AL25 -> 0.1862772559 | G47: ='Sensitivity Results(OI)'!AM25 -> 0.1815778411 | H47: ='Sensitivity Results(OI)'!AN25 -> 0.1766942132 | J47: =((H47-D47)/((H47+D47)/2))/((H$25-D$25)/((H$25+D$25)/2)) -> -0.1621585581 | P47: =C47 -> 0.065 | Q47: =D47-'Sensitivity Results'!AJ25 -> -0.008247047941 | R47: =E47-'Sensitivity Results'!AK25 -> -0.004690569059 | S47: =F47-'Sensitivity Results'!AL25 -> -0.005592604098 | T47: =G47-'Sensitivity Results'!AM25 -> -0.003846382497 | U47: =H47-'Sensitivity Results'!AN25 -> 0.004599373568 | X47: =U47-Q47 -> 0.01284642151 | Y47: =AVERAGE(X46:X50) -> 0.0131010814 | Z47: =`x | AA47: =AVERAGE(Q46:U50) -> -0.003375058666 | AB47: =`x
C48: ='Sensitivity Results(OI)'!AQ26 -> 0.07 | D48: ='Sensitivity Results(OI)'!AJ26 -> 0.1867561053 | E48: ='Sensitivity Results(OI)'!AK26 -> 0.1857170463 | F48: ='Sensitivity Results(OI)'!AL26 -> 0.1812923471 | G48: ='Sensitivity Results(OI)'!AM26 -> 0.1767049413 | H48: ='Sensitivity Results(OI)'!AN26 -> 0.1719415209 | J48: =((H48-D48)/((H48+D48)/2))/((H$25-D$25)/((H$25+D$25)/2)) -> -0.1626547067 | P48: =C48 -> 0.07 | Q48: =D48-'Sensitivity Results'!AJ26 -> -0.008259547305 | R48: =E48-'Sensitivity Results'!AK26 -> -0.004672286776 | S48: =F48-'Sensitivity Results'!AL26 -> -0.005463758201 | T48: =G48-'Sensitivity Results'!AM26 -> -0.003606119335 | U48: =H48-'Sensitivity Results'!AN26 -> 0.004873900225 | X48: =U48-Q48 -> 0.01313344753 | Y48: =STDEV(X46:X50) -> 0.0004182948176 | Z48: = s | AA48: =STDEV(Q46:U50) -> 0.004518550059 | AB48: = s
C49: ='Sensitivity Results(OI)'!AQ27 -> 0.075 | D49: ='Sensitivity Results(OI)'!AJ27 -> 0.181242835 | E49: ='Sensitivity Results(OI)'!AK27 -> 0.1802374745 | F49: ='Sensitivity Results(OI)'!AL27 -> 0.1759588876 | G49: ='Sensitivity Results(OI)'!AM27 -> 0.1715275801 | H49: ='Sensitivity Results(OI)'!AN27 -> 0.1669314428 | J49: =((H49-D49)/((H49+D49)/2))/((H$25-D$25)/((H$25+D$25)/2)) -> -0.1618791309 | P49: =C49 -> 0.075 | Q49: =D49-'Sensitivity Results'!AJ27 -> -0.008199191413 | R49: =E49-'Sensitivity Results'!AK27 -> -0.004611887101 | S49: =F49-'Sensitivity Results'!AL27 -> -0.005283947329 | T49: =G49-'Sensitivity Results'!AM27 -> -0.003321869528 | U49: =H49-'Sensitivity Results'!AN27 -> 0.005189653223 | X49: =U49-Q49 -> 0.01338884464 | Y49: =Y48/Y47 -> 0.03192826645 | Z49: = s /`x | AA49: =AA48/AA47 -> -1.338806375 | AB49: = s /`x
C50: ='Sensitivity Results(OI)'!AQ28 -> 0.08 | D50: ='Sensitivity Results(OI)'!AJ28 -> 0.1751723822 | E50: ='Sensitivity Results(OI)'!AK28 -> 0.1742113369 | F50: ='Sensitivity Results(OI)'!AL28 -> 0.1701247063 | G50: ='Sensitivity Results(OI)'!AM28 -> 0.1658981217 | H50: ='Sensitivity Results(OI)'!AN28 -> 0.1615209526 | J50: =((H50-D50)/((H50+D50)/2))/((H$25-D$25)/((H$25+D$25)/2)) -> -0.1596795417 | P50: =C50 -> 0.08 | Q50: =D50-'Sensitivity Results'!AJ28 -> -0.008054114573 | R50: =E50-'Sensitivity Results'!AK28 -> -0.004503002176 | S50: =F50-'Sensitivity Results'!AL28 -> -0.005047675936 | T50: =G50-'Sensitivity Results'!AM28 -> -0.002992590636 | U50: =H50-'Sensitivity Results'!AN28 -> 0.005538174913 | X50: =U50-Q50 -> 0.01359228949
B52: EReturns, Pref | D52: =((D50-D46)/((D50+D46)/2))/(($C50-$C46)/(($C50+$C46)/2)) -> -0.4062140181 | E52: =((E50-E46)/((E50+E46)/2))/(($C50-$C46)/(($C50+$C46)/2)) -> -0.4062313297 | F52: =((F50-F46)/((F50+F46)/2))/(($C50-$C46)/(($C50+$C46)/2)) -> -0.4061283309 | G52: =((G50-G46)/((G50+G46)/2))/(($C50-$C46)/(($C50+$C46)/2)) -> -0.4056920592 | H52: =((H50-H46)/((H50+H46)/2))/(($C50-$C46)/(($C50+$C46)/2)) -> -0.4048397531
A55: \ | B55: `EReturns, Rates | D55: = | E55: =AVERAGE(J46:J49) -> -0.1617866088 | F55: =IF(E55=ABS(J55),"=",IF(ABS(E55)>ABS(J55),">","<")) -> < | G55: `EReturns, Pref | I55: = | J55: =AVERAGE(D52:H52) -> -0.4058210982 | K55: =E55/J55 -> 0.3986648538
B58: [represents the average values, over the range examined above]
B59: [inequalities are based on the absolute values]
B62: Panel D: Arc Elasticity Estimates for GPs' After-Tax Returns | O62: Panel D: Sensitivity Matrix of GPs' Before- Minus After-Tax Returns
D63: =D24 -> Pure Carry Taxed at Ordinary-Income Rate | J63: EReturns, Rates | Q63: =Q44 -> Pure Carry Taxed at Ordinary-Income Rate
D64: =D45 -> 0.238 | E64: =E45 -> 0.25 | F64: =F45 -> 0.3 | G64: =G45 -> 0.35 | H64: =H45 -> 0.4 | Q64: =Q45 -> 0.238 | R64: =R45 -> 0.25 | S64: =S45 -> 0.3 | T64: =T45 -> 0.35 | U64: =U45 -> 0.4
B65: ='Base Case Assumptions'!A25 -> Passive-Loss Utilization Rate | C65: ='Sensitivity Results(OI)'!AQ33 -> 0 | D65: ='Sensitivity Results(OI)'!AJ33 -> 0.1853532466 | E65: ='Sensitivity Results(OI)'!AK33 -> 0.1843172757 | F65: ='Sensitivity Results(OI)'!AL33 -> 0.1799060345 | G65: ='Sensitivity Results(OI)'!AM33 -> 0.1753331237 | H65: ='Sensitivity Results(OI)'!AN33 -> 0.1705853625 | J65: =((H65-D65)/((H65+D65)/2))/((H$25-D$25)/((H$25+D$25)/2)) -> -0.1633987925 | O65: =B65 -> Passive-Loss Utilization Rate | P65: =C65 -> 0 | Q65: =D65-'Sensitivity Results'!AJ33 -> -0.008235941166 | R65: =E65-'Sensitivity Results'!AK33 -> -0.004658611628 | S65: =F65-'Sensitivity Results'!AL33 -> -0.005447212133 | T65: =G65-'Sensitivity Results'!AM33 -> -0.003594677744 | U65: =H65-'Sensitivity Results'!AN33 -> 0.004857209899 | X65: =U65-Q65 -> 0.01309315106
C66: ='Sensitivity Results(OI)'!AQ34 -> 0.25 | D66: ='Sensitivity Results(OI)'!AJ34 -> 0.1860827391 | E66: ='Sensitivity Results(OI)'!AK34 -> 0.1850452523 | F66: ='Sensitivity Results(OI)'!AL34 -> 0.1806273945 | G66: ='Sensitivity Results(OI)'!AM34 -> 0.1760473389 | H66: ='Sensitivity Results(OI)'!AN34 -> 0.1712918386 | J66: =((H66-D66)/((H66+D66)/2))/((H$25-D$25)/((H$25+D$25)/2)) -> -0.1629958791 | P66: =C66 -> 0.25 | Q66: =D66-'Sensitivity Results'!AJ34 -> -0.008247497472 | R66: =E66-'Sensitivity Results'!AK34 -> -0.004665317287 | S66: =F66-'Sensitivity Results'!AL34 -> -0.005455344581 | T66: =G66-'Sensitivity Results'!AM34 -> -0.003600319053 | U66: =H66-'Sensitivity Results'!AN34 -> 0.004865480655 | X66: =U66-Q66 -> 0.01311297813 | Y66: =AVERAGE(X65:X69) -> 0.01313309056 | Z66: =`x | AA66: =AVERAGE(Q65:U69) -> -0.003425536248 | AB66: =`x
C67: ='Sensitivity Results(OI)'!AQ35 -> 0.5 | D67: ='Sensitivity Results(OI)'!AJ35 -> 0.1867561053 | E67: ='Sensitivity Results(OI)'!AK35 -> 0.1857170463 | F67: ='Sensitivity Results(OI)'!AL35 -> 0.1812923471 | G67: ='Sensitivity Results(OI)'!AM35 -> 0.1767049413 | H67: ='Sensitivity Results(OI)'!AN35 -> 0.1719415209 | J67: =((H67-D67)/((H67+D67)/2))/((H$25-D$25)/((H$25+D$25)/2)) -> -0.1626547067 | P67: =C67 -> 0.5 | Q67: =D67-'Sensitivity Results'!AJ35 -> -0.008259547305 | R67: =E67-'Sensitivity Results'!AK35 -> -0.004672286776 | S67: =F67-'Sensitivity Results'!AL35 -> -0.005463758201 | T67: =G67-'Sensitivity Results'!AM35 -> -0.003606119335 | U67: =H67-'Sensitivity Results'!AN35 -> 0.004873900225 | X67: =U67-Q67 -> 0.01313344753 | Y67: =STDEV(X65:X69) -> 3.142127453e-05 | Z67: = s | AA67: =STDEV(Q65:U69) -> 0.004518117118 | AB67: = s
C68: ='Sensitivity Results(OI)'!AQ36 -> 0.75 | D68: ='Sensitivity Results(OI)'!AJ36 -> 0.1873418479 | E68: ='Sensitivity Results(OI)'!AK36 -> 0.1863012187 | F68: ='Sensitivity Results(OI)'!AL36 -> 0.1818697117 | G68: ='Sensitivity Results(OI)'!AM36 -> 0.1772750348 | H68: ='Sensitivity Results(OI)'!AN36 -> 0.1725038272 | J68: =((H68-D68)/((H68+D68)/2))/((H$25-D$25)/((H$25+D$25)/2)) -> -0.1623922688 | P68: =C68 -> 0.75 | Q68: =D68-'Sensitivity Results'!AJ36 -> -0.008271655439 | R68: =E68-'Sensitivity Results'!AK36 -> -0.004679263858 | S68: =F68-'Sensitivity Results'!AL36 -> -0.005472136181 | T68: =G68-'Sensitivity Results'!AM36 -> -0.003611853488 | U68: =H68-'Sensitivity Results'!AN36 -> 0.004882127268 | X68: =U68-Q68 -> 0.01315378271 | Y68: =Y67/Y66 -> 0.002392527059 | Z68: = s /`x | AA68: =AA67/AA66 -> -1.318951776 | AB68: = s /`x
C69: ='Sensitivity Results(OI)'!AQ37 -> 1 | D69: ='Sensitivity Results(OI)'!AJ37 -> 0.1877956448 | E69: ='Sensitivity Results(OI)'!AK37 -> 0.1867535937 | F69: ='Sensitivity Results(OI)'!AL37 -> 0.1823159463 | G69: ='Sensitivity Results(OI)'!AM37 -> 0.1777147542 | H69: ='Sensitivity Results(OI)'!AN37 -> 0.1729366161 | J69: =((H69-D69)/((H69+D69)/2))/((H$25-D$25)/((H$25+D$25)/2)) -> -0.1622225043 | P69: =C69 -> 1 | Q69: =D69-'Sensitivity Results'!AJ37 -> -0.00828269524 | R69: =E69-'Sensitivity Results'!AK37 -> -0.004685599064 | S69: =F69-'Sensitivity Results'!AL37 -> -0.005479698536 | T69: =G69-'Sensitivity Results'!AM37 -> -0.003616987917 | U69: =H69-'Sensitivity Results'!AN37 -> 0.004889398144 | X69: =U69-Q69 -> 0.01317209338
B71: EReturns, Utilization | D71: =((D69-D65)/((D69+D65)/2))/(($C69-$C65)/(($C69+$C65)/2)) -> 0.006545371677 | E71: =((E69-E65)/((E69+E65)/2))/(($C69-$C65)/(($C69+$C65)/2)) -> 0.006565640795 | F71: =((F69-F65)/((F69+F65)/2))/(($C69-$C65)/(($C69+$C65)/2)) -> 0.006653135121 | G71: =((G69-G65)/((G69+G65)/2))/(($C69-$C65)/(($C69+$C65)/2)) -> 0.006745913596 | H71: =((H69-H65)/((H69+H65)/2))/(($C69-$C65)/(($C69+$C65)/2)) -> 0.006844550919
A75: \ | B75: `EReturns, Rates | D75: = | E75: =AVERAGE(J65:J68) -> -0.1628604118 | F75: =IF(E75=ABS(J75),"=",IF(ABS(E75)>ABS(J75),">","<")) -> > | G75: `EReturns, Utilization | I75: = | J75: =AVERAGE(D71:H72) -> 0.006670922422 | K75: =E75/J75 -> -24.4134771 | O75: Note on alternative tax-rate scenarios: | Q75: Capital-Gains Tax Rate | W75: `x = | X75: =AVERAGE(X6:X69) -> 0.01241210828 | Z75: `x = | AA75: =(AA7+AA27+AA47+AA66)/4 -> -0.00306466955
Q76: ='Base Case Assumptions'!F8 -> 0.15 | R76: ='Base Case Assumptions'!G8 -> 0.2 | S76: ='Base Case Assumptions'!H8 -> 0.238 | T76: ='Base Case Assumptions'!I8 -> 0.3 | U76: ='Base Case Assumptions'!J8 -> 0.4 | W76: s = | X76: =STDEV(X6:X69) -> 0.00166140515
B78: [represents the average values, over the range examined above]
B79: [inequalities are based on the absolute values]

Sheet Paper's Appendices

Sheet A.1
A2: Appendix A.1: Sources & Uses Statement – Acquisition
A4: Sources of Funds:
A5: Mortgage Loan | G5: =G13*I5 -> 6000000 | I5: 0.6 | J5: Loan-to-Value Ratio
A6: Equity Capital:
B7: Limited Partners | G7: =G9-G8 -> 3800000
B8: General Partner | G8: =I8*G9 -> 200000 | I8: 0.05 | J8: Co-Investment Requirement
C9: Total Equity | G9: =G10-G5 -> 4000000
B10: Total Sources | G10: =G17 -> 10000000
A12: Uses of Funds:
A13: Purchase Price | G13: 10000000
A14: Acquisition Fees & Costs | G14: =I14*G13 -> 0 | I14: 0 | J14: of Purchase Price
A15: Loan Origination Fees & Costs | G15: =I15*G5 -> 0 | I15: 0 | J15: of Loan Amount
A16: Organization & Offering Costs | G16: =ROUND((G13+G14-G5+G15)*(1/(1-I16)-1),-4) -> 0 | I16: 0 | J16: of Equity Capital
B17: Total Uses | G17: =SUM(G13:G16) -> 10000000
A19: Ongoing General Partner Fees:
A20: Asset Management Fee | G20: 0.01 | H20: of Equity Capital
A23: † | B23: Rounded (payable on Total Equity – assumes Acquisition Fees exceed GP's portion), when applicable.

Sheet A.2
A2: Appendix A.2: Major Assumptions – Acquisition
A4: Property Assumptions:
A5: Going-In Capitalization Rate (NOI1/P0) | M5: 0.08
A6: Ongoing Cap Ex (including tenant improvements & leasing commissions) | M6: 0.2 | N6: (as a percentage of NOI)
A7: Growth in Cash Flow (g) | J7: Recall: ka = CF1/P0 + g + D | M7: 0.03
A8: Going-Out Capitalization Rate (NOIN+1/PN) | J8: ka ≈ | K8: =M5*(1-M6)+M7+(M5/M8)^(1/M15)-1-M9/M15 -> 0.094 | M8: 0.08
A9: Disposition Fees & Costs | M9: 0
A12: Mortgage Loan Assumptions:
A13: Interest Rate | I13: Recall: ke = [ka - kd(LTV)]/[1- LTV] | M13: 0.065
A14: Amortization Period | J14: ke ≈ | K14: =(K8-(M13+M16/M15)*A.1!G5/A.1!G10)/(1-A.1!G5/A.1!G10) -> 0.1375 | M14: 30 | N14: Years
A15: Loan Maturity | M15: 15 | N15: Years
A16: Loan Origination Fees & Costs | M16: =A.1!I15 -> 0
A17: Loan Payment-Annual | M17: =-PMT(M13/12,M14*12,A.1!G5)*12 -> 455088.9769
A18: Loan Constant | M18: =PMT(M13/12,M14*12,1)*-12 -> 0.07584816282
A21: Tax Considerations:
B22: Depreciable Components:
C23: Land | M23: =M26*N23 -> 1000000 | N23: 0.1
C24: Building | M24: =M26*N24 -> 7750000 | N24: =1-N23-N25 -> 0.775
C25: Personal Property | M25: =M26*N25 -> 1250000 | N25: 0.125
D26: Total | M26: =A.1!G13+A.1!G14 -> 10000000
B28: Depreciable Lives:
C29: Land | M29: 0 | N29: Years
C30: Building | M30: 30 | N30: Years
C31: Personal Property | M31: 7 | N31: Years
B33: Depreciation Methods:
C34: Land | M34: NA
C35: Building | M35: Straight Line
C36: Personal Property | M36: 200% Declining Balance
B38: Tax Rates:
C39: Ordinary Income | M39: 0.3
C40: Capital Gains | M40: 0.238
C41: Depreciation Recapture (1231 Gain)† | M41: 0.288
C43: † Includes the Net Investment Income Tax (NIIT) of 3.8%

Sheet A.2 (continued)
A2: Appendix A.2: Major Assumptions – Acquisition (continued)
A4: Equity Considerations:
B5: Minimum Investment Size | N5: 40000
B6: Number of Units | N6: =A.1!G9/'A.2 (continued)'!N5 -> 100
B8: Cash Flow Allocations:
C9: Operating Cash Flow:
C10: 1 | D10: . | E10: LPs & GP receive a preferred return of | N10: 0.07 | O10: on invested capital (cumulative)
C11: 2 | D11: . | E11: Balance is split:
F12: Real Estate Profit:
G13: Limited Partners † | N13: =(1-N65)*(1-A.1!I8) -> 0.76
G14: General Partner †† | N14: =1-N13-N15 -> 0.04
F15: General Partner's Carried Interest ††† | N15: =N65 -> 0.2
C17: Capital Events (after retiring debts, establishing reserves, etc.):
C18: 1 | D18: . | E18: LPs & GP receive their invested capital
C19: 2 | D19: . | E19: LPs & GP receive a (cumulative, compounding) preferred return | N19: 0.07
C20: 3 | D20: . | E20: Balance is split:
F21: Real Estate Profit:
G22: Limited Partners † | N22: =N13 -> 0.76
G23: General Partner †† | N23: =N14 -> 0.04
F24: General Partner's Carried Interest ††† | N24: =N15 -> 0.2
B26: Tax Allocations:
C27: Operating Income/<Loss> :
C28: 1 | D28: . | E28: Operating Income:
E29: a) | F29: If cash flow distrubution, then in proportion to such distributions
E30: b) | F30: If no cash flow distrubution, then in the following proportion:
G31: Limited Partners | N31: =1-A.1!I8 -> 0.95
G32: General Partner | N32: =1-N31 -> 0.05
C34: 2 | D34: . | E34: Operating <Loss> :
F35: Limited Partners | N35: =N31 -> 0.95
F36: General Partner | N36: =1-N35 -> 0.05
C38: Capital Gain/<Loss> :
C39: 3 | D39: . | E39: Capital Gain:
E40: a) | F40: In proportion to negative balances (if any) in capital accounts
E41: b) | F41: To the (limited and general) partners, such that their capital accounts
F42: are brought up to the amount of their (returned) invested capital
E43: c) | F43: LPs & GP to the extent of their preferred return
E44: d) | F44: Balance is split:
G45: Real Estate Profit:
H46: Limited Partners † | N46: =N22 -> 0.76
H47: General Partner †† | N47: =N23 -> 0.04
G48: General Partner's Carried Interest ††† | N48: =N24 -> 0.2
C50: 4 | D50: . | E50: Capital <Loss> :
E51: a) | F51: In proportion to positive balances in capital accounts
E52: b) | F52: Balance is split:
G53: Limited Partners | N53: =N35 -> 0.95
G54: General Partner | N54: =N36 -> 0.05
B56: Notes:
B57: † | C57: ="Represents the limited partner's share of the residual profits after the general partner's 'pure' " &TEXT(N65,"0%") &" carried interest (i.e., (100% – " &TEXT(N65,"0%)") &" x " &TEXT(N31,"0%).") -> Represents the limited partner's share of the residual profits after the general partner's 'pure' 20% carried interest (i.e., (100% – 20%) x 95%).
B60: †† | C60: ="Represents the general partner's share of the residual profits after the general partner's 'pure' " &TEXT(N68,"0%") &" carried interest (i.e., (100% – " &TEXT(N65,"0%)") &" x " &TEXT(N32,"0%).") -> Represents the general partner's share of the residual profits after the general partner's 'pure' 0% carried interest (i.e., (100% – 20%) x 5%).
B63: ††† | C63: ="Represents the general partner's 'pure' " &TEXT(N65,"0%") &" carried interest." -> Represents the general partner's 'pure' 20% carried interest.
C65: GP's "Pure" Carry (i.e., in the absence of any co-investment capital) | N65: 0.2
C68: GP's "Pure" Carry Taxed at Ordinary Income Rates?
I69: Yes | J69: =IF(I69="No","GP's Pure Carry Is Taxed at the Capital-Gains Rate.","GP's Pure Carry Is Taxed at ≈ the Ordinary-Income Rate.") -> GP's Pure Carry Is Taxed at ≈ the Ordinary-Income Rate.
D73: {Enter either "No" or "Yes" in cell I69.}
A76: ="[ Sheet Name: " &RIGHT(CELL("filename",A32),LEN(CELL("filename",A32))-FIND("]",CELL("filename",A32),1)) &" ]" -> [ Sheet Name: A.2 (continued) ]

Sheet A.3
A2: ="Appendix A.3: " &TEXT(E39,"0") &"-Year Operating Cash Flow Pro Forma" -> Appendix A.3: 10-Year Operating Cash Flow Pro Forma
F4: 1 | G4: =F4+1 -> 2 | H4: =G4+1 -> 3 | I4: 4 | J4: 5 | K4: 6 | L4: 7 | M4: 8 | N4: 9 | O4: 10 | P4: 11 | Q4: 12 | R4: 13 | S4: 14 | T4: 15 | U4: Total
A5: Net Operating Income | F5: =A.1!G13*A.2!M5 -> 800000 | G5: =IF(ISNUMBER(G39),F5*(1+A.2!$M7),0) -> 824000 | H5: =IF(ISNUMBER(H39),G5*(1+A.2!$M7),0) -> 848720 | I5: =IF(ISNUMBER(I39),H5*(1+A.2!$M7),0) -> 874181.6 | J5: =IF(ISNUMBER(J39),I5*(1+A.2!$M7),0) -> 900407.048 | K5: =IF(ISNUMBER(K39),J5*(1+A.2!$M7),0) -> 927419.2594 | L5: =IF(ISNUMBER(L39),K5*(1+A.2!$M7),0) -> 955241.8372 | M5: =IF(ISNUMBER(M39),L5*(1+A.2!$M7),0) -> 983899.0923 | N5: =IF(ISNUMBER(N39),M5*(1+A.2!$M7),0) -> 1013416.065 | O5: =IF(ISNUMBER(O39),N5*(1+A.2!$M7),0) -> 1043818.547 | P5: =IF(ISNUMBER(P39),O5*(1+A.2!$M7),0) -> 0 | Q5: =IF(ISNUMBER(Q39),P5*(1+A.2!$M7),0) -> 0 | R5: =IF(ISNUMBER(R39),Q5*(1+A.2!$M7),0) -> 0 | S5: =IF(ISNUMBER(S39),R5*(1+A.2!$M7),0) -> 0 | T5: =IF(ISNUMBER(T39),S5*(1+A.2!$M7),0) -> 0 | U5: =SUM(F5:T5) -> 9171103.449
A6: Mortgage Debt Service:
B7: Interest (see A.4) | F7: =A.4!D19 -> 388025.4488 | G7: =IF(ISNUMBER(G39),A.4!D33,0) -> 383534.0801 | H7: =IF(ISNUMBER(H39),A.4!D47,0) -> 378741.9161 | I7: =IF(ISNUMBER(I39),A.4!D61,0) -> 373628.8121 | J7: =IF(ISNUMBER(J39),A.4!D75,0) -> 368173.274 | K7: =IF(ISNUMBER(K39),A.4!D89,0) -> 362352.3684 | L7: =IF(ISNUMBER(L39),A.4!D103,0) -> 356141.626 | M7: =IF(ISNUMBER(M39),A.4!D117,0) -> 349514.9386 | N7: =IF(ISNUMBER(N39),A.4!D131,0) -> 342444.4497 | O7: =IF(ISNUMBER(O39),A.4!D145,0) -> 334900.4371 | P7: =IF(ISNUMBER(P39),A.4!D159,0) -> 0 | Q7: =IF(ISNUMBER(Q39),A.4!D173,0) -> 0 | R7: =IF(ISNUMBER(R39),A.4!D187,0) -> 0 | S7: =IF(ISNUMBER(S39),A.4!D201,0) -> 0 | T7: =IF(ISNUMBER(T39),A.4!D215,0) -> 0 | U7: =SUM(F7:T7) -> 3637457.351
B8: Principal (see A.4) | F8: =A.4!E19 -> 67063.52814 | G8: =IF(ISNUMBER(G39),A.4!E33,0) -> 71554.89682 | H8: =IF(ISNUMBER(H39),A.4!E47,0) -> 76347.06078 | I8: =IF(ISNUMBER(I39),A.4!E61,0) -> 81460.16483 | J8: =IF(ISNUMBER(J39),A.4!E75,0) -> 86915.70294 | K8: =IF(ISNUMBER(K39),A.4!E89,0) -> 92736.60853 | L8: =IF(ISNUMBER(L39),A.4!E103,0) -> 98947.35095 | M8: =IF(ISNUMBER(M39),A.4!E117,0) -> 105574.0383 | N8: =IF(ISNUMBER(N39),A.4!E131,0) -> 112644.5272 | O8: =IF(ISNUMBER(O39),A.4!E145,0) -> 120188.5398 | P8: =IF(ISNUMBER(P39),A.4!E159,0) -> 0 | Q8: =IF(ISNUMBER(Q39),A.4!E173,0) -> 0 | R8: =IF(ISNUMBER(R39),A.4!E187,0) -> 0 | S8: =IF(ISNUMBER(S39),A.4!E201,0) -> 0 | T8: =IF(ISNUMBER(T39),A.4!E215,0) -> 0 | U8: 913432.4182
C9: Total Debt Service | F9: =F7+F8 -> 455088.9769 | G9: 455088.9769 | H9: 455088.9769 | I9: 455088.9769 | J9: 455088.9769 | K9: 455088.9769 | L9: 455088.9769 | M9: 455088.9769 | N9: 455088.9769 | O9: =O7+O8 -> 455088.9769 | P9: 0 | Q9: 0 | R9: 0 | S9: 0 | T9: 0 | U9: 4550889.769
A10: Capital Expenditures | F10: =A.2!$M6*A.3!F5 -> 160000 | G10: =A.2!$M6*A.3!G5 -> 164800 | H10: =A.2!$M6*A.3!H5 -> 169744 | I10: =A.2!$M6*A.3!I5 -> 174836.32 | J10: =A.2!$M6*A.3!J5 -> 180081.4096 | K10: =A.2!$M6*A.3!K5 -> 185483.8519 | L10: =A.2!$M6*A.3!L5 -> 191048.3674 | M10: =A.2!$M6*A.3!M5 -> 196779.8185 | N10: =A.2!$M6*A.3!N5 -> 202683.213 | O10: =A.2!$M6*A.3!O5 -> 208763.7094 | P10: =A.2!$M6*A.3!P5 -> 0 | Q10: =A.2!$M6*A.3!Q5 -> 0 | R10: =A.2!$M6*A.3!R5 -> 0 | S10: =A.2!$M6*A.3!S5 -> 0 | T10: =A.2!$M6*A.3!T5 -> 0 | U10: 1834220.69
A11: Asset Manangement Fee | F11: =A.1!G20*A.1!G9 -> 40000 | G11: =IF(ISNUMBER(G39),F11,0) -> 40000 | H11: 40000 | I11: 40000 | J11: 40000 | K11: 40000 | L11: 40000 | M11: 40000 | N11: 40000 | O11: 40000 | P11: 0 | Q11: 0 | R11: 0 | S11: 0 | T11: 0 | U11: 400000
A12: Before-Tax Cash Flow | F12: =MAX(F5-SUM(F9:F11),0) -> 144911.0231 | G12: =MAX(G5-SUM(G9:G11),0) -> 164111.0231 | H12: 183887.0231 | I12: 204256.3031 | J12: 225236.6615 | K12: 246846.4306 | L12: 269104.4929 | M12: 292030.297 | N12: 315643.8752 | O12: =MAX(O5-SUM(O9:O11),0) -> 339965.8607 | P12: 0 | Q12: 0 | R12: 0 | S12: 0 | T12: 0 | U12: 2385992.99
A15: Allocation of Cash Flow:
B16: ="Preferred Return @ " &TEXT('A.2 (continued)'!N19,"0.0%")&":" -> Preferred Return @ 7.0%:
C17: ="Limited Partners @ " &TEXT(1-A.1!I8,"0%") -> Limited Partners @ 95% | F17: =F19-F18 -> 137665.4719 | G17: =G19-G18 -> 155905.4719 | H17: 174692.6719 | I17: 194043.4879 | J17: 213974.8284 | K17: 234504.1091 | L17: 255649.2682 | M17: 266000 | N17: 266000 | O17: 266000 | P17: 0 | Q17: 0 | R17: 0 | S17: 0 | T17: 0 | U17: =SUM(F17:T17) -> 2164435.309
C18: ="General Partner @ " &TEXT(A.1!I8,"0%") -> General Partner @ 5% | F18: =A.1!$I8*A.3!F19 -> 7245.551154 | G18: =A.1!$I8*A.3!G19 -> 8205.551154 | H18: =A.1!$I8*A.3!H19 -> 9194.351154 | I18: =A.1!$I8*A.3!I19 -> 10212.81515 | J18: =A.1!$I8*A.3!J19 -> 11261.83307 | K18: =A.1!$I8*A.3!K19 -> 12342.32153 | L18: =A.1!$I8*A.3!L19 -> 13455.22464 | M18: =A.1!$I8*A.3!M19 -> 14000 | N18: =A.1!$I8*A.3!N19 -> 14000 | O18: =A.1!$I8*A.3!O19 -> 14000 | P18: =A.1!$I8*A.3!P19 -> 0 | Q18: =A.1!$I8*A.3!Q19 -> 0 | R18: =A.1!$I8*A.3!R19 -> 0 | S18: =A.1!$I8*A.3!S19 -> 0 | T18: =A.1!$I8*A.3!T19 -> 0 | U18: =SUM(F18:T18) -> 113917.6479
D19: Total Prefence Payments | F19: =MIN(A.1!$G9*'A.2 (continued)'!$N10,MAX(0,A.3!F12)) -> 144911.0231 | G19: =MIN(A.1!$G9*'A.2 (continued)'!$N10,MAX(0,A.3!G12)) -> 164111.0231 | H19: =MIN(A.1!$G9*'A.2 (continued)'!$N10,MAX(0,A.3!H12)) -> 183887.0231 | I19: =MIN(A.1!$G9*'A.2 (continued)'!$N10,MAX(0,A.3!I12)) -> 204256.3031 | J19: =MIN(A.1!$G9*'A.2 (continued)'!$N10,MAX(0,A.3!J12)) -> 225236.6615 | K19: =MIN(A.1!$G9*'A.2 (continued)'!$N10,MAX(0,A.3!K12)) -> 246846.4306 | L19: =MIN(A.1!$G9*'A.2 (continued)'!$N10,MAX(0,A.3!L12)) -> 269104.4929 | M19: =MIN(A.1!$G9*'A.2 (continued)'!$N10,MAX(0,A.3!M12)) -> 280000 | N19: =MIN(A.1!$G9*'A.2 (continued)'!$N10,MAX(0,A.3!N12)) -> 280000 | O19: =MIN(A.1!$G9*'A.2 (continued)'!$N10,MAX(0,A.3!O12)) -> 280000 | P19: =MIN(A.1!$G9*'A.2 (continued)'!$N10,MAX(0,A.3!P12)) -> 0 | Q19: =MIN(A.1!$G9*'A.2 (continued)'!$N10,MAX(0,A.3!Q12)) -> 0 | R19: =MIN(A.1!$G9*'A.2 (continued)'!$N10,MAX(0,A.3!R12)) -> 0 | S19: =MIN(A.1!$G9*'A.2 (continued)'!$N10,MAX(0,A.3!S12)) -> 0 | T19: =MIN(A.1!$G9*'A.2 (continued)'!$N10,MAX(0,A.3!T12)) -> 0 | U19: =SUM(F19:T19) -> 2278352.957
B21: Residual Profits:
C22: Real Estate Profits:
D23: ="Limited Partners @ " &TEXT('A.2 (continued)'!N22,"0%") -> Limited Partners @ 76% | F23: =(F12-F19)*'A.2 (continued)'!$N13 -> 0 | G23: =(G12-G19)*'A.2 (continued)'!$N13 -> 0 | H23: =(H12-H19)*'A.2 (continued)'!$N13 -> 0 | I23: =(I12-I19)*'A.2 (continued)'!$N13 -> 0 | J23: =(J12-J19)*'A.2 (continued)'!$N13 -> 0 | K23: =(K12-K19)*'A.2 (continued)'!$N13 -> 0 | L23: =(L12-L19)*'A.2 (continued)'!$N13 -> 0 | M23: =(M12-M19)*'A.2 (continued)'!$N13 -> 9143.025687 | N23: =(N12-N19)*'A.2 (continued)'!$N13 -> 27089.34513 | O23: =(O12-O19)*'A.2 (continued)'!$N13 -> 45574.05416 | P23: =(P12-P19)*'A.2 (continued)'!$N13 -> 0 | Q23: =(Q12-Q19)*'A.2 (continued)'!$N13 -> 0 | R23: =(R12-R19)*'A.2 (continued)'!$N13 -> 0 | S23: =(S12-S19)*'A.2 (continued)'!$N13 -> 0 | T23: =(T12-T19)*'A.2 (continued)'!$N13 -> 0 | U23: =SUM(F23:T23) -> 81806.42498
D24: ="General Partner @ " &TEXT('A.2 (continued)'!N14,"0%") -> General Partner @ 4% | F24: =(1-'A.2 (continued)'!$N65/'A.2 (continued)'!$N24)*F31 -> 0 | G24: =(1-'A.2 (continued)'!$N65/'A.2 (continued)'!$N24)*G31 -> 0 | H24: =(1-'A.2 (continued)'!$N65/'A.2 (continued)'!$N24)*H31 -> 0 | I24: =(1-'A.2 (continued)'!$N65/'A.2 (continued)'!$N24)*I31 -> 0 | J24: =(1-'A.2 (continued)'!$N65/'A.2 (continued)'!$N24)*J31 -> 0 | K24: =(1-'A.2 (continued)'!$N65/'A.2 (continued)'!$N24)*K31 -> 0 | L24: =(1-'A.2 (continued)'!$N65/'A.2 (continued)'!$N24)*L31 -> 0 | M24: =(1-'A.2 (continued)'!$N65/'A.2 (continued)'!$N24)*M31 -> 0 | N24: =(1-'A.2 (continued)'!$N65/'A.2 (continued)'!$N24)*N31 -> 0 | O24: =(1-'A.2 (continued)'!$N65/'A.2 (continued)'!$N24)*O31 -> 0 | P24: =(1-'A.2 (continued)'!$N65/'A.2 (continued)'!$N24)*P31 -> 0 | Q24: =(1-'A.2 (continued)'!$N65/'A.2 (continued)'!$N24)*Q31 -> 0 | R24: =(1-'A.2 (continued)'!$N65/'A.2 (continued)'!$N24)*R31 -> 0 | S24: =(1-'A.2 (continued)'!$N65/'A.2 (continued)'!$N24)*S31 -> 0 | T24: =(1-'A.2 (continued)'!$N65/'A.2 (continued)'!$N24)*T31 -> 0 | U24: =SUM(F24:T24) -> 0
C25: Carried Interest:
D26: ="General Partner @ " &TEXT('A.2 (continued)'!N65,"0%") -> General Partner @ 20% | F26: ='A.2 (continued)'!$N65/'A.2 (continued)'!$N24*F31 -> 0 | G26: ='A.2 (continued)'!$N65/'A.2 (continued)'!$N24*G31 -> 0 | H26: ='A.2 (continued)'!$N65/'A.2 (continued)'!$N24*H31 -> 0 | I26: ='A.2 (continued)'!$N65/'A.2 (continued)'!$N24*I31 -> 0 | J26: ='A.2 (continued)'!$N65/'A.2 (continued)'!$N24*J31 -> 0 | K26: ='A.2 (continued)'!$N65/'A.2 (continued)'!$N24*K31 -> 0 | L26: ='A.2 (continued)'!$N65/'A.2 (continued)'!$N24*L31 -> 0 | M26: ='A.2 (continued)'!$N65/'A.2 (continued)'!$N24*M31 -> 2887.27127 | N26: ='A.2 (continued)'!$N65/'A.2 (continued)'!$N24*N31 -> 8554.530042 | O26: ='A.2 (continued)'!$N65/'A.2 (continued)'!$N24*O31 -> 14391.80658 | P26: ='A.2 (continued)'!$N65/'A.2 (continued)'!$N24*P31 -> 0 | Q26: ='A.2 (continued)'!$N65/'A.2 (continued)'!$N24*Q31 -> 0 | R26: ='A.2 (continued)'!$N65/'A.2 (continued)'!$N24*R31 -> 0 | S26: ='A.2 (continued)'!$N65/'A.2 (continued)'!$N24*S31 -> 0 | T26: ='A.2 (continued)'!$N65/'A.2 (continued)'!$N24*T31 -> 0 | U26: =SUM(F26:T26) -> 25833.60789
D27: Total Residual Payments | F27: =F23+F24+F26 -> 0 | G27: =G23+G24+G26 -> 0 | H27: 0 | I27: 0 | J27: 0 | K27: 0 | L27: 0 | M27: 12030.29696 | N27: 35643.87517 | O27: 59965.86074 | P27: 0 | Q27: 0 | R27: 0 | S27: 0 | T27: 0 | U27: =SUM(F27:T27) -> 107640.0329
A30: Various Return Metrics:
B31: Total Residual Payments to GP | F31: =F12-F19-F23 -> 0 | G31: 0 | H31: 0 | I31: 0 | J31: 0 | K31: 0 | L31: 0 | M31: 2887.27127 | N31: 8554.530042 | O31: 14391.80658 | P31: 0 | Q31: 0 | R31: 0 | S31: 0 | T31: 0 | U31: =SUM(F31:T31) -> 25833.60789
B33: LPs' Cash-on-Cash Yield | F33: =(F19*(1-A.1!$I8)+F23)/A.1!$G7 -> 0.03622775577 | G33: =(G19*(1-A.1!$I8)+G23)/A.1!$G7 -> 0.04102775577 | H33: =(H19*(1-A.1!$I8)+H23)/A.1!$G7 -> 0.04597175577 | I33: =(I19*(1-A.1!$I8)+I23)/A.1!$G7 -> 0.05106407577 | J33: =(J19*(1-A.1!$I8)+J23)/A.1!$G7 -> 0.05630916537 | K33: =(K19*(1-A.1!$I8)+K23)/A.1!$G7 -> 0.06171160766 | L33: =(L19*(1-A.1!$I8)+L23)/A.1!$G7 -> 0.06727612322 | M33: =(M19*(1-A.1!$I8)+M23)/A.1!$G7 -> 0.07240605939 | N33: =(N19*(1-A.1!$I8)+N23)/A.1!$G7 -> 0.07712877503 | O33: =(O19*(1-A.1!$I8)+O23)/A.1!$G7 -> 0.08199317215 | P33: =(P19*(1-A.1!$I8)+P23)/A.1!$G7 -> 0 | Q33: =(Q19*(1-A.1!$I8)+Q23)/A.1!$G7 -> 0 | R33: =(R19*(1-A.1!$I8)+R23)/A.1!$G7 -> 0 | S33: =(S19*(1-A.1!$I8)+S23)/A.1!$G7 -> 0 | T33: =(T19*(1-A.1!$I8)+T23)/A.1!$G7 -> 0 | U33: =SUMIF(F33:T33,">0")/COUNTIF(F33:T33,">0") -> 0.05911162459
B34: Equity Build-Up Yield | F34: =F8/A.1!$G7 -> 0.01764829688 | G34: =G8/A.1!$G7 -> 0.018830236 | H34: =H8/A.1!$G7 -> 0.02009133178 | I34: =I8/A.1!$G7 -> 0.02143688548 | J34: =J8/A.1!$G7 -> 0.0228725534 | K34: =K8/A.1!$G7 -> 0.02440437067 | L34: =L8/A.1!$G7 -> 0.02603877657 | M34: =M8/A.1!$G7 -> 0.02778264166 | N34: =N8/A.1!$G7 -> 0.02964329662 | O34: =O8/A.1!$G7 -> 0.0316285631 | P34: =P8/A.1!$G7 -> 0 | Q34: =Q8/A.1!$G7 -> 0 | R34: =R8/A.1!$G7 -> 0 | S34: =S8/A.1!$G7 -> 0 | T34: =T8/A.1!$G7 -> 0 | U34: =SUMIF(F34:T34,">0")/COUNTIF(F34:T34,">0") -> 0.02403769522
B35: LPs' Total Current Yield | F35: =F33+F34*(1-A.1!$I8) -> 0.05299363781 | G35: =G33+G34*(1-A.1!$I8) -> 0.05891647998 | H35: =H33+H34*(1-A.1!$I8) -> 0.06505852097 | I35: =I33+I34*(1-A.1!$I8) -> 0.07142911698 | J35: =J33+J34*(1-A.1!$I8) -> 0.07803809111 | K35: =K33+K34*(1-A.1!$I8) -> 0.08489575979 | L35: =L33+L34*(1-A.1!$I8) -> 0.09201296095 | M35: =M33+M34*(1-A.1!$I8) -> 0.09879956897 | N35: =N33+N34*(1-A.1!$I8) -> 0.1052899068 | O35: =O33+O34*(1-A.1!$I8) -> 0.1120403071 | P35: =P33+P34*(1-A.1!$I8) -> 0 | Q35: =Q33+Q34*(1-A.1!$I8) -> 0 | R35: =R33+R34*(1-A.1!$I8) -> 0 | S35: =S33+S34*(1-A.1!$I8) -> 0 | T35: =T33+T34*(1-A.1!$I8) -> 0 | U35: =SUMIF(F35:T35,">0")/COUNTIF(F35:T35,">0") -> 0.08194743505
A39: Holding Period (Yrs) | E39: 10 | F39: 1 | G39: =IF(ISNUMBER(F39),IF(F39+1>$E39," ",1+F39)," ") -> 2 | H39: 3 | I39: 4 | J39: 5 | K39: 6 | L39: 7 | M39: 8 | N39: 9 | O39: 10

Sheet A.4
A2: Appendix A.4: Mortgage Loan Amortization Schedule
B4: Beginning | C4: Debt | D4: Interest | E4: Prinicpal | F4: Ending
A5: Time Period | B5: Balance | C5: Service | D5: Expense | E5: Amortization | F5: Balance | H5: =IRR(H8:H128)*12 -> 0.065
A7: Month 1 | B7: =A.1!G5 -> 6000000 | C7: =A.2!M18/12*A.4!B7 -> 37924.08141 | D7: =A.2!M$13/12*A.4!B7 -> 32500 | E7: =C7-D7 -> 5424.08141 | F7: =B7-E7 -> 5994575.919
A8: Month 2 | B8: =F7 -> 5994575.919 | C8: =C7 -> 37924.08141 | D8: =A.2!M$13/12*A.4!B8 -> 32470.61956 | E8: =C8-D8 -> 5453.461851 | F8: =B8-E8 -> 5989122.457 | H8: =-B7*(1-A.2!M16) -> -6000000
A9: Month 3 | B9: =F8 -> 5989122.457 | C9: =C8 -> 37924.08141 | D9: =A.2!M$13/12*A.4!B9 -> 32441.07997 | E9: =C9-D9 -> 5483.001436 | F9: =B9-E9 -> 5983639.455 | H9: =C7 -> 37924.08141
A10: Month 4 | B10: 5983639.455 | C10: 37924.08141 | D10: =A.2!M$13/12*A.4!B10 -> 32411.38038 | E10: 5512.701027 | F10: 5978126.754 | H10: 37924.08141
A11: Month 5 | B11: 5978126.754 | C11: 37924.08141 | D11: =A.2!M$13/12*A.4!B11 -> 32381.51992 | E11: 5542.561491 | F11: 5972584.193 | H11: 37924.08141
A12: Month 6 | B12: 5972584.193 | C12: 37924.08141 | D12: =A.2!M$13/12*A.4!B12 -> 32351.49771 | E12: 5572.583699 | F12: 5967011.609 | H12: 37924.08141
A13: Month 7 | B13: 5967011.609 | C13: 37924.08141 | D13: =A.2!M$13/12*A.4!B13 -> 32321.31288 | E13: 5602.768527 | F13: 5961408.841 | H13: 37924.08141
A14: Month 8 | B14: 5961408.841 | C14: 37924.08141 | D14: =A.2!M$13/12*A.4!B14 -> 32290.96455 | E14: 5633.116857 | F14: 5955775.724 | H14: 37924.08141
A15: Month 9 | B15: 5955775.724 | C15: 37924.08141 | D15: =A.2!M$13/12*A.4!B15 -> 32260.45184 | E15: 5663.629573 | F15: 5950112.094 | H15: 37924.08141
A16: Month 10 | B16: 5950112.094 | C16: 37924.08141 | D16: =A.2!M$13/12*A.4!B16 -> 32229.77384 | E16: 5694.307566 | F16: 5944417.787 | H16: 37924.08141
A17: Month 11 | B17: 5944417.787 | C17: 37924.08141 | D17: =A.2!M$13/12*A.4!B17 -> 32198.92968 | E17: 5725.151732 | F17: 5938692.635 | H17: 37924.08141
A18: Month 12 | B18: 5938692.635 | C18: 37924.08141 | D18: =A.2!M$13/12*A.4!B18 -> 32167.91844 | E18: 5756.162971 | F18: 5932936.472 | H18: 37924.08141
B19: =B7 -> 6000000 | C19: =SUM(C7:C18) -> 455088.9769 | D19: =SUM(D7:D18) -> 388025.4488 | E19: =SUM(E7:E18) -> 67063.52814 | F19: =F18 -> 5932936.472 | H19: 37924.08141
H20: 37924.08141
A21: Month 13 | B21: =F18 -> 5932936.472 | C21: =C18 -> 37924.08141 | D21: =A.2!M$13/12*A.4!B21 -> 32136.73922 | E21: 5787.342187 | F21: 5927149.13 | H21: =C21 -> 37924.08141
A22: Month 14 | B22: 5927149.13 | C22: 37924.08141 | D22: =A.2!M$13/12*A.4!B22 -> 32105.39112 | E22: 5818.690291 | F22: 5921330.439 | H22: 37924.08141
A23: Month 15 | B23: 5921330.439 | C23: 37924.08141 | D23: =A.2!M$13/12*A.4!B23 -> 32073.87321 | E23: 5850.208196 | F23: 5915480.231 | H23: 37924.08141
A24: Month 16 | B24: 5915480.231 | C24: 37924.08141 | D24: =A.2!M$13/12*A.4!B24 -> 32042.18459 | E24: 5881.896824 | F24: 5909598.334 | H24: 37924.08141
A25: Month 17 | B25: 5909598.334 | C25: 37924.08141 | D25: =A.2!M$13/12*A.4!B25 -> 32010.32431 | E25: 5913.757098 | F25: 5903684.577 | H25: 37924.08141
A26: Month 18 | B26: 5903684.577 | C26: 37924.08141 | D26: =A.2!M$13/12*A.4!B26 -> 31978.29146 | E26: 5945.789949 | F26: 5897738.787 | H26: 37924.08141
A27: Month 19 | B27: 5897738.787 | C27: 37924.08141 | D27: =A.2!M$13/12*A.4!B27 -> 31946.0851 | E27: 5977.996312 | F27: 5891760.791 | H27: 37924.08141
A28: Month 20 | B28: 5891760.791 | C28: 37924.08141 | D28: =A.2!M$13/12*A.4!B28 -> 31913.70428 | E28: 6010.377125 | F28: 5885750.414 | H28: 37924.08141
A29: Month 21 | B29: 5885750.414 | C29: 37924.08141 | D29: =A.2!M$13/12*A.4!B29 -> 31881.14808 | E29: 6042.933334 | F29: 5879707.481 | H29: 37924.08141
A30: Month 22 | B30: 5879707.481 | C30: 37924.08141 | D30: =A.2!M$13/12*A.4!B30 -> 31848.41552 | E30: 6075.66589 | F30: 5873631.815 | H30: 37924.08141
A31: Month 23 | B31: 5873631.815 | C31: 37924.08141 | D31: =A.2!M$13/12*A.4!B31 -> 31815.50566 | E31: 6108.575747 | F31: 5867523.239 | H31: 37924.08141
A32: Month 24 | B32: 5867523.239 | C32: 37924.08141 | D32: =A.2!M$13/12*A.4!B32 -> 31782.41754 | E32: 6141.663865 | F32: 5861381.575 | H32: 37924.08141
B33: =B21 -> 5932936.472 | C33: =SUM(C21:C32) -> 455088.9769 | D33: =SUM(D21:D32) -> 383534.0801 | E33: =SUM(E21:E32) -> 71554.89682 | F33: =F32 -> 5861381.575 | H33: =C35 -> 37924.08141
H34: 37924.08141
A35: Month 25 | B35: =F32 -> 5861381.575 | C35: =C32 -> 37924.08141 | D35: =A.2!M$13/12*A.4!B35 -> 31749.1502 | E35: 6174.931211 | F35: 5855206.644 | H35: 37924.08141
A36: Month 26 | B36: 5855206.644 | C36: 37924.08141 | D36: =A.2!M$13/12*A.4!B36 -> 31715.70265 | E36: 6208.378755 | F36: 5848998.265 | H36: 37924.08141
A37: Month 27 | B37: 5848998.265 | C37: 37924.08141 | D37: =A.2!M$13/12*A.4!B37 -> 31682.07394 | E37: 6242.007474 | F37: 5842756.258 | H37: 37924.08141
A38: Month 28 | B38: 5842756.258 | C38: 37924.08141 | D38: =A.2!M$13/12*A.4!B38 -> 31648.26306 | E38: 6275.818348 | F38: 5836480.439 | H38: 37924.08141
A39: Month 29 | B39: 5836480.439 | C39: 37924.08141 | D39: =A.2!M$13/12*A.4!B39 -> 31614.26905 | E39: 6309.812364 | F39: 5830170.627 | H39: 37924.08141
A40: Month 30 | B40: 5830170.627 | C40: 37924.08141 | D40: =A.2!M$13/12*A.4!B40 -> 31580.0909 | E40: 6343.990514 | F40: 5823826.636 | H40: 37924.08141
A41: Month 31 | B41: 5823826.636 | C41: 37924.08141 | D41: =A.2!M$13/12*A.4!B41 -> 31545.72761 | E41: 6378.353796 | F41: 5817448.283 | H41: 37924.08141
A42: Month 32 | B42: 5817448.283 | C42: 37924.08141 | D42: =A.2!M$13/12*A.4!B42 -> 31511.1782 | E42: 6412.903212 | F42: 5811035.379 | H42: 37924.08141
A43: Month 33 | B43: 5811035.379 | C43: 37924.08141 | D43: =A.2!M$13/12*A.4!B43 -> 31476.44164 | E43: 6447.639771 | F43: 5804587.74 | H43: 37924.08141
A44: Month 34 | B44: 5804587.74 | C44: 37924.08141 | D44: =A.2!M$13/12*A.4!B44 -> 31441.51692 | E44: 6482.564487 | F44: 5798105.175 | H44: 37924.08141
A45: Month 35 | B45: 5798105.175 | C45: 37924.08141 | D45: =A.2!M$13/12*A.4!B45 -> 31406.40303 | E45: 6517.678378 | F45: 5791587.497 | H45: =C49 -> 37924.08141
A46: Month 36 | B46: 5791587.497 | C46: 37924.08141 | D46: =A.2!M$13/12*A.4!B46 -> 31371.09894 | E46: 6552.982469 | F46: 5785034.514 | H46: 37924.08141
B47: =B35 -> 5861381.575 | C47: =SUM(C35:C46) -> 455088.9769 | D47: =SUM(D35:D46) -> 378741.9161 | E47: =SUM(E35:E46) -> 76347.06078 | F47: =F46 -> 5785034.514 | H47: 37924.08141
H48: 37924.08141
A49: Month 37 | B49: =F46 -> 5785034.514 | C49: =C46 -> 37924.08141 | D49: =A.2!M$13/12*A.4!B49 -> 31335.60362 | E49: 6588.477791 | F49: 5778446.036 | H49: 37924.08141
A50: Month 38 | B50: 5778446.036 | C50: 37924.08141 | D50: =A.2!M$13/12*A.4!B50 -> 31299.91603 | E50: 6624.165379 | F50: 5771821.871 | H50: 37924.08141
A51: Month 39 | B51: 5771821.871 | C51: 37924.08141 | D51: =A.2!M$13/12*A.4!B51 -> 31264.03514 | E51: 6660.046274 | F51: 5765161.825 | H51: 37924.08141
A52: Month 40 | B52: 5765161.825 | C52: 37924.08141 | D52: =A.2!M$13/12*A.4!B52 -> 31227.95988 | E52: 6696.121525 | F52: 5758465.703 | H52: 37924.08141
A53: Month 41 | B53: 5758465.703 | C53: 37924.08141 | D53: =A.2!M$13/12*A.4!B53 -> 31191.68923 | E53: 6732.392183 | F53: 5751733.311 | H53: 37924.08141
A54: Month 42 | B54: 5751733.311 | C54: 37924.08141 | D54: =A.2!M$13/12*A.4!B54 -> 31155.2221 | E54: 6768.859308 | F54: 5744964.452 | H54: 37924.08141
A55: Month 43 | B55: 5744964.452 | C55: 37924.08141 | D55: =A.2!M$13/12*A.4!B55 -> 31118.55745 | E55: 6805.523962 | F55: 5738158.928 | H55: 37924.08141
A56: Month 44 | B56: 5738158.928 | C56: 37924.08141 | D56: =A.2!M$13/12*A.4!B56 -> 31081.69419 | E56: 6842.387217 | F56: 5731316.541 | H56: 37924.08141
A57: Month 45 | B57: 5731316.541 | C57: 37924.08141 | D57: =A.2!M$13/12*A.4!B57 -> 31044.63126 | E57: 6879.450148 | F57: 5724437.09 | H57: =C63 -> 37924.08141
A58: Month 46 | B58: 5724437.09 | C58: 37924.08141 | D58: =A.2!M$13/12*A.4!B58 -> 31007.36757 | E58: 6916.713836 | F58: 5717520.377 | H58: 37924.08141
A59: Month 47 | B59: 5717520.377 | C59: 37924.08141 | D59: =A.2!M$13/12*A.4!B59 -> 30969.90204 | E59: 6954.179369 | F59: 5710566.197 | H59: 37924.08141
A60: Month 48 | B60: 5710566.197 | C60: 37924.08141 | D60: =A.2!M$13/12*A.4!B60 -> 30932.23357 | E60: 6991.847841 | F60: 5703574.349 | H60: 37924.08141
B61: =B49 -> 5785034.514 | C61: =SUM(C49:C60) -> 455088.9769 | D61: =SUM(D49:D60) -> 373628.8121 | E61: =SUM(E49:E60) -> 81460.16483 | F61: =F60 -> 5703574.349 | H61: 37924.08141
H62: 37924.08141
A63: Month 49 | B63: =F60 -> 5703574.349 | C63: =C60 -> 37924.08141 | D63: =A.2!M$13/12*A.4!B63 -> 30894.36106 | E63: 7029.72035 | F63: 5696544.629 | H63: 37924.08141
A64: Month 50 | B64: 5696544.629 | C64: 37924.08141 | D64: =A.2!M$13/12*A.4!B64 -> 30856.28341 | E64: 7067.798002 | F64: 5689476.831 | H64: 37924.08141
A65: Month 51 | B65: 5689476.831 | C65: 37924.08141 | D65: =A.2!M$13/12*A.4!B65 -> 30817.9995 | E65: 7106.081908 | F65: 5682370.749 | H65: 37924.08141
A66: Month 52 | B66: 5682370.749 | C66: 37924.08141 | D66: =A.2!M$13/12*A.4!B66 -> 30779.50822 | E66: 7144.573185 | F66: 5675226.176 | H66: 37924.08141
A67: Month 53 | B67: 5675226.176 | C67: 37924.08141 | D67: =A.2!M$13/12*A.4!B67 -> 30740.80845 | E67: 7183.272956 | F67: 5668042.903 | H67: 37924.08141
A68: Month 54 | B68: 5668042.903 | C68: 37924.08141 | D68: =A.2!M$13/12*A.4!B68 -> 30701.89906 | E68: 7222.182351 | F68: 5660820.721 | H68: 37924.08141
A69: Month 55 | B69: 5660820.721 | C69: 37924.08141 | D69: =A.2!M$13/12*A.4!B69 -> 30662.7789 | E69: 7261.302506 | F69: 5653559.418 | H69: =C77 -> 37924.08141
A70: Month 56 | B70: 5653559.418 | C70: 37924.08141 | D70: =A.2!M$13/12*A.4!B70 -> 30623.44685 | E70: 7300.634561 | F70: 5646258.784 | H70: 37924.08141
A71: Month 57 | B71: 5646258.784 | C71: 37924.08141 | D71: =A.2!M$13/12*A.4!B71 -> 30583.90174 | E71: 7340.179665 | F71: 5638918.604 | H71: 37924.08141
A72: Month 58 | B72: 5638918.604 | C72: 37924.08141 | D72: =A.2!M$13/12*A.4!B72 -> 30544.14244 | E72: 7379.938972 | F72: 5631538.665 | H72: 37924.08141
A73: Month 59 | B73: 5631538.665 | C73: 37924.08141 | D73: =A.2!M$13/12*A.4!B73 -> 30504.16777 | E73: 7419.913641 | F73: 5624118.751 | H73: 37924.08141
A74: Month 60 | B74: 5624118.751 | C74: 37924.08141 | D74: =A.2!M$13/12*A.4!B74 -> 30463.97657 | E74: 7460.10484 | F74: 5616658.646 | H74: 37924.08141
B75: =B63 -> 5703574.349 | C75: =SUM(C63:C74) -> 455088.9769 | D75: =SUM(D63:D74) -> 368173.274 | E75: =SUM(E63:E74) -> 86915.70294 | F75: =F74 -> 5616658.646 | H75: 37924.08141
H76: 37924.08141
A77: Month 61 | B77: =F74 -> 5616658.646 | C77: =C74 -> 37924.08141 | D77: =A.2!M$13/12*A.4!B77 -> 30423.56767 | E77: 7500.513741 | F77: 5609158.133 | H77: 37924.08141
A78: Month 62 | B78: 5609158.133 | C78: 37924.08141 | D78: =A.2!M$13/12*A.4!B78 -> 30382.93989 | E78: 7541.141524 | F78: 5601616.991 | H78: 37924.08141
A79: Month 63 | B79: 5601616.991 | C79: 37924.08141 | D79: =A.2!M$13/12*A.4!B79 -> 30342.09204 | E79: 7581.989374 | F79: 5594035.002 | H79: 37924.08141
A80: Month 64 | B80: 5594035.002 | C80: 37924.08141 | D80: =A.2!M$13/12*A.4!B80 -> 30301.02293 | E80: 7623.058483 | F80: 5586411.943 | H80: 37924.08141
A81: Month 65 | B81: 5586411.943 | C81: 37924.08141 | D81: =A.2!M$13/12*A.4!B81 -> 30259.73136 | E81: 7664.35005 | F81: 5578747.593 | H81: =C91 -> 37924.08141
A82: Month 66 | B82: 5578747.593 | C82: 37924.08141 | D82: =A.2!M$13/12*A.4!B82 -> 30218.21613 | E82: 7705.865279 | F82: 5571041.728 | H82: 37924.08141
A83: Month 67 | B83: =F82 -> 5571041.728 | C83: =C82 -> 37924.08141 | D83: =A.2!M$13/12*A.4!B83 -> 30176.47603 | E83: =C83-D83 -> 7747.605383 | F83: =B83-E83 -> 5563294.123 | H83: 37924.08141
A84: Month 68 | B84: 5563294.123 | C84: 37924.08141 | D84: =A.2!M$13/12*A.4!B84 -> 30134.50983 | E84: 7789.571578 | F84: 5555504.551 | H84: 37924.08141
A85: Month 69 | B85: 5555504.551 | C85: 37924.08141 | D85: =A.2!M$13/12*A.4!B85 -> 30092.31632 | E85: 7831.765091 | F85: 5547672.786 | H85: 37924.08141
A86: Month 70 | B86: 5547672.786 | C86: 37924.08141 | D86: =A.2!M$13/12*A.4!B86 -> 30049.89426 | E86: 7874.187152 | F86: 5539798.599 | H86: 37924.08141
A87: Month 71 | B87: 5539798.599 | C87: 37924.08141 | D87: =A.2!M$13/12*A.4!B87 -> 30007.24241 | E87: 7916.838999 | F87: 5531881.76 | H87: 37924.08141
A88: Month 72 | B88: 5531881.76 | C88: 37924.08141 | D88: =A.2!M$13/12*A.4!B88 -> 29964.35953 | E88: 7959.721877 | F88: 5523922.038 | H88: 37924.08141
B89: =B77 -> 5616658.646 | C89: =SUM(C77:C88) -> 455088.9769 | D89: =SUM(D77:D88) -> 362352.3684 | E89: =SUM(E77:E88) -> 92736.60853 | F89: =F88 -> 5523922.038 | H89: 37924.08141
H90: 37924.08141
A91: Month 73 | B91: =F88 -> 5523922.038 | C91: =C88 -> 37924.08141 | D91: =A.2!M$13/12*A.4!B91 -> 29921.24437 | E91: 8002.837037 | F91: 5515919.201 | H91: 37924.08141
A92: Month 74 | B92: 5515919.201 | C92: 37924.08141 | D92: =A.2!M$13/12*A.4!B92 -> 29877.89567 | E92: 8046.185738 | F92: 5507873.015 | H92: 37924.08141
A93: Month 75 | B93: 5507873.015 | C93: 37924.08141 | D93: =A.2!M$13/12*A.4!B93 -> 29834.31217 | E93: 8089.769244 | F93: 5499783.246 | H93: =C105 -> 37924.08141
A94: Month 76 | B94: 5499783.246 | C94: 37924.08141 | D94: =A.2!M$13/12*A.4!B94 -> 29790.49258 | E94: 8133.588827 | F94: 5491649.657 | H94: 37924.08141
A95: Month 77 | B95: 5491649.657 | C95: 37924.08141 | D95: =A.2!M$13/12*A.4!B95 -> 29746.43564 | E95: 8177.645767 | F95: 5483472.011 | H95: 37924.08141
A96: Month 78 | B96: 5483472.011 | C96: 37924.08141 | D96: =A.2!M$13/12*A.4!B96 -> 29702.14006 | E96: 8221.941348 | F96: 5475250.07 | H96: 37924.08141
A97: Month 79 | B97: 5475250.07 | C97: 37924.08141 | D97: =A.2!M$13/12*A.4!B97 -> 29657.60455 | E97: 8266.476864 | F97: 5466983.593 | H97: 37924.08141
A98: Month 80 | B98: 5466983.593 | C98: 37924.08141 | D98: =A.2!M$13/12*A.4!B98 -> 29612.8278 | E98: 8311.253613 | F98: 5458672.34 | H98: 37924.08141
A99: Month 81 | B99: 5458672.34 | C99: 37924.08141 | D99: =A.2!M$13/12*A.4!B99 -> 29567.80851 | E99: 8356.272904 | F99: 5450316.067 | H99: 37924.08141
A100: Month 82 | B100: 5450316.067 | C100: 37924.08141 | D100: =A.2!M$13/12*A.4!B100 -> 29522.54536 | E100: 8401.536049 | F100: 5441914.531 | H100: 37924.08141
A101: Month 83 | B101: 5441914.531 | C101: 37924.08141 | D101: =A.2!M$13/12*A.4!B101 -> 29477.03704 | E101: 8447.044369 | F101: 5433467.486 | H101: 37924.08141
A102: Month 84 | B102: 5433467.486 | C102: 37924.08141 | D102: =A.2!M$13/12*A.4!B102 -> 29431.28222 | E102: 8492.799193 | F102: 5424974.687 | H102: 37924.08141
B103: =B91 -> 5523922.038 | C103: =SUM(C91:C102) -> 455088.9769 | D103: =SUM(D91:D102) -> 356141.626 | E103: =SUM(E91:E102) -> 98947.35095 | F103: =F102 -> 5424974.687 | H103: 37924.08141
H104: 37924.08141
A105: Month 85 | B105: =F102 -> 5424974.687 | C105: =C102 -> 37924.08141 | D105: =A.2!M$13/12*A.4!B105 -> 29385.27955 | E105: 8538.801855 | F105: 5416435.885 | H105: =C119 -> 37924.08141
A106: Month 86 | B106: 5416435.885 | C106: 37924.08141 | D106: =A.2!M$13/12*A.4!B106 -> 29339.02771 | E106: 8585.053698 | F106: 5407850.831 | H106: 37924.08141
A107: Month 87 | B107: 5407850.831 | C107: 37924.08141 | D107: =A.2!M$13/12*A.4!B107 -> 29292.52534 | E107: 8631.556073 | F107: 5399219.275 | H107: 37924.08141
A108: Month 88 | B108: 5399219.275 | C108: 37924.08141 | D108: =A.2!M$13/12*A.4!B108 -> 29245.77107 | E108: 8678.310335 | F108: 5390540.965 | H108: 37924.08141
A109: Month 89 | B109: 5390540.965 | C109: 37924.08141 | D109: =A.2!M$13/12*A.4!B109 -> 29198.76356 | E109: 8725.317849 | F109: 5381815.647 | H109: 37924.08141
A110: Month 90 | B110: 5381815.647 | C110: 37924.08141 | D110: =A.2!M$13/12*A.4!B110 -> 29151.50142 | E110: 8772.579987 | F110: 5373043.067 | H110: 37924.08141
A111: Month 91 | B111: 5373043.067 | C111: 37924.08141 | D111: =A.2!M$13/12*A.4!B111 -> 29103.98328 | E111: 8820.098129 | F111: 5364222.969 | H111: 37924.08141
A112: Month 92 | B112: 5364222.969 | C112: 37924.08141 | D112: =A.2!M$13/12*A.4!B112 -> 29056.20775 | E112: 8867.87366 | F112: 5355355.095 | H112: 37924.08141
A113: Month 93 | B113: 5355355.095 | C113: 37924.08141 | D113: =A.2!M$13/12*A.4!B113 -> 29008.17343 | E113: 8915.907976 | F113: 5346439.187 | H113: 37924.08141
A114: Month 94 | B114: 5346439.187 | C114: 37924.08141 | D114: =A.2!M$13/12*A.4!B114 -> 28959.87893 | E114: 8964.202478 | F114: 5337474.985 | H114: 37924.08141
A115: Month 95 | B115: 5337474.985 | C115: 37924.08141 | D115: =A.2!M$13/12*A.4!B115 -> 28911.32284 | E115: 9012.758574 | F115: 5328462.226 | H115: 37924.08141
A116: Month 96 | B116: 5328462.226 | C116: 37924.08141 | D116: =A.2!M$13/12*A.4!B116 -> 28862.50373 | E116: 9061.577683 | F116: 5319400.649 | H116: 37924.08141
B117: =B105 -> 5424974.687 | C117: =SUM(C105:C116) -> 455088.9769 | D117: =SUM(D105:D116) -> 349514.9386 | E117: =SUM(E105:E116) -> 105574.0383 | F117: =F116 -> 5319400.649 | H117: =C133 -> 37924.08141
H118: 37924.08141
A119: Month 97 | B119: =F116 -> 5319400.649 | C119: =C116 -> 37924.08141 | D119: =A.2!M$13/12*A.4!B119 -> 28813.42018 | E119: 9110.661229 | F119: 5310289.987 | H119: 37924.08141
A120: Month 98 | B120: 5310289.987 | C120: 37924.08141 | D120: =A.2!M$13/12*A.4!B120 -> 28764.07077 | E120: 9160.010644 | F120: 5301129.977 | H120: 37924.08141
A121: Month 99 | B121: 5301129.977 | C121: 37924.08141 | D121: =A.2!M$13/12*A.4!B121 -> 28714.45404 | E121: 9209.627368 | F121: 5291920.349 | H121: 37924.08141
A122: Month 100 | B122: 5291920.349 | C122: 37924.08141 | D122: =A.2!M$13/12*A.4!B122 -> 28664.56856 | E122: 9259.51285 | F122: 5282660.837 | H122: 37924.08141
A123: Month 101 | B123: 5282660.837 | C123: 37924.08141 | D123: =A.2!M$13/12*A.4!B123 -> 28614.41287 | E123: 9309.668545 | F123: 5273351.168 | H123: 37924.08141
A124: Month 102 | B124: 5273351.168 | C124: 37924.08141 | D124: =A.2!M$13/12*A.4!B124 -> 28563.98549 | E124: 9360.095916 | F124: 5263991.072 | H124: 37924.08141
A125: Month 103 | B125: 5263991.072 | C125: 37924.08141 | D125: =A.2!M$13/12*A.4!B125 -> 28513.28497 | E125: 9410.796435 | F125: 5254580.276 | H125: 37924.08141
A126: Month 104 | B126: 5254580.276 | C126: 37924.08141 | D126: =A.2!M$13/12*A.4!B126 -> 28462.30983 | E126: 9461.771583 | F126: 5245118.504 | H126: 37924.08141
A127: Month 105 | B127: 5245118.504 | C127: 37924.08141 | D127: =A.2!M$13/12*A.4!B127 -> 28411.05856 | E127: 9513.022845 | F127: 5235605.481 | H127: 37924.08141
A128: Month 106 | B128: 5235605.481 | C128: 37924.08141 | D128: =A.2!M$13/12*A.4!B128 -> 28359.52969 | E128: 9564.551719 | F128: 5226040.93 | H128: =C144+F144 -> 5124491.663
A129: Month 107 | B129: 5226040.93 | C129: 37924.08141 | D129: =A.2!M$13/12*A.4!B129 -> 28307.7217 | E129: 9616.359708 | F129: 5216424.57
A130: Month 108 | B130: 5216424.57 | C130: 37924.08141 | D130: =A.2!M$13/12*A.4!B130 -> 28255.63309 | E130: 9668.448323 | F130: 5206756.122
B131: =B119 -> 5319400.649 | C131: =SUM(C119:C130) -> 455088.9769 | D131: =SUM(D119:D130) -> 342444.4497 | E131: =SUM(E119:E130) -> 112644.5272 | F131: =F130 -> 5206756.122
A133: Month 109 | B133: =F130 -> 5206756.122 | C133: =C130 -> 37924.08141 | D133: =A.2!M$13/12*A.4!B133 -> 28203.26233 | E133: 9720.819085 | F133: 5197035.302
A134: Month 110 | B134: 5197035.302 | C134: 37924.08141 | D134: =A.2!M$13/12*A.4!B134 -> 28150.60789 | E134: 9773.473521 | F134: 5187261.829
A135: Month 111 | B135: 5187261.829 | C135: 37924.08141 | D135: =A.2!M$13/12*A.4!B135 -> 28097.66824 | E135: 9826.413169 | F135: 5177435.416
A136: Month 112 | B136: 5177435.416 | C136: 37924.08141 | D136: =A.2!M$13/12*A.4!B136 -> 28044.44184 | E136: 9879.639574 | F136: 5167555.776
A137: Month 113 | B137: 5167555.776 | C137: 37924.08141 | D137: =A.2!M$13/12*A.4!B137 -> 27990.92712 | E137: 9933.154289 | F137: 5157622.622
A138: Month 114 | B138: 5157622.622 | C138: 37924.08141 | D138: =A.2!M$13/12*A.4!B138 -> 27937.12254 | E138: 9986.958874 | F138: 5147635.663
A139: Month 115 | B139: 5147635.663 | C139: 37924.08141 | D139: =A.2!M$13/12*A.4!B139 -> 27883.02651 | E139: 10041.0549 | F139: 5137594.608
A140: Month 116 | B140: 5137594.608 | C140: 37924.08141 | D140: =A.2!M$13/12*A.4!B140 -> 27828.63746 | E140: 10095.44395 | F140: 5127499.164
A141: Month 117 | B141: 5127499.164 | C141: 37924.08141 | D141: =A.2!M$13/12*A.4!B141 -> 27773.95381 | E141: 10150.1276 | F141: 5117349.037
A142: Month 118 | B142: 5117349.037 | C142: 37924.08141 | D142: =A.2!M$13/12*A.4!B142 -> 27718.97395 | E142: 10205.10746 | F142: 5107143.929
A143: Month 119 | B143: 5107143.929 | C143: 37924.08141 | D143: =A.2!M$13/12*A.4!B143 -> 27663.69628 | E143: 10260.38513 | F143: 5096883.544
A144: Month 120 | B144: 5096883.544 | C144: 37924.08141 | D144: =A.2!M$13/12*A.4!B144 -> 27608.1192 | E144: 10315.96221 | F144: 5086567.582
B145: =B133 -> 5206756.122 | C145: =SUM(C133:C144) -> 455088.9769 | D145: =SUM(D133:D144) -> 334900.4371 | E145: =SUM(E133:E144) -> 120188.5398 | F145: =F144 -> 5086567.582
A147: Month 121 | B147: =F144 -> 5086567.582 | C147: =C144 -> 37924.08141 | D147: =A.2!M$13/12*A.4!B147 -> 27552.24107 | E147: =C147-D147 -> 10371.84034 | F147: =B147-E147 -> 5076195.741
A148: Month 122 | B148: =F147 -> 5076195.741 | C148: =C147 -> 37924.08141 | D148: =A.2!M$13/12*A.4!B148 -> 27496.06027 | E148: 10428.02114 | F148: 5065767.72
A149: Month 123 | B149: 5065767.72 | C149: 37924.08141 | D149: =A.2!M$13/12*A.4!B149 -> 27439.57515 | E149: 10484.50626 | F149: 5055283.214
A150: Month 124 | B150: 5055283.214 | C150: 37924.08141 | D150: =A.2!M$13/12*A.4!B150 -> 27382.78408 | E150: 10541.29733 | F150: 5044741.917
A151: Month 125 | B151: 5044741.917 | C151: 37924.08141 | D151: =A.2!M$13/12*A.4!B151 -> 27325.68538 | E151: 10598.39603 | F151: 5034143.521
A152: Month 126 | B152: 5034143.521 | C152: 37924.08141 | D152: =A.2!M$13/12*A.4!B152 -> 27268.2774 | E152: 10655.80401 | F152: 5023487.717
A153: Month 127 | B153: 5023487.717 | C153: 37924.08141 | D153: =A.2!M$13/12*A.4!B153 -> 27210.55847 | E153: 10713.52294 | F153: 5012774.194
A154: Month 128 | B154: 5012774.194 | C154: 37924.08141 | D154: =A.2!M$13/12*A.4!B154 -> 27152.52688 | E154: 10771.55453 | F154: 5002002.639
A155: Month 129 | B155: 5002002.639 | C155: 37924.08141 | D155: =A.2!M$13/12*A.4!B155 -> 27094.18096 | E155: 10829.90045 | F155: 4991172.739
A156: Month 130 | B156: 4991172.739 | C156: 37924.08141 | D156: =A.2!M$13/12*A.4!B156 -> 27035.519 | E156: 10888.56241 | F156: 4980284.176
A157: Month 131 | B157: 4980284.176 | C157: 37924.08141 | D157: =A.2!M$13/12*A.4!B157 -> 26976.53929 | E157: 10947.54212 | F157: 4969336.634
A158: Month 132 | B158: 4969336.634 | C158: 37924.08141 | D158: =A.2!M$13/12*A.4!B158 -> 26917.2401 | E158: 11006.84131 | F158: 4958329.793
B159: =B147 -> 5086567.582 | C159: =SUM(C147:C158) -> 455088.9769 | D159: =SUM(D147:D158) -> 326851.1881 | E159: =SUM(E147:E158) -> 128237.7889 | F159: =F158 -> 4958329.793
A161: Month 133 | B161: =F158 -> 4958329.793 | C161: =C158 -> 37924.08141 | D161: =A.2!M$13/12*A.4!B161 -> 26857.61971 | E161: =C161-D161 -> 11066.4617 | F161: =B161-E161 -> 4947263.331
A162: Month 134 | B162: =F161 -> 4947263.331 | C162: 37924.08141 | D162: =A.2!M$13/12*A.4!B162 -> 26797.67638 | E162: 11126.40503 | F162: 4936136.926
A163: Month 135 | B163: 4936136.926 | C163: 37924.08141 | D163: =A.2!M$13/12*A.4!B163 -> 26737.40835 | E163: 11186.67306 | F163: 4924950.253
A164: Month 136 | B164: 4924950.253 | C164: 37924.08141 | D164: =A.2!M$13/12*A.4!B164 -> 26676.81387 | E164: 11247.26754 | F164: 4913702.986
A165: Month 137 | B165: 4913702.986 | C165: 37924.08141 | D165: =A.2!M$13/12*A.4!B165 -> 26615.89117 | E165: 11308.19024 | F165: 4902394.795
A166: Month 138 | B166: 4902394.795 | C166: 37924.08141 | D166: =A.2!M$13/12*A.4!B166 -> 26554.63847 | E166: 11369.44293 | F166: 4891025.352
A167: Month 139 | B167: 4891025.352 | C167: 37924.08141 | D167: =A.2!M$13/12*A.4!B167 -> 26493.05399 | E167: 11431.02742 | F167: 4879594.325
A168: Month 140 | B168: 4879594.325 | C168: 37924.08141 | D168: =A.2!M$13/12*A.4!B168 -> 26431.13593 | E168: 11492.94548 | F168: 4868101.38
A169: Month 141 | B169: 4868101.38 | C169: 37924.08141 | D169: =A.2!M$13/12*A.4!B169 -> 26368.88247 | E169: 11555.19894 | F169: 4856546.181
A170: Month 142 | B170: 4856546.181 | C170: 37924.08141 | D170: =A.2!M$13/12*A.4!B170 -> 26306.29181 | E170: 11617.7896 | F170: 4844928.391
A171: Month 143 | B171: 4844928.391 | C171: 37924.08141 | D171: =A.2!M$13/12*A.4!B171 -> 26243.36212 | E171: 11680.71929 | F171: 4833247.672
A172: Month 144 | B172: 4833247.672 | C172: 37924.08141 | D172: =A.2!M$13/12*A.4!B172 -> 26180.09155 | E172: 11743.98985 | F172: 4821503.682
B173: =B161 -> 4958329.793 | C173: =SUM(C161:C172) -> 455088.9769 | D173: =SUM(D161:D172) -> 318262.8658 | E173: =SUM(E161:E172) -> 136826.1111 | F173: =F172 -> 4821503.682
A175: Month 145 | B175: =F172 -> 4821503.682 | C175: =C172 -> 37924.08141 | D175: =A.2!M$13/12*A.4!B175 -> 26116.47828 | E175: =C175-D175 -> 11807.60313 | F175: =B175-E175 -> 4809696.079
A176: Month 146 | B176: =F175 -> 4809696.079 | C176: 37924.08141 | D176: =A.2!M$13/12*A.4!B176 -> 26052.52043 | E176: 11871.56098 | F176: 4797824.518
A177: Month 147 | B177: 4797824.518 | C177: 37924.08141 | D177: =A.2!M$13/12*A.4!B177 -> 25988.21614 | E177: 11935.86527 | F177: 4785888.652
A178: Month 148 | B178: 4785888.652 | C178: 37924.08141 | D178: =A.2!M$13/12*A.4!B178 -> 25923.56353 | E178: 12000.51788 | F178: 4773888.135
A179: Month 149 | B179: 4773888.135 | C179: 37924.08141 | D179: =A.2!M$13/12*A.4!B179 -> 25858.56073 | E179: 12065.52068 | F179: 4761822.614
A180: Month 150 | B180: 4761822.614 | C180: 37924.08141 | D180: =A.2!M$13/12*A.4!B180 -> 25793.20583 | E180: 12130.87558 | F180: 4749691.738
A181: Month 151 | B181: 4749691.738 | C181: 37924.08141 | D181: =A.2!M$13/12*A.4!B181 -> 25727.49692 | E181: 12196.58449 | F181: 4737495.154
A182: Month 152 | B182: 4737495.154 | C182: 37924.08141 | D182: =A.2!M$13/12*A.4!B182 -> 25661.43208 | E182: 12262.64933 | F182: 4725232.504
A183: Month 153 | B183: 4725232.504 | C183: 37924.08141 | D183: =A.2!M$13/12*A.4!B183 -> 25595.0094 | E183: 12329.07201 | F183: 4712903.432
A184: Month 154 | B184: 4712903.432 | C184: 37924.08141 | D184: =A.2!M$13/12*A.4!B184 -> 25528.22693 | E184: 12395.85448 | F184: 4700507.578
A185: Month 155 | B185: 4700507.578 | C185: 37924.08141 | D185: =A.2!M$13/12*A.4!B185 -> 25461.08271 | E185: 12462.9987 | F185: 4688044.579
A186: Month 156 | B186: 4688044.579 | C186: 37924.08141 | D186: =A.2!M$13/12*A.4!B186 -> 25393.5748 | E186: 12530.50661 | F186: 4675514.073
B187: =B175 -> 4821503.682 | C187: =SUM(C175:C186) -> 455088.9769 | D187: =SUM(D175:D186) -> 309099.3678 | E187: =SUM(E175:E186) -> 145989.6091 | F187: =F186 -> 4675514.073
A189: Month 157 | B189: =F186 -> 4675514.073 | C189: =C186 -> 37924.08141 | D189: =A.2!M$13/12*A.4!B189 -> 25325.70123 | E189: =C189-D189 -> 12598.38018 | F189: =B189-E189 -> 4662915.693
A190: Month 158 | B190: =F189 -> 4662915.693 | C190: 37924.08141 | D190: =A.2!M$13/12*A.4!B190 -> 25257.46 | E190: 12666.62141 | F190: 4650249.071
A191: Month 159 | B191: 4650249.071 | C191: 37924.08141 | D191: =A.2!M$13/12*A.4!B191 -> 25188.84914 | E191: 12735.23227 | F191: 4637513.839
A192: Month 160 | B192: 4637513.839 | C192: 37924.08141 | D192: =A.2!M$13/12*A.4!B192 -> 25119.86663 | E192: 12804.21478 | F192: 4624709.624
A193: Month 161 | B193: 4624709.624 | C193: 37924.08141 | D193: =A.2!M$13/12*A.4!B193 -> 25050.51046 | E193: 12873.57095 | F193: 4611836.053
A194: Month 162 | B194: 4611836.053 | C194: 37924.08141 | D194: =A.2!M$13/12*A.4!B194 -> 24980.77862 | E194: 12943.30279 | F194: 4598892.75
A195: Month 163 | B195: 4598892.75 | C195: 37924.08141 | D195: =A.2!M$13/12*A.4!B195 -> 24910.66906 | E195: 13013.41235 | F195: 4585879.338
A196: Month 164 | B196: 4585879.338 | C196: 37924.08141 | D196: =A.2!M$13/12*A.4!B196 -> 24840.17975 | E196: 13083.90166 | F196: 4572795.436
A197: Month 165 | B197: 4572795.436 | C197: 37924.08141 | D197: =A.2!M$13/12*A.4!B197 -> 24769.30861 | E197: 13154.7728 | F197: 4559640.664
A198: Month 166 | B198: 4559640.664 | C198: 37924.08141 | D198: =A.2!M$13/12*A.4!B198 -> 24698.05359 | E198: 13226.02782 | F198: 4546414.636
A199: Month 167 | B199: 4546414.636 | C199: 37924.08141 | D199: =A.2!M$13/12*A.4!B199 -> 24626.41261 | E199: 13297.6688 | F199: 4533116.967
A200: Month 168 | B200: 4533116.967 | C200: 37924.08141 | D200: =A.2!M$13/12*A.4!B200 -> 24554.38357 | E200: 13369.69784 | F200: 4519747.269
B201: =B189 -> 4675514.073 | C201: =SUM(C189:C200) -> 455088.9769 | D201: =SUM(D189:D200) -> 299322.1733 | E201: =SUM(E189:E200) -> 155766.8036 | F201: =F200 -> 4519747.269
A203: Month 169 | B203: =F200 -> 4519747.269 | C203: =C200 -> 37924.08141 | D203: =A.2!M$13/12*A.4!B203 -> 24481.96437 | E203: =C203-D203 -> 13442.11704 | F203: =B203-E203 -> 4506305.152
A204: Month 170 | B204: =F203 -> 4506305.152 | C204: 37924.08141 | D204: =A.2!M$13/12*A.4!B204 -> 24409.15291 | E204: 13514.9285 | F204: 4492790.224
A205: Month 171 | B205: 4492790.224 | C205: 37924.08141 | D205: =A.2!M$13/12*A.4!B205 -> 24335.94704 | E205: 13588.13437 | F205: 4479202.089
A206: Month 172 | B206: 4479202.089 | C206: 37924.08141 | D206: =A.2!M$13/12*A.4!B206 -> 24262.34465 | E206: 13661.73676 | F206: 4465540.352
A207: Month 173 | B207: 4465540.352 | C207: 37924.08141 | D207: =A.2!M$13/12*A.4!B207 -> 24188.34358 | E207: 13735.73783 | F207: 4451804.615
A208: Month 174 | B208: 4451804.615 | C208: 37924.08141 | D208: =A.2!M$13/12*A.4!B208 -> 24113.94166 | E208: 13810.13975 | F208: 4437994.475
A209: Month 175 | B209: 4437994.475 | C209: 37924.08141 | D209: =A.2!M$13/12*A.4!B209 -> 24039.13674 | E209: 13884.94467 | F209: 4424109.53
... 6 more rows

Sheet A.4 (Summary)
A2: Appendix A.4: Mortgage Loan Amortization Schedule
B4: Beginning | C4: Debt | D4: Interest | E4: Prinicpal | F4: Ending
A5: Year | B5: Balance | C5: Service | D5: Expense | E5: Amortization | F5: Balance
A7: 1 | B7: =A.4!B7 -> 6000000 | C7: =A.4!C19 -> 455088.9769 | D7: =A.4!D19 -> 388025.4488 | E7: =A.4!E19 -> 67063.52814 | F7: =B7-E7 -> 5932936.472
A8: =1+A7 -> 2 | B8: =F7 -> 5932936.472 | C8: =A.4!C33 -> 455088.9769 | D8: =A.4!D33 -> 383534.0801 | E8: =A.4!E33 -> 71554.89682 | F8: =B8-E8 -> 5861381.575
A9: =1+A8 -> 3 | B9: =F8 -> 5861381.575 | C9: =A.4!C47 -> 455088.9769 | D9: =A.4!D47 -> 378741.9161 | E9: =A.4!E47 -> 76347.06078 | F9: =B9-E9 -> 5785034.514
A10: 4 | B10: 5785034.514 | C10: =A.4!C61 -> 455088.9769 | D10: =A.4!D61 -> 373628.8121 | E10: =A.4!E61 -> 81460.16483 | F10: 5703574.349
A11: 5 | B11: 5703574.349 | C11: =A.4!C75 -> 455088.9769 | D11: =A.4!D75 -> 368173.274 | E11: =A.4!E75 -> 86915.70294 | F11: 5616658.646
A12: 6 | B12: 5616658.646 | C12: =A.4!C89 -> 455088.9769 | D12: =A.4!D89 -> 362352.3684 | E12: =A.4!E89 -> 92736.60853 | F12: 5523922.038
A13: 7 | B13: 5523922.038 | C13: =A.4!C103 -> 455088.9769 | D13: =A.4!D103 -> 356141.626 | E13: =A.4!E103 -> 98947.35095 | F13: 5424974.687
A14: 8 | B14: 5424974.687 | C14: =A.4!C117 -> 455088.9769 | D14: =A.4!D117 -> 349514.9386 | E14: =A.4!E117 -> 105574.0383 | F14: 5319400.649
A15: 9 | B15: 5319400.649 | C15: =A.4!C131 -> 455088.9769 | D15: =A.4!D131 -> 342444.4497 | E15: =A.4!E131 -> 112644.5272 | F15: 5206756.122
A16: 10 | B16: 5206756.122 | C16: =A.4!C145 -> 455088.9769 | D16: =A.4!D145 -> 334900.4371 | E16: =A.4!E145 -> 120188.5398 | F16: 5086567.582
A17: 11 | B17: 5086567.582 | C17: =A.4!C159 -> 455088.9769 | D17: =A.4!D159 -> 326851.1881 | E17: =A.4!E159 -> 128237.7889 | F17: 4958329.793
A18: 12 | B18: 4958329.793 | C18: =A.4!C173 -> 455088.9769 | D18: =A.4!D173 -> 318262.8658 | E18: =A.4!E173 -> 136826.1111 | F18: 4821503.682
A19: 13 | B19: 4821503.682 | C19: =A.4!C187 -> 455088.9769 | D19: =A.4!D187 -> 309099.3678 | E19: =A.4!E187 -> 145989.6091 | F19: 4675514.073
A20: 14 | B20: 4675514.073 | C20: =A.4!C201 -> 455088.9769 | D20: =A.4!D201 -> 299322.1733 | E20: =A.4!E201 -> 155766.8036 | F20: 4519747.269
A21: 15 | B21: 4519747.269 | C21: =A.4!C215 -> 455088.9769 | D21: =A.4!D215 -> 288890.182 | E21: =A.4!E215 -> 166198.795 | F21: 4353548.474
B22: =B7 -> 6000000 | C22: =SUM(C7:C21) -> 6826334.654 | D22: =SUM(D7:D21) -> 5179883.128 | E22: =SUM(E7:E21) -> 1646451.526 | F22: =F21 -> 4353548.474

Sheet A.5
A2: ="Appendix A.5: " &TEXT(A.3!E39,"0") &"-Year Pro Forma of Taxable Income/<Loss>" -> Appendix A.5: 10-Year Pro Forma of Taxable Income/<Loss>
F4: Year 1 | G4: Year 2 | H4: Year 3 | I4: Year 4 | J4: Year 5 | K4: Year 6 | L4: Year 7 | M4: Year 8 | N4: Year 9 | O4: Year 10 | P4: Year 11 | Q4: Year 12 | R4: Year 13 | S4: Year 14 | T4: Year 15 | U4: Total
A5: Net Operating Income | F5: =A.3!F5 -> 800000 | G5: =A.3!G5 -> 824000 | H5: =A.3!H5 -> 848720 | I5: =A.3!I5 -> 874181.6 | J5: =A.3!J5 -> 900407.048 | K5: =A.3!K5 -> 927419.2594 | L5: =A.3!L5 -> 955241.8372 | M5: =A.3!M5 -> 983899.0923 | N5: =A.3!N5 -> 1013416.065 | O5: =A.3!O5 -> 1043818.547 | P5: =A.3!P5 -> 0 | Q5: =A.3!Q5 -> 0 | R5: =A.3!R5 -> 0 | S5: =A.3!S5 -> 0 | T5: =A.3!T5 -> 0 | U5: =SUM(F5:T5) -> 9171103.449
A6: Interest Expense (see A.4) | F6: =A.3!F7 -> 388025.4488 | G6: =A.3!G7 -> 383534.0801 | H6: =A.3!H7 -> 378741.9161 | I6: =A.3!I7 -> 373628.8121 | J6: =A.3!J7 -> 368173.274 | K6: =A.3!K7 -> 362352.3684 | L6: =A.3!L7 -> 356141.626 | M6: =A.3!M7 -> 349514.9386 | N6: =A.3!N7 -> 342444.4497 | O6: =A.3!O7 -> 334900.4371 | P6: =A.3!P7 -> 0 | Q6: =A.3!Q7 -> 0 | R6: =A.3!R7 -> 0 | S6: =A.3!S7 -> 0 | T6: =A.3!T7 -> 0 | U6: =SUM(F6:T6) -> 3637457.351
A7: Depreciation:
B8: Real Property (see A.6) | F8: =A.6!G10 -> 258333.3333 | G8: =IF(ISNUMBER(G37),A.6!H10,0) -> 258333.3333 | H8: =IF(ISNUMBER(H37),A.6!I10,0) -> 258333.3333 | I8: =IF(ISNUMBER(I37),A.6!J10,0) -> 258333.3333 | J8: =IF(ISNUMBER(J37),A.6!K10,0) -> 258333.3333 | K8: =IF(ISNUMBER(K37),A.6!L10,0) -> 258333.3333 | L8: =IF(ISNUMBER(L37),A.6!M10,0) -> 258333.3333 | M8: =IF(ISNUMBER(M37),A.6!N10,0) -> 258333.3333 | N8: =IF(ISNUMBER(N37),A.6!O10,0) -> 258333.3333 | O8: =IF(ISNUMBER(O37),A.6!P10,0) -> 258333.3333 | P8: =IF(ISNUMBER(P37),A.6!Q10,0) -> 0 | Q8: =IF(ISNUMBER(Q37),A.6!R10,0) -> 0 | R8: =IF(ISNUMBER(R37),A.6!S10,0) -> 0 | S8: =IF(ISNUMBER(S37),A.6!T10,0) -> 0 | T8: =IF(ISNUMBER(T37),A.6!U10,0) -> 0 | U8: =SUM(F8:T8) -> 2583333.333
B9: Personal Property (see A.6) | F9: =A.6!G11 -> 357142.8571 | G9: =IF(ISNUMBER(G37),A.6!H11,0) -> 255102.0408 | H9: =IF(ISNUMBER(H37),A.6!I11,0) -> 182215.7434 | I9: =IF(ISNUMBER(I37),A.6!J11,0) -> 113884.8397 | J9: =IF(ISNUMBER(J37),A.6!K11,0) -> 113884.8397 | K9: =IF(ISNUMBER(K37),A.6!L11,0) -> 113884.8397 | L9: =IF(ISNUMBER(L37),A.6!M11,0) -> 113884.8397 | M9: =IF(ISNUMBER(M37),A.6!N11,0) -> 0 | N9: =IF(ISNUMBER(N37),A.6!O11,0) -> 0 | O9: =IF(ISNUMBER(O37),A.6!P11,0) -> 0 | P9: =IF(ISNUMBER(P37),A.6!Q11,0) -> 0 | Q9: =IF(ISNUMBER(Q37),A.6!R11,0) -> 0 | R9: =IF(ISNUMBER(R37),A.6!S11,0) -> 0 | S9: =IF(ISNUMBER(S37),A.6!T11,0) -> 0 | T9: =IF(ISNUMBER(T37),A.6!U11,0) -> 0 | U9: =SUM(F9:T9) -> 1250000
B10: Capital Expenditures (see A.6) | F10: =A.6!G31 -> 5333.333333 | G10: =IF(ISNUMBER(G37),A.6!H31,0) -> 16160 | H10: =IF(ISNUMBER(H37),A.6!I31,0) -> 27311.46667 | I10: =IF(ISNUMBER(I37),A.6!J31,0) -> 38797.47733 | J10: =IF(ISNUMBER(J37),A.6!K31,0) -> 50628.06832 | K10: =IF(ISNUMBER(K37),A.6!L31,0) -> 62813.57704 | L10: =IF(ISNUMBER(L37),A.6!M31,0) -> 75364.65101 | M10: =IF(ISNUMBER(M37),A.6!N31,0) -> 88292.25721 | N10: =IF(ISNUMBER(N37),A.6!O31,0) -> 101607.6916 | O10: =IF(ISNUMBER(O37),A.6!P31,0) -> 115322.589 | P10: =IF(ISNUMBER(P37),A.6!Q31,0) -> 0 | Q10: =IF(ISNUMBER(Q37),A.6!R31,0) -> 0 | R10: =IF(ISNUMBER(R37),A.6!S31,0) -> 0 | S10: =IF(ISNUMBER(S37),A.6!T31,0) -> 0 | T10: =IF(ISNUMBER(T37),A.6!U31,0) -> 0 | U10: =SUM(F10:T10) -> 581631.1115
C11: Total Depreciation | F11: =F8+F9+F10 -> 620809.5238 | G11: =G8+G9+G10 -> 529595.3741 | H11: 467860.5434 | I11: 411015.6503 | J11: 422846.2413 | K11: 435031.75 | L11: 447582.824 | M11: 346625.5905 | N11: 359941.0249 | O11: 373655.9223 | P11: 0 | Q11: 0 | R11: 0 | S11: 0 | T11: 0 | U11: =SUM(F11:T11) -> 4414964.445
A12: Amortization:
B13: =A.1!A15 -> Loan Origination Fees & Costs | F13: =A.1!G15/A.2!M15 -> 0 | G13: =IF(ISNUMBER(G37),F13,0) -> 0 | H13: =IF(ISNUMBER(H37),G13,0) -> 0 | I13: 0 | J13: 0 | K13: 0 | L13: 0 | M13: 0 | N13: 0 | O13: 0 | P13: 0 | Q13: 0 | R13: 0 | S13: 0 | T13: 0 | U13: =SUM(F13:T13) -> 0
B14: =A.1!A16 -> Organization & Offering Costs | F14: =A.1!G16/5 -> 0 | G14: =IF(AND(G37<=5,ISNUMBER(G37)),F14,0) -> 0 | H14: =IF(AND(H37<=5,ISNUMBER(H37)),G14,0) -> 0 | I14: 0 | J14: 0 | K14: 0 | L14: 0 | M14: 0 | N14: 0 | O14: =IF(AND(O37<=5,ISNUMBER(O37)),N14,0) -> 0 | P14: 0 | Q14: 0 | R14: 0 | S14: 0 | T14: 0 | U14: =SUM(F14:T14) -> 0
C15: Total Amortization | F15: =F13+F14 -> 0 | G15: =G13+G14 -> 0 | H15: 0 | I15: 0 | J15: 0 | K15: 0 | L15: 0 | M15: 0 | N15: 0 | O15: 0 | P15: 0 | Q15: 0 | R15: 0 | S15: 0 | T15: 0 | U15: =SUM(F15:T15) -> 0
A16: =A.3!A11 -> Asset Manangement Fee | F16: =A.3!F11 -> 40000 | G16: =A.3!G11 -> 40000 | H16: =A.3!H11 -> 40000 | I16: =A.3!I11 -> 40000 | J16: =A.3!J11 -> 40000 | K16: =A.3!K11 -> 40000 | L16: =A.3!L11 -> 40000 | M16: =A.3!M11 -> 40000 | N16: =A.3!N11 -> 40000 | O16: =A.3!O11 -> 40000 | P16: =A.3!P11 -> 0 | Q16: =A.3!Q11 -> 0 | R16: =A.3!R11 -> 0 | S16: =A.3!S11 -> 0 | T16: =A.3!T11 -> 0 | U16: =SUM(F16:T16) -> 400000
A17: Taxable Income/<Loss> | F17: =F5-F6-F11-F15-F16 -> -248834.9726 | G17: =G5-G6-G11-G15-G16 -> -129129.4542 | H17: -37882.45958 | I17: 49537.1376 | J17: 69387.53272 | K17: 90035.14104 | L17: 111517.3873 | M17: 247758.5632 | N17: 271030.5904 | O17: 295262.1876 | P17: 0 | Q17: 0 | R17: 0 | S17: 0 | T17: 0 | U17: =SUM(F17:T17) -> 718681.6534
A20: Allocation of Taxable Income/<Loss>:
B21: Limited Partners | F21: =IF(F17<0,F17*'A.2 (continued)'!$N35,IF(A.3!F17>0,(A.3!F17+A.3!F23)/A.3!F12*A.5!F17,'A.2 (continued)'!$N31*A.5!F17)) -> -236393.224 | G21: =IF(G17<0,G17*'A.2 (continued)'!$N35,IF(A.3!G17>0,(A.3!G17+A.3!G23)/A.3!G12*A.5!G17,'A.2 (continued)'!$N31*A.5!G17)) -> -122672.9815 | H21: =IF(H17<0,H17*'A.2 (continued)'!$N35,IF(A.3!H17>0,(A.3!H17+A.3!H23)/A.3!H12*A.5!H17,'A.2 (continued)'!$N31*A.5!H17)) -> -35988.3366 | I21: =IF(I17<0,I17*'A.2 (continued)'!$N35,IF(A.3!I17>0,(A.3!I17+A.3!I23)/A.3!I12*A.5!I17,'A.2 (continued)'!$N31*A.5!I17)) -> 47060.28072 | J21: =IF(J17<0,J17*'A.2 (continued)'!$N35,IF(A.3!J17>0,(A.3!J17+A.3!J23)/A.3!J12*A.5!J17,'A.2 (continued)'!$N31*A.5!J17)) -> 65918.15608 | K21: =IF(K17<0,K17*'A.2 (continued)'!$N35,IF(A.3!K17>0,(A.3!K17+A.3!K23)/A.3!K12*A.5!K17,'A.2 (continued)'!$N31*A.5!K17)) -> 85533.38398 | L21: =IF(L17<0,L17*'A.2 (continued)'!$N35,IF(A.3!L17>0,(A.3!L17+A.3!L23)/A.3!L12*A.5!L17,'A.2 (continued)'!$N31*A.5!L17)) -> 105941.5179 | M21: =IF(M17<0,M17*'A.2 (continued)'!$N35,IF(A.3!M17>0,(A.3!M17+A.3!M23)/A.3!M12*A.5!M17,'A.2 (continued)'!$N31*A.5!M17)) -> 233431.3988 | N21: =IF(N17<0,N17*'A.2 (continued)'!$N35,IF(A.3!N17>0,(A.3!N17+A.3!N23)/A.3!N12*A.5!N17,'A.2 (continued)'!$N31*A.5!N17)) -> 251663.9305 | O21: =IF(O17<0,O17*'A.2 (continued)'!$N35,IF(A.3!O17>0,(A.3!O17+A.3!O23)/A.3!O12*A.5!O17,'A.2 (continued)'!$N31*A.5!O17)) -> 270603.7501 | P21: =IF(P17<0,P17*'A.2 (continued)'!$N35,IF(A.3!P17>0,(A.3!P17+A.3!P23)/A.3!P12*A.5!P17,'A.2 (continued)'!$N31*A.5!P17)) -> 0 | Q21: =IF(Q17<0,Q17*'A.2 (continued)'!$N35,IF(A.3!Q17>0,(A.3!Q17+A.3!Q23)/A.3!Q12*A.5!Q17,'A.2 (continued)'!$N31*A.5!Q17)) -> 0 | R21: =IF(R17<0,R17*'A.2 (continued)'!$N35,IF(A.3!R17>0,(A.3!R17+A.3!R23)/A.3!R12*A.5!R17,'A.2 (continued)'!$N31*A.5!R17)) -> 0 | S21: =IF(S17<0,S17*'A.2 (continued)'!$N35,IF(A.3!S17>0,(A.3!S17+A.3!S23)/A.3!S12*A.5!S17,'A.2 (continued)'!$N31*A.5!S17)) -> 0 | T21: =IF(T17<0,T17*'A.2 (continued)'!$N35,IF(A.3!T17>0,(A.3!T17+A.3!T23)/A.3!T12*A.5!T17,'A.2 (continued)'!$N31*A.5!T17)) -> 0 | U21: =SUM(F21:T21) -> 665097.876
B22: General Partner | F22: =F17-F21 -> -12441.74863 | G22: =G17-G21 -> -6456.472712 | H22: -1894.122979 | I22: 2476.85688 | J22: 3469.376636 | K22: 4501.757052 | L22: 5575.869363 | M22: 14327.16437 | N22: 19366.65994 | O22: =O17-O21 -> 24658.43747 | P22: 0 | Q22: 0 | R22: 0 | S22: 0 | T22: 0 | U22: =SUM(F22:T22) -> 53583.7774
A25: Tax <Liability>/Savings :
B26: Limited Partners | F26: =-'A.5 (Passive Losses)'!B12 -> 47278.64479 | G26: =-'A.5 (Passive Losses)'!C12 -> 24534.59631 | H26: =-'A.5 (Passive Losses)'!D12 -> 7197.66732 | I26: =-'A.5 (Passive Losses)'!E12 -> 0 | J26: =-'A.5 (Passive Losses)'!F12 -> 0 | K26: =-'A.5 (Passive Losses)'!G12 -> -393.8198981 | L26: =-'A.5 (Passive Losses)'!H12 -> -42376.60716 | M26: =-'A.5 (Passive Losses)'!I12 -> -93372.55952 | N26: =-'A.5 (Passive Losses)'!J12 -> -100665.5722 | O26: =-'A.5 (Passive Losses)'!K12 -> -108241.5 | P26: =-'A.5 (Passive Losses)'!L12 -> 0 | Q26: =-'A.5 (Passive Losses)'!M12 -> 0 | R26: =-'A.5 (Passive Losses)'!N12 -> 0 | S26: =-'A.5 (Passive Losses)'!O12 -> 0 | T26: =-'A.5 (Passive Losses)'!P12 -> 0 | U26: =SUM(F26:T26) -> -266039.1504
B27: General Partner | F27: =-'A.5 (Passive Losses)'!B27 -> 2488.349726 | G27: =-'A.5 (Passive Losses)'!C27 -> 1291.294542 | H27: =-'A.5 (Passive Losses)'!D27 -> 378.8245958 | I27: =-'A.5 (Passive Losses)'!E27 -> 0 | J27: =-'A.5 (Passive Losses)'!F27 -> 0 | K27: =-'A.5 (Passive Losses)'!G27 -> -20.72736306 | L27: =-'A.5 (Passive Losses)'!H27 -> -2230.347745 | M27: =-'A.5 (Passive Losses)'!I27 -> -5730.865748 | N27: =-'A.5 (Passive Losses)'!J27 -> -7746.663978 | O27: =-'A.5 (Passive Losses)'!K27 -> -9863.374988 | P27: =-'A.5 (Passive Losses)'!L27 -> 0 | Q27: =-'A.5 (Passive Losses)'!M27 -> 0 | R27: =-'A.5 (Passive Losses)'!N27 -> 0 | S27: =-'A.5 (Passive Losses)'!O27 -> 0 | T27: =-'A.5 (Passive Losses)'!P27 -> 0 | U27: =SUM(F27:T27) -> -21433.51096
A29: Note: Taxable loss from rental activities is considered a "passive" loss by the IRS.
A31: Unless the investor is active in the real estate business, these losses can only be used to offset passive income.
G33: ="This particular illustration assumes that both the general and limited partners can utilize " &TEXT('Base Case Assumptions'!H25,"0%") &" of the passive losses; any passive loss not currently deducted can be used to offset future taxable income and the capital gain associated with the project's disposition." -> This particular illustration assumes that both the general and limited partners can utilize 50% of the passive losses; any passive loss not currently deducted can be used to offset future taxable income and the capital gain associated with the project's disposition.
A37: Holding Period (Years) | E37: =A.3!E39 -> 10 | F37: 1 | G37: =IF(ISNUMBER(F37),IF(F37+1>$E37," ",1+F37)," ") -> 2 | H37: 3 | I37: 4 | J37: 5 | K37: 6 | L37: 7 | M37: 8 | N37: 9 | O37: 10

Sheet A.5 (Passive Losses)
A2: ="Appendix A.5 (continued): Ten-Year Pro Forma of Income-Tax Liability – Based Upon Assumed Passive-Loss Utilization Rate of " &TEXT(B7,"0%") -> Appendix A.5 (continued): Ten-Year Pro Forma of Income-Tax Liability – Based Upon Assumed Passive-Loss Utilization Rate of 50% | S2: Assumed Passive-Loss Utilization Rate
B4: Year 1 | C4: Year 2 | D4: Year 3 | E4: Year 4 | F4: Year 5 | G4: Year 6 | H4: Year 7 | I4: Year 8 | J4: Year 9 | K4: Year 10 | L4: Year 11 | M4: Year 12 | N4: Year 13 | O4: Year 14 | P4: Year 15 | Q4: Total | T4: 0.5
A5: Limited Partners:
A6: Initial Income/(Loss) | B6: =A.5!F21 -> -236393.224 | C6: =A.5!G21 -> -122672.9815 | D6: =A.5!H21 -> -35988.3366 | E6: =A.5!I21 -> 47060.28072 | F6: =A.5!J21 -> 65918.15608 | G6: =A.5!K21 -> 85533.38398 | H6: =A.5!L21 -> 105941.5179 | I6: =A.5!M21 -> 233431.3988 | J6: =A.5!N21 -> 251663.9305 | K6: =A.5!O21 -> 270603.7501 | L6: =A.5!P21 -> 0 | M6: =A.5!Q21 -> 0 | N6: =A.5!R21 -> 0 | O6: =A.5!S21 -> 0 | P6: =A.5!T21 -> 0 | Q6: =SUM(B6:P6) -> 665097.876
A7: Passive-Loss Utilization Rate | B7: =IF(B6<0,T4,1) -> 0.5 | C7: =IF(C6<0,$T4,1) -> 0.5 | D7: 0.5 | E7: 1 | F7: 1 | G7: 1 | H7: 1 | I7: 1 | J7: 1 | K7: =IF(K6<0,$T4,1) -> 1 | L7: 1 | M7: 1 | N7: 1 | O7: 1 | P7: 1 | Q7: =AVERAGE(B7:P7) -> 0.9
A8: Currently Deductible | B8: =B6*B7 -> -118196.612 | C8: =C6*C7 -> -61336.49077 | D8: =D6*D7 -> -17994.1683 | E8: 47060.28072 | F8: 65918.15608 | G8: 85533.38398 | H8: 105941.5179 | I8: 233431.3988 | J8: 251663.9305 | K8: 270603.7501 | L8: 0 | M8: 0 | N8: 0 | O8: 0 | P8: 0 | Q8: =SUM(B8:P8) -> 862625.147
A9: Offset Due to Prior Years | B9: 0 | C9: =IF(C8<0,0,MAX(-C8,C15)) -> 0 | D9: 0 | E9: -47060.28072 | F9: -65918.15608 | G9: -84548.83424 | H9: 0 | I9: 0 | J9: 0 | K9: =IF(K8<0,0,MAX(-K8,K15)) -> 0 | L9: 0 | M9: 0 | N9: 0 | O9: 0 | P9: 0 | Q9: =SUM(B9:P9) -> -197527.271
A10: Current-Year Income | B10: =B8+B9 -> -118196.612 | C10: =C8+C9 -> -61336.49077 | D10: =D8+D9 -> -17994.1683 | E10: 0 | F10: 0 | G10: 984.5497451 | H10: 105941.5179 | I10: 233431.3988 | J10: 251663.9305 | K10: =K8+K9 -> 270603.7501 | L10: 0 | M10: 0 | N10: 0 | O10: 0 | P10: 0 | Q10: =SUM(B10:P10) -> 665097.876
A11: Ordinary Income Tax Rate | B11: ='Base Case Assumptions'!H7 -> 0.4 | C11: =B11 -> 0.4 | D11: =C11 -> 0.4 | E11: 0.4 | F11: 0.4 | G11: 0.4 | H11: 0.4 | I11: 0.4 | J11: 0.4 | K11: =J11 -> 0.4 | L11: 0.4 | M11: 0.4 | N11: 0.4 | O11: 0.4 | P11: 0.4 | Q11: =AVERAGE(B11:P11) -> 0.4
A12: Tax Liability/(Savings) | B12: =B10*B11 -> -47278.64479 | C12: =C10*C11 -> -24534.59631 | D12: -7197.66732 | E12: 0 | F12: 0 | G12: 393.8198981 | H12: 42376.60716 | I12: 93372.55952 | J12: 100665.5722 | K12: =K10*K11 -> 108241.5 | L12: 0 | M12: 0 | N12: 0 | O12: 0 | P12: 0 | Q12: =SUM(B12:P12) -> 266039.1504
A14: "Suspended" Passive Losses:
A15: Initial Balance | B15: 0 | C15: =B17 -> -118196.612 | D15: =C17 -> -179533.1027 | E15: -197527.271 | F15: -150466.9903 | G15: -84548.83424 | H15: 0 | I15: 0 | J15: 0 | K15: =J17 -> 0 | L15: 0 | M15: 0 | N15: 0 | O15: 0 | P15: 0 | Q15: =B15 -> 0
A16: Current Year Useage | B16: =B6-B8 -> -118196.612 | C16: =IF(C6<0,C6-C8,-C9) -> -61336.49077 | D16: =IF(D6<0,D6-D8,-D9) -> -17994.1683 | E16: 47060.28072 | F16: 65918.15608 | G16: 84548.83424 | H16: 0 | I16: 0 | J16: 0 | K16: =IF(K6<0,K6-K8,-K9) -> 0 | L16: 0 | M16: 0 | N16: 0 | O16: 0 | P16: 0 | Q16: =SUM(B16:P16) -> 0
A17: Ending Balance | B17: =B15+B16 -> -118196.612 | C17: =C15+C16 -> -179533.1027 | D17: =D15+D16 -> -197527.271 | E17: -150466.9903 | F17: -84548.83424 | G17: 0 | H17: 0 | I17: 0 | J17: 0 | K17: =K15+K16 -> 0 | L17: 0 | M17: 0 | N17: 0 | O17: 0 | P17: 0 | Q17: =P17 -> 0
A20: General Partner:
A21: Initial Income/(Loss) | B21: =A.5!F22 -> -12441.74863 | C21: =A.5!G22 -> -6456.472712 | D21: =A.5!H22 -> -1894.122979 | E21: =A.5!I22 -> 2476.85688 | F21: =A.5!J22 -> 3469.376636 | G21: =A.5!K22 -> 4501.757052 | H21: =A.5!L22 -> 5575.869363 | I21: =A.5!M22 -> 14327.16437 | J21: =A.5!N22 -> 19366.65994 | K21: =A.5!O22 -> 24658.43747 | L21: =A.5!P22 -> 0 | M21: =A.5!Q22 -> 0 | N21: =A.5!R22 -> 0 | O21: =A.5!S22 -> 0 | P21: =A.5!T22 -> 0 | Q21: =A.5!U22 -> 53583.7774
A22: Passive-Loss Utilization Rate | B22: =IF(B21<0,T4,1) -> 0.5 | C22: =IF(C21<0,$T4,1) -> 0.5 | D22: 0.5 | E22: 1 | F22: 1 | G22: 1 | H22: 1 | I22: 1 | J22: 1 | K22: =IF(K21<0,$T4,1) -> 1 | L22: 1 | M22: 1 | N22: 1 | O22: 1 | P22: 1 | Q22: =AVERAGE(B22:P22) -> 0.9
A23: Currently Deductible | B23: =B21*B22 -> -6220.874315 | C23: -3228.236356 | D23: -947.0614894 | E23: 2476.85688 | F23: 3469.376636 | G23: 4501.757052 | H23: 5575.869363 | I23: 14327.16437 | J23: 19366.65994 | K23: =K21*K22 -> 24658.43747 | L23: 0 | M23: 0 | N23: 0 | O23: 0 | P23: 0 | Q23: =SUM(B23:P23) -> 63979.94956
A24: Offset Due to Prior Years | B24: 0 | C24: =IF(C23<0,0,MAX(-C23,C30)) -> 0 | D24: 0 | E24: -2476.85688 | F24: -3469.376636 | G24: -4449.938644 | H24: 0 | I24: 0 | J24: 0 | K24: =IF(K23<0,0,MAX(-K23,K30)) -> 0 | L24: 0 | M24: 0 | N24: 0 | O24: 0 | P24: 0 | Q24: =SUM(B24:P24) -> -10396.17216
A25: Current-Year Income | B25: =B23+B24 -> -6220.874315 | C25: -3228.236356 | D25: -947.0614894 | E25: 0 | F25: 0 | G25: 51.81840764 | H25: 5575.869363 | I25: 14327.16437 | J25: 19366.65994 | K25: =K23+K24 -> 24658.43747 | L25: 0 | M25: 0 | N25: 0 | O25: 0 | P25: 0 | Q25: =SUM(B25:P25) -> 53583.7774
A26: Ordinary Income Tax Rate | B26: =B11 -> 0.4 | C26: =B26 -> 0.4 | D26: =C26 -> 0.4 | E26: 0.4 | F26: 0.4 | G26: 0.4 | H26: 0.4 | I26: 0.4 | J26: 0.4 | K26: =J26 -> 0.4 | L26: 0.4 | M26: 0.4 | N26: 0.4 | O26: 0.4 | P26: 0.4 | Q26: =AVERAGE(B26:P26) -> 0.4
A27: Tax Liability/(Savings) | B27: =B25*B26 -> -2488.349726 | C27: -1291.294542 | D27: -378.8245958 | E27: 0 | F27: 0 | G27: 20.72736306 | H27: 2230.347745 | I27: 5730.865748 | J27: 7746.663978 | K27: =K25*K26 -> 9863.374988 | L27: 0 | M27: 0 | N27: 0 | O27: 0 | P27: 0 | Q27: =SUM(B27:P27) -> 21433.51096
A29: "Suspended" Passive Losses:
A30: Initial Balance | B30: 0 | C30: =B32 -> -6220.874315 | D30: =C32 -> -9449.110671 | E30: -10396.17216 | F30: -7919.31528 | G30: -4449.938644 | H30: 0 | I30: 0 | J30: 0 | K30: =J32 -> 0 | L30: 0 | M30: 0 | N30: 0 | O30: 0 | P30: 0 | Q30: =B30 -> 0
A31: Current Year Useage | B31: =B21-B23 -> -6220.874315 | C31: =IF(C21<0,C21-C23,-C24) -> -3228.236356 | D31: =IF(D21<0,D21-D23,-D24) -> -947.0614894 | E31: 2476.85688 | F31: 3469.376636 | G31: 4449.938644 | H31: 0 | I31: 0 | J31: 0 | K31: =IF(K21<0,K21-K23,-K24) -> 0 | L31: 0 | M31: 0 | N31: 0 | O31: 0 | P31: 0 | Q31: =SUM(B31:P31) -> 0
A32: Ending Balance | B32: =B30+B31 -> -6220.874315 | C32: -9449.110671 | D32: -10396.17216 | E32: -7919.31528 | F32: -4449.938644 | G32: 0 | H32: 0 | I32: 0 | J32: 0 | K32: =K30+K31 -> 0 | L32: 0 | M32: 0 | N32: 0 | O32: 0 | P32: 0 | Q32: =P32 -> 0
A37: ="This particular illustration assumes that both the general and limited partners can utilize " &TEXT('Base Case Assumptions'!H25,"0%") &" of the passive losses; any passive loss not currently deducted can be used to offset future taxable income and the capital gain associated with the project's disposition." -> This particular illustration assumes that both the general and limited partners can utilize 50% of the passive losses; any passive loss not currently deducted can be used to offset future taxable income and the capital gain associated with the project's disposition.

Sheet A.6
A2: Appendix A.6: Depreciation Schedule
C4: Initial | D4: Depreciable | E4: Depreciation | G4: 1 | H4: =1+G4 -> 2 | I4: 3 | J4: 4 | K4: 5 | L4: 6 | M4: 7 | N4: 8 | O4: 9 | P4: 10 | Q4: 11 | R4: 12 | S4: 13 | T4: 14 | U4: 15
C5: Basis | D5: Life (Years) | E5: Method | G5: =A.5!F4 -> Year 1 | H5: =A.5!G4 -> Year 2 | I5: =A.5!H4 -> Year 3 | J5: =A.5!I4 -> Year 4 | K5: =A.5!J4 -> Year 5 | L5: =A.5!K4 -> Year 6 | M5: =A.5!L4 -> Year 7 | N5: =A.5!M4 -> Year 8 | O5: =A.5!N4 -> Year 9 | P5: =A.5!O4 -> Year 10 | Q5: =A.5!P4 -> Year 11 | R5: =A.5!Q4 -> Year 12 | S5: =A.5!R4 -> Year 13 | T5: =A.5!S4 -> Year 14 | U5: =A.5!T4 -> Year 15 | V5: =A.5!U4 -> Total
A7: Initial Acquisition:
A8: Land | C8: =A.2!M23 -> 1000000 | D8: =A.2!M29 -> 0 | E8: =A.2!M34 -> NA | G8: =D8 -> 0 | H8: =G8 -> 0 | I8: =H8 -> 0 | J8: 0 | K8: 0 | L8: 0 | M8: 0 | N8: 0 | O8: 0 | P8: =O8 -> 0 | Q8: 0 | R8: 0 | S8: 0 | T8: 0 | U8: 0 | V8: =SUM(G8:U8) -> 0
A10: Building | C10: =A.2!M24 -> 7750000 | D10: =A.2!M30 -> 30 | E10: =A.2!M35 -> Straight Line | G10: =C10/D10 -> 258333.3333 | H10: =IF(ISNUMBER(H42),G10,0) -> 258333.3333 | I10: =IF(ISNUMBER(I42),H10,0) -> 258333.3333 | J10: 258333.3333 | K10: 258333.3333 | L10: 258333.3333 | M10: 258333.3333 | N10: 258333.3333 | O10: 258333.3333 | P10: 258333.3333 | Q10: 0 | R10: =IF(ISNUMBER(R42),Q10,0) -> 0 | S10: 0 | T10: 0 | U10: 0 | V10: =SUM(G10:U10) -> 2583333.333
A11: Personalty | C11: =A.2!M25 -> 1250000 | D11: =A.2!M31 -> 7 | E11: =A.2!M36&" (w/shift to straight line)" -> 200% Declining Balance (w/shift to straight line) | G11: =MAX(DDB($C11,0,$D11,G4),SLN($C11,0,$D11)) -> 357142.8571 | H11: =IF(ISNUMBER(H42),MAX(DDB($C11,0,$D11,H4),SLN($C11,0,$D11)),0) -> 255102.0408 | I11: =IF(ISNUMBER(I42),IF(I4>$D11,0,IF(DDB($C11,0,$D11,I4)>SLN($C11,0,$D11),DDB($C11,0,$D11,I4),($C11-SUM($G11:H11))/($D11-H4))),0) -> 182215.7434 | J11: =IF(ISNUMBER(J42),IF(J4>$D11,0,IF(DDB($C11,0,$D11,J4)>SLN($C11,0,$D11),DDB($C11,0,$D11,J4),($C11-SUM($G11:I11))/($D11-I4))),0) -> 113884.8397 | K11: =IF(ISNUMBER(K42),IF(K4>$D11,0,IF(DDB($C11,0,$D11,K4)>SLN($C11,0,$D11),DDB($C11,0,$D11,K4),($C11-SUM($G11:J11))/($D11-J4))),0) -> 113884.8397 | L11: =IF(ISNUMBER(L42),IF(L4>$D11,0,IF(DDB($C11,0,$D11,L4)>SLN($C11,0,$D11),DDB($C11,0,$D11,L4),($C11-SUM($G11:K11))/($D11-K4))),0) -> 113884.8397 | M11: =IF(ISNUMBER(M42),IF(M4>$D11,0,IF(DDB($C11,0,$D11,M4)>SLN($C11,0,$D11),DDB($C11,0,$D11,M4),($C11-SUM($G11:L11))/($D11-L4))),0) -> 113884.8397 | N11: =IF(ISNUMBER(N42),IF(N4>$D11,0,IF(DDB($C11,0,$D11,N4)>SLN($C11,0,$D11),DDB($C11,0,$D11,N4),($C11-SUM($G11:M11))/($D11-M4))),0) -> 0 | O11: =IF(ISNUMBER(O42),IF(O4>$D11,0,IF(DDB($C11,0,$D11,O4)>SLN($C11,0,$D11),DDB($C11,0,$D11,O4),($C11-SUM($G11:N11))/($D11-N4))),0) -> 0 | P11: =IF(ISNUMBER(P42),IF(P4>$D11,0,IF(DDB($C11,0,$D11,P4)>SLN($C11,0,$D11),DDB($C11,0,$D11,P4),($C11-SUM($G11:O11))/($D11-O4))),0) -> 0 | Q11: =IF(ISNUMBER(Q42),IF(Q4>$D11,0,IF(DDB($C11,0,$D11,Q4)>SLN($C11,0,$D11),DDB($C11,0,$D11,Q4),($C11-SUM($G11:P11))/($D11-P4))),0) -> 0 | R11: =IF(ISNUMBER(R42),IF(R4>$D11,0,IF(DDB($C11,0,$D11,R4)>SLN($C11,0,$D11),DDB($C11,0,$D11,R4),($C11-SUM($G11:Q11))/($D11-Q4))),0) -> 0 | S11: =IF(ISNUMBER(S42),IF(S4>$D11,0,IF(DDB($C11,0,$D11,S4)>SLN($C11,0,$D11),DDB($C11,0,$D11,S4),($C11-SUM($G11:R11))/($D11-R4))),0) -> 0 | T11: =IF(ISNUMBER(T42),IF(T4>$D11,0,IF(DDB($C11,0,$D11,T4)>SLN($C11,0,$D11),DDB($C11,0,$D11,T4),($C11-SUM($G11:S11))/($D11-S4))),0) -> 0 | U11: =IF(ISNUMBER(U42),IF(U4>$D11,0,IF(DDB($C11,0,$D11,U4)>SLN($C11,0,$D11),DDB($C11,0,$D11,U4),($C11-SUM($G11:T11))/($D11-T4))),0) -> 0 | V11: =SUM(G11:U11) -> 1250000
B12: Total | C12: =A.2!M26 -> 10000000 | G12: =SUM(G8:G11) -> 615476.1905 | H12: =SUM(H8:H11) -> 513435.3741 | I12: 440549.0768 | J12: 372218.173 | K12: 372218.173 | L12: 372218.173 | M12: 372218.173 | N12: 258333.3333 | O12: 258333.3333 | P12: 258333.3333 | Q12: 0 | R12: 0 | S12: 0 | T12: 0 | U12: 0 | V12: =SUM(G12:U12) -> 3833333.333
A15: Subsequent Capital Improvements/Replacements: *
A16: Year 1 | C16: =A.3!F10 -> 160000 | D16: 15 | E16: =E10 -> Straight Line | G16: =C16/D16/2 -> 5333.333333 | H16: =IF(ISNUMBER(H42),C16/D16,0) -> 10666.66667 | I16: =IF(ISNUMBER(I42),H16,0) -> 10666.66667 | J16: =IF(ISNUMBER(J42),I16,0) -> 10666.66667 | K16: 10666.66667 | L16: 10666.66667 | M16: 10666.66667 | N16: 10666.66667 | O16: 10666.66667 | P16: 10666.66667 | Q16: 0 | R16: 0 | S16: 0 | T16: 0 | U16: 0 | V16: =SUM(G16:U16) -> 101333.3333
A17: Year 2 | C17: =A.3!G10 -> 164800 | D17: =D16 -> 15 | E17: =E16 -> Straight Line | H17: =IF(ISNUMBER(H42),C17/D17/2,0) -> 5493.333333 | I17: =IF(ISNUMBER(I42),C17/D17,0) -> 10986.66667 | J17: =IF(ISNUMBER(J42),I17,0) -> 10986.66667 | K17: =IF(ISNUMBER(K42),J17,0) -> 10986.66667 | L17: 10986.66667 | M17: 10986.66667 | N17: 10986.66667 | O17: 10986.66667 | P17: 10986.66667 | Q17: 0 | R17: 0 | S17: 0 | T17: 0 | U17: 0 | V17: =SUM(G17:U17) -> 93386.66667
A18: Year 3 | C18: =A.3!H10 -> 169744 | D18: =D17 -> 15 | E18: =E17 -> Straight Line | I18: =IF(ISNUMBER(I42),C18/D18/2,0) -> 5658.133333 | J18: =IF(ISNUMBER(J42),C18/D18,0) -> 11316.26667 | K18: =IF(ISNUMBER(K42),J18,0) -> 11316.26667 | L18: =IF(ISNUMBER(L42),K18,0) -> 11316.26667 | M18: 11316.26667 | N18: 11316.26667 | O18: 11316.26667 | P18: 11316.26667 | Q18: 0 | R18: 0 | S18: 0 | T18: 0 | U18: 0 | V18: 84872
A19: Year 4 | C19: =A.3!I10 -> 174836.32 | D19: =D18 -> 15 | E19: Straight Line | J19: =IF(ISNUMBER(J42),C19/D19/2,0) -> 5827.877333 | K19: =IF(ISNUMBER(K42),C19/D19,0) -> 11655.75467 | L19: =IF(ISNUMBER(L42),K19,0) -> 11655.75467 | M19: =IF(ISNUMBER(M42),L19,0) -> 11655.75467 | N19: 11655.75467 | O19: 11655.75467 | P19: 11655.75467 | Q19: 0 | R19: 0 | S19: 0 | T19: 0 | U19: 0 | V19: 75762.40533
A20: Year 5 | C20: =A.3!J10 -> 180081.4096 | D20: =D19 -> 15 | E20: Straight Line | K20: =IF(ISNUMBER(K42),C20/D20/2,0) -> 6002.713653 | L20: =IF(ISNUMBER(L42),C20/D20,0) -> 12005.42731 | M20: =IF(ISNUMBER(M42),L20,0) -> 12005.42731 | N20: =IF(ISNUMBER(N42),M20,0) -> 12005.42731 | O20: 12005.42731 | P20: 12005.42731 | Q20: 0 | R20: 0 | S20: 0 | T20: 0 | U20: 0 | V20: 66029.85019
A21: Year 6 | C21: =A.3!K10 -> 185483.8519 | D21: 15 | E21: Straight Line | L21: =IF(ISNUMBER(L42),C21/D21/2,0) -> 6182.795063 | M21: =IF(ISNUMBER(M42),C21/D21,0) -> 12365.59013 | N21: =IF(ISNUMBER(N42),M21,0) -> 12365.59013 | O21: =IF(ISNUMBER(O42),N21,0) -> 12365.59013 | P21: 12365.59013 | Q21: 0 | R21: 0 | S21: 0 | T21: 0 | U21: 0 | V21: 55645.15557
A22: Year 7 | C22: =A.3!L10 -> 191048.3674 | D22: 15 | E22: Straight Line | M22: =IF(ISNUMBER(M42),C22/D22/2,0) -> 6368.278915 | N22: =IF(ISNUMBER(N42),C22/D22,0) -> 12736.55783 | O22: =IF(ISNUMBER(O42),N22,0) -> 12736.55783 | P22: =IF(ISNUMBER(P42),O22,0) -> 12736.55783 | Q22: 0 | R22: 0 | S22: 0 | T22: 0 | U22: 0 | V22: 44577.9524
A23: Year 8 | C23: =A.3!M10 -> 196779.8185 | D23: 15 | E23: Straight Line | N23: =IF(ISNUMBER(N42),C23/D23/2,0) -> 6559.327282 | O23: =IF(ISNUMBER(O42),C23/D23,0) -> 13118.65456 | P23: =IF(ISNUMBER(P42),O23,0) -> 13118.65456 | Q23: 0 | R23: 0 | S23: 0 | T23: 0 | U23: 0 | V23: 32796.63641
A24: Year 9 | C24: =A.3!N10 -> 202683.213 | D24: 15 | E24: Straight Line | O24: =IF(ISNUMBER(O42),C24/D24/2,0) -> 6756.107101 | P24: =IF(ISNUMBER(P42),C24/D24,0) -> 13512.2142 | Q24: =IF(ISNUMBER(Q42),P24,0) -> 0 | R24: =IF(ISNUMBER(R42),Q24,0) -> 0 | S24: =IF(ISNUMBER(S42),R24,0) -> 0 | T24: =IF(ISNUMBER(T42),S24,0) -> 0 | U24: =IF(ISNUMBER(U42),T24,0) -> 0 | V24: 20268.3213
A25: Year 10 | C25: =A.3!O10 -> 208763.7094 | D25: 15 | E25: Straight Line | P25: =IF(ISNUMBER(P42),C25/D25/2,0) -> 6958.790314 | Q25: =IF(ISNUMBER(Q42),C25/D25,0) -> 0 | R25: =IF(ISNUMBER(R42),Q25,0) -> 0 | S25: =IF(ISNUMBER(S42),R25,0) -> 0 | T25: =IF(ISNUMBER(T42),S25,0) -> 0 | U25: =IF(ISNUMBER(U42),T25,0) -> 0 | V25: 6958.790314
A26: Year 11 | C26: =A.3!P10 -> 0 | D26: 15 | E26: Straight Line | Q26: =IF(ISNUMBER(Q42),C26/D26/2,0) -> 0 | R26: =IF(ISNUMBER(R42),C26/D26,0) -> 0 | S26: =IF(ISNUMBER(S42),R26,0) -> 0 | T26: =IF(ISNUMBER(T42),S26,0) -> 0 | U26: =IF(ISNUMBER(U42),T26,0) -> 0 | V26: 0
A27: Year 12 | C27: =A.3!Q10 -> 0 | D27: 15 | E27: Straight Line | R27: =IF(ISNUMBER(R42),C27/D27/2,0) -> 0 | S27: =IF(ISNUMBER(S42),C27/D27,0) -> 0 | T27: =IF(ISNUMBER(T42),S27,0) -> 0 | U27: =IF(ISNUMBER(U42),T27,0) -> 0 | V27: 0
A28: Year 13 | C28: =A.3!R10 -> 0 | D28: 15 | E28: Straight Line | S28: =IF(ISNUMBER(S42),C28/D28/2,0) -> 0 | T28: =IF(ISNUMBER(T42),C28/D28,0) -> 0 | U28: =IF(ISNUMBER(U42),T28,0) -> 0 | V28: 0
A29: Year 14 | C29: =A.3!S10 -> 0 | D29: 15 | E29: Straight Line | T29: =IF(ISNUMBER(T42),C29/D29/2,0) -> 0 | U29: =IF(ISNUMBER(U42),C29/D29,0) -> 0 | V29: 0
A30: Year 15 | C30: =A.3!T10 -> 0 | D30: 15 | E30: Straight Line | U30: =IF(ISNUMBER(U42),C30/D30/2,0) -> 0 | V30: 0
A31: Total | C31: =SUM(C16:C30) -> 1834220.69 | G31: =SUM(G16:G30) -> 5333.333333 | H31: =SUM(H16:H30) -> 16160 | I31: 27311.46667 | J31: 38797.47733 | K31: 50628.06832 | L31: 62813.57704 | M31: 75364.65101 | N31: 88292.25721 | O31: 101607.6916 | P31: =SUM(P16:P30) -> 115322.589 | Q31: 0 | R31: 0 | S31: 0 | T31: 0 | U31: 0 | V31: 581631.1115
A33: Total Depreciation | G33: =G12+G31 -> 620809.5238 | H33: =H12+H31 -> 529595.3741 | I33: 467860.5434 | J33: 411015.6503 | K33: 422846.2413 | L33: 435031.75 | M33: 447582.824 | N33: 346625.5905 | O33: 359941.0249 | P33: =P12+P31 -> 373655.9223 | Q33: 0 | R33: 0 | S33: 0 | T33: 0 | U33: 0 | V33: =V12+V31 -> 4414964.445
A35: * Assumes subsequent improvements/replacements, a combination of real and personal property, are put in place at mid-year.
A38: Note: These depreciation estimates are crude approximations of the IRS-proscribed depreciation schedules.
A42: Holding Period (Years) | E42: =A.3!E39 -> 10 | G42: =A.3!F39 -> 1 | H42: =A.3!G39 -> 2 | I42: =A.3!H39 -> 3 | J42: =A.3!I39 -> 4 | K42: =A.3!J39 -> 5 | L42: =A.3!K39 -> 6 | M42: =A.3!L39 -> 7 | N42: =A.3!M39 -> 8 | O42: =A.3!N39 -> 9 | P42: =A.3!O39 -> 10 | Q42: =A.3!P39 ->  | R42: =A.3!Q39 ->  | S42: =A.3!R39 ->  | T42: =A.3!S39 ->  | U42: =A.3!T39 -> 
B47: Total Real-Property Depreciation | G47: =G33-G11 -> 263666.6667 | H47: =H33-H11 -> 274493.3333 | I47: 285644.8 | J47: 297130.8107 | K47: 308961.4017 | L47: 321146.9104 | M47: 333697.9843 | N47: 346625.5905 | O47: 359941.0249 | P47: 373655.9223 | Q47: 0 | R47: 0 | S47: 0 | T47: 0 | U47: 0 | V47: =SUM(G47:U47) -> 3164964.445
B48: Limited Partners' Share of Taxable Income/<Loss> | G48: =IF(ISNUMBER(A.9!$R6),A.9!$R6,'A.2 (continued)'!$N35) -> 0.95 | H48: =IF(ISNUMBER(A.9!$R7),A.9!$R7,'A.2 (continued)'!$N35) -> 0.95 | I48: =IF(ISNUMBER(A.9!$R8),A.9!$R8,'A.2 (continued)'!$N35) -> 0.95 | J48: =IF(ISNUMBER(A.9!$R9),A.9!$R9,'A.2 (continued)'!$N35) -> 0.95 | K48: =IF(ISNUMBER(A.9!$R10),A.9!$R10,'A.2 (continued)'!$N35) -> 0.95 | L48: =IF(ISNUMBER(A.9!$R11),A.9!$R11,'A.2 (continued)'!$N35) -> 0.95 | M48: =IF(ISNUMBER(A.9!$R12),A.9!$R12,'A.2 (continued)'!$N35) -> 0.95 | N48: =IF(ISNUMBER(A.9!$R13),A.9!$R13,'A.2 (continued)'!$N35) -> 0.9421728792 | O48: =IF(ISNUMBER(A.9!$R14),A.9!$R14,'A.2 (continued)'!$N35) -> 0.9285443761 | P48: =IF(ISNUMBER(A.9!R15),A.9!$R15,'A.2 (continued)'!$N35) -> 0.916486301 | Q48: =IF(ISNUMBER(A.9!R16),A.9!$R16,'A.2 (continued)'!$N35) -> 0.95 | R48: =IF(ISNUMBER(A.9!S16),A.9!$R16,'A.2 (continued)'!$N35) -> 0.95 | S48: =IF(ISNUMBER(A.9!T16),A.9!$R16,'A.2 (continued)'!$N35) -> 0.95 | T48: =IF(ISNUMBER(A.9!U16),A.9!$R16,'A.2 (continued)'!$N35) -> 0.95 | U48: =IF(ISNUMBER(A.9!V16),A.9!$R16,'A.2 (continued)'!$N35) -> 0.95 | V48: =V49/V47 -> 0.9427460696
B49: Limited Partners' Share of Real-Property Depreciation | G49: =G47*G48 -> 250483.3333 | H49: =H47*H48 -> 260768.6667 | I49: 271362.56 | J49: 282274.2701 | K49: 293513.3316 | L49: 305089.5649 | M49: 317013.0851 | N49: 326581.2306 | O49: 334221.2144 | P49: 342450.5341 | Q49: 0 | R49: 0 | S49: 0 | T49: 0 | U49: 0 | V49: =SUM(G49:U49) -> 2983757.791
B51: Total Real-Property Depreciation | G51: =G47 -> 263666.6667 | H51: =H47 -> 274493.3333 | I51: 285644.8 | J51: 297130.8107 | K51: 308961.4017 | L51: 321146.9104 | M51: 333697.9843 | N51: 346625.5905 | O51: 359941.0249 | P51: 373655.9223 | Q51: 0 | R51: 0 | S51: 0 | T51: 0 | U51: 0 | V51: =SUM(G51:U51) -> 3164964.445
B52: General Partner's Share of Taxable Income/<Loss> | G52: =1-G48 -> 0.05 | H52: =1-H48 -> 0.05 | I52: 0.05 | J52: 0.05 | K52: 0.05 | L52: 0.05 | M52: 0.05 | N52: 0.05782712084 | O52: 0.07145562393 | P52: 0.08351369904 | Q52: 0.05 | R52: 0.05 | S52: 0.05 | T52: 0.05 | U52: 0.05 | V52: =V53/V51 -> 0.05725393039
B53: General Partner's Share of Real-Property Depreciation | G53: =G51*G52 -> 13183.33333 | H53: 13724.66667 | I53: 14282.24 | J53: 14856.54053 | K53: 15448.07008 | L53: 16057.34552 | M53: 16684.89922 | N53: 20044.35991 | O53: 25719.81052 | P53: 31205.38824 | Q53: 0 | R53: 0 | S53: 0 | T53: 0 | U53: 0 | V53: =SUM(G53:U53) -> 181206.654

Sheet A.7
A2: ="Appendix A.7: Illustration of Reversionary Proceeds at End of Year " &A.3!E39 -> Appendix A.7: Illustration of Reversionary Proceeds at End of Year 10
L4: Limited | O4: General
H5: Partnership | L5: Partners | O5: Partner
A6: Before-Tax Cash Flow:
A7: ="Next Year's Forecasted Cash Flow (Year " &TEXT(A.3!E39+1,"0)") -> Next Year's Forecasted Cash Flow (Year 11) | I7: =A.3!F5*(1+A.2!M7)^(A.3!E39) -> 1075133.103
A8: Forecasted Capitalization Rate | I8: =A.2!M8 -> 0.08
A9: Forecasted Disposition Price – Gross (rounded) | I9: =ROUND(I7/I8,-4) -> 13440000
A10: Estimated Dispostion Fees & Costs | I10: =-I9*A.2!M9 -> 0
A11: Forecasted Disposition Price – Net | I11: =I9+I10 -> 13440000
A12: Mortgage Loan Balance (see A.4) | I12: =-VLOOKUP(A.3!E39,'A.4 (Summary)'!A7:F21,6) -> -5086567.582
B13: Distributable Sale Proceeds | I13: =MAX(0,I11+I12) -> 8353432.418
A14: Allocation of Proceeds (see A.2):
B15: Return of LPs' Invested Capital | I15: =MIN(I13*A.1!G7/A.1!G9,A.1!G7) -> 3800000 | L15: =I15 -> 3800000
B16: Return of GP's Invested Capital | I16: =MIN(I13-I15,A.1!G8) -> 200000 | O16: =I16 -> 200000
B17: Preferred Return on Invested Capital (see A.8) | I17: =MIN(I13-I15-I16,A.8!E22) -> 849095.1619 | L17: =I17*(1-A.1!I8) -> 806640.4038 | O17: =I17*A.1!I8 -> 42454.7581
B18: Residual Proceeds:
C19: Real Estate Profits:
D20: =A.3!D23 -> Limited Partners @ 76% | I20: =(I13-I15-I16-I17)*'A.2 (continued)'!N22 -> 2663296.315 | L20: =I20 -> 2663296.315
D21: =A.3!D24 -> General Partner @ 4% | I21: =(I13-I15-I16-I17)*'A.2 (continued)'!N23 -> 140173.4903 | O21: =I21 -> 140173.4903
C22: Carried Interest:
D23: =A.3!D26 -> General Partner @ 20% | I23: =I13-SUM(I15:I21) -> 700867.4513 | O23: =I23 -> 700867.4513
D24: Total | I24: =SUM(I15:I23) -> 8353432.418 | L24: =SUM(L15:L23) -> 7269936.719 | O24: =SUM(O15:O23) -> 1083495.7 | Q24: (CF from sale is being allocated per the fund documents, leaving the allocated CG to "fall out" based on the CABs just prior to the CF distribution from sale)
A26: Capital Gain/<Loss> :
A27: =A9 -> Forecasted Disposition Price – Gross (rounded) | I27: =MAX(I9,-I12) -> 13440000
A28: =A10 -> Estimated Dispostion Fees & Costs | I28: =I29-I27 -> 0
A29: =A11 -> Forecasted Disposition Price – Net | I29: =MAX(I11,-I12) -> 13440000
A30: Adjusted Basis:
B31: Initial Basis, O&O Costs and Capital Expenditures | H31: =A.2!M26+A.3!U10+A.1!G15+A.1!G16 -> 11834220.69
B32: Accumulated Depreciation and Amortization | H32: =-A.6!V33-A.5!U13-A.5!U14 -> -4414964.445
C33: Adjusted Basis | H33: =H31+H32 -> 7419256.245 | I33: =-H33 -> -7419256.245
A34: Capital Gain Before Recapture | I34: =I29+I33 -> 6020743.755 | L34: =L71 -> 5051080.577 | O34: =I34-L34 -> 969663.178
B35: Recapture of Depreciation:
C36: Real Property (§1250 Gain) | I36: =A.6!V33-A.6!V11 -> 3164964.445 | L36: =A.6!V49 -> 2983757.791 | O36: =A.6!V53 -> 181206.654
C37: Personal Property (§1245 Gain) † | I37: 0 | L37: 0 | O37: 0
A38: Unrecaptured Gain Before Carried Interest | I38: =I34-I36-I37 -> 2855779.31 | L38: =L34-L36-L37 -> 2067322.786 | O38: =I38-L38 -> 788456.5239
B39: Pure Carried Interest as ≈ Ordinary Income | I39: =IF(H66="No",0,I23) -> 700867.4513 | L39: 0 | O39: =I39 -> 700867.4513
A40: Capital Gain/<Loss> After Carried Interest | I40: =I38-I39 -> 2154911.859 | L40: =L38-L39 -> 2067322.786 | O40: =I40-L40 -> 87589.07269
A42: Allocation of Capital Gain/<Loss> :
B43: Negative Capital Account Balances | I43: =L43+O43 -> 0 | L43: =IF(I40<=0,IF(A.9!L37>0,MAX(I40*A.9!L37/(A.9!L37+A.9!O37),-A.9!L37)),IF(A.9!K37>0,A.9!K37,0)) -> 0 | O43: =IF(I40<=0,IF(A.9!O37>0,MAX(I40*A.9!O37/(A.9!L37+A.9!O37)),-A.9!O37),IF(A.9!N37>0,A.9!N37,0)) -> 0 | Q43: (Initial equity – CF distributions + taxable incme)
B44: Return of Invested Capital †† | I44: =L44+O44 -> 1667311.337 | L44: =IF(I40>0,A.7!L15-A.9!L37,-A.9!N37) -> 1581143.858 | O44: =IF(I40>0,A.7!O16-A.9!O37,A.9!N37) -> 86167.47836
B45: Preferred Return on Invested Capital | I45: =I17 -> 849095.1619 | L45: =I45*(1-A.1!I8) -> 806640.4038 | O45: =I45-L45 -> 42454.7581
B46: Residual Proceeds | I46: =IF($H66="No",I20+I21+I23,I20+I21) -> 2803469.805 | L46: =L20+L21+L23 -> 2663296.315 | O46: =I46-L46 -> 140173.4903
C47: Total Gain – Unadjusted | I47: =SUM(I43:I46) -> 5319876.304 | L47: =SUM(L43:L46) -> 5051080.577 | O47: =SUM(O43:O46) -> 268795.7267
B49: Real Property Depreciation Recapture | I49: =I36 -> 3164964.445 | L49: =L36 -> 2983757.791 | O49: =O36 -> 181206.654
B50: Applicable Tax Rate ††† | I50: =MAX(A.2!$M41,I56) -> 0.288 | L50: =MAX(A.2!$M41,L56) -> 0.288 | O50: =MAX(A.2!$M41,O56) -> 0.288
B51: Tax Liability Due to Real-Property Recapture | I51: =I49*I50 -> 911509.7601 | L51: =L49*L50 -> 859322.2438 | O51: =O49*O50 -> 52187.51636
B53: Real Property Price Appreciation (§1231 Gain) | I53: =I40 -> 2154911.859 | L53: =L38 -> 2067322.786 | O53: =O40 -> 87589.07269
B54: Unused Passive Losses | I54: =L54+O54 -> 0 | L54: =IF('A.5 (Passive Losses)'!P17<0,'A.5 (Passive Losses)'!P17,0) -> 0 | O54: =IF('A.5 (Passive Losses)'!P32<0,'A.5 (Passive Losses)'!P32,0) -> 0
C55: Total Capital Gain – Adjusted | I55: =I53+I54 -> 2154911.859 | L55: =L53+L54 -> 2067322.786 | O55: =O53+O54 -> 87589.07269
B56: Capital Gain Tax Rate | I56: =A.2!M40 -> 0.238 | L56: =I56 -> 0.238 | O56: =I56 -> 0.238
B57: Capital Gain Tax Liability | I57: =I55*I56 -> 512869.0224 | L57: =L55*L56 -> 492022.8231 | O57: =O55*O56 -> 20846.1993
B59: Pure Carried Interest | I59: =I39 -> 700867.4513 | O59: =O39 -> 700867.4513
B60: Applicable Tax Rate | I60: 0.3 | O60: =I60 -> 0.3
B61: Tax Liability on Carried Interest | I61: =I59*I60 -> 210260.2354 | O61: =O59*O60 -> 210260.2354
B63: Total Tax Liability from Sale | I63: =I51+I57+I61 -> 1634639.018 | L63: =L51+L57+L61 -> 1351345.067 | O63: =O51+O57+O61 -> 283293.951
B66: ='A.2 (continued)'!C68 -> GP's "Pure" Carry Taxed at Ordinary Income Rates? | H66: ='A.2 (continued)'!I69 -> Yes
A68: Double Check:
B69: =B13 -> Distributable Sale Proceeds | I69: =I13-I39 -> 7652564.967 | L69: =L24 -> 7269936.719 | O69: =O24-O23 -> 382628.2483 | Q69: (Based on pre-specified allocations of CF from sale)
B70: Less: Capital Account Balance (see A.9) | I70: =A.9!I37-A.9!H37 -> 2332688.663 | L70: =A.9!L37-A.9!K37 -> 2218856.142 | O70: =A.9!O37-A.9!N37 -> 113832.5216 | Q70: (These are the CABs prior to the distribution of CF from sale)
B71: =A40 -> Capital Gain/<Loss> After Carried Interest | I71: =I69-I70 -> 5319876.304 | L71: =L69-L70 -> 5051080.577 | O71: =O69-O70 -> 268795.7267
B73: Difference from Above | I73: =I47-I71+0.005 -> 0.004999998137 | L73: =L47-L71+0.005 -> 0.005 | O73: =O47-O71+0.005 -> 0.005000000116
A75: After-Tax Cash Flow | I75: =I13-I57 -> 7840563.396 | L75: =L24-L57 -> 6777913.895 | O75: =O24-O57 -> 1062649.5
A78: † | C78: Assumes that personal property is sold for its book value (and, therefore, no gain is recognized).
A80: †† | C80: To the extent repaid, equals Invested Capital less positive (if any) capital account balance:
D81: ="Partnership: " &TEXT(I15+I16,"$0,000") &" – " &TEXT(A.9!I37,"0,000") &" = " &TEXT(I15+I16-A.9!I37,"$0,000.") -> Partnership: $4,000,000 – 2,332,689 = $1,667,311.
D82: ="Limited Partners: " &TEXT(L15,"$0,000") &" – " &TEXT(A.9!L37,"0,000") &" = " &TEXT(L15-A.9!L37,"$0,000.") -> Limited Partners: $3,800,000 – 2,218,856 = $1,581,144.
D83: ="General Partner: " &TEXT(O16,"$0,000") &" – " &TEXT(A.9!O37,"0,000") &" = " &TEXT(O16-A.9!O37,"$0,000.") -> General Partner: $200,000 – 113,833 = $86,167.
A85: ††† | C85: Assumes that the recapture of depreciation to real property is taxed at the greater of: i) 25% or ii) the then-prevailing long-term capital gains rate.
A91: ="[ Sheet Name: " &RIGHT(CELL("filename",A47),LEN(CELL("filename",A47))-FIND("]",CELL("filename",A47),1)) &" ]" -> [ Sheet Name: A.7 ]

Sheet A.8
A2: Appendix A.8: Unpaid Preferred Return
D4: Paid | E4: Unpaid | H4: Holding
B5: Beginning | C5: Preferred | D5: Preferred | E5: Preferred | F5: Ending | H5: Period
A6: Year | B6: Balance | C6: Return | D6: Return | E6: Return | F6: Balance | H6: =A.3!E39 -> 10
A7: 1 | B7: =A.1!G9 -> 4000000 | C7: =B7*'A.2 (continued)'!N$10 -> 280000 | D7: =A.3!F19 -> 144911.0231 | E7: =C7-D7 -> 135088.9769 | F7: =B7+E7 -> 4135088.977 | H7: =A.3!F39 -> 1
A8: =1+A7 -> 2 | B8: =IF(ISNUMBER(H8),F7,F7) -> 4135088.977 | C8: =IF(ISNUMBER(H8),B8*'A.2 (continued)'!N$10,0) -> 289456.2284 | D8: =IF(ISNUMBER(H8),A.3!G$19,0) -> 164111.0231 | E8: =C8-D8 -> 125345.2053 | F8: =B8+E8 -> 4260434.182 | H8: =A.3!G39 -> 2
A9: =1+A8 -> 3 | B9: =IF(ISNUMBER(H9),F8,F8) -> 4260434.182 | C9: =IF(ISNUMBER(H9),B9*'A.2 (continued)'!N$10,0) -> 298230.3928 | D9: =IF(ISNUMBER(H9),A.3!H$19,0) -> 183887.0231 | E9: =C9-D9 -> 114343.3697 | F9: =B9+E9 -> 4374777.552 | H9: =A.3!H39 -> 3
A10: 4 | B10: 4374777.552 | C10: =IF(ISNUMBER(H10),B10*'A.2 (continued)'!N$10,0) -> 306234.4286 | D10: =IF(ISNUMBER(H10),A.3!I$19,0) -> 204256.3031 | E10: 101978.1255 | F10: 4476755.677 | H10: =A.3!I39 -> 4
A11: 5 | B11: 4476755.677 | C11: =IF(ISNUMBER(H11),B11*'A.2 (continued)'!N$10,0) -> 313372.8974 | D11: =IF(ISNUMBER(H11),A.3!J$19,0) -> 225236.6615 | E11: 88136.23594 | F11: 4564891.913 | H11: =A.3!J39 -> 5
A12: 6 | B12: 4564891.913 | C12: =IF(ISNUMBER(H12),B12*'A.2 (continued)'!N$10,0) -> 319542.4339 | D12: =IF(ISNUMBER(H12),A.3!K$19,0) -> 246846.4306 | E12: 72696.0033 | F12: 4637587.917 | H12: =A.3!K39 -> 6
A13: 7 | B13: 4637587.917 | C13: =IF(ISNUMBER(H13),B13*'A.2 (continued)'!N$10,0) -> 324631.1542 | D13: =IF(ISNUMBER(H13),A.3!L$19,0) -> 269104.4929 | E13: 55526.6613 | F13: 4693114.578 | H13: =A.3!L39 -> 7
A14: 8 | B14: 4693114.578 | C14: =IF(ISNUMBER(H14),B14*'A.2 (continued)'!N$10,0) -> 328518.0205 | D14: =IF(ISNUMBER(H14),A.3!M$19,0) -> 280000 | E14: 48518.02046 | F14: 4741632.598 | H14: =A.3!M39 -> 8
A15: 9 | B15: 4741632.598 | C15: =IF(ISNUMBER(H15),B15*'A.2 (continued)'!N$10,0) -> 331914.2819 | D15: =IF(ISNUMBER(H15),A.3!N$19,0) -> 280000 | E15: 51914.28189 | F15: 4793546.88 | H15: =A.3!N39 -> 9
A16: 10 | B16: 4793546.88 | C16: =IF(ISNUMBER(H16),B16*'A.2 (continued)'!N$10,0) -> 335548.2816 | D16: =IF(ISNUMBER(H16),A.3!O$19,0) -> 280000 | E16: 55548.28162 | F16: 4849095.162 | H16: =A.3!O39 -> 10
A17: 11 | B17: 4849095.162 | C17: =IF(ISNUMBER(H17),B17*'A.2 (continued)'!N$10,0) -> 0 | D17: =IF(ISNUMBER(H17),A.3!P$19,0) -> 0 | E17: 0 | F17: 4849095.162 | H17: =A.3!P39 -> 
A18: 12 | B18: 4849095.162 | C18: =IF(ISNUMBER(H18),B18*'A.2 (continued)'!N$10,0) -> 0 | D18: =IF(ISNUMBER(H18),A.3!Q$19,0) -> 0 | E18: 0 | F18: 4849095.162 | H18: =A.3!Q39 -> 
A19: 13 | B19: 4849095.162 | C19: =IF(ISNUMBER(H19),B19*'A.2 (continued)'!N$10,0) -> 0 | D19: =IF(ISNUMBER(H19),A.3!R$19,0) -> 0 | E19: 0 | F19: 4849095.162 | H19: =A.3!R39 -> 
A20: 14 | B20: 4849095.162 | C20: =IF(ISNUMBER(H20),B20*'A.2 (continued)'!N$10,0) -> 0 | D20: =IF(ISNUMBER(H20),A.3!S$19,0) -> 0 | E20: 0 | F20: 4849095.162 | H20: =A.3!S39 -> 
A21: 15 | B21: 4849095.162 | C21: =IF(ISNUMBER(H21),B21*'A.2 (continued)'!N$10,0) -> 0 | D21: =IF(ISNUMBER(H21),A.3!T$19,0) -> 0 | E21: 0 | F21: 4849095.162 | H21: =A.3!T39 -> 
B22: =B7 -> 4000000 | C22: =SUM(C7:C21) -> 3127448.119 | D22: =SUM(D7:D21) -> 2278352.957 | E22: =SUM(E7:E21) -> 849095.1619 | F22: =F21 -> 4849095.162
B24: Note: Cumulative, annually compounding preference.
B27: [The Beginning Balance includes both the GP's and LPs' capital contributions, treated on a pari passu basis.]

Sheet A.9
B2: Appendix A.9: Partnership Capital Accounts
R3: LP's Share of
H4: Partnership | K4: Limited Partners | N4: General Partner | R4: Taxable
A5: Activity Prior to Sale | B5: Invested Capital | I5: =A.1!G9 -> 4000000 | L5: =A.1!G7 -> 3800000 | O5: =A.1!G8 -> 200000 | R5: Income/<Loss>
B6: Taxable Income/<Loss> - Year 1 | H6: =IF(A.5!F17<0,-A.5!F17,0) -> 248834.9726 | I6: =IF(A.5!F17<0,0,A.5!F17) -> 0 | K6: =IF(A.5!F21<0,-A.5!F21,0) -> 236393.224 | L6: =IF(A.5!F21<0,0,A.5!F21) -> 0 | N6: =IF(A.5!F22<0,-A.5!F22,0) -> 12441.74863 | O6: =IF(A.5!F22<0,0,A.5!F22) -> 0 | R6: =IF(H6>0,K6/H6,IF(I6=0," ",L6/I6)) -> 0.95
B7: Taxable Income/<Loss> - Year 2 | H7: =IF(A.5!G17<0,-A.5!G17,0) -> 129129.4542 | I7: =IF(A.5!G17<0,0,A.5!G17) -> 0 | K7: =IF(A.5!G21<0,-A.5!G21,0) -> 122672.9815 | L7: =IF(A.5!G21<0,0,A.5!G21) -> 0 | N7: =IF(A.5!G22<0,-A.5!G22,0) -> 6456.472712 | O7: =IF(A.5!G22<0,0,A.5!G22) -> 0 | R7: =IF(H7>0,K7/H7,IF(I7=0," ",L7/I7)) -> 0.95
B8: Taxable Income/<Loss> - Year 3 | H8: =IF(A.5!H17<0,-A.5!H17,0) -> 37882.45958 | I8: =IF(A.5!H17<0,0,A.5!H17) -> 0 | K8: =IF(A.5!H21<0,-A.5!H21,0) -> 35988.3366 | L8: =IF(A.5!H21<0,0,A.5!H21) -> 0 | N8: =IF(A.5!H22<0,-A.5!H22,0) -> 1894.122979 | O8: =IF(A.5!H22<0,0,A.5!H22) -> 0 | R8: 0.95
B9: Taxable Income/<Loss> - Year 4 | H9: =IF(A.5!I17<0,-A.5!I17,0) -> 0 | I9: =IF(A.5!I17<0,0,A.5!I17) -> 49537.1376 | K9: =IF(A.5!I21<0,-A.5!I21,0) -> 0 | L9: =IF(A.5!I21<0,0,A.5!I21) -> 47060.28072 | N9: =IF(A.5!I22<0,-A.5!I22,0) -> 0 | O9: =IF(A.5!I22<0," ",A.5!I22) -> 2476.85688 | R9: 0.95
B10: Taxable Income/<Loss> - Year 5 | H10: =IF(A.5!J17<0,-A.5!J17,0) -> 0 | I10: =IF(A.5!J17<0,0,A.5!J17) -> 69387.53272 | K10: =IF(A.5!J21<0,-A.5!J21,0) -> 0 | L10: =IF(A.5!J21<0,0,A.5!J21) -> 65918.15608 | N10: =IF(A.5!J22<0,-A.5!J22,0) -> 0 | O10: =IF(A.5!J22<0," ",A.5!J22) -> 3469.376636 | R10: 0.95
B11: Taxable Income/<Loss> - Year 6 | H11: =IF(A.5!K17<0,-A.5!K17,0) -> 0 | I11: =IF(A.5!K17<0,0,A.5!K17) -> 90035.14104 | K11: =IF(A.5!K21<0,-A.5!K21,0) -> 0 | L11: =IF(A.5!K21<0,0,A.5!K21) -> 85533.38398 | N11: =IF(A.5!K22<0,-A.5!K22,0) -> 0 | O11: =IF(A.5!K22<0," ",A.5!K22) -> 4501.757052 | R11: 0.95
B12: Taxable Income/<Loss> - Year 7 | H12: =IF(A.5!L17<0,-A.5!L17,0) -> 0 | I12: =IF(A.5!L17<0,0,A.5!L17) -> 111517.3873 | K12: =IF(A.5!L21<0,-A.5!L21,0) -> 0 | L12: =IF(A.5!L21<0,0,A.5!L21) -> 105941.5179 | N12: =IF(A.5!L22<0,-A.5!L22,0) -> 0 | O12: =IF(A.5!L22<0," ",A.5!L22) -> 5575.869363 | R12: 0.95
B13: Taxable Income/<Loss> - Year 8 | H13: =IF(A.5!M17<0,-A.5!M17,0) -> 0 | I13: =IF(A.5!M17<0,0,A.5!M17) -> 247758.5632 | K13: =IF(A.5!M21<0,-A.5!M21,0) -> 0 | L13: =IF(A.5!M21<0,0,A.5!M21) -> 233431.3988 | N13: =IF(A.5!M22<0,-A.5!M22,0) -> 0 | O13: =IF(A.5!M22<0," ",A.5!M22) -> 14327.16437 | R13: 0.9421728792
B14: Taxable Income/<Loss> - Year 9 | H14: =IF(A.5!N17<0,-A.5!N17,0) -> 0 | I14: =IF(A.5!N17<0,0,A.5!N17) -> 271030.5904 | K14: =IF(A.5!N21<0,-A.5!N21,0) -> 0 | L14: =IF(A.5!N21<0,0,A.5!N21) -> 251663.9305 | N14: =IF(A.5!N22<0,-A.5!N22,0) -> 0 | O14: =IF(A.5!N22<0," ",A.5!N22) -> 19366.65994 | R14: 0.9285443761
B15: Taxable Income/<Loss> - Year 10 | H15: =IF(A.5!O17<0,-A.5!O17,0) -> 0 | I15: =IF(A.5!O17<0,0,A.5!O17) -> 295262.1876 | K15: =IF(A.5!O21<0,-A.5!O21,0) -> 0 | L15: =IF(A.5!O21<0,0,A.5!O21) -> 270603.7501 | N15: =IF(A.5!O22<0,-A.5!O22,0) -> 0 | O15: =IF(A.5!O22<0," ",A.5!O22) -> 24658.43747 | R15: 0.916486301
B16: Taxable Income/<Loss> - Year 11 | H16: =IF(A.5!P17<0,-A.5!P17,0) -> 0 | I16: =IF(A.5!P17<0,0,A.5!P17) -> 0 | K16: =IF(A.5!P21<0,-A.5!P21,0) -> 0 | L16: =IF(A.5!P21<0,0,A.5!P21) -> 0 | N16: =IF(A.5!P22<0,-A.5!P22,0) -> 0 | O16: =IF(A.5!P22<0," ",A.5!P22) -> 0 | U16: =ISNUMBER(R16) -> FALSE
B17: Taxable Income/<Loss> - Year 12 | H17: =IF(A.5!Q17<0,-A.5!Q17,0) -> 0 | I17: =IF(A.5!Q17<0,0,A.5!Q17) -> 0 | K17: =IF(A.5!Q21<0,-A.5!Q21,0) -> 0 | L17: =IF(A.5!Q21<0,0,A.5!Q21) -> 0 | N17: =IF(A.5!Q22<0,-A.5!Q22,0) -> 0 | O17: =IF(A.5!Q22<0," ",A.5!Q22) -> 0
B18: Taxable Income/<Loss> - Year 13 | H18: =IF(A.5!R17<0,-A.5!R17,0) -> 0 | I18: =IF(A.5!R17<0,0,A.5!R17) -> 0 | K18: =IF(A.5!R21<0,-A.5!R21,0) -> 0 | L18: =IF(A.5!R21<0,0,A.5!R21) -> 0 | N18: =IF(A.5!R22<0,-A.5!R22,0) -> 0 | O18: =IF(A.5!R22<0," ",A.5!R22) -> 0 | S18: LP's Share of
B19: Taxable Income/<Loss> - Year 14 | H19: =IF(A.5!S17<0,-A.5!S17,0) -> 0 | I19: =IF(A.5!S17<0,0,A.5!S17) -> 0 | K19: =IF(A.5!S21<0,-A.5!S21,0) -> 0 | L19: =IF(A.5!S21<0,0,A.5!S21) -> 0 | N19: =IF(A.5!S22<0,-A.5!S22,0) -> 0 | O19: =IF(A.5!S22<0," ",A.5!S22) -> 0 | S19: Distributed
B20: Taxable Income/<Loss> - Year 15 | H20: =IF(A.5!T17<0,-A.5!T17,0) -> 0 | I20: =IF(A.5!T17<0,0,A.5!T17) -> 0 | K20: =IF(A.5!T21<0,-A.5!T21,0) -> 0 | L20: =IF(A.5!T21<0,0,A.5!T21) -> 0 | N20: =IF(A.5!T22<0,-A.5!T22,0) -> 0 | O20: =IF(A.5!T22<0," ",A.5!T22) -> 0 | S20: Cash
B21: Cash Distribution - Year 1 | H21: =A.3!F12 -> 144911.0231 | K21: =A.3!F19*(1-A.1!I8)+A.3!F23 -> 137665.4719 | N21: =H21-K21 -> 7245.551154 | S21: =K21/H21 -> 0.95
B22: Cash Distribution - Year 2 | H22: =A.3!G12 -> 164111.0231 | K22: =A.3!G19*(1-A.1!I8)+A.3!G23 -> 155905.4719 | N22: =H22-K22 -> 8205.551154 | S22: =IF(H22>0,K22/H22," ") -> 0.95
B23: Cash Distribution - Year 3 | H23: =A.3!H12 -> 183887.0231 | K23: =A.3!H19*(1-A.1!I8)+A.3!H23 -> 174692.6719 | N23: 9194.351154 | S23: 0.95
B24: Cash Distribution - Year 4 | H24: =A.3!I12 -> 204256.3031 | K24: =A.3!I19*(1-A.1!I8)+A.3!I23 -> 194043.4879 | N24: 10212.81515 | S24: 0.95
B25: Cash Distribution - Year 5 | H25: =A.3!J12 -> 225236.6615 | K25: =A.3!J19*(1-A.1!I8)+A.3!J23 -> 213974.8284 | N25: 11261.83307 | S25: 0.95
B26: Cash Distribution - Year 6 | H26: =A.3!K12 -> 246846.4306 | K26: =A.3!K19*(1-A.1!I8)+A.3!K23 -> 234504.1091 | N26: 12342.32153 | S26: 0.95
B27: Cash Distribution - Year 7 | H27: =A.3!L12 -> 269104.4929 | K27: =A.3!L19*(1-A.1!I8)+A.3!L23 -> 255649.2682 | N27: 13455.22464 | S27: 0.95
B28: Cash Distribution - Year 8 | H28: =A.3!M12 -> 292030.297 | K28: =A.3!M19*(1-A.1!I8)+A.3!M23 -> 275143.0257 | N28: 16887.27127 | S28: 0.9421728792
B29: Cash Distribution - Year 9 | H29: =A.3!N12 -> 315643.8752 | K29: =A.3!N19*(1-A.1!I8)+A.3!N23 -> 293089.3451 | N29: 22554.53004 | S29: 0.9285443761
B30: Cash Distribution - Year 10 | H30: =A.3!O12 -> 339965.8607 | K30: =A.3!O19*(1-A.1!I8)+A.3!O23 -> 311574.0542 | N30: 28391.80658 | S30: 0.916486301
B31: Cash Distribution - Year 11 | H31: =A.3!P12 -> 0 | K31: =A.3!P19*(1-A.1!I8)+A.3!P23 -> 0 | N31: 0
B32: Cash Distribution - Year 12 | H32: =A.3!Q12 -> 0 | K32: =A.3!Q19*(1-A.1!I8)+A.3!Q23 -> 0 | N32: 0
B33: Cash Distribution - Year 13 | H33: =A.3!R12 -> 0 | K33: =A.3!R19*(1-A.1!I8)+A.3!R23 -> 0 | N33: 0
B34: Cash Distribution - Year 14 | H34: =A.3!S12 -> 0 | K34: =A.3!S19*(1-A.1!I8)+A.3!S23 -> 0 | N34: 0
B35: Cash Distribution - Year 15 | H35: =A.3!T12 -> 0 | K35: =A.3!T19*(1-A.1!I8)+A.3!T23 -> 0 | N35: 0
C36: Subtotals | H36: =SUM(H6:H35) -> 2801839.877 | I36: =SUM(I5:I35) -> 5134528.54 | K36: =SUM(K6:K35) -> 2641296.277 | L36: =SUM(L5:L35) -> 4860152.418 | N36: =SUM(N6:N35) -> 160543.6001 | O36: =SUM(O5:O35) -> 274376.1217
D37: Capital Account Balance | H37: =IF(SUM(H5:H35)>SUM(I5:I35),SUM(H5:H35)-SUM(I5:I35),0) -> 0 | I37: =IF(SUM(I5:I35)>SUM(H5:H35),SUM(I5:I35)-SUM(H5:H35),0) -> 2332688.663 | K37: =IF(SUM(K5:K35)>SUM(L5:L35),SUM(K5:K35)-SUM(L5:L35),0) -> 0 | L37: =IF(SUM(L5:L35)>SUM(K5:K35),SUM(L5:L35)-SUM(K5:K35),0) -> 2218856.142 | N37: =IF(SUM(N5:N35)>SUM(O5:O35),SUM(N5:N35)-SUM(O5:O35),0) -> 0 | O37: =IF(SUM(O5:O35)>SUM(N5:N35),SUM(O5:O35)-SUM(N5:N35),0) -> 113832.5216
H40: =H4 -> Partnership | K40: =K4 -> Limited Partners | N40: =N4 -> General Partner
A41: After Sale | B41: =D37 -> Capital Account Balance | H41: =IF(H37>0,H37," ") ->  | I41: =IF(I37>0,I37," ") -> 2332688.663 | K41: =IF(K37>0,K37," ") ->  | L41: =IF(L37>0,L37," ") -> 2218856.142 | N41: =IF(N37>0,N37," ") ->  | O41: =IF(O37>0,O37," ") -> 113832.5216
B42: Capital Gain/<Loss> | H42: =IF(A.7!I34<0,-A.7!I34," ") ->  | I42: =IF(A.7!I34>0,A.7!I34," ") -> 6020743.755 | K42: =IF(A.7!L34<0,-A.7!L34," ") ->  | L42: =IF(A.7!L34>0,A.7!L34," ") -> 5051080.577 | N42: =IF(A.7!O34<0,-A.7!O34," ") ->  | O42: =IF(A.7!O34>0,A.7!O34,0) -> 969663.178
B43: Reversionary Proceeds | H43: =A.7!I13 -> 8353432.418 | K43: =A.7!L24 -> 7269936.719 | N43: =A.7!O24 -> 1083495.7
C44: Subtotals | H44: =SUM(H41:H43) -> 8353432.418 | I44: =SUM(I41:I43) -> 8353432.418 | K44: =SUM(K41:K43) -> 7269936.719 | L44: =SUM(L41:L43) -> 7269936.719 | N44: =SUM(N41:N43) -> 1083495.7 | O44: =SUM(O41:O43) -> 1083495.7
D45: Ending Capital Account | H45: =IF(H44>I44,H44-I44," ") ->  | I45: =IF(I44>H44,I44-H44,0) -> 0 | K45: =IF(K44>L44,K44-L44," ") ->  | L45: =IF(L44>K44,L44-K44,0) -> 0 | N45: =IF(N44>O44,N44-O44," ") ->  | O45: =IF(O44>N44,O44-N44,0) -> 1.862645149e-09

Sheet A.10
B2: Appendix A.10: Pre- and Post-Tax Rates of Return
C4: Partnership Level
C5: Capital | D5: Operating | E5: Reversionary | F5: Before-tax | G5: Tax Consequences | I5: After-tax
B6: Year | C6: Contribution | D6: Cash Flow | E6: Proceeds | F6: Cash Flow | G6: Operations | H6: Reversion | I6: Cash Flow
B7: 0 | C7: =-A.1!G9 -> -4000000 | F7: =SUM(C7:E7) -> -4000000 | I7: =F7+G7 -> -4000000
B8: =1+B7 -> 1 | D8: =A.3!F12 -> 144911.0231 | E8: =IF(B8=A.3!E$39,A.7!I13,0) -> 0 | F8: =SUM(C8:E8) -> 144911.0231 | G8: =A.5!F26+A.5!F27 -> 49766.99452 | H8: =IF(B8=A.3!E$39,-A.7!I$63,0) -> 0 | I8: =F8+G8+H8 -> 194678.0176
B9: =1+B8 -> 2 | D9: =A.3!G12 -> 164111.0231 | E9: =IF(B9=A.3!E$39,A.7!I13,0) -> 0 | F9: 164111.0231 | G9: =A.5!G26+A.5!G27 -> 25825.89085 | H9: =IF(B9=A.3!E$39,-A.7!I$63,0) -> 0 | I9: =F9+G9+H9 -> 189936.9139
B10: =1+B9 -> 3 | D10: =A.3!H12 -> 183887.0231 | E10: =IF(B10=A.3!E$39,A.7!I13,0) -> 0 | F10: 183887.0231 | G10: =A.5!H26+A.5!H27 -> 7576.491915 | H10: =IF(B10=A.3!E$39,-A.7!I$63,0) -> 0 | I10: 191463.515
B11: 4 | D11: =A.3!I12 -> 204256.3031 | E11: =IF(B11=A.3!E$39,A.7!I13,0) -> 0 | F11: 204256.3031 | G11: =A.5!I26+A.5!I27 -> 0 | H11: =IF(B11=A.3!E$39,-A.7!I$63,0) -> 0 | I11: 204256.3031
B12: 5 | D12: =A.3!J12 -> 225236.6615 | E12: =IF(B12=A.3!E$39,A.7!I13,0) -> 0 | F12: 225236.6615 | G12: =A.5!J26+A.5!J27 -> 0 | H12: =IF(B12=A.3!E$39,-A.7!I$63,0) -> 0 | I12: 225236.6615
B13: 6 | D13: =A.3!K12 -> 246846.4306 | E13: =IF(B13=A.3!E$39,A.7!I13,0) -> 0 | F13: 246846.4306 | G13: =A.5!K26+A.5!K27 -> -414.5472611 | H13: =IF(B13=A.3!E$39,-A.7!I$63,0) -> 0 | I13: 246431.8834
B14: 7 | D14: =A.3!L12 -> 269104.4929 | E14: =IF(B14=A.3!E$39,A.7!I13,0) -> 0 | F14: 269104.4929 | G14: =A.5!L26+A.5!L27 -> -44606.95491 | H14: =IF(B14=A.3!E$39,-A.7!I$63,0) -> 0 | I14: 224497.538
B15: 8 | D15: =A.3!M12 -> 292030.297 | E15: =IF(B15=A.3!E$39,A.7!I13,0) -> 0 | F15: 292030.297 | G15: =A.5!M26+A.5!M27 -> -99103.42527 | H15: =IF(B15=A.3!E$39,-A.7!I$63,0) -> 0 | I15: 192926.8717
B16: 9 | D16: =A.3!N12 -> 315643.8752 | E16: =IF(B16=A.3!E$39,A.7!I13,0) -> 0 | F16: 315643.8752 | G16: =A.5!N26+A.5!N27 -> -108412.2362 | H16: =IF(B16=A.3!E$39,-A.7!I$63,0) -> 0 | I16: 207231.639
B17: 10 | D17: =A.3!O12 -> 339965.8607 | E17: =IF(B17=A.3!E$39,A.7!I13,0) -> 8353432.418 | F17: 8693398.279 | G17: =A.5!O26+A.5!O27 -> -118104.875 | H17: =IF(B17=A.3!E$39,-A.7!I$63,0) -> -1634639.018 | I17: 6940654.386
B18: 11 | D18: =A.3!P12 -> 0 | E18: =IF(B18=A.3!E$39,A.7!I13,0) -> 0 | F18: 0 | G18: =A.5!P26+A.5!P27 -> 0 | H18: =IF(B18=A.3!E$39,-A.7!I$63,0) -> 0 | I18: 0
B19: 12 | D19: =A.3!Q12 -> 0 | E19: =IF(B19=A.3!E$39,A.7!I13,0) -> 0 | F19: 0 | G19: =A.5!Q26+A.5!Q27 -> 0 | H19: =IF(B19=A.3!E$39,-A.7!I$63,0) -> 0 | I19: 0
B20: 13 | D20: =A.3!R12 -> 0 | E20: =IF(B20=A.3!E$39,A.7!I13,0) -> 0 | F20: 0 | G20: =A.5!R26+A.5!R27 -> 0 | H20: =IF(B20=A.3!E$39,-A.7!I$63,0) -> 0 | I20: 0
B21: 14 | D21: =A.3!S12 -> 0 | E21: =IF(B21=A.3!E$39,A.7!I13,0) -> 0 | F21: 0 | G21: =A.5!S26+A.5!S27 -> 0 | H21: =IF(B21=A.3!E$39,-A.7!I$63,0) -> 0 | I21: 0
B22: 15 | D22: =A.3!T12 -> 0 | E22: =IF(B22=A.3!E$39,A.7!I13,0) -> 0 | F22: 0 | G22: =A.5!T26+A.5!T27 -> 0 | H22: =IF(B22=A.3!E$39,-A.7!I$63,0) -> 0 | I22: 0
C23: =C7 -> -4000000 | D23: =SUM(D7:D22) -> 2385992.99 | E23: 8353432.418 | F23: 6739425.408 | G23: -287472.6614 | H23: -1634639.018 | I23: 4817313.729
E25: IRR | F25: =IRR(F7:F22) -> 0.1175644489 | I25: =IRR(I7:I22) -> 0.09547964112
H26: Effective
G27: Tax Effects | H27: Tax Rate
G28: =I25-F25 -> -0.0220848078 | H28: =IF(AND(F25<0,I25<0),-(F25-I25)/F25,(F25-I25)/F25) -> 0.1878527736
D29: MOIC | E29: =SUM(F8:F22)/-F7 -> 2.684856352
C31: Limited Partnership Level
C32: Capital | D32: Operating | E32: Reversionary | F32: Before-tax | G32: Tax Consequences | I32: After-tax
B33: Year | C33: Contribution | D33: Cash Flow | E33: Proceeds | F33: Cash Flow | G33: Operations | H33: Reversion | I33: Cash Flow
B34: 0 | C34: =-A.1!G7 -> -3800000 | F34: =SUM(C34:E34) -> -3800000 | I34: =F34+G34 -> -3800000
B35: =1+B34 -> 1 | D35: =A.3!F19*(1-A.1!I8)+A.3!F23 -> 137665.4719 | E35: =IF(B35=A.3!E$39,A.7!L24,0) -> 0 | F35: =SUM(C35:E35) -> 137665.4719 | G35: =A.5!F26 -> 47278.64479 | H35: =IF(B35=A.3!E$39,-A.7!L$63,0) -> 0 | I35: =F35+G35+H35 -> 184944.1167
B36: =1+B35 -> 2 | D36: =A.3!G19*(1-A.1!I8)+A.3!G23 -> 155905.4719 | E36: =IF(B36=A.3!E$39,A.7!L24,0) -> 0 | F36: 155905.4719 | G36: =A.5!G26 -> 24534.59631 | H36: =IF(B36=A.3!E$39,-A.7!L$63,0) -> 0 | I36: =F36+G36+H36 -> 180440.0682
B37: =1+B36 -> 3 | D37: =A.3!H19*(1-A.1!I8)+A.3!H23 -> 174692.6719 | E37: =IF(B37=A.3!E$39,A.7!L24,0) -> 0 | F37: 174692.6719 | G37: =A.5!H26 -> 7197.66732 | H37: =IF(B37=A.3!E$39,-A.7!L$63,0) -> 0 | I37: 181890.3393
B38: 4 | D38: =A.3!I19*(1-A.1!I8)+A.3!I23 -> 194043.4879 | E38: =IF(B38=A.3!E$39,A.7!L24,0) -> 0 | F38: 194043.4879 | G38: =A.5!I26 -> 0 | H38: =IF(B38=A.3!E$39,-A.7!L$63,0) -> 0 | I38: 194043.4879 | L38: Effects of
B39: 5 | D39: =A.3!J19*(1-A.1!I8)+A.3!J23 -> 213974.8284 | E39: =IF(B39=A.3!E$39,A.7!L24,0) -> 0 | F39: 213974.8284 | G39: =A.5!J26 -> 0 | H39: =IF(B39=A.3!E$39,-A.7!L$63,0) -> 0 | I39: 213974.8284 | K39: =F52-F25 -> -0.008057229928 | L39: General
B40: 6 | D40: =A.3!K19*(1-A.1!I8)+A.3!K23 -> 234504.1091 | E40: =IF(B40=A.3!E$39,A.7!L24,0) -> 0 | F40: 234504.1091 | G40: =A.5!K26 -> -393.8198981 | H40: =IF(B40=A.3!E$39,-A.7!L$63,0) -> 0 | I40: 234110.2892 | L40: Partner
B41: 7 | D41: =A.3!L19*(1-A.1!I8)+A.3!L23 -> 255649.2682 | E41: =IF(B41=A.3!E$39,A.7!L24,0) -> 0 | F41: 255649.2682 | G41: =A.5!L26 -> -42376.60716 | H41: =IF(B41=A.3!E$39,-A.7!L$63,0) -> 0 | I41: 213272.6611
B42: 8 | D42: =A.3!M19*(1-A.1!I8)+A.3!M23 -> 275143.0257 | E42: =IF(B42=A.3!E$39,A.7!L24,0) -> 0 | F42: 275143.0257 | G42: =A.5!M26 -> -93372.55952 | H42: =IF(B42=A.3!E$39,-A.7!L$63,0) -> 0 | I42: 181770.4662
B43: 9 | D43: =A.3!N19*(1-A.1!I8)+A.3!N23 -> 293089.3451 | E43: =IF(B43=A.3!E$39,A.7!L24,0) -> 0 | F43: 293089.3451 | G43: =A.5!N26 -> -100665.5722 | H43: =IF(B43=A.3!E$39,-A.7!L$63,0) -> 0 | I43: 192423.7729
B44: 10 | D44: =A.3!O19*(1-A.1!I8)+A.3!O23 -> 311574.0542 | E44: =IF(B44=A.3!E$39,A.7!L24,0) -> 7269936.719 | F44: 7581510.773 | G44: =A.5!O26 -> -108241.5 | H44: =IF(B44=A.3!E$39,-A.7!L$63,0) -> -1351345.067 | I44: 6121924.206
B45: 11 | D45: =A.3!P19*(1-A.1!I8)+A.3!P23 -> 0 | E45: =IF(B45=A.3!E$39,A.7!L24,0) -> 0 | F45: 0 | G45: =A.5!P26 -> 0 | H45: =IF(B45=A.3!E$39,-A.7!L$63,0) -> 0 | I45: 0
B46: 12 | D46: =A.3!Q19*(1-A.1!I8)+A.3!Q23 -> 0 | E46: =IF(B46=A.3!E$39,A.7!L24,0) -> 0 | F46: 0 | G46: =A.5!Q26 -> 0 | H46: =IF(B46=A.3!E$39,-A.7!L$63,0) -> 0 | I46: 0
B47: 13 | D47: =A.3!R19*(1-A.1!I8)+A.3!R23 -> 0 | E47: =IF(B47=A.3!E$39,A.7!L24,0) -> 0 | F47: 0 | G47: =A.5!R26 -> 0 | H47: =IF(B47=A.3!E$39,-A.7!L$63,0) -> 0 | I47: 0
B48: 14 | D48: =A.3!S19*(1-A.1!I8)+A.3!S23 -> 0 | E48: =IF(B48=A.3!E$39,A.7!L24,0) -> 0 | F48: 0 | G48: =A.5!S26 -> 0 | H48: =IF(B48=A.3!E$39,-A.7!L$63,0) -> 0 | I48: 0
B49: 15 | D49: =A.3!T19*(1-A.1!I8)+A.3!T23 -> 0 | E49: =IF(B49=A.3!E$39,A.7!L24,0) -> 0 | F49: 0 | G49: =A.5!T26 -> 0 | H49: =IF(B49=A.3!E$39,-A.7!L$63,0) -> 0 | I49: 0
C50: =C34 -> -3800000 | D50: =SUM(D34:D49) -> 2246241.734 | E50: 7269936.719 | F50: 5716178.453 | G50: -266039.1504 | H50: -1351345.067 | I50: 4098794.236
E52: IRR | F52: =IRR(F34:F49) -> 0.109507219 | I52: =IRR(I34:I49) -> 0.08863095047
H53: Effective
G54: Tax Effects | H54: Tax Rate
G55: =I52-F52 -> -0.02087626852 | H55: =IF(AND(F52<0,I52<0),-(F52-I52)/F52,(F52-I52)/F52) -> 0.1906382859
E58: MOIC | F58: =SUM(F35:F49)/-F34 -> 2.504257488
C60: General Partner Level
C61: Capital | D61: Operating | E61: Reversionary | F61: Before-tax | G61: Tax Consequences | I61: After-tax
B62: Year | C62: Contribution | D62: Cash Flow | E62: Proceeds | F62: Cash Flow | G62: Operations | H62: Reversion | I62: Cash Flow
B63: 0 | C63: =-A.1!G8 -> -200000 | F63: =SUM(C63:E63) -> -200000 | I63: =F63+G63 -> -200000
B64: =1+B63 -> 1 | D64: =D8-D35 -> 7245.551154 | E64: 0 | F64: =SUM(C64:E64) -> 7245.551154 | G64: =A.5!F27 -> 2488.349726 | H64: =H8-H35 -> 0 | I64: =F64+G64+H64 -> 9733.90088
B65: =1+B64 -> 2 | D65: 8205.551154 | E65: 0 | F65: 8205.551154 | G65: =A.5!G27 -> 1291.294542 | H65: 0 | I65: =F65+G65+H65 -> 9496.845697
B66: =1+B65 -> 3 | D66: 9194.351154 | E66: 0 | F66: 9194.351154 | G66: =A.5!H27 -> 378.8245958 | H66: 0 | I66: 9573.17575
B67: 4 | D67: 10212.81515 | E67: 0 | F67: 10212.81515 | G67: =A.5!I27 -> 0 | H67: 0 | I67: 10212.81515
B68: 5 | D68: 11261.83307 | E68: 0 | F68: 11261.83307 | G68: =A.5!J27 -> 0 | H68: 0 | I68: 11261.83307
B69: 6 | D69: 12342.32153 | E69: 0 | F69: 12342.32153 | G69: =A.5!K27 -> -20.72736306 | H69: 0 | I69: 12321.59417
B70: 7 | D70: 13455.22464 | E70: 0 | F70: 13455.22464 | G70: =A.5!L27 -> -2230.347745 | H70: 0 | I70: 11224.8769
B71: 8 | D71: 16887.27127 | E71: 0 | F71: 16887.27127 | G71: =A.5!M27 -> -5730.865748 | H71: 0 | I71: 11156.40552
B72: 9 | D72: 22554.53004 | E72: 0 | F72: 22554.53004 | G72: =A.5!N27 -> -7746.663978 | H72: 0 | I72: 14807.86606
B73: 10 | D73: 28391.80658 | E73: 1083495.7 | F73: 1111887.506 | G73: =A.5!O27 -> -9863.374988 | H73: -283293.951 | I73: 818730.1802
B74: 11 | D74: 0 | E74: 0 | F74: 0 | G74: =A.5!P27 -> 0 | H74: 0 | I74: 0
B75: 12 | D75: 0 | E75: 0 | F75: 0 | G75: =A.5!Q27 -> 0 | H75: 0 | I75: 0
B76: 13 | D76: 0 | E76: 0 | F76: 0 | G76: =A.5!R27 -> 0 | H76: 0 | I76: 0
B77: 14 | D77: 0 | E77: 0 | F77: 0 | G77: =A.5!S27 -> 0 | H77: 0 | I77: 0
B78: 15 | D78: 0 | E78: 0 | F78: 0 | G78: =A.5!T27 -> 0 | H78: 0 | I78: 0
C79: =C63 -> -200000 | D79: =SUM(D63:D78) -> 139751.2558 | E79: 1083495.7 | F79: 1023246.955 | G79: -21433.51096 | H79: -283293.951 | I79: 718519.4934
E81: IRR | F81: =IRR(F63:F78) -> 0.2142672043 | I81: =IRR(I63:I78) -> 0.1812923471
H82: Effective
G83: Tax Effects | H83: Tax Rate
G84: =I81-F81 -> -0.03297485722 | H84: =IF(AND(F81<0,I81<0),-(F81-I81)/F81,(F81-I81)/F81) -> 0.1538959605
E85: MOIC | F85: =SUM(F64:F78)/-F63 -> 6.116234777
B87: ="This particular illustration assumes that both the general and limited partners can utilize " &TEXT('A.5 (Passive Losses)'!T4,"0%") &" of the passive losses; any passive loss not currently deducted can be used to offset future taxable income and the capital gain associated with the project's disposition. There are no other sources of passive income assumed here." -> This particular illustration assumes that both the general and limited partners can utilize 50% of the passive losses; any passive loss not currently deducted can be used to offset future taxable income and the capital gain associated with the project's disposition. There are no other sources of passive income assumed here.

Sheet A.10 (2)
B2: Appendix A.10: Pre- and Post-Tax Rates of Return
C4: Partnership Level
C5: Capital | D5: Operating | E5: Reversionary | F5: Before-tax | G5: Tax Consequences | I5: After-tax
B6: Year | C6: Contribution | D6: Cash Flow | E6: Proceeds | F6: Cash Flow | G6: Operations | H6: Reversion | I6: Cash Flow
B7: 0 | C7: =-A.1!G9 -> -4000000 | F7: =SUM(C7:E7) -> -4000000 | I7: =F7+G7 -> -4000000
B8: =1+B7 -> 1 | D8: =A.3!F12 -> 144911.0231 | E8: =IF(B8=A.3!E$39,A.7!I13,0) -> 0 | F8: =SUM(C8:E8) -> 144911.0231 | G8: =A.5!F26+A.5!F27 -> 49766.99452 | H8: =IF(B8=A.3!E$39,-A.7!I$63,0) -> 0 | I8: =F8+G8+H8 -> 194678.0176
B9: =1+B8 -> 2 | D9: =A.3!G12 -> 164111.0231 | E9: =IF(B9=A.3!E$39,A.7!I13,0) -> 0 | F9: 164111.0231 | G9: =A.5!G26+A.5!G27 -> 25825.89085 | H9: =IF(B9=A.3!E$39,-A.7!I$63,0) -> 0 | I9: =F9+G9+H9 -> 189936.9139
B10: =1+B9 -> 3 | D10: =A.3!H12 -> 183887.0231 | E10: =IF(B10=A.3!E$39,A.7!I13,0) -> 0 | F10: 183887.0231 | G10: =A.5!H26+A.5!H27 -> 7576.491915 | H10: =IF(B10=A.3!E$39,-A.7!I$63,0) -> 0 | I10: 191463.515
B11: 4 | D11: =A.3!I12 -> 204256.3031 | E11: =IF(B11=A.3!E$39,A.7!I13,0) -> 0 | F11: 204256.3031 | G11: =A.5!I26+A.5!I27 -> 0 | H11: =IF(B11=A.3!E$39,-A.7!I$63,0) -> 0 | I11: 204256.3031
B12: 5 | D12: =A.3!J12 -> 225236.6615 | E12: =IF(B12=A.3!E$39,A.7!I13,0) -> 0 | F12: 225236.6615 | G12: =A.5!J26+A.5!J27 -> 0 | H12: =IF(B12=A.3!E$39,-A.7!I$63,0) -> 0 | I12: 225236.6615
B13: 6 | D13: =A.3!K12 -> 246846.4306 | E13: =IF(B13=A.3!E$39,A.7!I13,0) -> 0 | F13: 246846.4306 | G13: =A.5!K26+A.5!K27 -> -414.5472611 | H13: =IF(B13=A.3!E$39,-A.7!I$63,0) -> 0 | I13: 246431.8834
B14: 7 | D14: =A.3!L12 -> 269104.4929 | E14: =IF(B14=A.3!E$39,A.7!I13,0) -> 0 | F14: 269104.4929 | G14: =A.5!L26+A.5!L27 -> -44606.95491 | H14: =IF(B14=A.3!E$39,-A.7!I$63,0) -> 0 | I14: 224497.538
B15: 8 | D15: =A.3!M12 -> 292030.297 | E15: =IF(B15=A.3!E$39,A.7!I13,0) -> 0 | F15: 292030.297 | G15: =A.5!M26+A.5!M27 -> -99103.42527 | H15: =IF(B15=A.3!E$39,-A.7!I$63,0) -> 0 | I15: 192926.8717
B16: 9 | D16: =A.3!N12 -> 315643.8752 | E16: =IF(B16=A.3!E$39,A.7!I13,0) -> 0 | F16: 315643.8752 | G16: =A.5!N26+A.5!N27 -> -108412.2362 | H16: =IF(B16=A.3!E$39,-A.7!I$63,0) -> 0 | I16: 207231.639
B17: 10 | D17: =A.3!O12 -> 339965.8607 | E17: =IF(B17=A.3!E$39,A.7!I13,0) -> 8353432.418 | F17: 8693398.279 | G17: =A.5!O26+A.5!O27 -> -118104.875 | H17: =IF(B17=A.3!E$39,-A.7!I$63,0) -> -1634639.018 | I17: 6940654.386
B18: 11 | D18: =A.3!P12 -> 0 | E18: =IF(B18=A.3!E$39,A.7!I13,0) -> 0 | F18: 0 | G18: =A.5!P26+A.5!P27 -> 0 | H18: =IF(B18=A.3!E$39,-A.7!I$63,0) -> 0 | I18: 0
B19: 12 | D19: =A.3!Q12 -> 0 | E19: =IF(B19=A.3!E$39,A.7!I13,0) -> 0 | F19: 0 | G19: =A.5!Q26+A.5!Q27 -> 0 | H19: =IF(B19=A.3!E$39,-A.7!I$63,0) -> 0 | I19: 0
B20: 13 | D20: =A.3!R12 -> 0 | E20: =IF(B20=A.3!E$39,A.7!I13,0) -> 0 | F20: 0 | G20: =A.5!R26+A.5!R27 -> 0 | H20: =IF(B20=A.3!E$39,-A.7!I$63,0) -> 0 | I20: 0
B21: 14 | D21: =A.3!S12 -> 0 | E21: =IF(B21=A.3!E$39,A.7!I13,0) -> 0 | F21: 0 | G21: =A.5!S26+A.5!S27 -> 0 | H21: =IF(B21=A.3!E$39,-A.7!I$63,0) -> 0 | I21: 0
B22: 15 | D22: =A.3!T12 -> 0 | E22: =IF(B22=A.3!E$39,A.7!I13,0) -> 0 | F22: 0 | G22: =A.5!T26+A.5!T27 -> 0 | H22: =IF(B22=A.3!E$39,-A.7!I$63,0) -> 0 | I22: 0
C23: =C7 -> -4000000 | D23: =SUM(D7:D22) -> 2385992.99 | E23: 8353432.418 | F23: 6739425.408 | G23: -287472.6614 | H23: -1634639.018 | I23: 4817313.729
E25: IRR | F25: =IRR(F7:F22) -> 0.1175644489 | I25: =IRR(I7:I22) -> 0.09547964112
H26: Effective
G27: Tax Effects | H27: Tax Rate
G28: =I25-F25 -> -0.0220848078 | H28: =IF(AND(F25<0,I25<0),-(F25-I25)/F25,(F25-I25)/F25) -> 0.1878527736
D29: MOIC | E29: =SUM(F8:F22)/-F7 -> 2.684856352
C31: Limited Partnership Level
C32: Capital | D32: Operating | E32: Reversionary | F32: Before-tax | G32: Tax Consequences | I32: After-tax
B33: Year | C33: Contribution | D33: Cash Flow | E33: Proceeds | F33: Cash Flow | G33: Operations | H33: Reversion | I33: Cash Flow
B34: 0 | C34: =-A.1!G7 -> -3800000 | F34: =SUM(C34:E34) -> -3800000 | I34: =F34+G34 -> -3800000
B35: =1+B34 -> 1 | D35: =A.3!F19*(1-A.1!I8)+A.3!F23 -> 137665.4719 | E35: =IF(B35=A.3!E$39,A.7!L24,0) -> 0 | F35: =SUM(C35:E35) -> 137665.4719 | G35: =A.5!F26 -> 47278.64479 | H35: =IF(B35=A.3!E$39,-A.7!L$63,0) -> 0 | I35: =F35+G35+H35 -> 184944.1167
B36: =1+B35 -> 2 | D36: =A.3!G19*(1-A.1!I8)+A.3!G23 -> 155905.4719 | E36: =IF(B36=A.3!E$39,A.7!L24,0) -> 0 | F36: 155905.4719 | G36: =A.5!G26 -> 24534.59631 | H36: =IF(B36=A.3!E$39,-A.7!L$63,0) -> 0 | I36: =F36+G36+H36 -> 180440.0682
B37: =1+B36 -> 3 | D37: =A.3!H19*(1-A.1!I8)+A.3!H23 -> 174692.6719 | E37: =IF(B37=A.3!E$39,A.7!L24,0) -> 0 | F37: 174692.6719 | G37: =A.5!H26 -> 7197.66732 | H37: =IF(B37=A.3!E$39,-A.7!L$63,0) -> 0 | I37: 181890.3393
B38: 4 | D38: =A.3!I19*(1-A.1!I8)+A.3!I23 -> 194043.4879 | E38: =IF(B38=A.3!E$39,A.7!L24,0) -> 0 | F38: 194043.4879 | G38: =A.5!I26 -> 0 | H38: =IF(B38=A.3!E$39,-A.7!L$63,0) -> 0 | I38: 194043.4879 | L38: Effects of
B39: 5 | D39: =A.3!J19*(1-A.1!I8)+A.3!J23 -> 213974.8284 | E39: =IF(B39=A.3!E$39,A.7!L24,0) -> 0 | F39: 213974.8284 | G39: =A.5!J26 -> 0 | H39: =IF(B39=A.3!E$39,-A.7!L$63,0) -> 0 | I39: 213974.8284 | K39: =F52-F25 -> -0.008057229928 | L39: General
B40: 6 | D40: =A.3!K19*(1-A.1!I8)+A.3!K23 -> 234504.1091 | E40: =IF(B40=A.3!E$39,A.7!L24,0) -> 0 | F40: 234504.1091 | G40: =A.5!K26 -> -393.8198981 | H40: =IF(B40=A.3!E$39,-A.7!L$63,0) -> 0 | I40: 234110.2892 | L40: Partner
B41: 7 | D41: =A.3!L19*(1-A.1!I8)+A.3!L23 -> 255649.2682 | E41: =IF(B41=A.3!E$39,A.7!L24,0) -> 0 | F41: 255649.2682 | G41: =A.5!L26 -> -42376.60716 | H41: =IF(B41=A.3!E$39,-A.7!L$63,0) -> 0 | I41: 213272.6611
B42: 8 | D42: =A.3!M19*(1-A.1!I8)+A.3!M23 -> 275143.0257 | E42: =IF(B42=A.3!E$39,A.7!L24,0) -> 0 | F42: 275143.0257 | G42: =A.5!M26 -> -93372.55952 | H42: =IF(B42=A.3!E$39,-A.7!L$63,0) -> 0 | I42: 181770.4662
B43: 9 | D43: =A.3!N19*(1-A.1!I8)+A.3!N23 -> 293089.3451 | E43: =IF(B43=A.3!E$39,A.7!L24,0) -> 0 | F43: 293089.3451 | G43: =A.5!N26 -> -100665.5722 | H43: =IF(B43=A.3!E$39,-A.7!L$63,0) -> 0 | I43: 192423.7729
B44: 10 | D44: =A.3!O19*(1-A.1!I8)+A.3!O23 -> 311574.0542 | E44: =IF(B44=A.3!E$39,A.7!L24,0) -> 7269936.719 | F44: 7581510.773 | G44: =A.5!O26 -> -108241.5 | H44: =IF(B44=A.3!E$39,-A.7!L$63,0) -> -1351345.067 | I44: 6121924.206
B45: 11 | D45: =A.3!P19*(1-A.1!I8)+A.3!P23 -> 0 | E45: =IF(B45=A.3!E$39,A.7!L24,0) -> 0 | F45: 0 | G45: =A.5!P26 -> 0 | H45: =IF(B45=A.3!E$39,-A.7!L$63,0) -> 0 | I45: 0
B46: 12 | D46: =A.3!Q19*(1-A.1!I8)+A.3!Q23 -> 0 | E46: =IF(B46=A.3!E$39,A.7!L24,0) -> 0 | F46: 0 | G46: =A.5!Q26 -> 0 | H46: =IF(B46=A.3!E$39,-A.7!L$63,0) -> 0 | I46: 0
B47: 13 | D47: =A.3!R19*(1-A.1!I8)+A.3!R23 -> 0 | E47: =IF(B47=A.3!E$39,A.7!L24,0) -> 0 | F47: 0 | G47: =A.5!R26 -> 0 | H47: =IF(B47=A.3!E$39,-A.7!L$63,0) -> 0 | I47: 0
B48: 14 | D48: =A.3!S19*(1-A.1!I8)+A.3!S23 -> 0 | E48: =IF(B48=A.3!E$39,A.7!L24,0) -> 0 | F48: 0 | G48: =A.5!S26 -> 0 | H48: =IF(B48=A.3!E$39,-A.7!L$63,0) -> 0 | I48: 0
B49: 15 | D49: =A.3!T19*(1-A.1!I8)+A.3!T23 -> 0 | E49: =IF(B49=A.3!E$39,A.7!L24,0) -> 0 | F49: 0 | G49: =A.5!T26 -> 0 | H49: =IF(B49=A.3!E$39,-A.7!L$63,0) -> 0 | I49: 0
C50: =C34 -> -3800000 | D50: =SUM(D34:D49) -> 2246241.734 | E50: 7269936.719 | F50: 5716178.453 | G50: -266039.1504 | H50: -1351345.067 | I50: 4098794.236
E52: IRR | F52: =IRR(F34:F49) -> 0.109507219 | I52: =IRR(I34:I49) -> 0.08863095047
H53: Effective
G54: Tax Effects | H54: Tax Rate
G55: =I52-F52 -> -0.02087626852 | H55: =IF(AND(F52<0,I52<0),-(F52-I52)/F52,(F52-I52)/F52) -> 0.1906382859
E58: MOIC | F58: =SUM(F35:F49)/-F34 -> 2.504257488
C60: General Partner Level
C61: Capital | D61: Operating | E61: Reversionary | F61: Before-tax | G61: Tax Consequences | I61: After-tax
B62: Year | C62: Contribution | D62: Cash Flow | E62: Proceeds | F62: Cash Flow | G62: Operations | H62: Reversion | I62: Cash Flow
B63: 0 | C63: =-A.1!G8 -> -200000 | F63: =SUM(C63:E63) -> -200000 | I63: =F63+G63 -> -200000
B64: =1+B63 -> 1 | D64: =D8-D35 -> 7245.551154 | E64: 0 | F64: =SUM(C64:E64) -> 7245.551154 | G64: =A.5!F27 -> 2488.349726 | H64: =H8-H35 -> 0 | I64: =F64+G64+H64 -> 9733.90088
B65: =1+B64 -> 2 | D65: 8205.551154 | E65: 0 | F65: 8205.551154 | G65: =A.5!G27 -> 1291.294542 | H65: 0 | I65: =F65+G65+H65 -> 9496.845697
B66: =1+B65 -> 3 | D66: 9194.351154 | E66: 0 | F66: 9194.351154 | G66: =A.5!H27 -> 378.8245958 | H66: 0 | I66: 9573.17575
B67: 4 | D67: 10212.81515 | E67: 0 | F67: 10212.81515 | G67: =A.5!I27 -> 0 | H67: 0 | I67: 10212.81515
B68: 5 | D68: 11261.83307 | E68: 0 | F68: 11261.83307 | G68: =A.5!J27 -> 0 | H68: 0 | I68: 11261.83307
B69: 6 | D69: 12342.32153 | E69: 0 | F69: 12342.32153 | G69: =A.5!K27 -> -20.72736306 | H69: 0 | I69: 12321.59417
B70: 7 | D70: 13455.22464 | E70: 0 | F70: 13455.22464 | G70: =A.5!L27 -> -2230.347745 | H70: 0 | I70: 11224.8769
B71: 8 | D71: 16887.27127 | E71: 0 | F71: 16887.27127 | G71: =A.5!M27 -> -5730.865748 | H71: 0 | I71: 11156.40552
B72: 9 | D72: 22554.53004 | E72: 0 | F72: 22554.53004 | G72: =A.5!N27 -> -7746.663978 | H72: 0 | I72: 14807.86606
B73: 10 | D73: 28391.80658 | E73: 1083495.7 | F73: 1111887.506 | G73: =A.5!O27 -> -9863.374988 | H73: -283293.951 | I73: 818730.1802
B74: 11 | D74: 0 | E74: 0 | F74: 0 | G74: =A.5!P27 -> 0 | H74: 0 | I74: 0
B75: 12 | D75: 0 | E75: 0 | F75: 0 | G75: =A.5!Q27 -> 0 | H75: 0 | I75: 0
B76: 13 | D76: 0 | E76: 0 | F76: 0 | G76: =A.5!R27 -> 0 | H76: 0 | I76: 0
B77: 14 | D77: 0 | E77: 0 | F77: 0 | G77: =A.5!S27 -> 0 | H77: 0 | I77: 0
B78: 15 | D78: 0 | E78: 0 | F78: 0 | G78: =A.5!T27 -> 0 | H78: 0 | I78: 0
C79: =C63 -> -200000 | D79: =SUM(D63:D78) -> 139751.2558 | E79: 1083495.7 | F79: 1023246.955 | G79: -21433.51096 | H79: -283293.951 | I79: 718519.4934
E81: IRR | F81: =IRR(F63:F78) -> 0.2142672043 | I81: =IRR(I63:I78) -> 0.1812923471
H82: Effective
G83: Tax Effects | H83: Tax Rate
G84: =I81-F81 -> -0.03297485722 | H84: =IF(AND(F81<0,I81<0),-(F81-I81)/F81,(F81-I81)/F81) -> 0.1538959605
E85: MOIC | F85: =SUM(F64:F78)/-F63 -> 6.116234777
B87: ="This particular illustration assumes that both the general and limited partners can utilize " &TEXT('A.5 (Passive Losses)'!T4,"0%") &" of the passive losses; any passive loss not currently deducted can be used to offset future taxable income and the capital gain associated with the project's disposition. There are no other sources of passive income assumed here." -> This particular illustration assumes that both the general and limited partners can utilize 50% of the passive losses; any passive loss not currently deducted can be used to offset future taxable income and the capital gain associated with the project's disposition. There are no other sources of passive income assumed here.

Sheet Supporting Materials

Sheet Base Case =f(T)(OI)
B3: Summary of Pre- & Post-Tax Returns, as f(Holding Period) | P3: Illustration of Effective Tax Rate on a Non-Dividend-Paying Stock | V3: Holding Pre-Tax Returns Identical:
A4: Holding | B4: Partnership Level | F4: Limited Partners | J4: General Partners | Q4: Before-Tax | T4: Effective | V4: Differences in Effective Tax Rates
A5: Period in | E5: Effective | I5: Effective | M5: Effective | P5: Holding | Q5: Return | R5: Capital Gains | S5: After-Tax | T5: Tax Rate | V5: Holding | W5: Real | X5: Common
A6: Year(s) | B6: Pre-Tax | C6: Post-Tax | D6: Difference | E6: Tax Rate | F6: Pre-Tax | G6: Post-Tax | H6: Difference | I6: Tax Rate | J6: Pre-Tax | K6: Post-Tax | L6: Difference | M6: Tax Rate | P6: Period | Q6: ="at " &TEXT(Q7,"0%") -> at 13% | R6: Tax Rate | S6: Return | T6: Given Pre-Tax k | V6: Period | W6: Estate | X6: Stock | Y6: Difference
A7: 1 | B7: 0.1279936378 | C7: 0.09855510576 | D7: =C7-B7 -> -0.02943853204 | E7: =(B7-C7)/B7 -> 0.2299999637 | F7: 0.1163949102 | G7: 0.09043599647 | H7: =G7-F7 -> -0.02595891378 | I7: =(F7-G7)/F7 -> 0.2230244752 | J7: 0.3483694615 | K7: 0.2528181823 | L7: =K7-J7 -> -0.09555127914 | M7: =(J7-K7)/J7 -> 0.2742814446 | P7: 1 | Q7: =B7 -> 0.1279936378 | R7: ='Base Case Assumptions'!H8 -> 0.238 | S7: =(1+((1+Q7)^P7-1)*(1-R7))^(1/P7)-1 -> 0.09753115201 | T7: =(Q7-S7)/Q7 -> 0.238 | V7: =P7 -> 1 | W7: =E7 -> 0.2299999637 | X7: =T7 -> 0.238 | Y7: =X7-W7 -> 0.008000036332
A8: =1+A7 -> 2 | B8: 0.1264957952 | C8: 0.09802772228 | D8: =C8-B8 -> -0.0284680729 | E8: 0.2250515352 | F8: 0.1154293578 | G8: 0.09004115901 | H8: -0.02538819879 | I8: =(F8-G8)/F8 -> 0.2199457683 | J8: 0.3189926213 | K8: 0.2398425125 | L8: -0.07915010881 | M8: =(J8-K8)/J8 -> 0.2481252026 | P8: =1+P7 -> 2 | Q8: 0.1264957952 | R8: =R7 -> 0.238 | S8: 0.09771239208 | T8: 0.2275443469 | V8: =P8 -> 2 | W8: 0.2250515352 | X8: =T8 -> 0.2275443469 | Y8: =X8-W8 -> 0.002492811703
A9: =1+A8 -> 3 | B9: 0.1251066704 | C9: 0.09761220482 | D9: =C9-B9 -> -0.0274944656 | E9: 0.2197681827 | F9: 0.114526676 | G9: 0.0897635148 | H9: -0.02476316123 | I9: 0.2162217754 | J9: 0.29623039 | K9: 0.2288420228 | L9: -0.06738836716 | M9: 0.2274863398 | P9: =1+P8 -> 3 | Q9: 0.1251066704 | R9: =R8 -> 0.238 | S9: 0.09786519331 | T9: 0.2177460005 | V9: 3 | W9: 0.2197681827 | X9: 0.2177460005 | Y9: -0.002022182211
A10: 4 | B10: 0.1238152918 | C10: 0.09741585163 | D10: =C10-B10 -> -0.02639944021 | E10: 0.2132163145 | F10: 0.1136817507 | G10: 0.0897115109 | H10: -0.02397023982 | I10: 0.210853894 | J10: 0.2779528402 | K10: 0.2194832683 | L10: -0.05846957184 | M10: 0.2103578859 | P10: 4 | Q10: 0.1238152918 | R10: 0.238 | S10: 0.09799288783 | T10: 0.2085558547 | V10: 4 | W10: 0.2132163145 | X10: 0.2085558547 | Y10: -0.004660459821
A11: 5 | B11: 0.1222754386 | C11: 0.09712866145 | D11: -0.02514677718 | E11: 0.2056568144 | F11: 0.1126107689 | G11: 0.0896202319 | H11: -0.02299053703 | I11: 0.2041593113 | J11: 0.2618838987 | K11: 0.2105924846 | L11: -0.05129141404 | M11: 0.1958555463 | P11: 5 | Q11: 0.1222754386 | R11: 0.238 | S11: 0.09781820553 | T11: 0.2000175454 | V11: 5 | W11: 0.2056568144 | X11: 0.2000175454 | Y11: -0.005639268954
A12: 6 | B12: 0.1212337602 | C12: 0.09726979603 | D12: -0.02396396414 | E12: 0.1976674163 | F12: 0.1119340213 | G12: 0.08990219023 | H12: -0.02203183112 | I12: 0.1968287287 | J12: 0.2494913007 | K12: 0.2038109144 | L12: -0.04568038629 | M12: 0.1830941045 | P12: 6 | Q12: 0.1212337602 | R12: 0.238 | S12: 0.09796853435 | T12: 0.1919038541 | V12: 6 | W12: 0.1976674163 | X12: 0.1919038541 | Y12: -0.005763562173
A13: 7 | B13: 0.1202398177 | C13: 0.09702355638 | D13: -0.02321626134 | E13: 0.1930829719 | F13: 0.1112826584 | G13: 0.08978370153 | H13: -0.0214989569 | I13: 0.1931923374 | J13: 0.2388198571 | K13: 0.1975292852 | L13: -0.04129057194 | M13: 0.1728942159 | P13: 7 | Q13: 0.1202398177 | R13: 0.238 | S13: 0.09808277955 | T13: 0.1842737172 | V13: 7 | W13: 0.1930829719 | X13: 0.1842737172 | Y13: -0.008809254683
A14: 8 | B14: 0.1192972373 | C14: 0.09644943734 | D14: -0.02284779997 | E14: 0.191519942 | F14: 0.1106612909 | G14: 0.08932991574 | H14: -0.0213313752 | I14: 0.192762754 | J14: 0.2295260911 | K14: 0.1916108237 | L14: -0.03791526732 | M14: 0.1651893567 | P14: 8 | Q14: 0.1192972373 | R14: 0.238 | S14: 0.09817057787 | T14: 0.1770926126 | V14: 8 | W14: 0.191519942 | X14: 0.1770926126 | Y14: -0.0144273294
A15: 9 | B15: 0.1184059837 | C15: 0.0959405756 | D15: -0.0224654081 | E15: 0.1897320338 | F15: 0.1100700245 | G15: 0.08895393495 | H15: -0.02111608951 | I15: 0.1918423259 | J15: 0.2213942662 | K15: 0.1861973818 | L15: -0.03519688432 | M15: 0.1589783012 | P15: 9 | Q15: 0.1184059837 | R15: 0.238 | S15: 0.09823806805 | T15: 0.1703285174 | V15: 9 | W15: 0.1897320338 | X15: 0.1703285174 | Y15: -0.01940351637
A16: 10 | B16: 0.1175644489 | C16: 0.09547964112 | D16: -0.0220848078 | E16: 0.1878527736 | F16: 0.109507219 | G16: 0.08863095047 | H16: -0.02087626852 | I16: 0.1906382859 | J16: 0.2142672043 | K16: 0.1812923471 | L16: -0.03297485722 | M16: 0.1538959605 | P16: 10 | Q16: 0.1175644489 | R16: 0.238 | S16: 0.09828954017 | T16: 0.1639518487 | V16: 10 | W16: 0.1878527736 | X16: 0.1639518487 | Y16: -0.02390092482
A17: 11 | B17: 0.1167703595 | C17: 0.09505555614 | D17: -0.02171480336 | E17: 0.1859616041 | F17: 0.1089714213 | G17: 0.08834545333 | H17: -0.02062596796 | I17: 0.1892786909 | J17: 0.2079987525 | K17: 0.1768629882 | L17: -0.03113576428 | M17: 0.1496920722 | P17: 11 | Q17: 0.1167703595 | R17: 0.238 | S17: 0.09832819462 | T17: 0.1579353268 | V17: 11 | W17: 0.1859616041 | X17: 0.1579353268 | Y17: -0.02802627732
A18: 12 | B18: 0.1160967869 | C18: 0.09473263613 | D18: -0.02136415077 | E18: 0.1840201726 | F18: 0.108526841 | G18: 0.08813829268 | H18: -0.02038854834 | I18: 0.187866413 | J18: 0.2026146917 | K18: 0.1731027206 | L18: -0.02951197113 | M18: 0.1456556328 | P18: 12 | Q18: 0.1160967869 | R18: 0.238 | S18: 0.09842517873 | T18: 0.1522144466 | V18: 12 | W18: 0.1840201726 | X18: 0.1522144466 | Y18: -0.03180572607
A19: 13 | B19: 0.1154427557 | C19: 0.09441408902 | D19: -0.0210286667 | E19: 0.1821566591 | F19: 0.1080874727 | G19: 0.08793601105 | H19: -0.02015146165 | I19: 0.1864366068 | J19: 0.1978014246 | K19: 0.1696614616 | L19: -0.02813996303 | M19: 0.1422637025 | P19: 13 | Q19: 0.1154427557 | R19: 0.238 | S19: 0.09849406938 | T19: 0.1468146376 | V19: 13 | W19: 0.1821566591 | X19: 0.1468146376 | Y19: -0.03534202156
A20: =1+A19 -> 14 | B20: 0.1148120839 | C20: 0.0941013723 | D20: -0.02071071164 | E20: 0.1803879081 | F20: 0.1076573488 | G20: 0.08773824185 | H20: -0.01991910693 | I20: 0.1850231978 | J20: 0.1934883772 | K20: 0.166513692 | L20: -0.02697468524 | M20: 0.139412432 | P20: 14 | Q20: 0.1148120839 | R20: 0.238 | S20: 0.09854172564 | T20: 0.1417129429 | V20: 14 | W20: 0.1803879081 | X20: 0.1417129429 | Y20: -0.03867496516
A21: 15 | B21: 0.1142068289 | C21: 0.09379545348 | D21: -0.02041137547 | E21: 0.1787228982 | F21: 0.1072390528 | G21: 0.08754476716 | H21: -0.01969428567 | I21: 0.1836484485 | J21: 0.1896137983 | K21: 0.1636329261 | L21: -0.02598087218 | M21: 0.1370199449 | P21: 15 | Q21: 0.1142068289 | R21: 0.238 | S21: 0.09857324826 | T21: 0.1368883177 | V21: 15 | W21: 0.1787228982 | X21: 0.1368883177 | Y21: -0.04183458059
A23: For Years 2 - 15:
A25: Average | B25: =AVERAGE(B8:B21) -> 0.1194116614 | C25: =AVERAGE(C8:C21) -> 0.09603189669 | D25: -0.02337976466 | E25: 0.195342659 | F25: 0.1107275646 | G25: 0.08895999111 | H25: -0.02176757348 | I25: 0.1963356099 | J25: 0.2357196796 | K25: 0.1934982021 | L25: -0.04222147749 | M25: 0.1735657641 | Q25: =AVERAGE(Q8:Q21) -> 0.1194116614 | S25: =AVERAGE(S8:S21) -> 0.09817861396 | T25: =AVERAGE(T8:T21) -> 0.1769271406 | W25: =AVERAGE(W8:W21) -> 0.195342659 | X25: =AVERAGE(X8:X21) -> 0.1769271406 | Y25: =AVERAGE(Y8:Y21) -> -0.01841551839
A26: Volatility | B26: =STDEV(B8:B21) -> 0.003928371128 | C26: =STDEV(C8:C21) -> 0.001430158429 | D26: 0.002579863201 | E26: 0.01495559773 | F26: 0.002616466954 | G26: 0.0008868080694 | H26: 0.001829525077 | I26: 0.01179595812 | J26: 0.0403624061 | K26: 0.02413720775 | L26: 0.01638130974 | M26: 0.03498233326 | Q26: =STDEV(Q8:Q21) -> 0.003928371128 | S26: =STDEV(S8:S21) -> 0.0002800374219 | T26: =STDEV(T8:T21) -> 0.02905345329 | W26: =STDEV(W8:W21) -> 0.01495559773 | X26: =STDEV(X8:X21) -> 0.02905345329 | Y26: =STDEV(Y8:Y21) -> 0.01487053414
A27: Coefficient of Variation | B27: =B26/B25 -> 0.03289771772 | C27: =C26/C25 -> 0.01489253548 | D27: -0.1103459867 | E27: 0.0765608383 | F27: 0.02362977063 | G27: 0.009968616884 | H27: -0.08404818657 | I27: 0.06008058412 | J27: 0.1712305318 | K27: 0.1247412508 | L27: -0.3879852322 | M27: 0.2015508844 | Q27: =Q26/Q25 -> 0.03289771772 | S27: =S26/S25 -> 0.002852326088 | T27: =T26/T25 -> 0.164211399 | W27: =W26/W25 -> 0.0765608383 | X27: =X26/X25 -> 0.164211399 | Y27: =Y26/Y25 -> -0.8075001653
A29: Maximum | B29: =MAX(B8:B21) -> 0.1264957952 | C29: =MAX(C8:C21) -> 0.09802772228 | D29: -0.02041137547 | E29: 0.2250515352 | F29: 0.1154293578 | G29: 0.09004115901 | H29: -0.01969428567 | I29: 0.2199457683 | J29: 0.3189926213 | K29: 0.2398425125 | L29: -0.02598087218 | M29: 0.2481252026 | Q29: =MAX(Q8:Q21) -> 0.1264957952 | S29: 0.09857324826 | T29: 0.2275443469 | W29: 0.2250515352 | X29: 0.2275443469 | Y29: 0.002492811703
A30: Minimum | B30: =MIN(B8:B21) -> 0.1142068289 | C30: =MIN(C8:C21) -> 0.09379545348 | D30: -0.0284680729 | E30: 0.1787228982 | F30: 0.1072390528 | G30: 0.08754476716 | H30: -0.02538819879 | I30: 0.1836484485 | J30: 0.1896137983 | K30: 0.1636329261 | L30: -0.07915010881 | M30: 0.1370199449 | Q30: =MIN(Q8:Q21) -> 0.1142068289 | S30: 0.09771239208 | T30: 0.1368883177 | W30: 0.1787228982 | X30: 0.1368883177 | Y30: -0.04183458059
A31: Range | B31: =B29-B30 -> 0.01228896624 | C31: =C29-C30 -> 0.004232268808 | D31: 0.008056697429 | E31: 0.04632863692 | F31: 0.008190304963 | G31: 0.002496391846 | H31: 0.005693913116 | I31: 0.03629731983 | J31: 0.1293788231 | K31: 0.07620958645 | L31: 0.05316923663 | M31: 0.1111052578 | Q31: =Q29-Q30 -> 0.01228896624 | S31: =S29-S30 -> 0.0008608561797 | T31: =T29-T30 -> 0.09065602921 | W31: =W29-W30 -> 0.04632863692 | X31: =X29-X30 -> 0.09065602921 | Y31: =Y29-Y30 -> 0.04432739229

Sheet Base Case =f(T)
B3: Summary of Pre- & Post-Tax Returns, as f(Holding Period) | P3: Illustration of Effective Tax Rate on a Non-Dividend-Paying Stock | V3: Holding Pre-Tax Returns Identical:
A4: Holding | B4: Partnership Level | F4: Limited Partners | J4: General Partners | Q4: Before-Tax | T4: Effective | V4: Differences in Effective Tax Rates
A5: Period in | E5: Effective | I5: Effective | M5: Effective | P5: Holding | Q5: Return | R5: Capital Gains | S5: After-Tax | T5: Tax Rate | V5: Holding | W5: Real | X5: Common
A6: Year(s) | B6: Pre-Tax | C6: Post-Tax | D6: Difference | E6: Tax Rate | F6: Pre-Tax | G6: Post-Tax | H6: Difference | I6: Tax Rate | J6: Pre-Tax | K6: Post-Tax | L6: Difference | M6: Tax Rate | P6: Period | Q6: ="at " &TEXT(Q7,"0%") -> at 13% | R6: Tax Rate | S6: Return | T6: Given Pre-Tax k | V6: Period | W6: Estate | X6: Stock | Y6: Difference
A7: 1 | B7: 0.1279936378 | C7: 0.09927422687 | D7: =C7-B7 -> -0.02871941094 | E7: =(B7-C7)/B7 -> 0.2243815507 | F7: 0.1163949102 | G7: 0.09043599647 | H7: =G7-F7 -> -0.02595891378 | I7: =(F7-G7)/F7 -> 0.2230244752 | J7: 0.3483694615 | K7: 0.2672006045 | L7: =K7-J7 -> -0.08116885697 | M7: =(J7-K7)/J7 -> 0.2329964763 | P7: 1 | Q7: =B7 -> 0.1279936378 | R7: ='Base Case Assumptions'!H8 -> 0.238 | S7: =(1+((1+Q7)^P7-1)*(1-R7))^(1/P7)-1 -> 0.09753115201 | T7: =(Q7-S7)/Q7 -> 0.238 | V7: =P7 -> 1 | W7: =E7 -> 0.2243815507 | X7: =T7 -> 0.238 | Y7: =X7-W7 -> 0.01361844926
A8: =1+A7 -> 2 | B8: 0.1264957952 | C8: 0.09873224157 | D8: =C8-B8 -> -0.02776355361 | E8: 0.2194820276 | F8: 0.1154293578 | G8: 0.09004115901 | H8: -0.02538819879 | I8: =(F8-G8)/F8 -> 0.2199457683 | J8: 0.3189926213 | K8: 0.2522299181 | L8: -0.06676270323 | M8: =(J8-K8)/J8 -> 0.209292312 | P8: =1+P7 -> 2 | Q8: 0.1264957952 | R8: =R7 -> 0.238 | S8: 0.09771239208 | T8: 0.2275443469 | V8: =P8 -> 2 | W8: 0.2194820276 | X8: =T8 -> 0.2275443469 | Y8: =X8-W8 -> 0.008062319235
A9: =1+A8 -> 3 | B9: 0.1251066704 | C9: 0.09830182496 | D9: =C9-B9 -> -0.02680484547 | E9: 0.2142559256 | F9: 0.114526676 | G9: 0.0897635148 | H9: -0.02476316123 | I9: 0.2162217754 | J9: 0.29623039 | K9: 0.239688178 | L9: -0.05654221204 | M9: 0.1908724221 | P9: =1+P8 -> 3 | Q9: 0.1251066704 | R9: =R8 -> 0.238 | S9: 0.09786519331 | T9: 0.2177460005 | V9: 3 | W9: 0.2142559256 | X9: 0.2177460005 | Y9: 0.0034900749
A10: 4 | B10: 0.1238152918 | C10: 0.09809018667 | D10: =C10-B10 -> -0.02572510517 | E10: 0.207770016 | F10: 0.1136817507 | G10: 0.0897115109 | H10: -0.02397023982 | I10: 0.210853894 | J10: 0.2779528402 | K10: 0.2291045017 | L10: -0.0488483385 | M10: 0.1757432609 | P10: 4 | Q10: 0.1238152918 | R10: 0.238 | S10: 0.09799288783 | T10: 0.2085558547 | V10: 4 | W10: 0.207770016 | X10: 0.2085558547 | Y10: 0.0007858386845
A11: 5 | B11: 0.1222754386 | C11: 0.09778345983 | D11: -0.0244919788 | E11: 0.2003017047 | F11: 0.1126107689 | G11: 0.0896202319 | H11: -0.02299053703 | I11: 0.2041593113 | J11: 0.2618838987 | K11: 0.2191825067 | L11: -0.04270139192 | M11: 0.1630546671 | P11: 5 | Q11: 0.1222754386 | R11: 0.238 | S11: 0.09781820553 | T11: 0.2000175454 | V11: 5 | W11: 0.2003017047 | X11: 0.2000175454 | Y11: -0.0002841593099
A12: 6 | B12: 0.1212337602 | C12: 0.09790999016 | D12: -0.02332377002 | E12: 0.1923867575 | F12: 0.1119340213 | G12: 0.08990219023 | H12: -0.02203183112 | I12: 0.1968287287 | J12: 0.2494913007 | K12: 0.2115902228 | L12: -0.03790107796 | M12: 0.1519134248 | P12: 6 | Q12: 0.1212337602 | R12: 0.238 | S12: 0.09796853435 | T12: 0.1919038541 | V12: 6 | W12: 0.1923867575 | X12: 0.1919038541 | Y12: -0.0004829033333
A13: 7 | B13: 0.1202398177 | C13: 0.09765040528 | D13: -0.02258941243 | E13: 0.1878696497 | F13: 0.1112826584 | G13: 0.08978370153 | H13: -0.0214989569 | I13: 0.1931923374 | J13: 0.2388198571 | K13: 0.2046333434 | L13: -0.03418651368 | M13: 0.1431477018 | P13: 7 | Q13: 0.1202398177 | R13: 0.238 | S13: 0.09808277955 | T13: 0.1842737172 | V13: 7 | W13: 0.1878696497 | X13: 0.1842737172 | Y13: -0.003595932507
A14: 8 | B14: 0.1192972373 | C14: 0.09706143424 | D14: -0.02223580307 | E14: 0.1863899246 | F14: 0.1106612909 | G14: 0.08932991574 | H14: -0.0213313752 | I14: 0.192762754 | J14: 0.2295260911 | K14: 0.1981193345 | L14: -0.03140675656 | M14: 0.1368330564 | P14: 8 | Q14: 0.1192972373 | R14: 0.238 | S14: 0.09817057787 | T14: 0.1770926126 | V14: 8 | W14: 0.1863899246 | X14: 0.1770926126 | Y14: -0.00929731196
A15: 9 | B15: 0.1184059837 | C15: 0.09653369759 | D15: -0.02187228612 | E15: 0.1847228108 | F15: 0.1100700245 | G15: 0.08895393495 | H15: -0.02111608951 | I15: 0.1918423259 | J15: 0.2213942662 | K15: 0.1921578637 | L15: -0.02923640249 | M15: 0.1320558251 | P15: 9 | Q15: 0.1184059837 | R15: 0.238 | S15: 0.09823806805 | T15: 0.1703285174 | V15: 9 | W15: 0.1847228108 | X15: 0.1703285174 | Y15: -0.01439429331
A16: 10 | B16: 0.1175644489 | C16: 0.09605169418 | D16: -0.02151275474 | E16: 0.1829869058 | F16: 0.109507219 | G16: 0.08863095047 | H16: -0.02087626852 | I16: 0.1906382859 | J16: 0.2142672043 | K16: 0.1867561053 | L16: -0.02751109902 | M16: 0.1283962196 | P16: 10 | Q16: 0.1175644489 | R16: 0.238 | S16: =(1+((1+Q16)^P16-1)*(1-R16))^(1/P16)-1 -> 0.09828954017 | T16: =(Q16-S16)/Q16 -> 0.1639518487 | V16: 10 | W16: 0.1829869058 | X16: 0.1639518487 | Y16: -0.01903505705
A17: 11 | B17: 0.1167703595 | C17: 0.09560546513 | D17: -0.02116489437 | E17: 0.1812522841 | F17: 0.1089714213 | G17: 0.08834545333 | H17: -0.02062596796 | I17: 0.1892786909 | J17: 0.2079987525 | K17: 0.1818790178 | L17: -0.02611973476 | M17: 0.125576401 | P17: 11 | Q17: 0.1167703595 | R17: 0.238 | S17: 0.09832819462 | T17: 0.1579353268 | V17: 11 | W17: 0.1812522841 | X17: 0.1579353268 | Y17: -0.02331695733
A18: 12 | B18: 0.1160967869 | C18: 0.09526079796 | D18: -0.02083598893 | E18: 0.1794708492 | F18: 0.108526841 | G18: 0.08813829268 | H18: -0.02038854834 | I18: 0.187866413 | J18: 0.2026146917 | K18: 0.1777150776 | L18: -0.02489961413 | M18: 0.1228914543 | P18: 12 | Q18: 0.1160967869 | R18: 0.238 | S18: 0.09842517873 | T18: 0.1522144466 | V18: 12 | W18: 0.1794708492 | X18: 0.1522144466 | Y18: -0.02725640263
A19: 13 | B19: 0.1154427557 | C19: 0.094920333 | D19: -0.02052242272 | E19: 0.1777714209 | F19: 0.1080874727 | G19: 0.08793601105 | H19: -0.02015146165 | I19: 0.1864366068 | J19: 0.1978014246 | K19: 0.1739091339 | L19: -0.02389229074 | M19: 0.1207892753 | P19: 13 | Q19: 0.1154427557 | R19: 0.238 | S19: 0.09849406938 | T19: 0.1468146376 | V19: 13 | W19: 0.1777714209 | X19: 0.1468146376 | Y19: -0.03095678337
